Workbook

Sheet MU New
A1: Eastside Harley-Davidson | E1: Date | G1: Units | H1: Total | I1: Sales | J1: COGS | K1: Margin
E2: 2011-04-01 | F2: =E2 -> 2011-04-01 | G2: 1 | H2: =IF(ISNUMBER(G2),SUM($G$2:G2),NA()) -> 1 | I2: 20000 | J2: =IF(ABS(I2)-ABS(K2)>0,I2-K2,NA()) -> 12000 | K2: 8000
E3: =IF(MONTH(E2+1)<>MONTH(E2),NA(),E2+1) -> 2011-04-02 | F3: =E3 -> 2011-04-02 | G3: 1 | H3: =IF(ISNUMBER(G3),SUM($G$2:G3),NA()) -> 2 | I3: 15000 | J3: =IF(ABS(I3)-ABS(K3)>0,I3-K3,NA()) -> 9000 | K3: 6000
E4: =IF(MONTH(E3+1)<>MONTH(E3),NA(),E3+1) -> 2011-04-03 | F4: 2011-04-03 | H4: =IF(ISNUMBER(G4),SUM($G$2:G4),NA()) -> 
E5: 2011-04-04 | F5: 2011-04-04 | H5: =IF(ISNUMBER(G5),SUM($G$2:G5),NA()) -> 
E6: 2011-04-05 | F6: 2011-04-05 | H6: =IF(ISNUMBER(G6),SUM($G$2:G6),NA()) -> 
E7: 2011-04-06 | F7: 2011-04-06 | H7: =IF(ISNUMBER(G7),SUM($G$2:G7),NA()) -> 
A8: MU New | E8: 2011-04-07 | F8: 2011-04-07 | H8: =IF(ISNUMBER(G8),SUM($G$2:G8),NA()) -> 
E9: 2011-04-08 | F9: 2011-04-08 | H9: =IF(ISNUMBER(G9),SUM($G$2:G9),NA()) -> 
A10: Goal (Sales) | C10: 547200 | E10: 2011-04-09 | F10: 2011-04-09 | H10: =IF(ISNUMBER(G10),SUM($G$2:G10),NA()) -> 
A11: Total sales $ | C11: =SUM(I2:I32) -> 35000 | E11: 2011-04-10 | F11: 2011-04-10 | H11: =IF(ISNUMBER(G11),SUM($G$2:G11),NA()) -> 
A12: Current track | C12: =(SUM(I2:I32)/COUNT(G2:G32))*COUNT(E2:E32) -> 525000 | E12: 2011-04-11 | F12: 2011-04-11 | H12: =IF(ISNUMBER(G12),SUM($G$2:G12),NA()) -> 
A13: To hit goal | C13: =IF(C14>C15,"On Track",IF(C14<=C15,(C10-SUM(I2:I32))/(COUNT(E2:E32)-COUNT(G2:G32)))) -> 18292.85714 | E13: 2011-04-12 | F13: 2011-04-12 | H13: =IF(ISNUMBER(G13),SUM($G$2:G13),NA()) -> 
A14: % of goal to date | C14: =SUM(I2:I32)/C10 -> 0.0639619883 | E14: 2011-04-13 | F14: 2011-04-13 | H14: =IF(ISNUMBER(G14),SUM($G$2:G14),NA()) -> 
A15: % of time lapsed | C15: =COUNT(G2:G32)/COUNT(E2:E32) -> 0.06666666667 | E15: 2011-04-14 | F15: 2011-04-14 | H15: =IF(ISNUMBER(G15),SUM($G$2:G15),NA()) -> 
E16: 2011-04-15 | F16: 2011-04-15 | H16: =IF(ISNUMBER(G16),SUM($G$2:G16),NA()) -> 
E17: 2011-04-16 | F17: 2011-04-16 | H17: =IF(ISNUMBER(G17),SUM($G$2:G17),NA()) -> 
A18: Goal (Margin) | C18: 109440 | E18: 2011-04-17 | F18: 2011-04-17 | H18: =IF(ISNUMBER(G18),SUM($G$2:G18),NA()) -> 
A19: Total margin $ | C19: =SUM(K2:K32) -> 14000 | E19: 2011-04-18 | F19: 2011-04-18 | H19: =IF(ISNUMBER(G19),SUM($G$2:G19),NA()) -> 
A20: Average margin | C20: =C19/C11 -> 0.4 | E20: 2011-04-19 | F20: 2011-04-19 | H20: =IF(ISNUMBER(G20),SUM($G$2:G20),NA()) -> 
A21: Current track | C21: =(SUM(K2:K32)/COUNT(G2:G32))*COUNT(E2:E32) -> 210000 | E21: 2011-04-20 | F21: 2011-04-20 | H21: =IF(ISNUMBER(G21),SUM($G$2:G21),NA()) -> 
A22: To hit goal | C22: =IF(C23>C15,"On Track",IF(C23<=C15,(C18-SUM(K2:K32))/(COUNT(E2:E32)-COUNT(G2:G32)))) -> On Track | E22: 2011-04-21 | F22: 2011-04-21 | H22: =IF(ISNUMBER(G22),SUM($G$2:G22),NA()) -> 
A23: % of goal to date | C23: =C19/C18 -> 0.1279239766 | E23: 2011-04-22 | F23: 2011-04-22 | H23: =IF(ISNUMBER(G23),SUM($G$2:G23),NA()) -> 
E24: 2011-04-23 | F24: 2011-04-23 | H24: =IF(ISNUMBER(G24),SUM($G$2:G24),NA()) -> 
E25: 2011-04-24 | F25: 2011-04-24 | H25: =IF(ISNUMBER(G25),SUM($G$2:G25),NA()) -> 
E26: 2011-04-25 | F26: 2011-04-25 | H26: =IF(ISNUMBER(G26),SUM($G$2:G26),NA()) -> 
A27: Goal (# of units) | C27: 26 | E27: 2011-04-26 | F27: 2011-04-26 | H27: =IF(ISNUMBER(G27),SUM($G$2:G27),NA()) -> 
A28: Total units sold | C28: =SUM(G2:G32) -> 2 | E28: 2011-04-27 | F28: 2011-04-27 | H28: =IF(ISNUMBER(G28),SUM($G$2:G28),NA()) -> 
A29: Current track | C29: =(SUM(G2:G32)/COUNT(G2:G32))*COUNT(E2:E32) -> 30 | E29: 2011-04-28 | F29: 2011-04-28 | H29: =IF(ISNUMBER(G29),SUM($G$2:G29),NA()) -> 
A30: To hit goal | C30: =IF(C31>C15,"On Track",IF(C31<=C15,(C27-SUM(G2:G32))/(COUNT(E2:E32)-COUNT(G2:G32)))) -> On Track | E30: 2011-04-29 | F30: 2011-04-29 | H30: =IF(ISNUMBER(G30),SUM($G$2:G30),NA()) -> 
A31: % of goal to date | C31: =C28/C27 -> 0.07692307692 | E31: 2011-04-30 | F31: 2011-04-30 | H31: =IF(ISNUMBER(G31),SUM($G$2:G31),NA()) -> 
H32: =IF(ISNUMBER(G32),SUM($G$2:G32),NA()) -> 

Sheet MU Used
A1: Eastside Harley-Davidson | E1: Date | G1: Units | H1: Total | I1: Sales | J1: COGS | K1: Margin
E2: ='MU New'!E2 -> 2011-04-01 | F2: =E2 -> 2011-04-01 | G2: 0 | H2: =IF(ISNUMBER(G2),SUM($G$2:G2),NA()) -> 0 | I2: 0 | J2: =IF(ABS(I2)-ABS(K2)>0,I2-K2,NA()) ->  | K2: 0
E3: ='MU New'!E3 -> 2011-04-02 | F3: =E3 -> 2011-04-02 | G3: 1 | H3: =IF(ISNUMBER(G3),SUM($G$2:G3),NA()) -> 1 | I3: 12000 | J3: =IF(ABS(I3)-ABS(K3)>0,I3-K3,NA()) -> 8000 | K3: 4000
E4: ='MU New'!E4 -> 2011-04-03 | F4: 2011-04-03 | H4: =IF(ISNUMBER(G4),SUM($G$2:G4),NA()) -> 
E5: ='MU New'!E5 -> 2011-04-04 | F5: 2011-04-04 | H5: =IF(ISNUMBER(G5),SUM($G$2:G5),NA()) -> 
E6: ='MU New'!E6 -> 2011-04-05 | F6: 2011-04-05 | H6: =IF(ISNUMBER(G6),SUM($G$2:G6),NA()) -> 
E7: ='MU New'!E7 -> 2011-04-06 | F7: 2011-04-06 | H7: =IF(ISNUMBER(G7),SUM($G$2:G7),NA()) -> 
A8: MU Used | E8: ='MU New'!E8 -> 2011-04-07 | F8: 2011-04-07 | H8: =IF(ISNUMBER(G8),SUM($G$2:G8),NA()) -> 
E9: ='MU New'!E9 -> 2011-04-08 | F9: 2011-04-08 | H9: =IF(ISNUMBER(G9),SUM($G$2:G9),NA()) -> 
A10: Goal (Sales) | C10: 376200 | E10: ='MU New'!E10 -> 2011-04-09 | F10: 2011-04-09 | H10: =IF(ISNUMBER(G10),SUM($G$2:G10),NA()) -> 
A11: Total sales $ | C11: =SUM(I2:I32) -> 12000 | E11: ='MU New'!E11 -> 2011-04-10 | F11: 2011-04-10 | H11: =IF(ISNUMBER(G11),SUM($G$2:G11),NA()) -> 
A12: Current track | C12: =(SUM(I2:I32)/COUNT(G2:G32))*COUNT(E2:E32) -> 180000 | E12: ='MU New'!E12 -> 2011-04-11 | F12: 2011-04-11 | H12: =IF(ISNUMBER(G12),SUM($G$2:G12),NA()) -> 
A13: To hit goal | C13: =IF(C14>C15,"On Track",IF(C14<=C15,(C10-SUM(I2:I32))/(COUNT(E2:E32)-COUNT(G2:G32)))) -> 13007.14286 | E13: ='MU New'!E13 -> 2011-04-12 | F13: 2011-04-12 | H13: =IF(ISNUMBER(G13),SUM($G$2:G13),NA()) -> 
A14: % of goal to date | C14: =SUM(I2:I32)/C10 -> 0.03189792663 | E14: ='MU New'!E14 -> 2011-04-13 | F14: 2011-04-13 | H14: =IF(ISNUMBER(G14),SUM($G$2:G14),NA()) -> 
A15: % of time lapsed | C15: =COUNT(G2:G32)/COUNT(E2:E32) -> 0.06666666667 | E15: ='MU New'!E15 -> 2011-04-14 | F15: 2011-04-14 | H15: =IF(ISNUMBER(G15),SUM($G$2:G15),NA()) -> 
E16: ='MU New'!E16 -> 2011-04-15 | F16: 2011-04-15 | H16: =IF(ISNUMBER(G16),SUM($G$2:G16),NA()) -> 
E17: ='MU New'!E17 -> 2011-04-16 | F17: 2011-04-16 | H17: =IF(ISNUMBER(G17),SUM($G$2:G17),NA()) -> 
A18: Goal (Margin) | C18: 65835 | E18: ='MU New'!E18 -> 2011-04-17 | F18: 2011-04-17 | H18: =IF(ISNUMBER(G18),SUM($G$2:G18),NA()) -> 
A19: Total margin $ | C19: =SUM(K2:K32) -> 4000 | E19: ='MU New'!E19 -> 2011-04-18 | F19: 2011-04-18 | H19: =IF(ISNUMBER(G19),SUM($G$2:G19),NA()) -> 
A20: Average margin | C20: =C19/C11 -> 0.3333333333 | E20: ='MU New'!E20 -> 2011-04-19 | F20: 2011-04-19 | H20: =IF(ISNUMBER(G20),SUM($G$2:G20),NA()) -> 
A21: Current track | C21: =(SUM(K2:K32)/COUNT(G2:G32))*COUNT(E2:E32) -> 60000 | E21: ='MU New'!E21 -> 2011-04-20 | F21: 2011-04-20 | H21: =IF(ISNUMBER(G21),SUM($G$2:G21),NA()) -> 
A22: To hit goal | C22: =IF(C23>C15,"On Track",IF(C23<=C15,(C18-SUM(K2:K32))/(COUNT(E2:E32)-COUNT(G2:G32)))) -> 2208.392857 | E22: ='MU New'!E22 -> 2011-04-21 | F22: 2011-04-21 | H22: =IF(ISNUMBER(G22),SUM($G$2:G22),NA()) -> 
A23: % of goal to date | C23: =C19/C18 -> 0.06075795549 | E23: ='MU New'!E23 -> 2011-04-22 | F23: 2011-04-22 | H23: =IF(ISNUMBER(G23),SUM($G$2:G23),NA()) -> 
E24: ='MU New'!E24 -> 2011-04-23 | F24: 2011-04-23 | H24: =IF(ISNUMBER(G24),SUM($G$2:G24),NA()) -> 
E25: ='MU New'!E25 -> 2011-04-24 | F25: 2011-04-24 | H25: =IF(ISNUMBER(G25),SUM($G$2:G25),NA()) -> 
E26: ='MU New'!E26 -> 2011-04-25 | F26: 2011-04-25 | H26: =IF(ISNUMBER(G26),SUM($G$2:G26),NA()) -> 
A27: Goal (# of units) | C27: 36 | E27: ='MU New'!E27 -> 2011-04-26 | F27: 2011-04-26 | H27: =IF(ISNUMBER(G27),SUM($G$2:G27),NA()) -> 
A28: Total units sold | C28: =SUM(G2:G32) -> 1 | E28: ='MU New'!E28 -> 2011-04-27 | F28: 2011-04-27 | H28: =IF(ISNUMBER(G28),SUM($G$2:G28),NA()) -> 
A29: Current track | C29: =(SUM(G2:G32)/COUNT(G2:G32))*COUNT(E2:E32) -> 15 | E29: ='MU New'!E29 -> 2011-04-28 | F29: 2011-04-28 | H29: =IF(ISNUMBER(G29),SUM($G$2:G29),NA()) -> 
A30: To hit goal | C30: =IF(C31>C15,"On Track",IF(C31<=C15,(C27-SUM(G2:G32))/(COUNT(E2:E32)-COUNT(G2:G32)))) -> 1.25 | E30: ='MU New'!E30 -> 2011-04-29 | F30: 2011-04-29 | H30: =IF(ISNUMBER(G30),SUM($G$2:G30),NA()) -> 
A31: % of goal to date | C31: =C28/C27 -> 0.02777777778 | E31: ='MU New'!E31 -> 2011-04-30 | F31: 2011-04-30 | H31: =IF(ISNUMBER(G31),SUM($G$2:G31),NA()) -> 
E32: ='MU New'!E32 ->  | H32: =IF(ISNUMBER(G32),SUM($G$2:G32),NA()) -> 

Sheet MC
A1: Eastside Harley-Davidson | E1: Date | G1: Cumulative | H1: Sales | I1: COGS | J1: Margin
E2: ='MU New'!E2 -> 2011-04-01 | F2: =E2 -> 2011-04-01 | G2: =IF(ISNUMBER(H2),SUM($H$2:H2),NA()) -> 8000 | H2: =IF(SUM(Eastside!H2,'Emerald City'!H2),SUM(Eastside!H2,'Emerald City'!H2),NA()) -> 8000 | I2: =IF(ABS(H2)-ABS(J2)>0,H2-J2,NA()) -> 5000 | J2: =IF(SUM(Eastside!J2,'Emerald City'!J2),SUM(Eastside!J2,'Emerald City'!J2),NA()) -> 3000
E3: ='MU New'!E3 -> 2011-04-02 | F3: =E3 -> 2011-04-02 | G3: =IF(ISNUMBER(H3),SUM($H$2:H3),NA()) -> 15000 | H3: =IF(SUM(Eastside!H3,'Emerald City'!H3),SUM(Eastside!H3,'Emerald City'!H3),NA()) -> 7000 | I3: =IF(ABS(H3)-ABS(J3)>0,H3-J3,NA()) -> 4750 | J3: =IF(SUM(Eastside!J3,'Emerald City'!J3),SUM(Eastside!J3,'Emerald City'!J3),NA()) -> 2250
E4: ='MU New'!E4 -> 2011-04-03 | F4: 2011-04-03 | G4: =IF(ISNUMBER(H4),SUM($H$2:H4),NA()) ->  | H4: =IF(SUM(Eastside!H4,'Emerald City'!H4),SUM(Eastside!H4,'Emerald City'!H4),NA()) ->  | J4: =IF(SUM(Eastside!J4,'Emerald City'!J4),SUM(Eastside!J4,'Emerald City'!J4),NA()) -> 
E5: ='MU New'!E5 -> 2011-04-04 | F5: 2011-04-04 | G5: =IF(ISNUMBER(H5),SUM($H$2:H5),NA()) ->  | H5: =IF(SUM(Eastside!H5,'Emerald City'!H5),SUM(Eastside!H5,'Emerald City'!H5),NA()) ->  | J5: =IF(SUM(Eastside!J5,'Emerald City'!J5),SUM(Eastside!J5,'Emerald City'!J5),NA()) -> 
E6: ='MU New'!E6 -> 2011-04-05 | F6: 2011-04-05 | G6: =IF(ISNUMBER(H6),SUM($H$2:H6),NA()) ->  | H6: =IF(SUM(Eastside!H6,'Emerald City'!H6),SUM(Eastside!H6,'Emerald City'!H6),NA()) ->  | J6: =IF(SUM(Eastside!J6,'Emerald City'!J6),SUM(Eastside!J6,'Emerald City'!J6),NA()) -> 
E7: ='MU New'!E7 -> 2011-04-06 | F7: 2011-04-06 | G7: =IF(ISNUMBER(H7),SUM($H$2:H7),NA()) ->  | H7: =IF(SUM(Eastside!H7,'Emerald City'!H7),SUM(Eastside!H7,'Emerald City'!H7),NA()) ->  | J7: =IF(SUM(Eastside!J7,'Emerald City'!J7),SUM(Eastside!J7,'Emerald City'!J7),NA()) -> 
A8: MC | E8: ='MU New'!E8 -> 2011-04-07 | F8: 2011-04-07 | G8: =IF(ISNUMBER(H8),SUM($H$2:H8),NA()) ->  | H8: =IF(SUM(Eastside!H8,'Emerald City'!H8),SUM(Eastside!H8,'Emerald City'!H8),NA()) ->  | J8: =IF(SUM(Eastside!J8,'Emerald City'!J8),SUM(Eastside!J8,'Emerald City'!J8),NA()) -> 
E9: ='MU New'!E9 -> 2011-04-08 | F9: 2011-04-08 | G9: =IF(ISNUMBER(H9),SUM($H$2:H9),NA()) ->  | H9: =IF(SUM(Eastside!H9,'Emerald City'!H9),SUM(Eastside!H9,'Emerald City'!H9),NA()) ->  | J9: =IF(SUM(Eastside!J9,'Emerald City'!J9),SUM(Eastside!J9,'Emerald City'!J9),NA()) -> 
A10: Goal (Sales) | C10: 78212 | E10: ='MU New'!E10 -> 2011-04-09 | F10: 2011-04-09 | G10: =IF(ISNUMBER(H10),SUM($H$2:H10),NA()) ->  | H10: =IF(SUM(Eastside!H10,'Emerald City'!H10),SUM(Eastside!H10,'Emerald City'!H10),NA()) ->  | J10: =IF(SUM(Eastside!J10,'Emerald City'!J10),SUM(Eastside!J10,'Emerald City'!J10),NA()) -> 
A11: Total sales $ | C11: =SUMIF(H2:H32,">0") -> 15000 | E11: ='MU New'!E11 -> 2011-04-10 | F11: 2011-04-10 | G11: =IF(ISNUMBER(H11),SUM($H$2:H11),NA()) ->  | H11: =IF(SUM(Eastside!H11,'Emerald City'!H11),SUM(Eastside!H11,'Emerald City'!H11),NA()) ->  | J11: =IF(SUM(Eastside!J11,'Emerald City'!J11),SUM(Eastside!J11,'Emerald City'!J11),NA()) -> 
A12: Current track | C12: =(SUMIF(H2:H32,">0")/COUNT(H2:H32))*COUNT(E2:E32) -> 225000 | E12: ='MU New'!E12 -> 2011-04-11 | F12: 2011-04-11 | G12: =IF(ISNUMBER(H12),SUM($H$2:H12),NA()) ->  | H12: =IF(SUM(Eastside!H12,'Emerald City'!H12),SUM(Eastside!H12,'Emerald City'!H12),NA()) ->  | J12: =IF(SUM(Eastside!J12,'Emerald City'!J12),SUM(Eastside!J12,'Emerald City'!J12),NA()) -> 
A13: To hit goal | C13: =IF(C14>C15,"On Track",IF(C14<=C15,(C10-SUMIF(H2:H32,">0")))/(COUNT(E2:E32)-COUNT(H2:H32))) -> On Track | E13: ='MU New'!E13 -> 2011-04-12 | F13: 2011-04-12 | G13: =IF(ISNUMBER(H13),SUM($H$2:H13),NA()) ->  | H13: =IF(SUM(Eastside!H13,'Emerald City'!H13),SUM(Eastside!H13,'Emerald City'!H13),NA()) ->  | J13: =IF(SUM(Eastside!J13,'Emerald City'!J13),SUM(Eastside!J13,'Emerald City'!J13),NA()) -> 
A14: % of goal to date | C14: =SUMIF(H2:H32,">0")/C10 -> 0.1917864266 | E14: ='MU New'!E14 -> 2011-04-13 | F14: 2011-04-13 | G14: =IF(ISNUMBER(H14),SUM($H$2:H14),NA()) ->  | H14: =IF(SUM(Eastside!H14,'Emerald City'!H14),SUM(Eastside!H14,'Emerald City'!H14),NA()) ->  | J14: =IF(SUM(Eastside!J14,'Emerald City'!J14),SUM(Eastside!J14,'Emerald City'!J14),NA()) -> 
A15: % of time lapsed | C15: =COUNT(H2:H32)/COUNT(E2:E32) -> 0.06666666667 | E15: ='MU New'!E15 -> 2011-04-14 | F15: 2011-04-14 | G15: =IF(ISNUMBER(H15),SUM($H$2:H15),NA()) ->  | H15: =IF(SUM(Eastside!H15,'Emerald City'!H15),SUM(Eastside!H15,'Emerald City'!H15),NA()) ->  | J15: =IF(SUM(Eastside!J15,'Emerald City'!J15),SUM(Eastside!J15,'Emerald City'!J15),NA()) -> 
E16: ='MU New'!E16 -> 2011-04-15 | F16: 2011-04-15 | G16: =IF(ISNUMBER(H16),SUM($H$2:H16),NA()) ->  | H16: =IF(SUM(Eastside!H16,'Emerald City'!H16),SUM(Eastside!H16,'Emerald City'!H16),NA()) ->  | J16: =IF(SUM(Eastside!J16,'Emerald City'!J16),SUM(Eastside!J16,'Emerald City'!J16),NA()) -> 
E17: ='MU New'!E17 -> 2011-04-16 | F17: 2011-04-16 | G17: =IF(ISNUMBER(H17),SUM($H$2:H17),NA()) ->  | H17: =IF(SUM(Eastside!H17,'Emerald City'!H17),SUM(Eastside!H17,'Emerald City'!H17),NA()) ->  | J17: =IF(SUM(Eastside!J17,'Emerald City'!J17),SUM(Eastside!J17,'Emerald City'!J17),NA()) -> 
A18: Goal (Margin) | C18: 31285 | E18: ='MU New'!E18 -> 2011-04-17 | F18: 2011-04-17 | G18: =IF(ISNUMBER(H18),SUM($H$2:H18),NA()) ->  | H18: =IF(SUM(Eastside!H18,'Emerald City'!H18),SUM(Eastside!H18,'Emerald City'!H18),NA()) ->  | J18: =IF(SUM(Eastside!J18,'Emerald City'!J18),SUM(Eastside!J18,'Emerald City'!J18),NA()) -> 
A19: Total margin $ | C19: =SUMIF(J2:J32,">0") -> 5250 | E19: ='MU New'!E19 -> 2011-04-18 | F19: 2011-04-18 | G19: =IF(ISNUMBER(H19),SUM($H$2:H19),NA()) ->  | H19: =IF(SUM(Eastside!H19,'Emerald City'!H19),SUM(Eastside!H19,'Emerald City'!H19),NA()) ->  | J19: =IF(SUM(Eastside!J19,'Emerald City'!J19),SUM(Eastside!J19,'Emerald City'!J19),NA()) -> 
A20: Average margin | C20: =C19/C11 -> 0.35 | E20: ='MU New'!E20 -> 2011-04-19 | F20: 2011-04-19 | G20: =IF(ISNUMBER(H20),SUM($H$2:H20),NA()) ->  | H20: =IF(SUM(Eastside!H20,'Emerald City'!H20),SUM(Eastside!H20,'Emerald City'!H20),NA()) ->  | J20: =IF(SUM(Eastside!J20,'Emerald City'!J20),SUM(Eastside!J20,'Emerald City'!J20),NA()) -> 
A21: Current track | C21: =(SUMIF(J2:J32,">0")/COUNT(H2:H32))*COUNT(E2:E32) -> 78750 | E21: ='MU New'!E21 -> 2011-04-20 | F21: 2011-04-20 | G21: =IF(ISNUMBER(H21),SUM($H$2:H21),NA()) ->  | H21: =IF(SUM(Eastside!H21,'Emerald City'!H21),SUM(Eastside!H21,'Emerald City'!H21),NA()) ->  | J21: =IF(SUM(Eastside!J21,'Emerald City'!J21),SUM(Eastside!J21,'Emerald City'!J21),NA()) -> 
A22: To hit goal | C22: =IF(C23>C15,"On Track",IF(C23<=C15,(C18-SUMIF(J2:J32,">0"))/(COUNT(E2:E32)-COUNT(H2:H32)))) -> On Track | E22: ='MU New'!E22 -> 2011-04-21 | F22: 2011-04-21 | G22: =IF(ISNUMBER(H22),SUM($H$2:H22),NA()) ->  | H22: =IF(SUM(Eastside!H22,'Emerald City'!H22),SUM(Eastside!H22,'Emerald City'!H22),NA()) ->  | J22: =IF(SUM(Eastside!J22,'Emerald City'!J22),SUM(Eastside!J22,'Emerald City'!J22),NA()) -> 
A23: % of goal to date | C23: =C19/C18 -> 0.1678120505 | E23: ='MU New'!E23 -> 2011-04-22 | F23: 2011-04-22 | G23: =IF(ISNUMBER(H23),SUM($H$2:H23),NA()) ->  | H23: =IF(SUM(Eastside!H23,'Emerald City'!H23),SUM(Eastside!H23,'Emerald City'!H23),NA()) ->  | J23: =IF(SUM(Eastside!J23,'Emerald City'!J23),SUM(Eastside!J23,'Emerald City'!J23),NA()) -> 
E24: ='MU New'!E24 -> 2011-04-23 | F24: 2011-04-23 | G24: =IF(ISNUMBER(H24),SUM($H$2:H24),NA()) ->  | H24: =IF(SUM(Eastside!H24,'Emerald City'!H24),SUM(Eastside!H24,'Emerald City'!H24),NA()) ->  | J24: =IF(SUM(Eastside!J24,'Emerald City'!J24),SUM(Eastside!J24,'Emerald City'!J24),NA()) -> 
E25: ='MU New'!E25 -> 2011-04-24 | F25: 2011-04-24 | G25: =IF(ISNUMBER(H25),SUM($H$2:H25),NA()) ->  | H25: =IF(SUM(Eastside!H25,'Emerald City'!H25),SUM(Eastside!H25,'Emerald City'!H25),NA()) ->  | J25: =IF(SUM(Eastside!J25,'Emerald City'!J25),SUM(Eastside!J25,'Emerald City'!J25),NA()) -> 
E26: ='MU New'!E26 -> 2011-04-25 | F26: 2011-04-25 | G26: =IF(ISNUMBER(H26),SUM($H$2:H26),NA()) ->  | H26: =IF(SUM(Eastside!H26,'Emerald City'!H26),SUM(Eastside!H26,'Emerald City'!H26),NA()) ->  | J26: =IF(SUM(Eastside!J26,'Emerald City'!J26),SUM(Eastside!J26,'Emerald City'!J26),NA()) -> 
E27: ='MU New'!E27 -> 2011-04-26 | F27: 2011-04-26 | G27: =IF(ISNUMBER(H27),SUM($H$2:H27),NA()) ->  | H27: =IF(SUM(Eastside!H27,'Emerald City'!H27),SUM(Eastside!H27,'Emerald City'!H27),NA()) ->  | J27: =IF(SUM(Eastside!J27,'Emerald City'!J27),SUM(Eastside!J27,'Emerald City'!J27),NA()) -> 
E28: ='MU New'!E28 -> 2011-04-27 | F28: 2011-04-27 | G28: =IF(ISNUMBER(H28),SUM($H$2:H28),NA()) ->  | H28: =IF(SUM(Eastside!H28,'Emerald City'!H28),SUM(Eastside!H28,'Emerald City'!H28),NA()) ->  | J28: =IF(SUM(Eastside!J28,'Emerald City'!J28),SUM(Eastside!J28,'Emerald City'!J28),NA()) -> 
E29: ='MU New'!E29 -> 2011-04-28 | F29: 2011-04-28 | G29: =IF(ISNUMBER(H29),SUM($H$2:H29),NA()) ->  | H29: =IF(SUM(Eastside!H29,'Emerald City'!H29),SUM(Eastside!H29,'Emerald City'!H29),NA()) ->  | J29: =IF(SUM(Eastside!J29,'Emerald City'!J29),SUM(Eastside!J29,'Emerald City'!J29),NA()) -> 
E30: ='MU New'!E30 -> 2011-04-29 | F30: 2011-04-29 | G30: =IF(ISNUMBER(H30),SUM($H$2:H30),NA()) ->  | H30: =IF(SUM(Eastside!H30,'Emerald City'!H30),SUM(Eastside!H30,'Emerald City'!H30),NA()) ->  | J30: =IF(SUM(Eastside!J30,'Emerald City'!J30),SUM(Eastside!J30,'Emerald City'!J30),NA()) -> 
E31: ='MU New'!E31 -> 2011-04-30 | F31: 2011-04-30 | G31: =IF(ISNUMBER(H31),SUM($H$2:H31),NA()) ->  | H31: =IF(SUM(Eastside!H31,'Emerald City'!H31),SUM(Eastside!H31,'Emerald City'!H31),NA()) ->  | J31: =IF(SUM(Eastside!J31,'Emerald City'!J31),SUM(Eastside!J31,'Emerald City'!J31),NA()) -> 
E32: ='MU New'!E32 ->  | G32: =IF(ISNUMBER(H32),SUM($H$2:H32),NA()) ->  | H32: =IF(SUM(Eastside!H32,'Emerald City'!H32),SUM(Eastside!H32,'Emerald City'!H32),NA()) ->  | J32: =IF(SUM(Eastside!J32,'Emerald City'!J32),SUM(Eastside!J32,'Emerald City'!J32),NA()) -> 

Sheet Parts
A1: Eastside Harley-Davidson | E1: Date | G1: Cumulative | H1: Sales | I1: COGS | J1: Margin
E2: ='MU New'!E2 -> 2011-04-01 | F2: =E2 -> 2011-04-01 | G2: =IF(ISNUMBER(H2),SUM($H$2:H2),NA()) -> 9000 | H2: =IF(SUM(Retail!H2,RO!H2,'Major Unit'!H2)>0,SUM(Retail!H2,RO!H2,'Major Unit'!H2),NA()) -> 9000 | I2: =IF(ABS(H2)-ABS(J2)>0,H2-J2,NA()) -> 4750 | J2: =IF(SUM(Retail!J2,RO!J2,'Major Unit'!J2)>0,SUM(Retail!J2,RO!J2,'Major Unit'!J2),NA()) -> 4250
E3: ='MU New'!E3 -> 2011-04-02 | F3: =E3 -> 2011-04-02 | G3: =IF(ISNUMBER(H3),SUM($H$2:H3),NA()) -> 18500 | H3: =IF(SUM(Retail!H3,RO!H3,'Major Unit'!H3)>0,SUM(Retail!H3,RO!H3,'Major Unit'!H3),NA()) -> 9500 | I3: =IF(ABS(H3)-ABS(J3)>0,H3-J3,NA()) -> 5200 | J3: =IF(SUM(Retail!J3,RO!J3,'Major Unit'!J3)>0,SUM(Retail!J3,RO!J3,'Major Unit'!J3),NA()) -> 4300
E4: ='MU New'!E4 -> 2011-04-03 | F4: 2011-04-03 | G4: =IF(ISNUMBER(H4),SUM($H$2:H4),NA()) ->  | H4: =IF(SUM(Retail!H4,RO!H4,'Major Unit'!H4)>0,SUM(Retail!H4,RO!H4,'Major Unit'!H4),NA()) ->  | J4: =IF(SUM(Retail!J4,RO!J4,'Major Unit'!J4)>0,SUM(Retail!J4,RO!J4,'Major Unit'!J4),NA()) -> 
E5: ='MU New'!E5 -> 2011-04-04 | F5: 2011-04-04 | G5: =IF(ISNUMBER(H5),SUM($H$2:H5),NA()) ->  | H5: =IF(SUM(Retail!H5,RO!H5,'Major Unit'!H5)>0,SUM(Retail!H5,RO!H5,'Major Unit'!H5),NA()) ->  | J5: =IF(SUM(Retail!J5,RO!J5,'Major Unit'!J5)>0,SUM(Retail!J5,RO!J5,'Major Unit'!J5),NA()) -> 
E6: ='MU New'!E6 -> 2011-04-05 | F6: 2011-04-05 | G6: =IF(ISNUMBER(H6),SUM($H$2:H6),NA()) ->  | H6: =IF(SUM(Retail!H6,RO!H6,'Major Unit'!H6)>0,SUM(Retail!H6,RO!H6,'Major Unit'!H6),NA()) ->  | J6: =IF(SUM(Retail!J6,RO!J6,'Major Unit'!J6)>0,SUM(Retail!J6,RO!J6,'Major Unit'!J6),NA()) -> 
E7: ='MU New'!E7 -> 2011-04-06 | F7: 2011-04-06 | G7: =IF(ISNUMBER(H7),SUM($H$2:H7),NA()) ->  | H7: =IF(SUM(Retail!H7,RO!H7,'Major Unit'!H7)>0,SUM(Retail!H7,RO!H7,'Major Unit'!H7),NA()) ->  | J7: =IF(SUM(Retail!J7,RO!J7,'Major Unit'!J7)>0,SUM(Retail!J7,RO!J7,'Major Unit'!J7),NA()) -> 
A8: Parts | E8: ='MU New'!E8 -> 2011-04-07 | F8: 2011-04-07 | G8: =IF(ISNUMBER(H8),SUM($H$2:H8),NA()) ->  | H8: =IF(SUM(Retail!H8,RO!H8,'Major Unit'!H8)>0,SUM(Retail!H8,RO!H8,'Major Unit'!H8),NA()) ->  | J8: =IF(SUM(Retail!J8,RO!J8,'Major Unit'!J8)>0,SUM(Retail!J8,RO!J8,'Major Unit'!J8),NA()) -> 
E9: ='MU New'!E9 -> 2011-04-08 | F9: 2011-04-08 | G9: =IF(ISNUMBER(H9),SUM($H$2:H9),NA()) ->  | H9: =IF(SUM(Retail!H9,RO!H9,'Major Unit'!H9)>0,SUM(Retail!H9,RO!H9,'Major Unit'!H9),NA()) ->  | J9: =IF(SUM(Retail!J9,RO!J9,'Major Unit'!J9)>0,SUM(Retail!J9,RO!J9,'Major Unit'!J9),NA()) -> 
A10: Goal (Sales) | C10: 147038 | E10: ='MU New'!E10 -> 2011-04-09 | F10: 2011-04-09 | G10: =IF(ISNUMBER(H10),SUM($H$2:H10),NA()) ->  | H10: =IF(SUM(Retail!H10,RO!H10,'Major Unit'!H10)>0,SUM(Retail!H10,RO!H10,'Major Unit'!H10),NA()) ->  | J10: =IF(SUM(Retail!J10,RO!J10,'Major Unit'!J10)>0,SUM(Retail!J10,RO!J10,'Major Unit'!J10),NA()) -> 
A11: Total sales $ | C11: =SUMIF(H2:H32,">0") -> 18500 | E11: ='MU New'!E11 -> 2011-04-10 | F11: 2011-04-10 | G11: =IF(ISNUMBER(H11),SUM($H$2:H11),NA()) ->  | H11: =IF(SUM(Retail!H11,RO!H11,'Major Unit'!H11)>0,SUM(Retail!H11,RO!H11,'Major Unit'!H11),NA()) ->  | J11: =IF(SUM(Retail!J11,RO!J11,'Major Unit'!J11)>0,SUM(Retail!J11,RO!J11,'Major Unit'!J11),NA()) -> 
A12: Current track | C12: =(SUMIF(H2:H32,">0")/COUNT(H2:H32))*COUNT(E2:E32) -> 277500 | E12: ='MU New'!E12 -> 2011-04-11 | F12: 2011-04-11 | G12: =IF(ISNUMBER(H12),SUM($H$2:H12),NA()) ->  | H12: =IF(SUM(Retail!H12,RO!H12,'Major Unit'!H12)>0,SUM(Retail!H12,RO!H12,'Major Unit'!H12),NA()) ->  | J12: =IF(SUM(Retail!J12,RO!J12,'Major Unit'!J12)>0,SUM(Retail!J12,RO!J12,'Major Unit'!J12),NA()) -> 
A13: To hit goal | C13: =IF(C14>C15,"On Track",IF(C14<=C15,(C10-SUMIF(H2:H32,">0"))/(COUNT(E2:E32)-COUNT(H2:H32)))) -> On Track | E13: ='MU New'!E13 -> 2011-04-12 | F13: 2011-04-12 | G13: =IF(ISNUMBER(H13),SUM($H$2:H13),NA()) ->  | H13: =IF(SUM(Retail!H13,RO!H13,'Major Unit'!H13)>0,SUM(Retail!H13,RO!H13,'Major Unit'!H13),NA()) ->  | J13: =IF(SUM(Retail!J13,RO!J13,'Major Unit'!J13)>0,SUM(Retail!J13,RO!J13,'Major Unit'!J13),NA()) -> 
A14: % of goal to date | C14: =SUMIF(H2:H32,">0")/C10 -> 0.1258178158 | E14: ='MU New'!E14 -> 2011-04-13 | F14: 2011-04-13 | G14: =IF(ISNUMBER(H14),SUM($H$2:H14),NA()) ->  | H14: =IF(SUM(Retail!H14,RO!H14,'Major Unit'!H14)>0,SUM(Retail!H14,RO!H14,'Major Unit'!H14),NA()) ->  | J14: =IF(SUM(Retail!J14,RO!J14,'Major Unit'!J14)>0,SUM(Retail!J14,RO!J14,'Major Unit'!J14),NA()) -> 
A15: % of time lapsed | C15: =COUNT(H2:H32)/COUNT(E2:E32) -> 0.06666666667 | E15: ='MU New'!E15 -> 2011-04-14 | F15: 2011-04-14 | G15: =IF(ISNUMBER(H15),SUM($H$2:H15),NA()) ->  | H15: =IF(SUM(Retail!H15,RO!H15,'Major Unit'!H15)>0,SUM(Retail!H15,RO!H15,'Major Unit'!H15),NA()) ->  | J15: =IF(SUM(Retail!J15,RO!J15,'Major Unit'!J15)>0,SUM(Retail!J15,RO!J15,'Major Unit'!J15),NA()) -> 
E16: ='MU New'!E16 -> 2011-04-15 | F16: 2011-04-15 | G16: =IF(ISNUMBER(H16),SUM($H$2:H16),NA()) ->  | H16: =IF(SUM(Retail!H16,RO!H16,'Major Unit'!H16)>0,SUM(Retail!H16,RO!H16,'Major Unit'!H16),NA()) ->  | J16: =IF(SUM(Retail!J16,RO!J16,'Major Unit'!J16)>0,SUM(Retail!J16,RO!J16,'Major Unit'!J16),NA()) -> 
E17: ='MU New'!E17 -> 2011-04-16 | F17: 2011-04-16 | G17: =IF(ISNUMBER(H17),SUM($H$2:H17),NA()) ->  | H17: =IF(SUM(Retail!H17,RO!H17,'Major Unit'!H17)>0,SUM(Retail!H17,RO!H17,'Major Unit'!H17),NA()) ->  | J17: =IF(SUM(Retail!J17,RO!J17,'Major Unit'!J17)>0,SUM(Retail!J17,RO!J17,'Major Unit'!J17),NA()) -> 
A18: Goal (Margin) | C18: 51463 | E18: ='MU New'!E18 -> 2011-04-17 | F18: 2011-04-17 | G18: =IF(ISNUMBER(H18),SUM($H$2:H18),NA()) ->  | H18: =IF(SUM(Retail!H18,RO!H18,'Major Unit'!H18)>0,SUM(Retail!H18,RO!H18,'Major Unit'!H18),NA()) ->  | J18: =IF(SUM(Retail!J18,RO!J18,'Major Unit'!J18)>0,SUM(Retail!J18,RO!J18,'Major Unit'!J18),NA()) -> 
A19: Total margin $ | C19: =SUMIF(J2:J32,">0") -> 8550 | E19: ='MU New'!E19 -> 2011-04-18 | F19: 2011-04-18 | G19: =IF(ISNUMBER(H19),SUM($H$2:H19),NA()) ->  | H19: =IF(SUM(Retail!H19,RO!H19,'Major Unit'!H19)>0,SUM(Retail!H19,RO!H19,'Major Unit'!H19),NA()) ->  | J19: =IF(SUM(Retail!J19,RO!J19,'Major Unit'!J19)>0,SUM(Retail!J19,RO!J19,'Major Unit'!J19),NA()) -> 
A20: Average margin | C20: =C19/C11 -> 0.4621621622 | E20: ='MU New'!E20 -> 2011-04-19 | F20: 2011-04-19 | G20: =IF(ISNUMBER(H20),SUM($H$2:H20),NA()) ->  | H20: =IF(SUM(Retail!H20,RO!H20,'Major Unit'!H20)>0,SUM(Retail!H20,RO!H20,'Major Unit'!H20),NA()) ->  | J20: =IF(SUM(Retail!J20,RO!J20,'Major Unit'!J20)>0,SUM(Retail!J20,RO!J20,'Major Unit'!J20),NA()) -> 
A21: Current track | C21: =(SUMIF(J2:J32,">0")/COUNT(H2:H32))*COUNT(E2:E32) -> 128250 | E21: ='MU New'!E21 -> 2011-04-20 | F21: 2011-04-20 | G21: =IF(ISNUMBER(H21),SUM($H$2:H21),NA()) ->  | H21: =IF(SUM(Retail!H21,RO!H21,'Major Unit'!H21)>0,SUM(Retail!H21,RO!H21,'Major Unit'!H21),NA()) ->  | J21: =IF(SUM(Retail!J21,RO!J21,'Major Unit'!J21)>0,SUM(Retail!J21,RO!J21,'Major Unit'!J21),NA()) -> 
A22: To hit goal | C22: =IF(C23>C15,"On Track",IF(C23<=C15,(C18-SUMIF(J2:J32,">0"))/(COUNT(E2:E32)-COUNT(H2:H32)))) -> On Track | E22: ='MU New'!E22 -> 2011-04-21 | F22: 2011-04-21 | G22: =IF(ISNUMBER(H22),SUM($H$2:H22),NA()) ->  | H22: =IF(SUM(Retail!H22,RO!H22,'Major Unit'!H22)>0,SUM(Retail!H22,RO!H22,'Major Unit'!H22),NA()) ->  | J22: =IF(SUM(Retail!J22,RO!J22,'Major Unit'!J22)>0,SUM(Retail!J22,RO!J22,'Major Unit'!J22),NA()) -> 
A23: % of goal to date | C23: =C19/C18 -> 0.1661387793 | E23: ='MU New'!E23 -> 2011-04-22 | F23: 2011-04-22 | G23: =IF(ISNUMBER(H23),SUM($H$2:H23),NA()) ->  | H23: =IF(SUM(Retail!H23,RO!H23,'Major Unit'!H23)>0,SUM(Retail!H23,RO!H23,'Major Unit'!H23),NA()) ->  | J23: =IF(SUM(Retail!J23,RO!J23,'Major Unit'!J23)>0,SUM(Retail!J23,RO!J23,'Major Unit'!J23),NA()) -> 
E24: ='MU New'!E24 -> 2011-04-23 | F24: 2011-04-23 | G24: =IF(ISNUMBER(H24),SUM($H$2:H24),NA()) ->  | H24: =IF(SUM(Retail!H24,RO!H24,'Major Unit'!H24)>0,SUM(Retail!H24,RO!H24,'Major Unit'!H24),NA()) ->  | J24: =IF(SUM(Retail!J24,RO!J24,'Major Unit'!J24)>0,SUM(Retail!J24,RO!J24,'Major Unit'!J24),NA()) -> 
E25: ='MU New'!E25 -> 2011-04-24 | F25: 2011-04-24 | G25: =IF(ISNUMBER(H25),SUM($H$2:H25),NA()) ->  | H25: =IF(SUM(Retail!H25,RO!H25,'Major Unit'!H25)>0,SUM(Retail!H25,RO!H25,'Major Unit'!H25),NA()) ->  | J25: =IF(SUM(Retail!J25,RO!J25,'Major Unit'!J25)>0,SUM(Retail!J25,RO!J25,'Major Unit'!J25),NA()) -> 
E26: ='MU New'!E26 -> 2011-04-25 | F26: 2011-04-25 | G26: =IF(ISNUMBER(H26),SUM($H$2:H26),NA()) ->  | H26: =IF(SUM(Retail!H26,RO!H26,'Major Unit'!H26)>0,SUM(Retail!H26,RO!H26,'Major Unit'!H26),NA()) ->  | J26: =IF(SUM(Retail!J26,RO!J26,'Major Unit'!J26)>0,SUM(Retail!J26,RO!J26,'Major Unit'!J26),NA()) -> 
E27: ='MU New'!E27 -> 2011-04-26 | F27: 2011-04-26 | G27: =IF(ISNUMBER(H27),SUM($H$2:H27),NA()) ->  | H27: =IF(SUM(Retail!H27,RO!H27,'Major Unit'!H27)>0,SUM(Retail!H27,RO!H27,'Major Unit'!H27),NA()) ->  | J27: =IF(SUM(Retail!J27,RO!J27,'Major Unit'!J27)>0,SUM(Retail!J27,RO!J27,'Major Unit'!J27),NA()) -> 
E28: ='MU New'!E28 -> 2011-04-27 | F28: 2011-04-27 | G28: =IF(ISNUMBER(H28),SUM($H$2:H28),NA()) ->  | H28: =IF(SUM(Retail!H28,RO!H28,'Major Unit'!H28)>0,SUM(Retail!H28,RO!H28,'Major Unit'!H28),NA()) ->  | J28: =IF(SUM(Retail!J28,RO!J28,'Major Unit'!J28)>0,SUM(Retail!J28,RO!J28,'Major Unit'!J28),NA()) -> 
E29: ='MU New'!E29 -> 2011-04-28 | F29: 2011-04-28 | G29: =IF(ISNUMBER(H29),SUM($H$2:H29),NA()) ->  | H29: =IF(SUM(Retail!H29,RO!H29,'Major Unit'!H29)>0,SUM(Retail!H29,RO!H29,'Major Unit'!H29),NA()) ->  | J29: =IF(SUM(Retail!J29,RO!J29,'Major Unit'!J29)>0,SUM(Retail!J29,RO!J29,'Major Unit'!J29),NA()) -> 
E30: ='MU New'!E30 -> 2011-04-29 | F30: 2011-04-29 | G30: =IF(ISNUMBER(H30),SUM($H$2:H30),NA()) ->  | H30: =IF(SUM(Retail!H30,RO!H30,'Major Unit'!H30)>0,SUM(Retail!H30,RO!H30,'Major Unit'!H30),NA()) ->  | J30: =IF(SUM(Retail!J30,RO!J30,'Major Unit'!J30)>0,SUM(Retail!J30,RO!J30,'Major Unit'!J30),NA()) -> 
E31: ='MU New'!E31 -> 2011-04-30 | F31: 2011-04-30 | G31: =IF(ISNUMBER(H31),SUM($H$2:H31),NA()) ->  | H31: =IF(SUM(Retail!H31,RO!H31,'Major Unit'!H31)>0,SUM(Retail!H31,RO!H31,'Major Unit'!H31),NA()) ->  | J31: =IF(SUM(Retail!J31,RO!J31,'Major Unit'!J31)>0,SUM(Retail!J31,RO!J31,'Major Unit'!J31),NA()) -> 
E32: ='MU New'!E32 ->  | G32: =IF(ISNUMBER(H32),SUM($H$2:H32),NA()) ->  | H32: =IF(SUM(Retail!H32,RO!H32,'Major Unit'!H32)>0,SUM(Retail!H32,RO!H32,'Major Unit'!H32),NA()) ->  | J32: =IF(SUM(Retail!J32,RO!J32,'Major Unit'!J32)>0,SUM(Retail!J32,RO!J32,'Major Unit'!J32),NA()) -> 

Sheet Service
A1: Eastside Harley-Davidson | E1: Date | G1: Cumulative | H1: Sales
E2: ='MU New'!E2 -> 2011-04-01 | F2: =E2 -> 2011-04-01 | G2: =IF(ISNUMBER(H2),SUM($H$2:H2),NA()) -> 1500 | H2: 1500
E3: ='MU New'!E3 -> 2011-04-02 | F3: =E3 -> 2011-04-02 | G3: =IF(ISNUMBER(H3),SUM($H$2:H3),NA()) -> 2900 | H3: 1400
E4: ='MU New'!E4 -> 2011-04-03 | F4: 2011-04-03 | G4: =IF(ISNUMBER(H4),SUM($H$2:H4),NA()) -> 
E5: ='MU New'!E5 -> 2011-04-04 | F5: 2011-04-04 | G5: =IF(ISNUMBER(H5),SUM($H$2:H5),NA()) -> 
E6: ='MU New'!E6 -> 2011-04-05 | F6: 2011-04-05 | G6: =IF(ISNUMBER(H6),SUM($H$2:H6),NA()) -> 
E7: ='MU New'!E7 -> 2011-04-06 | F7: 2011-04-06 | G7: =IF(ISNUMBER(H7),SUM($H$2:H7),NA()) -> 
A8: Service | E8: ='MU New'!E8 -> 2011-04-07 | F8: 2011-04-07 | G8: =IF(ISNUMBER(H8),SUM($H$2:H8),NA()) -> 
E9: ='MU New'!E9 -> 2011-04-08 | F9: 2011-04-08 | G9: =IF(ISNUMBER(H9),SUM($H$2:H9),NA()) -> 
A10: Goal (Sales) | C10: 63069 | E10: ='MU New'!E10 -> 2011-04-09 | F10: 2011-04-09 | G10: =IF(ISNUMBER(H10),SUM($H$2:H10),NA()) -> 
A11: Total sales $ | C11: =SUM(H2:H32) -> 2900 | E11: ='MU New'!E11 -> 2011-04-10 | F11: 2011-04-10 | G11: =IF(ISNUMBER(H11),SUM($H$2:H11),NA()) -> 
A12: Current track | C12: =(SUM(H2:H32)/COUNT(H2:H32))*COUNT(E2:E32) -> 43500 | E12: ='MU New'!E12 -> 2011-04-11 | F12: 2011-04-11 | G12: =IF(ISNUMBER(H12),SUM($H$2:H12),NA()) -> 
A13: To hit goal | C13: =IF(C14>C15,"On Track",IF(C14<=C15,(C10-SUM(H2:H32))/(COUNT(E2:E32)-COUNT(H2:H32)))) -> 2148.892857 | E13: ='MU New'!E13 -> 2011-04-12 | F13: 2011-04-12 | G13: =IF(ISNUMBER(H13),SUM($H$2:H13),NA()) -> 
A14: % of goal to date | C14: =SUM(H2:H32)/C10 -> 0.04598138547 | E14: ='MU New'!E14 -> 2011-04-13 | F14: 2011-04-13 | G14: =IF(ISNUMBER(H14),SUM($H$2:H14),NA()) -> 
A15: % of time lapsed | C15: =COUNT(H2:H32)/COUNT(E2:E32) -> 0.06666666667 | E15: ='MU New'!E15 -> 2011-04-14 | F15: 2011-04-14 | G15: =IF(ISNUMBER(H15),SUM($H$2:H15),NA()) -> 
E16: ='MU New'!E16 -> 2011-04-15 | F16: 2011-04-15 | G16: =IF(ISNUMBER(H16),SUM($H$2:H16),NA()) -> 
E17: ='MU New'!E17 -> 2011-04-16 | F17: 2011-04-16 | G17: =IF(ISNUMBER(H17),SUM($H$2:H17),NA()) -> 
E18: ='MU New'!E18 -> 2011-04-17 | F18: 2011-04-17 | G18: =IF(ISNUMBER(H18),SUM($H$2:H18),NA()) -> 
E19: ='MU New'!E19 -> 2011-04-18 | F19: 2011-04-18 | G19: =IF(ISNUMBER(H19),SUM($H$2:H19),NA()) -> 
E20: ='MU New'!E20 -> 2011-04-19 | F20: 2011-04-19 | G20: =IF(ISNUMBER(H20),SUM($H$2:H20),NA()) -> 
E21: ='MU New'!E21 -> 2011-04-20 | F21: 2011-04-20 | G21: =IF(ISNUMBER(H21),SUM($H$2:H21),NA()) -> 
E22: ='MU New'!E22 -> 2011-04-21 | F22: 2011-04-21 | G22: =IF(ISNUMBER(H22),SUM($H$2:H22),NA()) -> 
E23: ='MU New'!E23 -> 2011-04-22 | F23: 2011-04-22 | G23: =IF(ISNUMBER(H23),SUM($H$2:H23),NA()) -> 
E24: ='MU New'!E24 -> 2011-04-23 | F24: 2011-04-23 | G24: =IF(ISNUMBER(H24),SUM($H$2:H24),NA()) -> 
E25: ='MU New'!E25 -> 2011-04-24 | F25: 2011-04-24 | G25: =IF(ISNUMBER(H25),SUM($H$2:H25),NA()) -> 
E26: ='MU New'!E26 -> 2011-04-25 | F26: 2011-04-25 | G26: =IF(ISNUMBER(H26),SUM($H$2:H26),NA()) -> 
E27: ='MU New'!E27 -> 2011-04-26 | F27: 2011-04-26 | G27: =IF(ISNUMBER(H27),SUM($H$2:H27),NA()) -> 
E28: ='MU New'!E28 -> 2011-04-27 | F28: 2011-04-27 | G28: =IF(ISNUMBER(H28),SUM($H$2:H28),NA()) -> 
E29: ='MU New'!E29 -> 2011-04-28 | F29: 2011-04-28 | G29: =IF(ISNUMBER(H29),SUM($H$2:H29),NA()) -> 
E30: ='MU New'!E30 -> 2011-04-29 | F30: 2011-04-29 | G30: =IF(ISNUMBER(H30),SUM($H$2:H30),NA()) -> 
E31: ='MU New'!E31 -> 2011-04-30 | F31: 2011-04-30 | G31: =IF(ISNUMBER(H31),SUM($H$2:H31),NA()) -> 
E32: ='MU New'!E32 ->  | F32: =E32 ->  | G32: =IF(ISNUMBER(H32),SUM($H$2:H32),NA()) -> 

Sheet F&I
A1: Eastside Harley-Davidson | E1: Date | G1: Cumulative | H1: Sales | I1: COGS | J1: Margin
E2: ='MU New'!E2 -> 2011-04-01 | F2: =E2 -> 2011-04-01 | G2: =IF(ISNUMBER(H2),SUM($H$2:H2),NA()) -> 250 | H2: 250 | I2: =IF(ABS(H2)-ABS(J2)>0,H2-J2,NA()) ->  | J2: 250
E3: ='MU New'!E3 -> 2011-04-02 | F3: =E3 -> 2011-04-02 | G3: =IF(ISNUMBER(H3),SUM($H$2:H3),NA()) -> 400 | H3: 150 | I3: =IF(ABS(H3)-ABS(J3)>0,H3-J3,NA()) ->  | J3: 150
E4: ='MU New'!E4 -> 2011-04-03 | F4: 2011-04-03 | G4: =IF(ISNUMBER(H4),SUM($H$2:H4),NA()) -> 
E5: ='MU New'!E5 -> 2011-04-04 | F5: 2011-04-04 | G5: =IF(ISNUMBER(H5),SUM($H$2:H5),NA()) -> 
E6: ='MU New'!E6 -> 2011-04-05 | F6: 2011-04-05 | G6: =IF(ISNUMBER(H6),SUM($H$2:H6),NA()) -> 
E7: ='MU New'!E7 -> 2011-04-06 | F7: 2011-04-06 | G7: =IF(ISNUMBER(H7),SUM($H$2:H7),NA()) -> 
A8: F&I | E8: ='MU New'!E8 -> 2011-04-07 | F8: 2011-04-07 | G8: =IF(ISNUMBER(H8),SUM($H$2:H8),NA()) -> 
E9: ='MU New'!E9 -> 2011-04-08 | F9: 2011-04-08 | G9: =IF(ISNUMBER(H9),SUM($H$2:H9),NA()) -> 
A10: Goal (Sales) | C10: 42560 | E10: ='MU New'!E10 -> 2011-04-09 | F10: 2011-04-09 | G10: =IF(ISNUMBER(H10),SUM($H$2:H10),NA()) -> 
A11: Total sales $ | C11: =SUM(H2:H32) -> 400 | E11: ='MU New'!E11 -> 2011-04-10 | F11: 2011-04-10 | G11: =IF(ISNUMBER(H11),SUM($H$2:H11),NA()) -> 
A12: Current track | C12: =(SUM(H2:H32)/COUNT(H2:H32))*COUNT(E2:E32) -> 6000 | E12: ='MU New'!E12 -> 2011-04-11 | F12: 2011-04-11 | G12: =IF(ISNUMBER(H12),SUM($H$2:H12),NA()) -> 
A13: To hit goal | C13: =IF(C14>C15,"On Track",IF(C14<=C15,(C10-SUM(H2:H32))/(COUNT(E2:E32)-COUNT(H2:H32)))) -> 1505.714286 | E13: ='MU New'!E13 -> 2011-04-12 | F13: 2011-04-12 | G13: =IF(ISNUMBER(H13),SUM($H$2:H13),NA()) -> 
A14: % of goal to date | C14: =SUM(H2:H32)/C10 -> 0.009398496241 | E14: ='MU New'!E14 -> 2011-04-13 | F14: 2011-04-13 | G14: =IF(ISNUMBER(H14),SUM($H$2:H14),NA()) -> 
A15: % of time lapsed | C15: =COUNT(H2:H32)/COUNT(E2:E32) -> 0.06666666667 | E15: ='MU New'!E15 -> 2011-04-14 | F15: 2011-04-14 | G15: =IF(ISNUMBER(H15),SUM($H$2:H15),NA()) -> 
E16: ='MU New'!E16 -> 2011-04-15 | F16: 2011-04-15 | G16: =IF(ISNUMBER(H16),SUM($H$2:H16),NA()) -> 
E17: ='MU New'!E17 -> 2011-04-16 | F17: 2011-04-16 | G17: =IF(ISNUMBER(H17),SUM($H$2:H17),NA()) -> 
A18: Goal (Margin) | C18: 29792 | E18: ='MU New'!E18 -> 2011-04-17 | F18: 2011-04-17 | G18: =IF(ISNUMBER(H18),SUM($H$2:H18),NA()) -> 
A19: Total margin $ | C19: =SUM(J2:J32) -> 400 | E19: ='MU New'!E19 -> 2011-04-18 | F19: 2011-04-18 | G19: =IF(ISNUMBER(H19),SUM($H$2:H19),NA()) -> 
A20: Average margin | C20: =C19/C11 -> 1 | E20: ='MU New'!E20 -> 2011-04-19 | F20: 2011-04-19 | G20: =IF(ISNUMBER(H20),SUM($H$2:H20),NA()) -> 
A21: Current track | C21: =(SUM(J2:J32)/COUNT(H2:H32))*COUNT(E2:E32) -> 6000 | E21: ='MU New'!E21 -> 2011-04-20 | F21: 2011-04-20 | G21: =IF(ISNUMBER(H21),SUM($H$2:H21),NA()) -> 
A22: To hit goal | C22: =IF(C23>C15,"On Track",IF(C23<=C15,(C18-SUM(J2:J32))/(COUNT(E2:E32)-COUNT(H2:H32)))) -> 1049.714286 | E22: ='MU New'!E22 -> 2011-04-21 | F22: 2011-04-21 | G22: =IF(ISNUMBER(H22),SUM($H$2:H22),NA()) -> 
A23: % of goal to date | C23: =C19/C18 -> 0.0134264232 | E23: ='MU New'!E23 -> 2011-04-22 | F23: 2011-04-22 | G23: =IF(ISNUMBER(H23),SUM($H$2:H23),NA()) -> 
E24: ='MU New'!E24 -> 2011-04-23 | F24: 2011-04-23 | G24: =IF(ISNUMBER(H24),SUM($H$2:H24),NA()) -> 
E25: ='MU New'!E25 -> 2011-04-24 | F25: 2011-04-24 | G25: =IF(ISNUMBER(H25),SUM($H$2:H25),NA()) -> 
E26: ='MU New'!E26 -> 2011-04-25 | F26: 2011-04-25 | G26: =IF(ISNUMBER(H26),SUM($H$2:H26),NA()) -> 
E27: ='MU New'!E27 -> 2011-04-26 | F27: 2011-04-26 | G27: =IF(ISNUMBER(H27),SUM($H$2:H27),NA()) -> 
E28: ='MU New'!E28 -> 2011-04-27 | F28: 2011-04-27 | G28: =IF(ISNUMBER(H28),SUM($H$2:H28),NA()) -> 
E29: ='MU New'!E29 -> 2011-04-28 | F29: 2011-04-28 | G29: =IF(ISNUMBER(H29),SUM($H$2:H29),NA()) -> 
E30: ='MU New'!E30 -> 2011-04-29 | F30: 2011-04-29 | G30: =IF(ISNUMBER(H30),SUM($H$2:H30),NA()) -> 
E31: ='MU New'!E31 -> 2011-04-30 | F31: 2011-04-30 | G31: =IF(ISNUMBER(H31),SUM($H$2:H31),NA()) -> 
E32: ='MU New'!E32 ->  | G32: =IF(ISNUMBER(H32),SUM($H$2:H32),NA()) -> 

Sheet Eastside
A1: Eastside Harley-Davidson | E1: Date | G1: Cumulative | H1: Sales | I1: COGS | J1: Margin
E2: ='MU New'!E2 -> 2011-04-01 | F2: =E2 -> 2011-04-01 | G2: =IF(ISNUMBER(H2),SUM($H$2:H2),NA()) -> 3000 | H2: 3000 | I2: =IF(ABS(H2)-ABS(J2)>0,H2-J2,NA()) -> 2000 | J2: 1000
E3: ='MU New'!E3 -> 2011-04-02 | F3: =E3 -> 2011-04-02 | G3: =IF(ISNUMBER(H3),SUM($H$2:H3),NA()) -> 7000 | H3: 4000 | I3: =IF(ABS(H3)-ABS(J3)>0,H3-J3,NA()) -> 2750 | J3: 1250
E4: ='MU New'!E4 -> 2011-04-03 | F4: 2011-04-03 | G4: =IF(ISNUMBER(H4),SUM($H$2:H4),NA()) -> 
E5: ='MU New'!E5 -> 2011-04-04 | F5: 2011-04-04 | G5: =IF(ISNUMBER(H5),SUM($H$2:H5),NA()) -> 
E6: ='MU New'!E6 -> 2011-04-05 | F6: 2011-04-05 | G6: =IF(ISNUMBER(H6),SUM($H$2:H6),NA()) -> 
E7: ='MU New'!E7 -> 2011-04-06 | F7: 2011-04-06 | G7: =IF(ISNUMBER(H7),SUM($H$2:H7),NA()) -> 
A8: Eastside MC | E8: ='MU New'!E8 -> 2011-04-07 | F8: 2011-04-07 | G8: =IF(ISNUMBER(H8),SUM($H$2:H8),NA()) -> 
E9: ='MU New'!E9 -> 2011-04-08 | F9: 2011-04-08 | G9: =IF(ISNUMBER(H9),SUM($H$2:H9),NA()) -> 
A10: Goal (Sales) | C10: 50000 | E10: ='MU New'!E10 -> 2011-04-09 | F10: 2011-04-09 | G10: =IF(ISNUMBER(H10),SUM($H$2:H10),NA()) -> 
A11: Total sales $ | C11: =SUM(H2:H32) -> 7000 | E11: ='MU New'!E11 -> 2011-04-10 | F11: 2011-04-10 | G11: =IF(ISNUMBER(H11),SUM($H$2:H11),NA()) -> 
A12: Current track | C12: =(SUM(H2:H32)/COUNT(H2:H32))*COUNT(E2:E32) -> 105000 | E12: ='MU New'!E12 -> 2011-04-11 | F12: 2011-04-11 | G12: =IF(ISNUMBER(H12),SUM($H$2:H12),NA()) -> 
A13: To hit goal | C13: =IF(C14>C15,"On Track",IF(C14<=C15,(C10-SUM(H2:H32))/(COUNT(E2:E32)-COUNT(H2:H32)))) -> On Track | E13: ='MU New'!E13 -> 2011-04-12 | F13: 2011-04-12 | G13: =IF(ISNUMBER(H13),SUM($H$2:H13),NA()) -> 
A14: % of goal to date | C14: =SUM(H2:H32)/C10 -> 0.14 | E14: ='MU New'!E14 -> 2011-04-13 | F14: 2011-04-13 | G14: =IF(ISNUMBER(H14),SUM($H$2:H14),NA()) -> 
A15: % of time lapsed | C15: =COUNT(H2:H32)/COUNT(E2:E32) -> 0.06666666667 | E15: ='MU New'!E15 -> 2011-04-14 | F15: 2011-04-14 | G15: =IF(ISNUMBER(H15),SUM($H$2:H15),NA()) -> 
E16: ='MU New'!E16 -> 2011-04-15 | F16: 2011-04-15 | G16: =IF(ISNUMBER(H16),SUM($H$2:H16),NA()) -> 
E17: ='MU New'!E17 -> 2011-04-16 | F17: 2011-04-16 | G17: =IF(ISNUMBER(H17),SUM($H$2:H17),NA()) -> 
E18: ='MU New'!E18 -> 2011-04-17 | F18: 2011-04-17 | G18: =IF(ISNUMBER(H18),SUM($H$2:H18),NA()) -> 
A19: Total margin $ | C19: =SUM(J2:J32) -> 2250 | E19: ='MU New'!E19 -> 2011-04-18 | F19: 2011-04-18 | G19: =IF(ISNUMBER(H19),SUM($H$2:H19),NA()) -> 
A20: Average margin | C20: =C19/C11 -> 0.3214285714 | E20: ='MU New'!E20 -> 2011-04-19 | F20: 2011-04-19 | G20: =IF(ISNUMBER(H20),SUM($H$2:H20),NA()) -> 
A21: Current track | C21: =(SUM(J2:J32)/COUNT(H2:H32))*COUNT(E2:E32) -> 33750 | E21: ='MU New'!E21 -> 2011-04-20 | F21: 2011-04-20 | G21: =IF(ISNUMBER(H21),SUM($H$2:H21),NA()) -> 
E22: ='MU New'!E22 -> 2011-04-21 | F22: 2011-04-21 | G22: =IF(ISNUMBER(H22),SUM($H$2:H22),NA()) -> 
E23: ='MU New'!E23 -> 2011-04-22 | F23: 2011-04-22 | G23: =IF(ISNUMBER(H23),SUM($H$2:H23),NA()) -> 
E24: ='MU New'!E24 -> 2011-04-23 | F24: 2011-04-23 | G24: =IF(ISNUMBER(H24),SUM($H$2:H24),NA()) -> 
E25: ='MU New'!E25 -> 2011-04-24 | F25: 2011-04-24 | G25: =IF(ISNUMBER(H25),SUM($H$2:H25),NA()) -> 
E26: ='MU New'!E26 -> 2011-04-25 | F26: 2011-04-25 | G26: =IF(ISNUMBER(H26),SUM($H$2:H26),NA()) -> 
E27: ='MU New'!E27 -> 2011-04-26 | F27: 2011-04-26 | G27: =IF(ISNUMBER(H27),SUM($H$2:H27),NA()) -> 
E28: ='MU New'!E28 -> 2011-04-27 | F28: 2011-04-27 | G28: =IF(ISNUMBER(H28),SUM($H$2:H28),NA()) -> 
E29: ='MU New'!E29 -> 2011-04-28 | F29: 2011-04-28 | G29: =IF(ISNUMBER(H29),SUM($H$2:H29),NA()) -> 
E30: ='MU New'!E30 -> 2011-04-29 | F30: 2011-04-29 | G30: =IF(ISNUMBER(H30),SUM($H$2:H30),NA()) -> 
E31: ='MU New'!E31 -> 2011-04-30 | F31: 2011-04-30 | G31: =IF(ISNUMBER(H31),SUM($H$2:H31),NA()) -> 
E32: ='MU New'!E32 ->  | G32: =IF(ISNUMBER(H32),SUM($H$2:H32),NA()) -> 

Sheet Emerald City
A1: Eastside Harley-Davidson | E1: Date | G1: Cumulative | H1: Sales | I1: COGS | J1: Margin
E2: ='MU New'!E2 -> 2011-04-01 | F2: =E2 -> 2011-04-01 | G2: =IF(ISNUMBER(H2),SUM($H$2:H2),NA()) -> 5000 | H2: 5000 | I2: =IF(ABS(H2)-ABS(J2)>0,H2-J2,NA()) -> 3000 | J2: 2000
E3: ='MU New'!E3 -> 2011-04-02 | F3: =E3 -> 2011-04-02 | G3: =IF(ISNUMBER(H3),SUM($H$2:H3),NA()) -> 8000 | H3: 3000 | I3: =IF(ABS(H3)-ABS(J3)>0,H3-J3,NA()) -> 2000 | J3: 1000
E4: ='MU New'!E4 -> 2011-04-03 | F4: 2011-04-03 | G4: =IF(ISNUMBER(H4),SUM($H$2:H4),NA()) -> 
E5: ='MU New'!E5 -> 2011-04-04 | F5: 2011-04-04 | G5: =IF(ISNUMBER(H5),SUM($H$2:H5),NA()) -> 
E6: ='MU New'!E6 -> 2011-04-05 | F6: 2011-04-05 | G6: =IF(ISNUMBER(H6),SUM($H$2:H6),NA()) -> 
E7: ='MU New'!E7 -> 2011-04-06 | F7: 2011-04-06 | G7: =IF(ISNUMBER(H7),SUM($H$2:H7),NA()) -> 
A8: Emerald City | E8: ='MU New'!E8 -> 2011-04-07 | F8: 2011-04-07 | G8: =IF(ISNUMBER(H8),SUM($H$2:H8),NA()) -> 
E9: ='MU New'!E9 -> 2011-04-08 | F9: 2011-04-08 | G9: =IF(ISNUMBER(H9),SUM($H$2:H9),NA()) -> 
A10: Goal (Sales) | C10: 21000 | E10: ='MU New'!E10 -> 2011-04-09 | F10: 2011-04-09 | G10: =IF(ISNUMBER(H10),SUM($H$2:H10),NA()) -> 
A11: Total sales $ | C11: =SUM(H2:H32) -> 8000 | E11: ='MU New'!E11 -> 2011-04-10 | F11: 2011-04-10 | G11: =IF(ISNUMBER(H11),SUM($H$2:H11),NA()) -> 
A12: Current track | C12: =(SUM(H2:H32)/COUNT(H2:H32))*COUNT(E2:E32) -> 120000 | E12: ='MU New'!E12 -> 2011-04-11 | F12: 2011-04-11 | G12: =IF(ISNUMBER(H12),SUM($H$2:H12),NA()) -> 
A13: To hit goal | C13: =IF(C14>C15,"On Track",IF(C14<=C15,(C10-SUM(H2:H32))/(COUNT(E2:E32)-COUNT(H2:H32)))) -> On Track | E13: ='MU New'!E13 -> 2011-04-12 | F13: 2011-04-12 | G13: =IF(ISNUMBER(H13),SUM($H$2:H13),NA()) -> 
A14: % of goal to date | C14: =SUM(H2:H32)/C10 -> 0.380952381 | E14: ='MU New'!E14 -> 2011-04-13 | F14: 2011-04-13 | G14: =IF(ISNUMBER(H14),SUM($H$2:H14),NA()) -> 
A15: % of time lapsed | C15: =COUNT(H2:H32)/COUNT(E2:E32) -> 0.06666666667 | E15: ='MU New'!E15 -> 2011-04-14 | F15: 2011-04-14 | G15: =IF(ISNUMBER(H15),SUM($H$2:H15),NA()) -> 
E16: ='MU New'!E16 -> 2011-04-15 | F16: 2011-04-15 | G16: =IF(ISNUMBER(H16),SUM($H$2:H16),NA()) -> 
E17: ='MU New'!E17 -> 2011-04-16 | F17: 2011-04-16 | G17: =IF(ISNUMBER(H17),SUM($H$2:H17),NA()) -> 
E18: ='MU New'!E18 -> 2011-04-17 | F18: 2011-04-17 | G18: =IF(ISNUMBER(H18),SUM($H$2:H18),NA()) -> 
A19: Total margin $ | C19: =SUM(J2:J32) -> 3000 | E19: ='MU New'!E19 -> 2011-04-18 | F19: 2011-04-18 | G19: =IF(ISNUMBER(H19),SUM($H$2:H19),NA()) -> 
A20: Average margin | C20: =C19/C11 -> 0.375 | E20: ='MU New'!E20 -> 2011-04-19 | F20: 2011-04-19 | G20: =IF(ISNUMBER(H20),SUM($H$2:H20),NA()) -> 
A21: Current track | C21: =(SUM(J2:J32)/COUNT(H2:H32))*COUNT(E2:E32) -> 45000 | E21: ='MU New'!E21 -> 2011-04-20 | F21: 2011-04-20 | G21: =IF(ISNUMBER(H21),SUM($H$2:H21),NA()) -> 
E22: ='MU New'!E22 -> 2011-04-21 | F22: 2011-04-21 | G22: =IF(ISNUMBER(H22),SUM($H$2:H22),NA()) -> 
E23: ='MU New'!E23 -> 2011-04-22 | F23: 2011-04-22 | G23: =IF(ISNUMBER(H23),SUM($H$2:H23),NA()) -> 
E24: ='MU New'!E24 -> 2011-04-23 | F24: 2011-04-23 | G24: =IF(ISNUMBER(H24),SUM($H$2:H24),NA()) -> 
E25: ='MU New'!E25 -> 2011-04-24 | F25: 2011-04-24 | G25: =IF(ISNUMBER(H25),SUM($H$2:H25),NA()) -> 
E26: ='MU New'!E26 -> 2011-04-25 | F26: 2011-04-25 | G26: =IF(ISNUMBER(H26),SUM($H$2:H26),NA()) -> 
E27: ='MU New'!E27 -> 2011-04-26 | F27: 2011-04-26 | G27: =IF(ISNUMBER(H27),SUM($H$2:H27),NA()) -> 
E28: ='MU New'!E28 -> 2011-04-27 | F28: 2011-04-27 | G28: =IF(ISNUMBER(H28),SUM($H$2:H28),NA()) -> 
E29: ='MU New'!E29 -> 2011-04-28 | F29: 2011-04-28 | G29: =IF(ISNUMBER(H29),SUM($H$2:H29),NA()) -> 
E30: ='MU New'!E30 -> 2011-04-29 | F30: 2011-04-29 | G30: =IF(ISNUMBER(H30),SUM($H$2:H30),NA()) -> 
E31: ='MU New'!E31 -> 2011-04-30 | F31: 2011-04-30 | G31: =IF(ISNUMBER(H31),SUM($H$2:H31),NA()) -> 
E32: ='MU New'!E32 ->  | G32: =IF(ISNUMBER(H32),SUM($H$2:H32),NA()) -> 

Sheet Retail
A1: Eastside Harley-Davidson | E1: Date | G1: Cumulative | H1: Sales | I1: COGS | J1: Margin
E2: ='MU New'!E2 -> 2011-04-01 | F2: =E2 -> 2011-04-01 | G2: =IF(ISNUMBER(H2),SUM($H$2:H2),NA()) -> 2000 | H2: 2000 | I2: =IF(ABS(H2)-ABS(J2)>0,H2-J2,NA()) -> 1000 | J2: 1000
E3: ='MU New'!E3 -> 2011-04-02 | F3: =E3 -> 2011-04-02 | G3: =IF(ISNUMBER(H3),SUM($H$2:H3),NA()) -> 6000 | H3: 4000 | I3: =IF(ABS(H3)-ABS(J3)>0,H3-J3,NA()) -> 2500 | J3: 1500
E4: ='MU New'!E4 -> 2011-04-03 | F4: 2011-04-03 | G4: =IF(ISNUMBER(H4),SUM($H$2:H4),NA()) -> 
E5: ='MU New'!E5 -> 2011-04-04 | F5: 2011-04-04 | G5: =IF(ISNUMBER(H5),SUM($H$2:H5),NA()) -> 
E6: ='MU New'!E6 -> 2011-04-05 | F6: 2011-04-05 | G6: =IF(ISNUMBER(H6),SUM($H$2:H6),NA()) -> 
E7: ='MU New'!E7 -> 2011-04-06 | F7: 2011-04-06 | G7: =IF(ISNUMBER(H7),SUM($H$2:H7),NA()) -> 
A8: Retail | E8: ='MU New'!E8 -> 2011-04-07 | F8: 2011-04-07 | G8: =IF(ISNUMBER(H8),SUM($H$2:H8),NA()) -> 
E9: ='MU New'!E9 -> 2011-04-08 | F9: 2011-04-08 | G9: =IF(ISNUMBER(H9),SUM($H$2:H9),NA()) -> 
E10: ='MU New'!E10 -> 2011-04-09 | F10: 2011-04-09 | G10: =IF(ISNUMBER(H10),SUM($H$2:H10),NA()) -> 
A11: Total sales $ | C11: =SUM(H2:H32) -> 6000 | E11: ='MU New'!E11 -> 2011-04-10 | F11: 2011-04-10 | G11: =IF(ISNUMBER(H11),SUM($H$2:H11),NA()) -> 
A12: Current track | C12: =(SUM(H2:H32)/COUNT(H2:H32))*COUNT(E2:E32) -> 90000 | E12: ='MU New'!E12 -> 2011-04-11 | F12: 2011-04-11 | G12: =IF(ISNUMBER(H12),SUM($H$2:H12),NA()) -> 
A13: % of time lapsed | C13: =COUNT(H2:H32)/COUNT(E2:E32) -> 0.06666666667 | E13: ='MU New'!E13 -> 2011-04-12 | F13: 2011-04-12 | G13: =IF(ISNUMBER(H13),SUM($H$2:H13),NA()) -> 
E14: ='MU New'!E14 -> 2011-04-13 | F14: 2011-04-13 | G14: =IF(ISNUMBER(H14),SUM($H$2:H14),NA()) -> 
A15: Total margin $ | C15: =SUM(J2:J32) -> 2500 | E15: ='MU New'!E15 -> 2011-04-14 | F15: 2011-04-14 | G15: =IF(ISNUMBER(H15),SUM($H$2:H15),NA()) -> 
A16: Average margin | C16: =C15/C11 -> 0.4166666667 | E16: ='MU New'!E16 -> 2011-04-15 | F16: 2011-04-15 | G16: =IF(ISNUMBER(H16),SUM($H$2:H16),NA()) -> 
A17: Current track | C17: =(SUM(J2:J32)/COUNT(H2:H32))*COUNT(E2:E32) -> 37500 | E17: ='MU New'!E17 -> 2011-04-16 | F17: 2011-04-16 | G17: =IF(ISNUMBER(H17),SUM($H$2:H17),NA()) -> 
E18: ='MU New'!E18 -> 2011-04-17 | F18: 2011-04-17 | G18: =IF(ISNUMBER(H18),SUM($H$2:H18),NA()) -> 
E19: ='MU New'!E19 -> 2011-04-18 | F19: 2011-04-18 | G19: =IF(ISNUMBER(H19),SUM($H$2:H19),NA()) -> 
E20: ='MU New'!E20 -> 2011-04-19 | F20: 2011-04-19 | G20: =IF(ISNUMBER(H20),SUM($H$2:H20),NA()) -> 
E21: ='MU New'!E21 -> 2011-04-20 | F21: 2011-04-20 | G21: =IF(ISNUMBER(H21),SUM($H$2:H21),NA()) -> 
E22: ='MU New'!E22 -> 2011-04-21 | F22: 2011-04-21 | G22: =IF(ISNUMBER(H22),SUM($H$2:H22),NA()) -> 
E23: ='MU New'!E23 -> 2011-04-22 | F23: 2011-04-22 | G23: =IF(ISNUMBER(H23),SUM($H$2:H23),NA()) -> 
E24: ='MU New'!E24 -> 2011-04-23 | F24: 2011-04-23 | G24: =IF(ISNUMBER(H24),SUM($H$2:H24),NA()) -> 
E25: ='MU New'!E25 -> 2011-04-24 | F25: 2011-04-24 | G25: =IF(ISNUMBER(H25),SUM($H$2:H25),NA()) -> 
E26: ='MU New'!E26 -> 2011-04-25 | F26: 2011-04-25 | G26: =IF(ISNUMBER(H26),SUM($H$2:H26),NA()) -> 
E27: ='MU New'!E27 -> 2011-04-26 | F27: 2011-04-26 | G27: =IF(ISNUMBER(H27),SUM($H$2:H27),NA()) -> 
E28: ='MU New'!E28 -> 2011-04-27 | F28: 2011-04-27 | G28: =IF(ISNUMBER(H28),SUM($H$2:H28),NA()) -> 
E29: ='MU New'!E29 -> 2011-04-28 | F29: 2011-04-28 | G29: =IF(ISNUMBER(H29),SUM($H$2:H29),NA()) -> 
E30: ='MU New'!E30 -> 2011-04-29 | F30: 2011-04-29 | G30: =IF(ISNUMBER(H30),SUM($H$2:H30),NA()) -> 
E31: ='MU New'!E31 -> 2011-04-30 | F31: 2011-04-30 | G31: =IF(ISNUMBER(H31),SUM($H$2:H31),NA()) -> 
E32: ='MU New'!E32 ->  | G32: =IF(ISNUMBER(H32),SUM($H$2:H32),NA()) -> 

Sheet RO
A1: Eastside Harley-Davidson | E1: Date | G1: Cumulative | H1: Sales | I1: COGS | J1: Margin
E2: ='MU New'!E2 -> 2011-04-01 | F2: =E2 -> 2011-04-01 | G2: =IF(ISNUMBER(H2),SUM($H$2:H2),NA()) -> 2000 | H2: 2000 | I2: =IF(ABS(H2)-ABS(J2)>0,H2-J2,NA()) -> 1250 | J2: 750
E3: ='MU New'!E3 -> 2011-04-02 | F3: =E3 -> 2011-04-02 | G3: =IF(ISNUMBER(H3),SUM($H$2:H3),NA()) -> 3500 | H3: 1500 | I3: =IF(ABS(H3)-ABS(J3)>0,H3-J3,NA()) -> 700 | J3: 800
E4: ='MU New'!E4 -> 2011-04-03 | F4: 2011-04-03 | G4: =IF(ISNUMBER(H4),SUM($H$2:H4),NA()) -> 
E5: ='MU New'!E5 -> 2011-04-04 | F5: 2011-04-04 | G5: =IF(ISNUMBER(H5),SUM($H$2:H5),NA()) -> 
E6: ='MU New'!E6 -> 2011-04-05 | F6: 2011-04-05 | G6: =IF(ISNUMBER(H6),SUM($H$2:H6),NA()) -> 
E7: ='MU New'!E7 -> 2011-04-06 | F7: 2011-04-06 | G7: =IF(ISNUMBER(H7),SUM($H$2:H7),NA()) -> 
A8: RO | E8: ='MU New'!E8 -> 2011-04-07 | F8: 2011-04-07 | G8: =IF(ISNUMBER(H8),SUM($H$2:H8),NA()) -> 
E9: ='MU New'!E9 -> 2011-04-08 | F9: 2011-04-08 | G9: =IF(ISNUMBER(H9),SUM($H$2:H9),NA()) -> 
E10: ='MU New'!E10 -> 2011-04-09 | F10: 2011-04-09 | G10: =IF(ISNUMBER(H10),SUM($H$2:H10),NA()) -> 
A11: Total sales $ | C11: =SUM(H2:H32) -> 3500 | E11: ='MU New'!E11 -> 2011-04-10 | F11: 2011-04-10 | G11: =IF(ISNUMBER(H11),SUM($H$2:H11),NA()) -> 
A12: Current track | C12: =(SUM(H2:H32)/COUNT(H2:H32))*COUNT(E2:E32) -> 52500 | E12: ='MU New'!E12 -> 2011-04-11 | F12: 2011-04-11 | G12: =IF(ISNUMBER(H12),SUM($H$2:H12),NA()) -> 
A13: % of time lapsed | C13: =COUNT(H2:H32)/COUNT(E2:E32) -> 0.06666666667 | E13: ='MU New'!E13 -> 2011-04-12 | F13: 2011-04-12 | G13: =IF(ISNUMBER(H13),SUM($H$2:H13),NA()) -> 
E14: ='MU New'!E14 -> 2011-04-13 | F14: 2011-04-13 | G14: =IF(ISNUMBER(H14),SUM($H$2:H14),NA()) -> 
A15: Total margin $ | C15: =SUM(J2:J32) -> 1550 | E15: ='MU New'!E15 -> 2011-04-14 | F15: 2011-04-14 | G15: =IF(ISNUMBER(H15),SUM($H$2:H15),NA()) -> 
A16: Average margin | C16: =C15/C11 -> 0.4428571429 | E16: ='MU New'!E16 -> 2011-04-15 | F16: 2011-04-15 | G16: =IF(ISNUMBER(H16),SUM($H$2:H16),NA()) -> 
A17: Current track | C17: =(SUM(J2:J32)/COUNT(H2:H32))*COUNT(E2:E32) -> 23250 | E17: ='MU New'!E17 -> 2011-04-16 | F17: 2011-04-16 | G17: =IF(ISNUMBER(H17),SUM($H$2:H17),NA()) -> 
E18: ='MU New'!E18 -> 2011-04-17 | F18: 2011-04-17 | G18: =IF(ISNUMBER(H18),SUM($H$2:H18),NA()) -> 
E19: ='MU New'!E19 -> 2011-04-18 | F19: 2011-04-18 | G19: =IF(ISNUMBER(H19),SUM($H$2:H19),NA()) -> 
E20: ='MU New'!E20 -> 2011-04-19 | F20: 2011-04-19 | G20: =IF(ISNUMBER(H20),SUM($H$2:H20),NA()) -> 
E21: ='MU New'!E21 -> 2011-04-20 | F21: 2011-04-20 | G21: =IF(ISNUMBER(H21),SUM($H$2:H21),NA()) -> 
E22: ='MU New'!E22 -> 2011-04-21 | F22: 2011-04-21 | G22: =IF(ISNUMBER(H22),SUM($H$2:H22),NA()) -> 
E23: ='MU New'!E23 -> 2011-04-22 | F23: 2011-04-22 | G23: =IF(ISNUMBER(H23),SUM($H$2:H23),NA()) -> 
E24: ='MU New'!E24 -> 2011-04-23 | F24: 2011-04-23 | G24: =IF(ISNUMBER(H24),SUM($H$2:H24),NA()) -> 
E25: ='MU New'!E25 -> 2011-04-24 | F25: 2011-04-24 | G25: =IF(ISNUMBER(H25),SUM($H$2:H25),NA()) -> 
E26: ='MU New'!E26 -> 2011-04-25 | F26: 2011-04-25 | G26: =IF(ISNUMBER(H26),SUM($H$2:H26),NA()) -> 
E27: ='MU New'!E27 -> 2011-04-26 | F27: 2011-04-26 | G27: =IF(ISNUMBER(H27),SUM($H$2:H27),NA()) -> 
E28: ='MU New'!E28 -> 2011-04-27 | F28: 2011-04-27 | G28: =IF(ISNUMBER(H28),SUM($H$2:H28),NA()) -> 
E29: ='MU New'!E29 -> 2011-04-28 | F29: 2011-04-28 | G29: =IF(ISNUMBER(H29),SUM($H$2:H29),NA()) -> 
E30: ='MU New'!E30 -> 2011-04-29 | F30: 2011-04-29 | G30: =IF(ISNUMBER(H30),SUM($H$2:H30),NA()) -> 
E31: ='MU New'!E31 -> 2011-04-30 | F31: 2011-04-30 | G31: =IF(ISNUMBER(H31),SUM($H$2:H31),NA()) -> 
E32: ='MU New'!E32 ->  | G32: =IF(ISNUMBER(H32),SUM($H$2:H32),NA()) -> 

Sheet Major Unit
A1: Eastside Harley-Davidson | E1: Date | G1: Cumulative | H1: Sales | I1: COGS | J1: Margin
E2: ='MU New'!E2 -> 2011-04-01 | F2: =E2 -> 2011-04-01 | G2: =IF(ISNUMBER(H2),SUM($H$2:H2),NA()) -> 5000 | H2: 5000 | I2: =IF(ABS(H2)-ABS(J2)>0,H2-J2,NA()) -> 2500 | J2: 2500
E3: ='MU New'!E3 -> 2011-04-02 | F3: =E3 -> 2011-04-02 | G3: =IF(ISNUMBER(H3),SUM($H$2:H3),NA()) -> 9000 | H3: 4000 | I3: =IF(ABS(H3)-ABS(J3)>0,H3-J3,NA()) -> 2000 | J3: 2000
E4: ='MU New'!E4 -> 2011-04-03 | F4: 2011-04-03 | G4: =IF(ISNUMBER(H4),SUM($H$2:H4),NA()) -> 
E5: ='MU New'!E5 -> 2011-04-04 | F5: 2011-04-04 | G5: =IF(ISNUMBER(H5),SUM($H$2:H5),NA()) -> 
E6: ='MU New'!E6 -> 2011-04-05 | F6: 2011-04-05 | G6: =IF(ISNUMBER(H6),SUM($H$2:H6),NA()) -> 
E7: ='MU New'!E7 -> 2011-04-06 | F7: 2011-04-06 | G7: =IF(ISNUMBER(H7),SUM($H$2:H7),NA()) -> 
A8: Major Unit | E8: ='MU New'!E8 -> 2011-04-07 | F8: 2011-04-07 | G8: =IF(ISNUMBER(H8),SUM($H$2:H8),NA()) -> 
E9: ='MU New'!E9 -> 2011-04-08 | F9: 2011-04-08 | G9: =IF(ISNUMBER(H9),SUM($H$2:H9),NA()) -> 
E10: ='MU New'!E10 -> 2011-04-09 | F10: 2011-04-09 | G10: =IF(ISNUMBER(H10),SUM($H$2:H10),NA()) -> 
A11: Total sales $ | C11: =SUM(H2:H32) -> 9000 | E11: ='MU New'!E11 -> 2011-04-10 | F11: 2011-04-10 | G11: =IF(ISNUMBER(H11),SUM($H$2:H11),NA()) -> 
A12: Current track | C12: =(SUM(H2:H32)/COUNT(H2:H32))*COUNT(E2:E32) -> 135000 | E12: ='MU New'!E12 -> 2011-04-11 | F12: 2011-04-11 | G12: =IF(ISNUMBER(H12),SUM($H$2:H12),NA()) -> 
A13: % of time lapsed | C13: =COUNT(H2:H32)/COUNT(E2:E32) -> 0.06666666667 | E13: ='MU New'!E13 -> 2011-04-12 | F13: 2011-04-12 | G13: =IF(ISNUMBER(H13),SUM($H$2:H13),NA()) -> 
E14: ='MU New'!E14 -> 2011-04-13 | F14: 2011-04-13 | G14: =IF(ISNUMBER(H14),SUM($H$2:H14),NA()) -> 
A15: Total margin $ | C15: =SUM(J2:J32) -> 4500 | E15: ='MU New'!E15 -> 2011-04-14 | F15: 2011-04-14 | G15: =IF(ISNUMBER(H15),SUM($H$2:H15),NA()) -> 
A16: Average margin | C16: =C15/C11 -> 0.5 | E16: ='MU New'!E16 -> 2011-04-15 | F16: 2011-04-15 | G16: =IF(ISNUMBER(H16),SUM($H$2:H16),NA()) -> 
A17: Current track | C17: =(SUM(J2:J32)/COUNT(H2:H32))*COUNT(E2:E32) -> 67500 | E17: ='MU New'!E17 -> 2011-04-16 | F17: 2011-04-16 | G17: =IF(ISNUMBER(H17),SUM($H$2:H17),NA()) -> 
E18: ='MU New'!E18 -> 2011-04-17 | F18: 2011-04-17 | G18: =IF(ISNUMBER(H18),SUM($H$2:H18),NA()) -> 
E19: ='MU New'!E19 -> 2011-04-18 | F19: 2011-04-18 | G19: =IF(ISNUMBER(H19),SUM($H$2:H19),NA()) -> 
E20: ='MU New'!E20 -> 2011-04-19 | F20: 2011-04-19 | G20: =IF(ISNUMBER(H20),SUM($H$2:H20),NA()) -> 
E21: ='MU New'!E21 -> 2011-04-20 | F21: 2011-04-20 | G21: =IF(ISNUMBER(H21),SUM($H$2:H21),NA()) -> 
E22: ='MU New'!E22 -> 2011-04-21 | F22: 2011-04-21 | G22: =IF(ISNUMBER(H22),SUM($H$2:H22),NA()) -> 
E23: ='MU New'!E23 -> 2011-04-22 | F23: 2011-04-22 | G23: =IF(ISNUMBER(H23),SUM($H$2:H23),NA()) -> 
E24: ='MU New'!E24 -> 2011-04-23 | F24: 2011-04-23 | G24: =IF(ISNUMBER(H24),SUM($H$2:H24),NA()) -> 
E25: ='MU New'!E25 -> 2011-04-24 | F25: 2011-04-24 | G25: =IF(ISNUMBER(H25),SUM($H$2:H25),NA()) -> 
E26: ='MU New'!E26 -> 2011-04-25 | F26: 2011-04-25 | G26: =IF(ISNUMBER(H26),SUM($H$2:H26),NA()) -> 
E27: ='MU New'!E27 -> 2011-04-26 | F27: 2011-04-26 | G27: =IF(ISNUMBER(H27),SUM($H$2:H27),NA()) -> 
E28: ='MU New'!E28 -> 2011-04-27 | F28: 2011-04-27 | G28: =IF(ISNUMBER(H28),SUM($H$2:H28),NA()) -> 
E29: ='MU New'!E29 -> 2011-04-28 | F29: 2011-04-28 | G29: =IF(ISNUMBER(H29),SUM($H$2:H29),NA()) -> 
E30: ='MU New'!E30 -> 2011-04-29 | F30: 2011-04-29 | G30: =IF(ISNUMBER(H30),SUM($H$2:H30),NA()) -> 
E31: ='MU New'!E31 -> 2011-04-30 | F31: 2011-04-30 | G31: =IF(ISNUMBER(H31),SUM($H$2:H31),NA()) -> 
E32: ='MU New'!E32 ->  | G32: =IF(ISNUMBER(H32),SUM($H$2:H32),NA()) -> 

Sheet Plot Data (hidden)
C1: MU Sales New | I1: MU Sales Used | N1: MOTORCLOTHES | R1: PARTS | V1: SERVICE | Z1: F&I | AG1: Eastside | AK1: Emerald City | AO1: Retail | AS1: RO | AW1: Major Unit
A2: Goal Sales | B2: Sales Track | C2: Goal Margin | D2: Margin Track | E2: Goal Units | F2: Track Units | G2: Goal Sales | H2: Sales Track | I2: Goal Margin | J2: Margin Track | K2: Goal Units | L2: Track Units | M2: Goal Sales | N2: Sales Track | O2: Goal Margin | P2: Margin Track | Q2: Goal Sales | R2: Sales Track | S2: Goal Margin | T2: Margin Track | U2: Goal Sales | V2: Sales Track | W2: Goal Margin | X2: Margin Track | Y2: Goal Sales | Z2: Sales Track | AA2: Goal Margin | AB2: Margin Track | AC2: conditional | AF2: Goal Sales | AG2: Sales Track | AH2: Goal Margin | AI2: Margin Track | AJ2: Goal Sales | AK2: Sales Track | AL2: Goal Margin | AM2: Margin Track | AN2: Goal Sales | AO2: Sales Track | AP2: Goal Margin | AQ2: Margin Track | AR2: Goal Sales | AS2: Sales Track | AT2: Goal Margin | AU2: Margin Track | AV2: Goal Sales | AW2: Sales Track | AX2: Goal Margin | AY2: Margin Track
A3: =IF(ISNUMBER('MU New'!E2)=TRUE,'MU New'!$C$10/COUNT('MU New'!$E$2:$E$32)*AC3,NA()) -> 18240 | B3: =IF(ISNUMBER('MU New'!E2)=TRUE,'MU New'!$C$12/COUNT('MU New'!$E$2:$E$32)*'Plot Data'!AC3,NA()) -> 17500 | C3: =IF(ISNUMBER('MU New'!E2)=TRUE,'MU New'!$C$18/COUNT('MU Used'!$E$2:$E$32)*$AC3,NA()) -> 3648 | D3: =IF(ISNUMBER('MU New'!E2)=TRUE,'MU New'!$C$21/COUNT('MU New'!$E$2:$E$32)*$AC3,NA()) -> 7000 | E3: =IF(ISNUMBER('MU New'!E2)=TRUE,'MU New'!$C$27/COUNT('MU New'!$E$2:$E$32)*$AC3,NA()) -> 0.8666666667 | F3: =IF(ISNUMBER('MU New'!E2)=TRUE,'MU New'!$C$29/COUNT('MU New'!$E$2:$E$32)*$AC3,NA()) -> 1 | G3: =IF(ISNUMBER('MU Used'!E2)=TRUE,'MU Used'!$C$10/COUNT('MU Used'!$E$2:$E$32)*AC3,NA()) -> 12540 | H3: =IF(ISNUMBER('MU Used'!E2)=TRUE,'MU Used'!$C$12/COUNT('MU Used'!$E$2:$E$32)*'Plot Data'!AC3,NA()) -> 6000 | I3: =IF(ISNUMBER('MU Used'!E2)=TRUE,'MU Used'!$C$18/COUNT('MU Used'!$E$2:$E$32)*$AC3,NA()) -> 2194.5 | J3: =IF(ISNUMBER('MU Used'!E2)=TRUE,'MU Used'!$C$21/COUNT('MU Used'!$E$2:$E$32)*$AC3,NA()) -> 2000 | K3: =IF(ISNUMBER('MU Used'!E2)=TRUE,'MU Used'!$C$27/COUNT('MU Used'!$E$2:$E$32)*$AC3,NA()) -> 1.2 | L3: =IF(ISNUMBER('MU Used'!E2)=TRUE,'MU Used'!$C$29/COUNT('MU Used'!$E$2:$E$32)*$AC3,NA()) -> 0.5 | M3: =IF(ISNUMBER(MC!$E2)=TRUE,MC!$C$10/COUNT(MC!$E$2:$E$32)*$AC3,NA()) -> 2607.066667 | N3: =IF(ISNUMBER(MC!$E2)=TRUE,MC!$C$12/COUNT(MC!$E$2:$E$32)*'Plot Data'!$AC3,NA()) -> 7500 | O3: =IF(ISNUMBER(MC!$E2)=TRUE,MC!$C$18/COUNT(MC!$E$2:$E$32)*$AC3,NA()) -> 1042.833333 | P3: =IF(ISNUMBER(MC!$E2)=TRUE,MC!$C$21/COUNT(MC!$E$2:$E$32)*$AC3,NA()) -> 2625 | Q3: =IF(ISNUMBER(Parts!$E2)=TRUE,Parts!$C$10/COUNT(Parts!$E$2:$E$32)*$AC3,NA()) -> 4901.266667 | R3: =IF(ISNUMBER(Parts!$E2)=TRUE,Parts!$C$12/COUNT(Parts!$E$2:$E$32)*'Plot Data'!$AC3,NA()) -> 9250 | S3: =IF(ISNUMBER(Parts!$E2)=TRUE,Parts!$C$18/COUNT(Parts!$E$2:$E$32)*$AC3,NA()) -> 1715.433333 | T3: =IF(ISNUMBER(Parts!$E2)=TRUE,Parts!$C$21/COUNT(Parts!$E$2:$E$32)*$AC3,NA()) -> 4275 | U3: =IF(ISNUMBER(Service!$E2)=TRUE,Service!$C$10/COUNT(Service!$E$2:$E$32)*$AC3,NA()) -> 2102.3 | V3: =IF(ISNUMBER(Service!$E2)=TRUE,Service!$C$12/COUNT(Service!$E$2:$E$32)*'Plot Data'!$AC3,NA()) -> 1450 | W3: =IF(ISNUMBER(Service!$E2)=TRUE,Service!$C$18/COUNT(Service!$E$2:$E$32)*$AC3,NA()) -> 0 | X3: =IF(ISNUMBER(Service!$E2)=TRUE,Service!$C$21/COUNT(Service!$E$2:$E$32)*$AC3,NA()) -> 0 | Y3: =IF(ISNUMBER('F&I'!$E2)=TRUE,'F&I'!$C$10/COUNT('F&I'!$E$2:$E$32)*$AC3,NA()) -> 1418.666667 | Z3: =IF(ISNUMBER('F&I'!$E2)=TRUE,'F&I'!$C$12/COUNT('F&I'!$E$2:$E$32)*'Plot Data'!$AC3,NA()) -> 200 | AA3: =IF(ISNUMBER('F&I'!$E2)=TRUE,'F&I'!$C$18/COUNT('F&I'!$E$2:$E$32)*$AC3,NA()) -> 993.0666667 | AB3: =IF(ISNUMBER('F&I'!$E2)=TRUE,'F&I'!$C$21/COUNT('F&I'!$E$2:$E$32)*$AC3,NA()) -> 200 | AC3: =IF(ISNUMBER('MU Used'!E2)=TRUE,'Plot Data'!AD3,"") -> 1 | AD3: 1 | AF3: =IF(ISNUMBER(Eastside!$E2)=TRUE,Eastside!$C$10/COUNT(Eastside!$E$2:$E$32)*$AC3,NA()) -> 1666.666667 | AG3: =IF(ISNUMBER(Eastside!$E2)=TRUE,Eastside!$C$12/COUNT(Eastside!$E$2:$E$32)*'Plot Data'!$AC3,NA()) -> 3500 | AH3: =IF(ISNUMBER(Eastside!$E2)=TRUE,Eastside!$C$18/COUNT(Eastside!$E$2:$E$32)*$AC3,NA()) -> 0 | AI3: =IF(ISNUMBER(Eastside!$E2)=TRUE,Eastside!$C$21/COUNT(Eastside!$E$2:$E$32)*$AC3,NA()) -> 1125 | AJ3: =IF(ISNUMBER('Emerald City'!$E2)=TRUE,'Emerald City'!$C$10/COUNT('Emerald City'!$E$2:$E$32)*$AC3,NA()) -> 700 | AK3: =IF(ISNUMBER('Emerald City'!$E2)=TRUE,'Emerald City'!$C$12/COUNT('Emerald City'!$E$2:$E$32)*'Plot Data'!$AC3,NA()) -> 4000 | AL3: =IF(ISNUMBER('Emerald City'!$E2)=TRUE,'Emerald City'!$C$18/COUNT('Emerald City'!$E$2:$E$32)*$AC3,NA()) -> 0 | AM3: =IF(ISNUMBER('Emerald City'!$E2)=TRUE,'Emerald City'!$C$21/COUNT('Emerald City'!$E$2:$E$32)*$AC3,NA()) -> 1500 | AN3: =IF(ISNUMBER(Retail!$E2)=TRUE,Retail!$C$10/COUNT(Retail!$E$2:$E$32)*$AC3,NA()) -> 0 | AO3: =IF(ISNUMBER(Retail!$E2)=TRUE,Retail!$C$12/COUNT(Retail!$E$2:$E$32)*'Plot Data'!$AC3,NA()) -> 3000 | AP3: =IF(ISNUMBER(Retail!$E2)=TRUE,Retail!$C$18/COUNT(Retail!$E$2:$E$32)*$AC3,NA()) -> 0 | AQ3: =IF(ISNUMBER(Retail!$E2)=TRUE,Retail!$C$17/COUNT(Retail!$E$2:$E$32)*$AC3,NA()) -> 1250 | AR3: =IF(ISNUMBER(RO!$E2)=TRUE,RO!$C$10/COUNT(RO!$E$2:$E$32)*$AC3,NA()) -> 0 | AS3: =IF(ISNUMBER(RO!$E2)=TRUE,RO!$C$12/COUNT(RO!$E$2:$E$32)*'Plot Data'!$AC3,NA()) -> 1750 | AT3: =IF(ISNUMBER(RO!$E2)=TRUE,RO!$C$18/COUNT(RO!$E$2:$E$32)*$AC3,NA()) -> 0 | AU3: =IF(ISNUMBER(RO!$E2)=TRUE,RO!$C$17/COUNT(RO!$E$2:$E$32)*$AC3,NA()) -> 775 | AV3: =IF(ISNUMBER('Major Unit'!$E2)=TRUE,'Major Unit'!$C$10/COUNT('Major Unit'!$E$2:$E$32)*$AC3,NA()) -> 0 | AW3: =IF(ISNUMBER('Major Unit'!$E2)=TRUE,'Major Unit'!$C$12/COUNT('Major Unit'!$E$2:$E$32)*'Plot Data'!$AC3,NA()) -> 4500 | AX3: =IF(ISNUMBER('Major Unit'!$E2)=TRUE,'Major Unit'!$C$18/COUNT('Major Unit'!$E$2:$E$32)*$AC3,NA()) -> 0 | AY3: =IF(ISNUMBER('Major Unit'!$E2)=TRUE,'Major Unit'!$C$17/COUNT('Major Unit'!$E$2:$E$32)*$AC3,NA()) -> 2250
A4: =IF(ISNUMBER('MU New'!E3)=TRUE,'MU New'!$C$10/COUNT('MU New'!$E$2:$E$32)*AC4,NA()) -> 36480 | B4: =IF(ISNUMBER('MU New'!E3)=TRUE,'MU New'!$C$12/COUNT('MU New'!$E$2:$E$32)*'Plot Data'!AC4,NA()) -> 35000 | C4: =IF(ISNUMBER('MU New'!E3)=TRUE,'MU New'!$C$18/COUNT('MU Used'!$E$2:$E$32)*$AC4,NA()) -> 7296 | D4: =IF(ISNUMBER('MU New'!E3)=TRUE,'MU New'!$C$21/COUNT('MU New'!$E$2:$E$32)*$AC4,NA()) -> 14000 | E4: =IF(ISNUMBER('MU New'!E3)=TRUE,'MU New'!$C$27/COUNT('MU New'!$E$2:$E$32)*$AC4,NA()) -> 1.733333333 | F4: =IF(ISNUMBER('MU New'!E3)=TRUE,'MU New'!$C$29/COUNT('MU New'!$E$2:$E$32)*$AC4,NA()) -> 2 | G4: =IF(ISNUMBER('MU Used'!E3)=TRUE,'MU Used'!$C$10/COUNT('MU Used'!$E$2:$E$32)*AC4,NA()) -> 25080 | H4: =IF(ISNUMBER('MU Used'!E3)=TRUE,'MU Used'!$C$12/COUNT('MU Used'!$E$2:$E$32)*'Plot Data'!AC4,NA()) -> 12000 | I4: =IF(ISNUMBER('MU Used'!E3)=TRUE,'MU Used'!$C$18/COUNT('MU Used'!$E$2:$E$32)*$AC4,NA()) -> 4389 | J4: =IF(ISNUMBER('MU Used'!E3)=TRUE,'MU Used'!$C$21/COUNT('MU Used'!$E$2:$E$32)*$AC4,NA()) -> 4000 | K4: =IF(ISNUMBER('MU Used'!E3)=TRUE,'MU Used'!$C$27/COUNT('MU Used'!$E$2:$E$32)*$AC4,NA()) -> 2.4 | L4: =IF(ISNUMBER('MU Used'!E3)=TRUE,'MU Used'!$C$29/COUNT('MU Used'!$E$2:$E$32)*$AC4,NA()) -> 1 | M4: =IF(ISNUMBER(MC!$E3)=TRUE,MC!$C$10/COUNT(MC!$E$2:$E$32)*$AC4,NA()) -> 5214.133333 | N4: =IF(ISNUMBER(MC!$E3)=TRUE,MC!$C$12/COUNT(MC!$E$2:$E$32)*'Plot Data'!$AC4,NA()) -> 15000 | O4: =IF(ISNUMBER(MC!$E3)=TRUE,MC!$C$18/COUNT(MC!$E$2:$E$32)*$AC4,NA()) -> 2085.666667 | P4: =IF(ISNUMBER(MC!$E3)=TRUE,MC!$C$21/COUNT(MC!$E$2:$E$32)*$AC4,NA()) -> 5250 | Q4: =IF(ISNUMBER(Parts!$E3)=TRUE,Parts!$C$10/COUNT(Parts!$E$2:$E$32)*$AC4,NA()) -> 9802.533333 | R4: =IF(ISNUMBER(Parts!$E3)=TRUE,Parts!$C$12/COUNT(Parts!$E$2:$E$32)*'Plot Data'!$AC4,NA()) -> 18500 | S4: =IF(ISNUMBER(Parts!$E3)=TRUE,Parts!$C$18/COUNT(Parts!$E$2:$E$32)*$AC4,NA()) -> 3430.866667 | T4: =IF(ISNUMBER(Parts!$E3)=TRUE,Parts!$C$21/COUNT(Parts!$E$2:$E$32)*$AC4,NA()) -> 8550 | U4: =IF(ISNUMBER(Service!$E3)=TRUE,Service!$C$10/COUNT(Service!$E$2:$E$32)*$AC4,NA()) -> 4204.6 | V4: =IF(ISNUMBER(Service!$E3)=TRUE,Service!$C$12/COUNT(Service!$E$2:$E$32)*'Plot Data'!$AC4,NA()) -> 2900 | W4: =IF(ISNUMBER(Service!$E3)=TRUE,Service!$C$18/COUNT(Service!$E$2:$E$32)*$AC4,NA()) -> 0 | X4: =IF(ISNUMBER(Service!$E3)=TRUE,Service!$C$21/COUNT(Service!$E$2:$E$32)*$AC4,NA()) -> 0 | Y4: =IF(ISNUMBER('F&I'!$E3)=TRUE,'F&I'!$C$10/COUNT('F&I'!$E$2:$E$32)*$AC4,NA()) -> 2837.333333 | Z4: =IF(ISNUMBER('F&I'!$E3)=TRUE,'F&I'!$C$12/COUNT('F&I'!$E$2:$E$32)*'Plot Data'!$AC4,NA()) -> 400 | AA4: =IF(ISNUMBER('F&I'!$E3)=TRUE,'F&I'!$C$18/COUNT('F&I'!$E$2:$E$32)*$AC4,NA()) -> 1986.133333 | AB4: =IF(ISNUMBER('F&I'!$E3)=TRUE,'F&I'!$C$21/COUNT('F&I'!$E$2:$E$32)*$AC4,NA()) -> 400 | AC4: =IF(ISNUMBER('MU Used'!E3)=TRUE,'Plot Data'!AD4,"") -> 2 | AD4: 2 | AF4: =IF(ISNUMBER(Eastside!$E3)=TRUE,Eastside!$C$10/COUNT(Eastside!$E$2:$E$32)*$AC4,NA()) -> 3333.333333 | AG4: =IF(ISNUMBER(Eastside!$E3)=TRUE,Eastside!$C$12/COUNT(Eastside!$E$2:$E$32)*'Plot Data'!$AC4,NA()) -> 7000 | AH4: =IF(ISNUMBER(Eastside!$E3)=TRUE,Eastside!$C$18/COUNT(Eastside!$E$2:$E$32)*$AC4,NA()) -> 0 | AI4: =IF(ISNUMBER(Eastside!$E3)=TRUE,Eastside!$C$21/COUNT(Eastside!$E$2:$E$32)*$AC4,NA()) -> 2250 | AJ4: =IF(ISNUMBER('Emerald City'!$E3)=TRUE,'Emerald City'!$C$10/COUNT('Emerald City'!$E$2:$E$32)*$AC4,NA()) -> 1400 | AK4: =IF(ISNUMBER('Emerald City'!$E3)=TRUE,'Emerald City'!$C$12/COUNT('Emerald City'!$E$2:$E$32)*'Plot Data'!$AC4,NA()) -> 8000 | AL4: =IF(ISNUMBER('Emerald City'!$E3)=TRUE,'Emerald City'!$C$18/COUNT('Emerald City'!$E$2:$E$32)*$AC4,NA()) -> 0 | AM4: =IF(ISNUMBER('Emerald City'!$E3)=TRUE,'Emerald City'!$C$21/COUNT('Emerald City'!$E$2:$E$32)*$AC4,NA()) -> 3000 | AN4: =IF(ISNUMBER(Retail!$E3)=TRUE,Retail!$C$10/COUNT(Retail!$E$2:$E$32)*$AC4,NA()) -> 0 | AO4: =IF(ISNUMBER(Retail!$E3)=TRUE,Retail!$C$12/COUNT(Retail!$E$2:$E$32)*'Plot Data'!$AC4,NA()) -> 6000 | AP4: =IF(ISNUMBER(Retail!$E3)=TRUE,Retail!$C$18/COUNT(Retail!$E$2:$E$32)*$AC4,NA()) -> 0 | AQ4: =IF(ISNUMBER(Retail!$E3)=TRUE,Retail!$C$17/COUNT(Retail!$E$2:$E$32)*$AC4,NA()) -> 2500 | AR4: =IF(ISNUMBER(RO!$E3)=TRUE,RO!$C$10/COUNT(RO!$E$2:$E$32)*$AC4,NA()) -> 0 | AS4: =IF(ISNUMBER(RO!$E3)=TRUE,RO!$C$12/COUNT(RO!$E$2:$E$32)*'Plot Data'!$AC4,NA()) -> 3500 | AT4: =IF(ISNUMBER(RO!$E3)=TRUE,RO!$C$18/COUNT(RO!$E$2:$E$32)*$AC4,NA()) -> 0 | AU4: =IF(ISNUMBER(RO!$E3)=TRUE,RO!$C$17/COUNT(RO!$E$2:$E$32)*$AC4,NA()) -> 1550 | AV4: =IF(ISNUMBER('Major Unit'!$E3)=TRUE,'Major Unit'!$C$10/COUNT('Major Unit'!$E$2:$E$32)*$AC4,NA()) -> 0 | AW4: =IF(ISNUMBER('Major Unit'!$E3)=TRUE,'Major Unit'!$C$12/COUNT('Major Unit'!$E$2:$E$32)*'Plot Data'!$AC4,NA()) -> 9000 | AX4: =IF(ISNUMBER('Major Unit'!$E3)=TRUE,'Major Unit'!$C$18/COUNT('Major Unit'!$E$2:$E$32)*$AC4,NA()) -> 0 | AY4: =IF(ISNUMBER('Major Unit'!$E3)=TRUE,'Major Unit'!$C$17/COUNT('Major Unit'!$E$2:$E$32)*$AC4,NA()) -> 4500
A5: =IF(ISNUMBER('MU New'!E4)=TRUE,'MU New'!$C$10/COUNT('MU New'!$E$2:$E$32)*AC5,NA()) -> 54720 | B5: =IF(ISNUMBER('MU New'!E4)=TRUE,'MU New'!$C$12/COUNT('MU New'!$E$2:$E$32)*'Plot Data'!AC5,NA()) -> 52500 | C5: =IF(ISNUMBER('MU New'!E4)=TRUE,'MU New'!$C$18/COUNT('MU Used'!$E$2:$E$32)*$AC5,NA()) -> 10944 | D5: =IF(ISNUMBER('MU New'!E4)=TRUE,'MU New'!$C$21/COUNT('MU New'!$E$2:$E$32)*$AC5,NA()) -> 21000 | E5: =IF(ISNUMBER('MU New'!E4)=TRUE,'MU New'!$C$27/COUNT('MU New'!$E$2:$E$32)*$AC5,NA()) -> 2.6 | F5: =IF(ISNUMBER('MU New'!E4)=TRUE,'MU New'!$C$29/COUNT('MU New'!$E$2:$E$32)*$AC5,NA()) -> 3 | G5: =IF(ISNUMBER('MU Used'!E4)=TRUE,'MU Used'!$C$10/COUNT('MU Used'!$E$2:$E$32)*AC5,NA()) -> 37620 | H5: =IF(ISNUMBER('MU Used'!E4)=TRUE,'MU Used'!$C$12/COUNT('MU Used'!$E$2:$E$32)*'Plot Data'!AC5,NA()) -> 18000 | I5: =IF(ISNUMBER('MU Used'!E4)=TRUE,'MU Used'!$C$18/COUNT('MU Used'!$E$2:$E$32)*$AC5,NA()) -> 6583.5 | J5: =IF(ISNUMBER('MU Used'!E4)=TRUE,'MU Used'!$C$21/COUNT('MU Used'!$E$2:$E$32)*$AC5,NA()) -> 6000 | K5: =IF(ISNUMBER('MU Used'!E4)=TRUE,'MU Used'!$C$27/COUNT('MU Used'!$E$2:$E$32)*$AC5,NA()) -> 3.6 | L5: =IF(ISNUMBER('MU Used'!E4)=TRUE,'MU Used'!$C$29/COUNT('MU Used'!$E$2:$E$32)*$AC5,NA()) -> 1.5 | M5: =IF(ISNUMBER(MC!$E4)=TRUE,MC!$C$10/COUNT(MC!$E$2:$E$32)*$AC5,NA()) -> 7821.2 | N5: =IF(ISNUMBER(MC!$E4)=TRUE,MC!$C$12/COUNT(MC!$E$2:$E$32)*'Plot Data'!$AC5,NA()) -> 22500 | O5: =IF(ISNUMBER(MC!$E4)=TRUE,MC!$C$18/COUNT(MC!$E$2:$E$32)*$AC5,NA()) -> 3128.5 | P5: =IF(ISNUMBER(MC!$E4)=TRUE,MC!$C$21/COUNT(MC!$E$2:$E$32)*$AC5,NA()) -> 7875 | Q5: =IF(ISNUMBER(Parts!$E4)=TRUE,Parts!$C$10/COUNT(Parts!$E$2:$E$32)*$AC5,NA()) -> 14703.8 | R5: =IF(ISNUMBER(Parts!$E4)=TRUE,Parts!$C$12/COUNT(Parts!$E$2:$E$32)*'Plot Data'!$AC5,NA()) -> 27750 | S5: =IF(ISNUMBER(Parts!$E4)=TRUE,Parts!$C$18/COUNT(Parts!$E$2:$E$32)*$AC5,NA()) -> 5146.3 | T5: =IF(ISNUMBER(Parts!$E4)=TRUE,Parts!$C$21/COUNT(Parts!$E$2:$E$32)*$AC5,NA()) -> 12825 | U5: =IF(ISNUMBER(Service!$E4)=TRUE,Service!$C$10/COUNT(Service!$E$2:$E$32)*$AC5,NA()) -> 6306.9 | V5: =IF(ISNUMBER(Service!$E4)=TRUE,Service!$C$12/COUNT(Service!$E$2:$E$32)*'Plot Data'!$AC5,NA()) -> 4350 | W5: =IF(ISNUMBER(Service!$E4)=TRUE,Service!$C$18/COUNT(Service!$E$2:$E$32)*$AC5,NA()) -> 0 | X5: =IF(ISNUMBER(Service!$E4)=TRUE,Service!$C$21/COUNT(Service!$E$2:$E$32)*$AC5,NA()) -> 0 | Y5: =IF(ISNUMBER('F&I'!$E4)=TRUE,'F&I'!$C$10/COUNT('F&I'!$E$2:$E$32)*$AC5,NA()) -> 4256 | Z5: =IF(ISNUMBER('F&I'!$E4)=TRUE,'F&I'!$C$12/COUNT('F&I'!$E$2:$E$32)*'Plot Data'!$AC5,NA()) -> 600 | AA5: =IF(ISNUMBER('F&I'!$E4)=TRUE,'F&I'!$C$18/COUNT('F&I'!$E$2:$E$32)*$AC5,NA()) -> 2979.2 | AB5: =IF(ISNUMBER('F&I'!$E4)=TRUE,'F&I'!$C$21/COUNT('F&I'!$E$2:$E$32)*$AC5,NA()) -> 600 | AC5: =IF(ISNUMBER('MU Used'!E4)=TRUE,'Plot Data'!AD5,"") -> 3 | AD5: 3 | AF5: =IF(ISNUMBER(Eastside!$E4)=TRUE,Eastside!$C$10/COUNT(Eastside!$E$2:$E$32)*$AC5,NA()) -> 5000 | AG5: =IF(ISNUMBER(Eastside!$E4)=TRUE,Eastside!$C$12/COUNT(Eastside!$E$2:$E$32)*'Plot Data'!$AC5,NA()) -> 10500 | AH5: =IF(ISNUMBER(Eastside!$E4)=TRUE,Eastside!$C$18/COUNT(Eastside!$E$2:$E$32)*$AC5,NA()) -> 0 | AI5: =IF(ISNUMBER(Eastside!$E4)=TRUE,Eastside!$C$21/COUNT(Eastside!$E$2:$E$32)*$AC5,NA()) -> 3375 | AJ5: =IF(ISNUMBER('Emerald City'!$E4)=TRUE,'Emerald City'!$C$10/COUNT('Emerald City'!$E$2:$E$32)*$AC5,NA()) -> 2100 | AK5: =IF(ISNUMBER('Emerald City'!$E4)=TRUE,'Emerald City'!$C$12/COUNT('Emerald City'!$E$2:$E$32)*'Plot Data'!$AC5,NA()) -> 12000 | AL5: =IF(ISNUMBER('Emerald City'!$E4)=TRUE,'Emerald City'!$C$18/COUNT('Emerald City'!$E$2:$E$32)*$AC5,NA()) -> 0 | AM5: =IF(ISNUMBER('Emerald City'!$E4)=TRUE,'Emerald City'!$C$21/COUNT('Emerald City'!$E$2:$E$32)*$AC5,NA()) -> 4500 | AN5: =IF(ISNUMBER(Retail!$E4)=TRUE,Retail!$C$10/COUNT(Retail!$E$2:$E$32)*$AC5,NA()) -> 0 | AO5: =IF(ISNUMBER(Retail!$E4)=TRUE,Retail!$C$12/COUNT(Retail!$E$2:$E$32)*'Plot Data'!$AC5,NA()) -> 9000 | AP5: =IF(ISNUMBER(Retail!$E4)=TRUE,Retail!$C$18/COUNT(Retail!$E$2:$E$32)*$AC5,NA()) -> 0 | AQ5: =IF(ISNUMBER(Retail!$E4)=TRUE,Retail!$C$17/COUNT(Retail!$E$2:$E$32)*$AC5,NA()) -> 3750 | AR5: =IF(ISNUMBER(RO!$E4)=TRUE,RO!$C$10/COUNT(RO!$E$2:$E$32)*$AC5,NA()) -> 0 | AS5: =IF(ISNUMBER(RO!$E4)=TRUE,RO!$C$12/COUNT(RO!$E$2:$E$32)*'Plot Data'!$AC5,NA()) -> 5250 | AT5: =IF(ISNUMBER(RO!$E4)=TRUE,RO!$C$18/COUNT(RO!$E$2:$E$32)*$AC5,NA()) -> 0 | AU5: =IF(ISNUMBER(RO!$E4)=TRUE,RO!$C$17/COUNT(RO!$E$2:$E$32)*$AC5,NA()) -> 2325 | AV5: =IF(ISNUMBER('Major Unit'!$E4)=TRUE,'Major Unit'!$C$10/COUNT('Major Unit'!$E$2:$E$32)*$AC5,NA()) -> 0 | AW5: =IF(ISNUMBER('Major Unit'!$E4)=TRUE,'Major Unit'!$C$12/COUNT('Major Unit'!$E$2:$E$32)*'Plot Data'!$AC5,NA()) -> 13500 | AX5: =IF(ISNUMBER('Major Unit'!$E4)=TRUE,'Major Unit'!$C$18/COUNT('Major Unit'!$E$2:$E$32)*$AC5,NA()) -> 0 | AY5: =IF(ISNUMBER('Major Unit'!$E4)=TRUE,'Major Unit'!$C$17/COUNT('Major Unit'!$E$2:$E$32)*$AC5,NA()) -> 6750
A6: =IF(ISNUMBER('MU New'!E5)=TRUE,'MU New'!$C$10/COUNT('MU New'!$E$2:$E$32)*AC6,NA()) -> 72960 | B6: =IF(ISNUMBER('MU New'!E5)=TRUE,'MU New'!$C$12/COUNT('MU New'!$E$2:$E$32)*'Plot Data'!AC6,NA()) -> 70000 | C6: =IF(ISNUMBER('MU New'!E5)=TRUE,'MU New'!$C$18/COUNT('MU Used'!$E$2:$E$32)*$AC6,NA()) -> 14592 | D6: =IF(ISNUMBER('MU New'!E5)=TRUE,'MU New'!$C$21/COUNT('MU New'!$E$2:$E$32)*$AC6,NA()) -> 28000 | E6: =IF(ISNUMBER('MU New'!E5)=TRUE,'MU New'!$C$27/COUNT('MU New'!$E$2:$E$32)*$AC6,NA()) -> 3.466666667 | F6: =IF(ISNUMBER('MU New'!E5)=TRUE,'MU New'!$C$29/COUNT('MU New'!$E$2:$E$32)*$AC6,NA()) -> 4 | G6: =IF(ISNUMBER('MU Used'!E5)=TRUE,'MU Used'!$C$10/COUNT('MU Used'!$E$2:$E$32)*AC6,NA()) -> 50160 | H6: =IF(ISNUMBER('MU Used'!E5)=TRUE,'MU Used'!$C$12/COUNT('MU Used'!$E$2:$E$32)*'Plot Data'!AC6,NA()) -> 24000 | I6: =IF(ISNUMBER('MU Used'!E5)=TRUE,'MU Used'!$C$18/COUNT('MU Used'!$E$2:$E$32)*$AC6,NA()) -> 8778 | J6: =IF(ISNUMBER('MU Used'!E5)=TRUE,'MU Used'!$C$21/COUNT('MU Used'!$E$2:$E$32)*$AC6,NA()) -> 8000 | K6: =IF(ISNUMBER('MU Used'!E5)=TRUE,'MU Used'!$C$27/COUNT('MU Used'!$E$2:$E$32)*$AC6,NA()) -> 4.8 | L6: =IF(ISNUMBER('MU Used'!E5)=TRUE,'MU Used'!$C$29/COUNT('MU Used'!$E$2:$E$32)*$AC6,NA()) -> 2 | M6: =IF(ISNUMBER(MC!$E5)=TRUE,MC!$C$10/COUNT(MC!$E$2:$E$32)*$AC6,NA()) -> 10428.26667 | N6: =IF(ISNUMBER(MC!$E5)=TRUE,MC!$C$12/COUNT(MC!$E$2:$E$32)*'Plot Data'!$AC6,NA()) -> 30000 | O6: =IF(ISNUMBER(MC!$E5)=TRUE,MC!$C$18/COUNT(MC!$E$2:$E$32)*$AC6,NA()) -> 4171.333333 | P6: =IF(ISNUMBER(MC!$E5)=TRUE,MC!$C$21/COUNT(MC!$E$2:$E$32)*$AC6,NA()) -> 10500 | Q6: =IF(ISNUMBER(Parts!$E5)=TRUE,Parts!$C$10/COUNT(Parts!$E$2:$E$32)*$AC6,NA()) -> 19605.06667 | R6: =IF(ISNUMBER(Parts!$E5)=TRUE,Parts!$C$12/COUNT(Parts!$E$2:$E$32)*'Plot Data'!$AC6,NA()) -> 37000 | S6: =IF(ISNUMBER(Parts!$E5)=TRUE,Parts!$C$18/COUNT(Parts!$E$2:$E$32)*$AC6,NA()) -> 6861.733333 | T6: =IF(ISNUMBER(Parts!$E5)=TRUE,Parts!$C$21/COUNT(Parts!$E$2:$E$32)*$AC6,NA()) -> 17100 | U6: =IF(ISNUMBER(Service!$E5)=TRUE,Service!$C$10/COUNT(Service!$E$2:$E$32)*$AC6,NA()) -> 8409.2 | V6: =IF(ISNUMBER(Service!$E5)=TRUE,Service!$C$12/COUNT(Service!$E$2:$E$32)*'Plot Data'!$AC6,NA()) -> 5800 | W6: =IF(ISNUMBER(Service!$E5)=TRUE,Service!$C$18/COUNT(Service!$E$2:$E$32)*$AC6,NA()) -> 0 | X6: =IF(ISNUMBER(Service!$E5)=TRUE,Service!$C$21/COUNT(Service!$E$2:$E$32)*$AC6,NA()) -> 0 | Y6: =IF(ISNUMBER('F&I'!$E5)=TRUE,'F&I'!$C$10/COUNT('F&I'!$E$2:$E$32)*$AC6,NA()) -> 5674.666667 | Z6: =IF(ISNUMBER('F&I'!$E5)=TRUE,'F&I'!$C$12/COUNT('F&I'!$E$2:$E$32)*'Plot Data'!$AC6,NA()) -> 800 | AA6: =IF(ISNUMBER('F&I'!$E5)=TRUE,'F&I'!$C$18/COUNT('F&I'!$E$2:$E$32)*$AC6,NA()) -> 3972.266667 | AB6: =IF(ISNUMBER('F&I'!$E5)=TRUE,'F&I'!$C$21/COUNT('F&I'!$E$2:$E$32)*$AC6,NA()) -> 800 | AC6: =IF(ISNUMBER('MU Used'!E5)=TRUE,'Plot Data'!AD6,"") -> 4 | AD6: 4 | AF6: =IF(ISNUMBER(Eastside!$E5)=TRUE,Eastside!$C$10/COUNT(Eastside!$E$2:$E$32)*$AC6,NA()) -> 6666.666667 | AG6: =IF(ISNUMBER(Eastside!$E5)=TRUE,Eastside!$C$12/COUNT(Eastside!$E$2:$E$32)*'Plot Data'!$AC6,NA()) -> 14000 | AH6: =IF(ISNUMBER(Eastside!$E5)=TRUE,Eastside!$C$18/COUNT(Eastside!$E$2:$E$32)*$AC6,NA()) -> 0 | AI6: =IF(ISNUMBER(Eastside!$E5)=TRUE,Eastside!$C$21/COUNT(Eastside!$E$2:$E$32)*$AC6,NA()) -> 4500 | AJ6: =IF(ISNUMBER('Emerald City'!$E5)=TRUE,'Emerald City'!$C$10/COUNT('Emerald City'!$E$2:$E$32)*$AC6,NA()) -> 2800 | AK6: =IF(ISNUMBER('Emerald City'!$E5)=TRUE,'Emerald City'!$C$12/COUNT('Emerald City'!$E$2:$E$32)*'Plot Data'!$AC6,NA()) -> 16000 | AL6: =IF(ISNUMBER('Emerald City'!$E5)=TRUE,'Emerald City'!$C$18/COUNT('Emerald City'!$E$2:$E$32)*$AC6,NA()) -> 0 | AM6: =IF(ISNUMBER('Emerald City'!$E5)=TRUE,'Emerald City'!$C$21/COUNT('Emerald City'!$E$2:$E$32)*$AC6,NA()) -> 6000 | AN6: =IF(ISNUMBER(Retail!$E5)=TRUE,Retail!$C$10/COUNT(Retail!$E$2:$E$32)*$AC6,NA()) -> 0 | AO6: =IF(ISNUMBER(Retail!$E5)=TRUE,Retail!$C$12/COUNT(Retail!$E$2:$E$32)*'Plot Data'!$AC6,NA()) -> 12000 | AP6: =IF(ISNUMBER(Retail!$E5)=TRUE,Retail!$C$18/COUNT(Retail!$E$2:$E$32)*$AC6,NA()) -> 0 | AQ6: =IF(ISNUMBER(Retail!$E5)=TRUE,Retail!$C$17/COUNT(Retail!$E$2:$E$32)*$AC6,NA()) -> 5000 | AR6: =IF(ISNUMBER(RO!$E5)=TRUE,RO!$C$10/COUNT(RO!$E$2:$E$32)*$AC6,NA()) -> 0 | AS6: =IF(ISNUMBER(RO!$E5)=TRUE,RO!$C$12/COUNT(RO!$E$2:$E$32)*'Plot Data'!$AC6,NA()) -> 7000 | AT6: =IF(ISNUMBER(RO!$E5)=TRUE,RO!$C$18/COUNT(RO!$E$2:$E$32)*$AC6,NA()) -> 0 | AU6: =IF(ISNUMBER(RO!$E5)=TRUE,RO!$C$17/COUNT(RO!$E$2:$E$32)*$AC6,NA()) -> 3100 | AV6: =IF(ISNUMBER('Major Unit'!$E5)=TRUE,'Major Unit'!$C$10/COUNT('Major Unit'!$E$2:$E$32)*$AC6,NA()) -> 0 | AW6: =IF(ISNUMBER('Major Unit'!$E5)=TRUE,'Major Unit'!$C$12/COUNT('Major Unit'!$E$2:$E$32)*'Plot Data'!$AC6,NA()) -> 18000 | AX6: =IF(ISNUMBER('Major Unit'!$E5)=TRUE,'Major Unit'!$C$18/COUNT('Major Unit'!$E$2:$E$32)*$AC6,NA()) -> 0 | AY6: =IF(ISNUMBER('Major Unit'!$E5)=TRUE,'Major Unit'!$C$17/COUNT('Major Unit'!$E$2:$E$32)*$AC6,NA()) -> 9000
A7: =IF(ISNUMBER('MU New'!E6)=TRUE,'MU New'!$C$10/COUNT('MU New'!$E$2:$E$32)*AC7,NA()) -> 91200 | B7: =IF(ISNUMBER('MU New'!E6)=TRUE,'MU New'!$C$12/COUNT('MU New'!$E$2:$E$32)*'Plot Data'!AC7,NA()) -> 87500 | C7: =IF(ISNUMBER('MU New'!E6)=TRUE,'MU New'!$C$18/COUNT('MU Used'!$E$2:$E$32)*$AC7,NA()) -> 18240 | D7: =IF(ISNUMBER('MU New'!E6)=TRUE,'MU New'!$C$21/COUNT('MU New'!$E$2:$E$32)*$AC7,NA()) -> 35000 | E7: =IF(ISNUMBER('MU New'!E6)=TRUE,'MU New'!$C$27/COUNT('MU New'!$E$2:$E$32)*$AC7,NA()) -> 4.333333333 | F7: =IF(ISNUMBER('MU New'!E6)=TRUE,'MU New'!$C$29/COUNT('MU New'!$E$2:$E$32)*$AC7,NA()) -> 5 | G7: =IF(ISNUMBER('MU Used'!E6)=TRUE,'MU Used'!$C$10/COUNT('MU Used'!$E$2:$E$32)*AC7,NA()) -> 62700 | H7: =IF(ISNUMBER('MU Used'!E6)=TRUE,'MU Used'!$C$12/COUNT('MU Used'!$E$2:$E$32)*'Plot Data'!AC7,NA()) -> 30000 | I7: =IF(ISNUMBER('MU Used'!E6)=TRUE,'MU Used'!$C$18/COUNT('MU Used'!$E$2:$E$32)*$AC7,NA()) -> 10972.5 | J7: =IF(ISNUMBER('MU Used'!E6)=TRUE,'MU Used'!$C$21/COUNT('MU Used'!$E$2:$E$32)*$AC7,NA()) -> 10000 | K7: =IF(ISNUMBER('MU Used'!E6)=TRUE,'MU Used'!$C$27/COUNT('MU Used'!$E$2:$E$32)*$AC7,NA()) -> 6 | L7: =IF(ISNUMBER('MU Used'!E6)=TRUE,'MU Used'!$C$29/COUNT('MU Used'!$E$2:$E$32)*$AC7,NA()) -> 2.5 | M7: =IF(ISNUMBER(MC!$E6)=TRUE,MC!$C$10/COUNT(MC!$E$2:$E$32)*$AC7,NA()) -> 13035.33333 | N7: =IF(ISNUMBER(MC!$E6)=TRUE,MC!$C$12/COUNT(MC!$E$2:$E$32)*'Plot Data'!$AC7,NA()) -> 37500 | O7: =IF(ISNUMBER(MC!$E6)=TRUE,MC!$C$18/COUNT(MC!$E$2:$E$32)*$AC7,NA()) -> 5214.166667 | P7: =IF(ISNUMBER(MC!$E6)=TRUE,MC!$C$21/COUNT(MC!$E$2:$E$32)*$AC7,NA()) -> 13125 | Q7: =IF(ISNUMBER(Parts!$E6)=TRUE,Parts!$C$10/COUNT(Parts!$E$2:$E$32)*$AC7,NA()) -> 24506.33333 | R7: =IF(ISNUMBER(Parts!$E6)=TRUE,Parts!$C$12/COUNT(Parts!$E$2:$E$32)*'Plot Data'!$AC7,NA()) -> 46250 | S7: =IF(ISNUMBER(Parts!$E6)=TRUE,Parts!$C$18/COUNT(Parts!$E$2:$E$32)*$AC7,NA()) -> 8577.166667 | T7: =IF(ISNUMBER(Parts!$E6)=TRUE,Parts!$C$21/COUNT(Parts!$E$2:$E$32)*$AC7,NA()) -> 21375 | U7: =IF(ISNUMBER(Service!$E6)=TRUE,Service!$C$10/COUNT(Service!$E$2:$E$32)*$AC7,NA()) -> 10511.5 | V7: =IF(ISNUMBER(Service!$E6)=TRUE,Service!$C$12/COUNT(Service!$E$2:$E$32)*'Plot Data'!$AC7,NA()) -> 7250 | W7: =IF(ISNUMBER(Service!$E6)=TRUE,Service!$C$18/COUNT(Service!$E$2:$E$32)*$AC7,NA()) -> 0 | X7: =IF(ISNUMBER(Service!$E6)=TRUE,Service!$C$21/COUNT(Service!$E$2:$E$32)*$AC7,NA()) -> 0 | Y7: =IF(ISNUMBER('F&I'!$E6)=TRUE,'F&I'!$C$10/COUNT('F&I'!$E$2:$E$32)*$AC7,NA()) -> 7093.333333 | Z7: =IF(ISNUMBER('F&I'!$E6)=TRUE,'F&I'!$C$12/COUNT('F&I'!$E$2:$E$32)*'Plot Data'!$AC7,NA()) -> 1000 | AA7: =IF(ISNUMBER('F&I'!$E6)=TRUE,'F&I'!$C$18/COUNT('F&I'!$E$2:$E$32)*$AC7,NA()) -> 4965.333333 | AB7: =IF(ISNUMBER('F&I'!$E6)=TRUE,'F&I'!$C$21/COUNT('F&I'!$E$2:$E$32)*$AC7,NA()) -> 1000 | AC7: =IF(ISNUMBER('MU Used'!E6)=TRUE,'Plot Data'!AD7,"") -> 5 | AD7: 5 | AF7: =IF(ISNUMBER(Eastside!$E6)=TRUE,Eastside!$C$10/COUNT(Eastside!$E$2:$E$32)*$AC7,NA()) -> 8333.333333 | AG7: =IF(ISNUMBER(Eastside!$E6)=TRUE,Eastside!$C$12/COUNT(Eastside!$E$2:$E$32)*'Plot Data'!$AC7,NA()) -> 17500 | AH7: =IF(ISNUMBER(Eastside!$E6)=TRUE,Eastside!$C$18/COUNT(Eastside!$E$2:$E$32)*$AC7,NA()) -> 0 | AI7: =IF(ISNUMBER(Eastside!$E6)=TRUE,Eastside!$C$21/COUNT(Eastside!$E$2:$E$32)*$AC7,NA()) -> 5625 | AJ7: =IF(ISNUMBER('Emerald City'!$E6)=TRUE,'Emerald City'!$C$10/COUNT('Emerald City'!$E$2:$E$32)*$AC7,NA()) -> 3500 | AK7: =IF(ISNUMBER('Emerald City'!$E6)=TRUE,'Emerald City'!$C$12/COUNT('Emerald City'!$E$2:$E$32)*'Plot Data'!$AC7,NA()) -> 20000 | AL7: =IF(ISNUMBER('Emerald City'!$E6)=TRUE,'Emerald City'!$C$18/COUNT('Emerald City'!$E$2:$E$32)*$AC7,NA()) -> 0 | AM7: =IF(ISNUMBER('Emerald City'!$E6)=TRUE,'Emerald City'!$C$21/COUNT('Emerald City'!$E$2:$E$32)*$AC7,NA()) -> 7500 | AN7: =IF(ISNUMBER(Retail!$E6)=TRUE,Retail!$C$10/COUNT(Retail!$E$2:$E$32)*$AC7,NA()) -> 0 | AO7: =IF(ISNUMBER(Retail!$E6)=TRUE,Retail!$C$12/COUNT(Retail!$E$2:$E$32)*'Plot Data'!$AC7,NA()) -> 15000 | AP7: =IF(ISNUMBER(Retail!$E6)=TRUE,Retail!$C$18/COUNT(Retail!$E$2:$E$32)*$AC7,NA()) -> 0 | AQ7: =IF(ISNUMBER(Retail!$E6)=TRUE,Retail!$C$17/COUNT(Retail!$E$2:$E$32)*$AC7,NA()) -> 6250 | AR7: =IF(ISNUMBER(RO!$E6)=TRUE,RO!$C$10/COUNT(RO!$E$2:$E$32)*$AC7,NA()) -> 0 | AS7: =IF(ISNUMBER(RO!$E6)=TRUE,RO!$C$12/COUNT(RO!$E$2:$E$32)*'Plot Data'!$AC7,NA()) -> 8750 | AT7: =IF(ISNUMBER(RO!$E6)=TRUE,RO!$C$18/COUNT(RO!$E$2:$E$32)*$AC7,NA()) -> 0 | AU7: =IF(ISNUMBER(RO!$E6)=TRUE,RO!$C$17/COUNT(RO!$E$2:$E$32)*$AC7,NA()) -> 3875 | AV7: =IF(ISNUMBER('Major Unit'!$E6)=TRUE,'Major Unit'!$C$10/COUNT('Major Unit'!$E$2:$E$32)*$AC7,NA()) -> 0 | AW7: =IF(ISNUMBER('Major Unit'!$E6)=TRUE,'Major Unit'!$C$12/COUNT('Major Unit'!$E$2:$E$32)*'Plot Data'!$AC7,NA()) -> 22500 | AX7: =IF(ISNUMBER('Major Unit'!$E6)=TRUE,'Major Unit'!$C$18/COUNT('Major Unit'!$E$2:$E$32)*$AC7,NA()) -> 0 | AY7: =IF(ISNUMBER('Major Unit'!$E6)=TRUE,'Major Unit'!$C$17/COUNT('Major Unit'!$E$2:$E$32)*$AC7,NA()) -> 11250
A8: =IF(ISNUMBER('MU New'!E7)=TRUE,'MU New'!$C$10/COUNT('MU New'!$E$2:$E$32)*AC8,NA()) -> 109440 | B8: =IF(ISNUMBER('MU New'!E7)=TRUE,'MU New'!$C$12/COUNT('MU New'!$E$2:$E$32)*'Plot Data'!AC8,NA()) -> 105000 | C8: =IF(ISNUMBER('MU New'!E7)=TRUE,'MU New'!$C$18/COUNT('MU Used'!$E$2:$E$32)*$AC8,NA()) -> 21888 | D8: =IF(ISNUMBER('MU New'!E7)=TRUE,'MU New'!$C$21/COUNT('MU New'!$E$2:$E$32)*$AC8,NA()) -> 42000 | E8: =IF(ISNUMBER('MU New'!E7)=TRUE,'MU New'!$C$27/COUNT('MU New'!$E$2:$E$32)*$AC8,NA()) -> 5.2 | F8: =IF(ISNUMBER('MU New'!E7)=TRUE,'MU New'!$C$29/COUNT('MU New'!$E$2:$E$32)*$AC8,NA()) -> 6 | G8: =IF(ISNUMBER('MU Used'!E7)=TRUE,'MU Used'!$C$10/COUNT('MU Used'!$E$2:$E$32)*AC8,NA()) -> 75240 | H8: =IF(ISNUMBER('MU Used'!E7)=TRUE,'MU Used'!$C$12/COUNT('MU Used'!$E$2:$E$32)*'Plot Data'!AC8,NA()) -> 36000 | I8: =IF(ISNUMBER('MU Used'!E7)=TRUE,'MU Used'!$C$18/COUNT('MU Used'!$E$2:$E$32)*$AC8,NA()) -> 13167 | J8: =IF(ISNUMBER('MU Used'!E7)=TRUE,'MU Used'!$C$21/COUNT('MU Used'!$E$2:$E$32)*$AC8,NA()) -> 12000 | K8: =IF(ISNUMBER('MU Used'!E7)=TRUE,'MU Used'!$C$27/COUNT('MU Used'!$E$2:$E$32)*$AC8,NA()) -> 7.2 | L8: =IF(ISNUMBER('MU Used'!E7)=TRUE,'MU Used'!$C$29/COUNT('MU Used'!$E$2:$E$32)*$AC8,NA()) -> 3 | M8: =IF(ISNUMBER(MC!$E7)=TRUE,MC!$C$10/COUNT(MC!$E$2:$E$32)*$AC8,NA()) -> 15642.4 | N8: =IF(ISNUMBER(MC!$E7)=TRUE,MC!$C$12/COUNT(MC!$E$2:$E$32)*'Plot Data'!$AC8,NA()) -> 45000 | O8: =IF(ISNUMBER(MC!$E7)=TRUE,MC!$C$18/COUNT(MC!$E$2:$E$32)*$AC8,NA()) -> 6257 | P8: =IF(ISNUMBER(MC!$E7)=TRUE,MC!$C$21/COUNT(MC!$E$2:$E$32)*$AC8,NA()) -> 15750 | Q8: =IF(ISNUMBER(Parts!$E7)=TRUE,Parts!$C$10/COUNT(Parts!$E$2:$E$32)*$AC8,NA()) -> 29407.6 | R8: =IF(ISNUMBER(Parts!$E7)=TRUE,Parts!$C$12/COUNT(Parts!$E$2:$E$32)*'Plot Data'!$AC8,NA()) -> 55500 | S8: =IF(ISNUMBER(Parts!$E7)=TRUE,Parts!$C$18/COUNT(Parts!$E$2:$E$32)*$AC8,NA()) -> 10292.6 | T8: =IF(ISNUMBER(Parts!$E7)=TRUE,Parts!$C$21/COUNT(Parts!$E$2:$E$32)*$AC8,NA()) -> 25650 | U8: =IF(ISNUMBER(Service!$E7)=TRUE,Service!$C$10/COUNT(Service!$E$2:$E$32)*$AC8,NA()) -> 12613.8 | V8: =IF(ISNUMBER(Service!$E7)=TRUE,Service!$C$12/COUNT(Service!$E$2:$E$32)*'Plot Data'!$AC8,NA()) -> 8700 | W8: =IF(ISNUMBER(Service!$E7)=TRUE,Service!$C$18/COUNT(Service!$E$2:$E$32)*$AC8,NA()) -> 0 | X8: =IF(ISNUMBER(Service!$E7)=TRUE,Service!$C$21/COUNT(Service!$E$2:$E$32)*$AC8,NA()) -> 0 | Y8: =IF(ISNUMBER('F&I'!$E7)=TRUE,'F&I'!$C$10/COUNT('F&I'!$E$2:$E$32)*$AC8,NA()) -> 8512 | Z8: =IF(ISNUMBER('F&I'!$E7)=TRUE,'F&I'!$C$12/COUNT('F&I'!$E$2:$E$32)*'Plot Data'!$AC8,NA()) -> 1200 | AA8: =IF(ISNUMBER('F&I'!$E7)=TRUE,'F&I'!$C$18/COUNT('F&I'!$E$2:$E$32)*$AC8,NA()) -> 5958.4 | AB8: =IF(ISNUMBER('F&I'!$E7)=TRUE,'F&I'!$C$21/COUNT('F&I'!$E$2:$E$32)*$AC8,NA()) -> 1200 | AC8: =IF(ISNUMBER('MU Used'!E7)=TRUE,'Plot Data'!AD8,"") -> 6 | AD8: 6 | AF8: =IF(ISNUMBER(Eastside!$E7)=TRUE,Eastside!$C$10/COUNT(Eastside!$E$2:$E$32)*$AC8,NA()) -> 10000 | AG8: =IF(ISNUMBER(Eastside!$E7)=TRUE,Eastside!$C$12/COUNT(Eastside!$E$2:$E$32)*'Plot Data'!$AC8,NA()) -> 21000 | AH8: =IF(ISNUMBER(Eastside!$E7)=TRUE,Eastside!$C$18/COUNT(Eastside!$E$2:$E$32)*$AC8,NA()) -> 0 | AI8: =IF(ISNUMBER(Eastside!$E7)=TRUE,Eastside!$C$21/COUNT(Eastside!$E$2:$E$32)*$AC8,NA()) -> 6750 | AJ8: =IF(ISNUMBER('Emerald City'!$E7)=TRUE,'Emerald City'!$C$10/COUNT('Emerald City'!$E$2:$E$32)*$AC8,NA()) -> 4200 | AK8: =IF(ISNUMBER('Emerald City'!$E7)=TRUE,'Emerald City'!$C$12/COUNT('Emerald City'!$E$2:$E$32)*'Plot Data'!$AC8,NA()) -> 24000 | AL8: =IF(ISNUMBER('Emerald City'!$E7)=TRUE,'Emerald City'!$C$18/COUNT('Emerald City'!$E$2:$E$32)*$AC8,NA()) -> 0 | AM8: =IF(ISNUMBER('Emerald City'!$E7)=TRUE,'Emerald City'!$C$21/COUNT('Emerald City'!$E$2:$E$32)*$AC8,NA()) -> 9000 | AN8: =IF(ISNUMBER(Retail!$E7)=TRUE,Retail!$C$10/COUNT(Retail!$E$2:$E$32)*$AC8,NA()) -> 0 | AO8: =IF(ISNUMBER(Retail!$E7)=TRUE,Retail!$C$12/COUNT(Retail!$E$2:$E$32)*'Plot Data'!$AC8,NA()) -> 18000 | AP8: =IF(ISNUMBER(Retail!$E7)=TRUE,Retail!$C$18/COUNT(Retail!$E$2:$E$32)*$AC8,NA()) -> 0 | AQ8: =IF(ISNUMBER(Retail!$E7)=TRUE,Retail!$C$17/COUNT(Retail!$E$2:$E$32)*$AC8,NA()) -> 7500 | AR8: =IF(ISNUMBER(RO!$E7)=TRUE,RO!$C$10/COUNT(RO!$E$2:$E$32)*$AC8,NA()) -> 0 | AS8: =IF(ISNUMBER(RO!$E7)=TRUE,RO!$C$12/COUNT(RO!$E$2:$E$32)*'Plot Data'!$AC8,NA()) -> 10500 | AT8: =IF(ISNUMBER(RO!$E7)=TRUE,RO!$C$18/COUNT(RO!$E$2:$E$32)*$AC8,NA()) -> 0 | AU8: =IF(ISNUMBER(RO!$E7)=TRUE,RO!$C$17/COUNT(RO!$E$2:$E$32)*$AC8,NA()) -> 4650 | AV8: =IF(ISNUMBER('Major Unit'!$E7)=TRUE,'Major Unit'!$C$10/COUNT('Major Unit'!$E$2:$E$32)*$AC8,NA()) -> 0 | AW8: =IF(ISNUMBER('Major Unit'!$E7)=TRUE,'Major Unit'!$C$12/COUNT('Major Unit'!$E$2:$E$32)*'Plot Data'!$AC8,NA()) -> 27000 | AX8: =IF(ISNUMBER('Major Unit'!$E7)=TRUE,'Major Unit'!$C$18/COUNT('Major Unit'!$E$2:$E$32)*$AC8,NA()) -> 0 | AY8: =IF(ISNUMBER('Major Unit'!$E7)=TRUE,'Major Unit'!$C$17/COUNT('Major Unit'!$E$2:$E$32)*$AC8,NA()) -> 13500
A9: =IF(ISNUMBER('MU New'!E8)=TRUE,'MU New'!$C$10/COUNT('MU New'!$E$2:$E$32)*AC9,NA()) -> 127680 | B9: =IF(ISNUMBER('MU New'!E8)=TRUE,'MU New'!$C$12/COUNT('MU New'!$E$2:$E$32)*'Plot Data'!AC9,NA()) -> 122500 | C9: =IF(ISNUMBER('MU New'!E8)=TRUE,'MU New'!$C$18/COUNT('MU Used'!$E$2:$E$32)*$AC9,NA()) -> 25536 | D9: =IF(ISNUMBER('MU New'!E8)=TRUE,'MU New'!$C$21/COUNT('MU New'!$E$2:$E$32)*$AC9,NA()) -> 49000 | E9: =IF(ISNUMBER('MU New'!E8)=TRUE,'MU New'!$C$27/COUNT('MU New'!$E$2:$E$32)*$AC9,NA()) -> 6.066666667 | F9: =IF(ISNUMBER('MU New'!E8)=TRUE,'MU New'!$C$29/COUNT('MU New'!$E$2:$E$32)*$AC9,NA()) -> 7 | G9: =IF(ISNUMBER('MU Used'!E8)=TRUE,'MU Used'!$C$10/COUNT('MU Used'!$E$2:$E$32)*AC9,NA()) -> 87780 | H9: =IF(ISNUMBER('MU Used'!E8)=TRUE,'MU Used'!$C$12/COUNT('MU Used'!$E$2:$E$32)*'Plot Data'!AC9,NA()) -> 42000 | I9: =IF(ISNUMBER('MU Used'!E8)=TRUE,'MU Used'!$C$18/COUNT('MU Used'!$E$2:$E$32)*$AC9,NA()) -> 15361.5 | J9: =IF(ISNUMBER('MU Used'!E8)=TRUE,'MU Used'!$C$21/COUNT('MU Used'!$E$2:$E$32)*$AC9,NA()) -> 14000 | K9: =IF(ISNUMBER('MU Used'!E8)=TRUE,'MU Used'!$C$27/COUNT('MU Used'!$E$2:$E$32)*$AC9,NA()) -> 8.4 | L9: =IF(ISNUMBER('MU Used'!E8)=TRUE,'MU Used'!$C$29/COUNT('MU Used'!$E$2:$E$32)*$AC9,NA()) -> 3.5 | M9: =IF(ISNUMBER(MC!$E8)=TRUE,MC!$C$10/COUNT(MC!$E$2:$E$32)*$AC9,NA()) -> 18249.46667 | N9: =IF(ISNUMBER(MC!$E8)=TRUE,MC!$C$12/COUNT(MC!$E$2:$E$32)*'Plot Data'!$AC9,NA()) -> 52500 | O9: =IF(ISNUMBER(MC!$E8)=TRUE,MC!$C$18/COUNT(MC!$E$2:$E$32)*$AC9,NA()) -> 7299.833333 | P9: =IF(ISNUMBER(MC!$E8)=TRUE,MC!$C$21/COUNT(MC!$E$2:$E$32)*$AC9,NA()) -> 18375 | Q9: =IF(ISNUMBER(Parts!$E8)=TRUE,Parts!$C$10/COUNT(Parts!$E$2:$E$32)*$AC9,NA()) -> 34308.86667 | R9: =IF(ISNUMBER(Parts!$E8)=TRUE,Parts!$C$12/COUNT(Parts!$E$2:$E$32)*'Plot Data'!$AC9,NA()) -> 64750 | S9: =IF(ISNUMBER(Parts!$E8)=TRUE,Parts!$C$18/COUNT(Parts!$E$2:$E$32)*$AC9,NA()) -> 12008.03333 | T9: =IF(ISNUMBER(Parts!$E8)=TRUE,Parts!$C$21/COUNT(Parts!$E$2:$E$32)*$AC9,NA()) -> 29925 | U9: =IF(ISNUMBER(Service!$E8)=TRUE,Service!$C$10/COUNT(Service!$E$2:$E$32)*$AC9,NA()) -> 14716.1 | V9: =IF(ISNUMBER(Service!$E8)=TRUE,Service!$C$12/COUNT(Service!$E$2:$E$32)*'Plot Data'!$AC9,NA()) -> 10150 | W9: =IF(ISNUMBER(Service!$E8)=TRUE,Service!$C$18/COUNT(Service!$E$2:$E$32)*$AC9,NA()) -> 0 | X9: =IF(ISNUMBER(Service!$E8)=TRUE,Service!$C$21/COUNT(Service!$E$2:$E$32)*$AC9,NA()) -> 0 | Y9: =IF(ISNUMBER('F&I'!$E8)=TRUE,'F&I'!$C$10/COUNT('F&I'!$E$2:$E$32)*$AC9,NA()) -> 9930.666667 | Z9: =IF(ISNUMBER('F&I'!$E8)=TRUE,'F&I'!$C$12/COUNT('F&I'!$E$2:$E$32)*'Plot Data'!$AC9,NA()) -> 1400 | AA9: =IF(ISNUMBER('F&I'!$E8)=TRUE,'F&I'!$C$18/COUNT('F&I'!$E$2:$E$32)*$AC9,NA()) -> 6951.466667 | AB9: =IF(ISNUMBER('F&I'!$E8)=TRUE,'F&I'!$C$21/COUNT('F&I'!$E$2:$E$32)*$AC9,NA()) -> 1400 | AC9: =IF(ISNUMBER('MU Used'!E8)=TRUE,'Plot Data'!AD9,"") -> 7 | AD9: 7 | AF9: =IF(ISNUMBER(Eastside!$E8)=TRUE,Eastside!$C$10/COUNT(Eastside!$E$2:$E$32)*$AC9,NA()) -> 11666.66667 | AG9: =IF(ISNUMBER(Eastside!$E8)=TRUE,Eastside!$C$12/COUNT(Eastside!$E$2:$E$32)*'Plot Data'!$AC9,NA()) -> 24500 | AH9: =IF(ISNUMBER(Eastside!$E8)=TRUE,Eastside!$C$18/COUNT(Eastside!$E$2:$E$32)*$AC9,NA()) -> 0 | AI9: =IF(ISNUMBER(Eastside!$E8)=TRUE,Eastside!$C$21/COUNT(Eastside!$E$2:$E$32)*$AC9,NA()) -> 7875 | AJ9: =IF(ISNUMBER('Emerald City'!$E8)=TRUE,'Emerald City'!$C$10/COUNT('Emerald City'!$E$2:$E$32)*$AC9,NA()) -> 4900 | AK9: =IF(ISNUMBER('Emerald City'!$E8)=TRUE,'Emerald City'!$C$12/COUNT('Emerald City'!$E$2:$E$32)*'Plot Data'!$AC9,NA()) -> 28000 | AL9: =IF(ISNUMBER('Emerald City'!$E8)=TRUE,'Emerald City'!$C$18/COUNT('Emerald City'!$E$2:$E$32)*$AC9,NA()) -> 0 | AM9: =IF(ISNUMBER('Emerald City'!$E8)=TRUE,'Emerald City'!$C$21/COUNT('Emerald City'!$E$2:$E$32)*$AC9,NA()) -> 10500 | AN9: =IF(ISNUMBER(Retail!$E8)=TRUE,Retail!$C$10/COUNT(Retail!$E$2:$E$32)*$AC9,NA()) -> 0 | AO9: =IF(ISNUMBER(Retail!$E8)=TRUE,Retail!$C$12/COUNT(Retail!$E$2:$E$32)*'Plot Data'!$AC9,NA()) -> 21000 | AP9: =IF(ISNUMBER(Retail!$E8)=TRUE,Retail!$C$18/COUNT(Retail!$E$2:$E$32)*$AC9,NA()) -> 0 | AQ9: =IF(ISNUMBER(Retail!$E8)=TRUE,Retail!$C$17/COUNT(Retail!$E$2:$E$32)*$AC9,NA()) -> 8750 | AR9: =IF(ISNUMBER(RO!$E8)=TRUE,RO!$C$10/COUNT(RO!$E$2:$E$32)*$AC9,NA()) -> 0 | AS9: =IF(ISNUMBER(RO!$E8)=TRUE,RO!$C$12/COUNT(RO!$E$2:$E$32)*'Plot Data'!$AC9,NA()) -> 12250 | AT9: =IF(ISNUMBER(RO!$E8)=TRUE,RO!$C$18/COUNT(RO!$E$2:$E$32)*$AC9,NA()) -> 0 | AU9: =IF(ISNUMBER(RO!$E8)=TRUE,RO!$C$17/COUNT(RO!$E$2:$E$32)*$AC9,NA()) -> 5425 | AV9: =IF(ISNUMBER('Major Unit'!$E8)=TRUE,'Major Unit'!$C$10/COUNT('Major Unit'!$E$2:$E$32)*$AC9,NA()) -> 0 | AW9: =IF(ISNUMBER('Major Unit'!$E8)=TRUE,'Major Unit'!$C$12/COUNT('Major Unit'!$E$2:$E$32)*'Plot Data'!$AC9,NA()) -> 31500 | AX9: =IF(ISNUMBER('Major Unit'!$E8)=TRUE,'Major Unit'!$C$18/COUNT('Major Unit'!$E$2:$E$32)*$AC9,NA()) -> 0 | AY9: =IF(ISNUMBER('Major Unit'!$E8)=TRUE,'Major Unit'!$C$17/COUNT('Major Unit'!$E$2:$E$32)*$AC9,NA()) -> 15750
A10: =IF(ISNUMBER('MU New'!E9)=TRUE,'MU New'!$C$10/COUNT('MU New'!$E$2:$E$32)*AC10,NA()) -> 145920 | B10: =IF(ISNUMBER('MU New'!E9)=TRUE,'MU New'!$C$12/COUNT('MU New'!$E$2:$E$32)*'Plot Data'!AC10,NA()) -> 140000 | C10: =IF(ISNUMBER('MU New'!E9)=TRUE,'MU New'!$C$18/COUNT('MU Used'!$E$2:$E$32)*$AC10,NA()) -> 29184 | D10: =IF(ISNUMBER('MU New'!E9)=TRUE,'MU New'!$C$21/COUNT('MU New'!$E$2:$E$32)*$AC10,NA()) -> 56000 | E10: =IF(ISNUMBER('MU New'!E9)=TRUE,'MU New'!$C$27/COUNT('MU New'!$E$2:$E$32)*$AC10,NA()) -> 6.933333333 | F10: =IF(ISNUMBER('MU New'!E9)=TRUE,'MU New'!$C$29/COUNT('MU New'!$E$2:$E$32)*$AC10,NA()) -> 8 | G10: =IF(ISNUMBER('MU Used'!E9)=TRUE,'MU Used'!$C$10/COUNT('MU Used'!$E$2:$E$32)*AC10,NA()) -> 100320 | H10: =IF(ISNUMBER('MU Used'!E9)=TRUE,'MU Used'!$C$12/COUNT('MU Used'!$E$2:$E$32)*'Plot Data'!AC10,NA()) -> 48000 | I10: =IF(ISNUMBER('MU Used'!E9)=TRUE,'MU Used'!$C$18/COUNT('MU Used'!$E$2:$E$32)*$AC10,NA()) -> 17556 | J10: =IF(ISNUMBER('MU Used'!E9)=TRUE,'MU Used'!$C$21/COUNT('MU Used'!$E$2:$E$32)*$AC10,NA()) -> 16000 | K10: =IF(ISNUMBER('MU Used'!E9)=TRUE,'MU Used'!$C$27/COUNT('MU Used'!$E$2:$E$32)*$AC10,NA()) -> 9.6 | L10: =IF(ISNUMBER('MU Used'!E9)=TRUE,'MU Used'!$C$29/COUNT('MU Used'!$E$2:$E$32)*$AC10,NA()) -> 4 | M10: =IF(ISNUMBER(MC!$E9)=TRUE,MC!$C$10/COUNT(MC!$E$2:$E$32)*$AC10,NA()) -> 20856.53333 | N10: =IF(ISNUMBER(MC!$E9)=TRUE,MC!$C$12/COUNT(MC!$E$2:$E$32)*'Plot Data'!$AC10,NA()) -> 60000 | O10: =IF(ISNUMBER(MC!$E9)=TRUE,MC!$C$18/COUNT(MC!$E$2:$E$32)*$AC10,NA()) -> 8342.666667 | P10: =IF(ISNUMBER(MC!$E9)=TRUE,MC!$C$21/COUNT(MC!$E$2:$E$32)*$AC10,NA()) -> 21000 | Q10: =IF(ISNUMBER(Parts!$E9)=TRUE,Parts!$C$10/COUNT(Parts!$E$2:$E$32)*$AC10,NA()) -> 39210.13333 | R10: =IF(ISNUMBER(Parts!$E9)=TRUE,Parts!$C$12/COUNT(Parts!$E$2:$E$32)*'Plot Data'!$AC10,NA()) -> 74000 | S10: =IF(ISNUMBER(Parts!$E9)=TRUE,Parts!$C$18/COUNT(Parts!$E$2:$E$32)*$AC10,NA()) -> 13723.46667 | T10: =IF(ISNUMBER(Parts!$E9)=TRUE,Parts!$C$21/COUNT(Parts!$E$2:$E$32)*$AC10,NA()) -> 34200 | U10: =IF(ISNUMBER(Service!$E9)=TRUE,Service!$C$10/COUNT(Service!$E$2:$E$32)*$AC10,NA()) -> 16818.4 | V10: =IF(ISNUMBER(Service!$E9)=TRUE,Service!$C$12/COUNT(Service!$E$2:$E$32)*'Plot Data'!$AC10,NA()) -> 11600 | W10: =IF(ISNUMBER(Service!$E9)=TRUE,Service!$C$18/COUNT(Service!$E$2:$E$32)*$AC10,NA()) -> 0 | X10: =IF(ISNUMBER(Service!$E9)=TRUE,Service!$C$21/COUNT(Service!$E$2:$E$32)*$AC10,NA()) -> 0 | Y10: =IF(ISNUMBER('F&I'!$E9)=TRUE,'F&I'!$C$10/COUNT('F&I'!$E$2:$E$32)*$AC10,NA()) -> 11349.33333 | Z10: =IF(ISNUMBER('F&I'!$E9)=TRUE,'F&I'!$C$12/COUNT('F&I'!$E$2:$E$32)*'Plot Data'!$AC10,NA()) -> 1600 | AA10: =IF(ISNUMBER('F&I'!$E9)=TRUE,'F&I'!$C$18/COUNT('F&I'!$E$2:$E$32)*$AC10,NA()) -> 7944.533333 | AB10: =IF(ISNUMBER('F&I'!$E9)=TRUE,'F&I'!$C$21/COUNT('F&I'!$E$2:$E$32)*$AC10,NA()) -> 1600 | AC10: =IF(ISNUMBER('MU Used'!E9)=TRUE,'Plot Data'!AD10,"") -> 8 | AD10: 8 | AF10: =IF(ISNUMBER(Eastside!$E9)=TRUE,Eastside!$C$10/COUNT(Eastside!$E$2:$E$32)*$AC10,NA()) -> 13333.33333 | AG10: =IF(ISNUMBER(Eastside!$E9)=TRUE,Eastside!$C$12/COUNT(Eastside!$E$2:$E$32)*'Plot Data'!$AC10,NA()) -> 28000 | AH10: =IF(ISNUMBER(Eastside!$E9)=TRUE,Eastside!$C$18/COUNT(Eastside!$E$2:$E$32)*$AC10,NA()) -> 0 | AI10: =IF(ISNUMBER(Eastside!$E9)=TRUE,Eastside!$C$21/COUNT(Eastside!$E$2:$E$32)*$AC10,NA()) -> 9000 | AJ10: =IF(ISNUMBER('Emerald City'!$E9)=TRUE,'Emerald City'!$C$10/COUNT('Emerald City'!$E$2:$E$32)*$AC10,NA()) -> 5600 | AK10: =IF(ISNUMBER('Emerald City'!$E9)=TRUE,'Emerald City'!$C$12/COUNT('Emerald City'!$E$2:$E$32)*'Plot Data'!$AC10,NA()) -> 32000 | AL10: =IF(ISNUMBER('Emerald City'!$E9)=TRUE,'Emerald City'!$C$18/COUNT('Emerald City'!$E$2:$E$32)*$AC10,NA()) -> 0 | AM10: =IF(ISNUMBER('Emerald City'!$E9)=TRUE,'Emerald City'!$C$21/COUNT('Emerald City'!$E$2:$E$32)*$AC10,NA()) -> 12000 | AN10: =IF(ISNUMBER(Retail!$E9)=TRUE,Retail!$C$10/COUNT(Retail!$E$2:$E$32)*$AC10,NA()) -> 0 | AO10: =IF(ISNUMBER(Retail!$E9)=TRUE,Retail!$C$12/COUNT(Retail!$E$2:$E$32)*'Plot Data'!$AC10,NA()) -> 24000 | AP10: =IF(ISNUMBER(Retail!$E9)=TRUE,Retail!$C$18/COUNT(Retail!$E$2:$E$32)*$AC10,NA()) -> 0 | AQ10: =IF(ISNUMBER(Retail!$E9)=TRUE,Retail!$C$17/COUNT(Retail!$E$2:$E$32)*$AC10,NA()) -> 10000 | AR10: =IF(ISNUMBER(RO!$E9)=TRUE,RO!$C$10/COUNT(RO!$E$2:$E$32)*$AC10,NA()) -> 0 | AS10: =IF(ISNUMBER(RO!$E9)=TRUE,RO!$C$12/COUNT(RO!$E$2:$E$32)*'Plot Data'!$AC10,NA()) -> 14000 | AT10: =IF(ISNUMBER(RO!$E9)=TRUE,RO!$C$18/COUNT(RO!$E$2:$E$32)*$AC10,NA()) -> 0 | AU10: =IF(ISNUMBER(RO!$E9)=TRUE,RO!$C$17/COUNT(RO!$E$2:$E$32)*$AC10,NA()) -> 6200 | AV10: =IF(ISNUMBER('Major Unit'!$E9)=TRUE,'Major Unit'!$C$10/COUNT('Major Unit'!$E$2:$E$32)*$AC10,NA()) -> 0 | AW10: =IF(ISNUMBER('Major Unit'!$E9)=TRUE,'Major Unit'!$C$12/COUNT('Major Unit'!$E$2:$E$32)*'Plot Data'!$AC10,NA()) -> 36000 | AX10: =IF(ISNUMBER('Major Unit'!$E9)=TRUE,'Major Unit'!$C$18/COUNT('Major Unit'!$E$2:$E$32)*$AC10,NA()) -> 0 | AY10: =IF(ISNUMBER('Major Unit'!$E9)=TRUE,'Major Unit'!$C$17/COUNT('Major Unit'!$E$2:$E$32)*$AC10,NA()) -> 18000
A11: =IF(ISNUMBER('MU New'!E10)=TRUE,'MU New'!$C$10/COUNT('MU New'!$E$2:$E$32)*AC11,NA()) -> 164160 | B11: =IF(ISNUMBER('MU New'!E10)=TRUE,'MU New'!$C$12/COUNT('MU New'!$E$2:$E$32)*'Plot Data'!AC11,NA()) -> 157500 | C11: =IF(ISNUMBER('MU New'!E10)=TRUE,'MU New'!$C$18/COUNT('MU Used'!$E$2:$E$32)*$AC11,NA()) -> 32832 | D11: =IF(ISNUMBER('MU New'!E10)=TRUE,'MU New'!$C$21/COUNT('MU New'!$E$2:$E$32)*$AC11,NA()) -> 63000 | E11: =IF(ISNUMBER('MU New'!E10)=TRUE,'MU New'!$C$27/COUNT('MU New'!$E$2:$E$32)*$AC11,NA()) -> 7.8 | F11: =IF(ISNUMBER('MU New'!E10)=TRUE,'MU New'!$C$29/COUNT('MU New'!$E$2:$E$32)*$AC11,NA()) -> 9 | G11: =IF(ISNUMBER('MU Used'!E10)=TRUE,'MU Used'!$C$10/COUNT('MU Used'!$E$2:$E$32)*AC11,NA()) -> 112860 | H11: =IF(ISNUMBER('MU Used'!E10)=TRUE,'MU Used'!$C$12/COUNT('MU Used'!$E$2:$E$32)*'Plot Data'!AC11,NA()) -> 54000 | I11: =IF(ISNUMBER('MU Used'!E10)=TRUE,'MU Used'!$C$18/COUNT('MU Used'!$E$2:$E$32)*$AC11,NA()) -> 19750.5 | J11: =IF(ISNUMBER('MU Used'!E10)=TRUE,'MU Used'!$C$21/COUNT('MU Used'!$E$2:$E$32)*$AC11,NA()) -> 18000 | K11: =IF(ISNUMBER('MU Used'!E10)=TRUE,'MU Used'!$C$27/COUNT('MU Used'!$E$2:$E$32)*$AC11,NA()) -> 10.8 | L11: =IF(ISNUMBER('MU Used'!E10)=TRUE,'MU Used'!$C$29/COUNT('MU Used'!$E$2:$E$32)*$AC11,NA()) -> 4.5 | M11: =IF(ISNUMBER(MC!$E10)=TRUE,MC!$C$10/COUNT(MC!$E$2:$E$32)*$AC11,NA()) -> 23463.6 | N11: =IF(ISNUMBER(MC!$E10)=TRUE,MC!$C$12/COUNT(MC!$E$2:$E$32)*'Plot Data'!$AC11,NA()) -> 67500 | O11: =IF(ISNUMBER(MC!$E10)=TRUE,MC!$C$18/COUNT(MC!$E$2:$E$32)*$AC11,NA()) -> 9385.5 | P11: =IF(ISNUMBER(MC!$E10)=TRUE,MC!$C$21/COUNT(MC!$E$2:$E$32)*$AC11,NA()) -> 23625 | Q11: =IF(ISNUMBER(Parts!$E10)=TRUE,Parts!$C$10/COUNT(Parts!$E$2:$E$32)*$AC11,NA()) -> 44111.4 | R11: =IF(ISNUMBER(Parts!$E10)=TRUE,Parts!$C$12/COUNT(Parts!$E$2:$E$32)*'Plot Data'!$AC11,NA()) -> 83250 | S11: =IF(ISNUMBER(Parts!$E10)=TRUE,Parts!$C$18/COUNT(Parts!$E$2:$E$32)*$AC11,NA()) -> 15438.9 | T11: =IF(ISNUMBER(Parts!$E10)=TRUE,Parts!$C$21/COUNT(Parts!$E$2:$E$32)*$AC11,NA()) -> 38475 | U11: =IF(ISNUMBER(Service!$E10)=TRUE,Service!$C$10/COUNT(Service!$E$2:$E$32)*$AC11,NA()) -> 18920.7 | V11: =IF(ISNUMBER(Service!$E10)=TRUE,Service!$C$12/COUNT(Service!$E$2:$E$32)*'Plot Data'!$AC11,NA()) -> 13050 | W11: =IF(ISNUMBER(Service!$E10)=TRUE,Service!$C$18/COUNT(Service!$E$2:$E$32)*$AC11,NA()) -> 0 | X11: =IF(ISNUMBER(Service!$E10)=TRUE,Service!$C$21/COUNT(Service!$E$2:$E$32)*$AC11,NA()) -> 0 | Y11: =IF(ISNUMBER('F&I'!$E10)=TRUE,'F&I'!$C$10/COUNT('F&I'!$E$2:$E$32)*$AC11,NA()) -> 12768 | Z11: =IF(ISNUMBER('F&I'!$E10)=TRUE,'F&I'!$C$12/COUNT('F&I'!$E$2:$E$32)*'Plot Data'!$AC11,NA()) -> 1800 | AA11: =IF(ISNUMBER('F&I'!$E10)=TRUE,'F&I'!$C$18/COUNT('F&I'!$E$2:$E$32)*$AC11,NA()) -> 8937.6 | AB11: =IF(ISNUMBER('F&I'!$E10)=TRUE,'F&I'!$C$21/COUNT('F&I'!$E$2:$E$32)*$AC11,NA()) -> 1800 | AC11: =IF(ISNUMBER('MU Used'!E10)=TRUE,'Plot Data'!AD11,"") -> 9 | AD11: 9 | AF11: =IF(ISNUMBER(Eastside!$E10)=TRUE,Eastside!$C$10/COUNT(Eastside!$E$2:$E$32)*$AC11,NA()) -> 15000 | AG11: =IF(ISNUMBER(Eastside!$E10)=TRUE,Eastside!$C$12/COUNT(Eastside!$E$2:$E$32)*'Plot Data'!$AC11,NA()) -> 31500 | AH11: =IF(ISNUMBER(Eastside!$E10)=TRUE,Eastside!$C$18/COUNT(Eastside!$E$2:$E$32)*$AC11,NA()) -> 0 | AI11: =IF(ISNUMBER(Eastside!$E10)=TRUE,Eastside!$C$21/COUNT(Eastside!$E$2:$E$32)*$AC11,NA()) -> 10125 | AJ11: =IF(ISNUMBER('Emerald City'!$E10)=TRUE,'Emerald City'!$C$10/COUNT('Emerald City'!$E$2:$E$32)*$AC11,NA()) -> 6300 | AK11: =IF(ISNUMBER('Emerald City'!$E10)=TRUE,'Emerald City'!$C$12/COUNT('Emerald City'!$E$2:$E$32)*'Plot Data'!$AC11,NA()) -> 36000 | AL11: =IF(ISNUMBER('Emerald City'!$E10)=TRUE,'Emerald City'!$C$18/COUNT('Emerald City'!$E$2:$E$32)*$AC11,NA()) -> 0 | AM11: =IF(ISNUMBER('Emerald City'!$E10)=TRUE,'Emerald City'!$C$21/COUNT('Emerald City'!$E$2:$E$32)*$AC11,NA()) -> 13500 | AN11: =IF(ISNUMBER(Retail!$E10)=TRUE,Retail!$C$10/COUNT(Retail!$E$2:$E$32)*$AC11,NA()) -> 0 | AO11: =IF(ISNUMBER(Retail!$E10)=TRUE,Retail!$C$12/COUNT(Retail!$E$2:$E$32)*'Plot Data'!$AC11,NA()) -> 27000 | AP11: =IF(ISNUMBER(Retail!$E10)=TRUE,Retail!$C$18/COUNT(Retail!$E$2:$E$32)*$AC11,NA()) -> 0 | AQ11: =IF(ISNUMBER(Retail!$E10)=TRUE,Retail!$C$17/COUNT(Retail!$E$2:$E$32)*$AC11,NA()) -> 11250 | AR11: =IF(ISNUMBER(RO!$E10)=TRUE,RO!$C$10/COUNT(RO!$E$2:$E$32)*$AC11,NA()) -> 0 | AS11: =IF(ISNUMBER(RO!$E10)=TRUE,RO!$C$12/COUNT(RO!$E$2:$E$32)*'Plot Data'!$AC11,NA()) -> 15750 | AT11: =IF(ISNUMBER(RO!$E10)=TRUE,RO!$C$18/COUNT(RO!$E$2:$E$32)*$AC11,NA()) -> 0 | AU11: =IF(ISNUMBER(RO!$E10)=TRUE,RO!$C$17/COUNT(RO!$E$2:$E$32)*$AC11,NA()) -> 6975 | AV11: =IF(ISNUMBER('Major Unit'!$E10)=TRUE,'Major Unit'!$C$10/COUNT('Major Unit'!$E$2:$E$32)*$AC11,NA()) -> 0 | AW11: =IF(ISNUMBER('Major Unit'!$E10)=TRUE,'Major Unit'!$C$12/COUNT('Major Unit'!$E$2:$E$32)*'Plot Data'!$AC11,NA()) -> 40500 | AX11: =IF(ISNUMBER('Major Unit'!$E10)=TRUE,'Major Unit'!$C$18/COUNT('Major Unit'!$E$2:$E$32)*$AC11,NA()) -> 0 | AY11: =IF(ISNUMBER('Major Unit'!$E10)=TRUE,'Major Unit'!$C$17/COUNT('Major Unit'!$E$2:$E$32)*$AC11,NA()) -> 20250
A12: =IF(ISNUMBER('MU New'!E11)=TRUE,'MU New'!$C$10/COUNT('MU New'!$E$2:$E$32)*AC12,NA()) -> 182400 | B12: =IF(ISNUMBER('MU New'!E11)=TRUE,'MU New'!$C$12/COUNT('MU New'!$E$2:$E$32)*'Plot Data'!AC12,NA()) -> 175000 | C12: =IF(ISNUMBER('MU New'!E11)=TRUE,'MU New'!$C$18/COUNT('MU Used'!$E$2:$E$32)*$AC12,NA()) -> 36480 | D12: =IF(ISNUMBER('MU New'!E11)=TRUE,'MU New'!$C$21/COUNT('MU New'!$E$2:$E$32)*$AC12,NA()) -> 70000 | E12: =IF(ISNUMBER('MU New'!E11)=TRUE,'MU New'!$C$27/COUNT('MU New'!$E$2:$E$32)*$AC12,NA()) -> 8.666666667 | F12: =IF(ISNUMBER('MU New'!E11)=TRUE,'MU New'!$C$29/COUNT('MU New'!$E$2:$E$32)*$AC12,NA()) -> 10 | G12: =IF(ISNUMBER('MU Used'!E11)=TRUE,'MU Used'!$C$10/COUNT('MU Used'!$E$2:$E$32)*AC12,NA()) -> 125400 | H12: =IF(ISNUMBER('MU Used'!E11)=TRUE,'MU Used'!$C$12/COUNT('MU Used'!$E$2:$E$32)*'Plot Data'!AC12,NA()) -> 60000 | I12: =IF(ISNUMBER('MU Used'!E11)=TRUE,'MU Used'!$C$18/COUNT('MU Used'!$E$2:$E$32)*$AC12,NA()) -> 21945 | J12: =IF(ISNUMBER('MU Used'!E11)=TRUE,'MU Used'!$C$21/COUNT('MU Used'!$E$2:$E$32)*$AC12,NA()) -> 20000 | K12: =IF(ISNUMBER('MU Used'!E11)=TRUE,'MU Used'!$C$27/COUNT('MU Used'!$E$2:$E$32)*$AC12,NA()) -> 12 | L12: =IF(ISNUMBER('MU Used'!E11)=TRUE,'MU Used'!$C$29/COUNT('MU Used'!$E$2:$E$32)*$AC12,NA()) -> 5 | M12: =IF(ISNUMBER(MC!$E11)=TRUE,MC!$C$10/COUNT(MC!$E$2:$E$32)*$AC12,NA()) -> 26070.66667 | N12: =IF(ISNUMBER(MC!$E11)=TRUE,MC!$C$12/COUNT(MC!$E$2:$E$32)*'Plot Data'!$AC12,NA()) -> 75000 | O12: =IF(ISNUMBER(MC!$E11)=TRUE,MC!$C$18/COUNT(MC!$E$2:$E$32)*$AC12,NA()) -> 10428.33333 | P12: =IF(ISNUMBER(MC!$E11)=TRUE,MC!$C$21/COUNT(MC!$E$2:$E$32)*$AC12,NA()) -> 26250 | Q12: =IF(ISNUMBER(Parts!$E11)=TRUE,Parts!$C$10/COUNT(Parts!$E$2:$E$32)*$AC12,NA()) -> 49012.66667 | R12: =IF(ISNUMBER(Parts!$E11)=TRUE,Parts!$C$12/COUNT(Parts!$E$2:$E$32)*'Plot Data'!$AC12,NA()) -> 92500 | S12: =IF(ISNUMBER(Parts!$E11)=TRUE,Parts!$C$18/COUNT(Parts!$E$2:$E$32)*$AC12,NA()) -> 17154.33333 | T12: =IF(ISNUMBER(Parts!$E11)=TRUE,Parts!$C$21/COUNT(Parts!$E$2:$E$32)*$AC12,NA()) -> 42750 | U12: =IF(ISNUMBER(Service!$E11)=TRUE,Service!$C$10/COUNT(Service!$E$2:$E$32)*$AC12,NA()) -> 21023 | V12: =IF(ISNUMBER(Service!$E11)=TRUE,Service!$C$12/COUNT(Service!$E$2:$E$32)*'Plot Data'!$AC12,NA()) -> 14500 | W12: =IF(ISNUMBER(Service!$E11)=TRUE,Service!$C$18/COUNT(Service!$E$2:$E$32)*$AC12,NA()) -> 0 | X12: =IF(ISNUMBER(Service!$E11)=TRUE,Service!$C$21/COUNT(Service!$E$2:$E$32)*$AC12,NA()) -> 0 | Y12: =IF(ISNUMBER('F&I'!$E11)=TRUE,'F&I'!$C$10/COUNT('F&I'!$E$2:$E$32)*$AC12,NA()) -> 14186.66667 | Z12: =IF(ISNUMBER('F&I'!$E11)=TRUE,'F&I'!$C$12/COUNT('F&I'!$E$2:$E$32)*'Plot Data'!$AC12,NA()) -> 2000 | AA12: =IF(ISNUMBER('F&I'!$E11)=TRUE,'F&I'!$C$18/COUNT('F&I'!$E$2:$E$32)*$AC12,NA()) -> 9930.666667 | AB12: =IF(ISNUMBER('F&I'!$E11)=TRUE,'F&I'!$C$21/COUNT('F&I'!$E$2:$E$32)*$AC12,NA()) -> 2000 | AC12: =IF(ISNUMBER('MU Used'!E11)=TRUE,'Plot Data'!AD12,"") -> 10 | AD12: 10 | AF12: =IF(ISNUMBER(Eastside!$E11)=TRUE,Eastside!$C$10/COUNT(Eastside!$E$2:$E$32)*$AC12,NA()) -> 16666.66667 | AG12: =IF(ISNUMBER(Eastside!$E11)=TRUE,Eastside!$C$12/COUNT(Eastside!$E$2:$E$32)*'Plot Data'!$AC12,NA()) -> 35000 | AH12: =IF(ISNUMBER(Eastside!$E11)=TRUE,Eastside!$C$18/COUNT(Eastside!$E$2:$E$32)*$AC12,NA()) -> 0 | AI12: =IF(ISNUMBER(Eastside!$E11)=TRUE,Eastside!$C$21/COUNT(Eastside!$E$2:$E$32)*$AC12,NA()) -> 11250 | AJ12: =IF(ISNUMBER('Emerald City'!$E11)=TRUE,'Emerald City'!$C$10/COUNT('Emerald City'!$E$2:$E$32)*$AC12,NA()) -> 7000 | AK12: =IF(ISNUMBER('Emerald City'!$E11)=TRUE,'Emerald City'!$C$12/COUNT('Emerald City'!$E$2:$E$32)*'Plot Data'!$AC12,NA()) -> 40000 | AL12: =IF(ISNUMBER('Emerald City'!$E11)=TRUE,'Emerald City'!$C$18/COUNT('Emerald City'!$E$2:$E$32)*$AC12,NA()) -> 0 | AM12: =IF(ISNUMBER('Emerald City'!$E11)=TRUE,'Emerald City'!$C$21/COUNT('Emerald City'!$E$2:$E$32)*$AC12,NA()) -> 15000 | AN12: =IF(ISNUMBER(Retail!$E11)=TRUE,Retail!$C$10/COUNT(Retail!$E$2:$E$32)*$AC12,NA()) -> 0 | AO12: =IF(ISNUMBER(Retail!$E11)=TRUE,Retail!$C$12/COUNT(Retail!$E$2:$E$32)*'Plot Data'!$AC12,NA()) -> 30000 | AP12: =IF(ISNUMBER(Retail!$E11)=TRUE,Retail!$C$18/COUNT(Retail!$E$2:$E$32)*$AC12,NA()) -> 0 | AQ12: =IF(ISNUMBER(Retail!$E11)=TRUE,Retail!$C$17/COUNT(Retail!$E$2:$E$32)*$AC12,NA()) -> 12500 | AR12: =IF(ISNUMBER(RO!$E11)=TRUE,RO!$C$10/COUNT(RO!$E$2:$E$32)*$AC12,NA()) -> 0 | AS12: =IF(ISNUMBER(RO!$E11)=TRUE,RO!$C$12/COUNT(RO!$E$2:$E$32)*'Plot Data'!$AC12,NA()) -> 17500 | AT12: =IF(ISNUMBER(RO!$E11)=TRUE,RO!$C$18/COUNT(RO!$E$2:$E$32)*$AC12,NA()) -> 0 | AU12: =IF(ISNUMBER(RO!$E11)=TRUE,RO!$C$17/COUNT(RO!$E$2:$E$32)*$AC12,NA()) -> 7750 | AV12: =IF(ISNUMBER('Major Unit'!$E11)=TRUE,'Major Unit'!$C$10/COUNT('Major Unit'!$E$2:$E$32)*$AC12,NA()) -> 0 | AW12: =IF(ISNUMBER('Major Unit'!$E11)=TRUE,'Major Unit'!$C$12/COUNT('Major Unit'!$E$2:$E$32)*'Plot Data'!$AC12,NA()) -> 45000 | AX12: =IF(ISNUMBER('Major Unit'!$E11)=TRUE,'Major Unit'!$C$18/COUNT('Major Unit'!$E$2:$E$32)*$AC12,NA()) -> 0 | AY12: =IF(ISNUMBER('Major Unit'!$E11)=TRUE,'Major Unit'!$C$17/COUNT('Major Unit'!$E$2:$E$32)*$AC12,NA()) -> 22500
A13: =IF(ISNUMBER('MU New'!E12)=TRUE,'MU New'!$C$10/COUNT('MU New'!$E$2:$E$32)*AC13,NA()) -> 200640 | B13: =IF(ISNUMBER('MU New'!E12)=TRUE,'MU New'!$C$12/COUNT('MU New'!$E$2:$E$32)*'Plot Data'!AC13,NA()) -> 192500 | C13: =IF(ISNUMBER('MU New'!E12)=TRUE,'MU New'!$C$18/COUNT('MU Used'!$E$2:$E$32)*$AC13,NA()) -> 40128 | D13: =IF(ISNUMBER('MU New'!E12)=TRUE,'MU New'!$C$21/COUNT('MU New'!$E$2:$E$32)*$AC13,NA()) -> 77000 | E13: =IF(ISNUMBER('MU New'!E12)=TRUE,'MU New'!$C$27/COUNT('MU New'!$E$2:$E$32)*$AC13,NA()) -> 9.533333333 | F13: =IF(ISNUMBER('MU New'!E12)=TRUE,'MU New'!$C$29/COUNT('MU New'!$E$2:$E$32)*$AC13,NA()) -> 11 | G13: =IF(ISNUMBER('MU Used'!E12)=TRUE,'MU Used'!$C$10/COUNT('MU Used'!$E$2:$E$32)*AC13,NA()) -> 137940 | H13: =IF(ISNUMBER('MU Used'!E12)=TRUE,'MU Used'!$C$12/COUNT('MU Used'!$E$2:$E$32)*'Plot Data'!AC13,NA()) -> 66000 | I13: =IF(ISNUMBER('MU Used'!E12)=TRUE,'MU Used'!$C$18/COUNT('MU Used'!$E$2:$E$32)*$AC13,NA()) -> 24139.5 | J13: =IF(ISNUMBER('MU Used'!E12)=TRUE,'MU Used'!$C$21/COUNT('MU Used'!$E$2:$E$32)*$AC13,NA()) -> 22000 | K13: =IF(ISNUMBER('MU Used'!E12)=TRUE,'MU Used'!$C$27/COUNT('MU Used'!$E$2:$E$32)*$AC13,NA()) -> 13.2 | L13: =IF(ISNUMBER('MU Used'!E12)=TRUE,'MU Used'!$C$29/COUNT('MU Used'!$E$2:$E$32)*$AC13,NA()) -> 5.5 | M13: =IF(ISNUMBER(MC!$E12)=TRUE,MC!$C$10/COUNT(MC!$E$2:$E$32)*$AC13,NA()) -> 28677.73333 | N13: =IF(ISNUMBER(MC!$E12)=TRUE,MC!$C$12/COUNT(MC!$E$2:$E$32)*'Plot Data'!$AC13,NA()) -> 82500 | O13: =IF(ISNUMBER(MC!$E12)=TRUE,MC!$C$18/COUNT(MC!$E$2:$E$32)*$AC13,NA()) -> 11471.16667 | P13: =IF(ISNUMBER(MC!$E12)=TRUE,MC!$C$21/COUNT(MC!$E$2:$E$32)*$AC13,NA()) -> 28875 | Q13: =IF(ISNUMBER(Parts!$E12)=TRUE,Parts!$C$10/COUNT(Parts!$E$2:$E$32)*$AC13,NA()) -> 53913.93333 | R13: =IF(ISNUMBER(Parts!$E12)=TRUE,Parts!$C$12/COUNT(Parts!$E$2:$E$32)*'Plot Data'!$AC13,NA()) -> 101750 | S13: =IF(ISNUMBER(Parts!$E12)=TRUE,Parts!$C$18/COUNT(Parts!$E$2:$E$32)*$AC13,NA()) -> 18869.76667 | T13: =IF(ISNUMBER(Parts!$E12)=TRUE,Parts!$C$21/COUNT(Parts!$E$2:$E$32)*$AC13,NA()) -> 47025 | U13: =IF(ISNUMBER(Service!$E12)=TRUE,Service!$C$10/COUNT(Service!$E$2:$E$32)*$AC13,NA()) -> 23125.3 | V13: =IF(ISNUMBER(Service!$E12)=TRUE,Service!$C$12/COUNT(Service!$E$2:$E$32)*'Plot Data'!$AC13,NA()) -> 15950 | W13: =IF(ISNUMBER(Service!$E12)=TRUE,Service!$C$18/COUNT(Service!$E$2:$E$32)*$AC13,NA()) -> 0 | X13: =IF(ISNUMBER(Service!$E12)=TRUE,Service!$C$21/COUNT(Service!$E$2:$E$32)*$AC13,NA()) -> 0 | Y13: =IF(ISNUMBER('F&I'!$E12)=TRUE,'F&I'!$C$10/COUNT('F&I'!$E$2:$E$32)*$AC13,NA()) -> 15605.33333 | Z13: =IF(ISNUMBER('F&I'!$E12)=TRUE,'F&I'!$C$12/COUNT('F&I'!$E$2:$E$32)*'Plot Data'!$AC13,NA()) -> 2200 | AA13: =IF(ISNUMBER('F&I'!$E12)=TRUE,'F&I'!$C$18/COUNT('F&I'!$E$2:$E$32)*$AC13,NA()) -> 10923.73333 | AB13: =IF(ISNUMBER('F&I'!$E12)=TRUE,'F&I'!$C$21/COUNT('F&I'!$E$2:$E$32)*$AC13,NA()) -> 2200 | AC13: =IF(ISNUMBER('MU Used'!E12)=TRUE,'Plot Data'!AD13,"") -> 11 | AD13: 11 | AF13: =IF(ISNUMBER(Eastside!$E12)=TRUE,Eastside!$C$10/COUNT(Eastside!$E$2:$E$32)*$AC13,NA()) -> 18333.33333 | AG13: =IF(ISNUMBER(Eastside!$E12)=TRUE,Eastside!$C$12/COUNT(Eastside!$E$2:$E$32)*'Plot Data'!$AC13,NA()) -> 38500 | AH13: =IF(ISNUMBER(Eastside!$E12)=TRUE,Eastside!$C$18/COUNT(Eastside!$E$2:$E$32)*$AC13,NA()) -> 0 | AI13: =IF(ISNUMBER(Eastside!$E12)=TRUE,Eastside!$C$21/COUNT(Eastside!$E$2:$E$32)*$AC13,NA()) -> 12375 | AJ13: =IF(ISNUMBER('Emerald City'!$E12)=TRUE,'Emerald City'!$C$10/COUNT('Emerald City'!$E$2:$E$32)*$AC13,NA()) -> 7700 | AK13: =IF(ISNUMBER('Emerald City'!$E12)=TRUE,'Emerald City'!$C$12/COUNT('Emerald City'!$E$2:$E$32)*'Plot Data'!$AC13,NA()) -> 44000 | AL13: =IF(ISNUMBER('Emerald City'!$E12)=TRUE,'Emerald City'!$C$18/COUNT('Emerald City'!$E$2:$E$32)*$AC13,NA()) -> 0 | AM13: =IF(ISNUMBER('Emerald City'!$E12)=TRUE,'Emerald City'!$C$21/COUNT('Emerald City'!$E$2:$E$32)*$AC13,NA()) -> 16500 | AN13: =IF(ISNUMBER(Retail!$E12)=TRUE,Retail!$C$10/COUNT(Retail!$E$2:$E$32)*$AC13,NA()) -> 0 | AO13: =IF(ISNUMBER(Retail!$E12)=TRUE,Retail!$C$12/COUNT(Retail!$E$2:$E$32)*'Plot Data'!$AC13,NA()) -> 33000 | AP13: =IF(ISNUMBER(Retail!$E12)=TRUE,Retail!$C$18/COUNT(Retail!$E$2:$E$32)*$AC13,NA()) -> 0 | AQ13: =IF(ISNUMBER(Retail!$E12)=TRUE,Retail!$C$17/COUNT(Retail!$E$2:$E$32)*$AC13,NA()) -> 13750 | AR13: =IF(ISNUMBER(RO!$E12)=TRUE,RO!$C$10/COUNT(RO!$E$2:$E$32)*$AC13,NA()) -> 0 | AS13: =IF(ISNUMBER(RO!$E12)=TRUE,RO!$C$12/COUNT(RO!$E$2:$E$32)*'Plot Data'!$AC13,NA()) -> 19250 | AT13: =IF(ISNUMBER(RO!$E12)=TRUE,RO!$C$18/COUNT(RO!$E$2:$E$32)*$AC13,NA()) -> 0 | AU13: =IF(ISNUMBER(RO!$E12)=TRUE,RO!$C$17/COUNT(RO!$E$2:$E$32)*$AC13,NA()) -> 8525 | AV13: =IF(ISNUMBER('Major Unit'!$E12)=TRUE,'Major Unit'!$C$10/COUNT('Major Unit'!$E$2:$E$32)*$AC13,NA()) -> 0 | AW13: =IF(ISNUMBER('Major Unit'!$E12)=TRUE,'Major Unit'!$C$12/COUNT('Major Unit'!$E$2:$E$32)*'Plot Data'!$AC13,NA()) -> 49500 | AX13: =IF(ISNUMBER('Major Unit'!$E12)=TRUE,'Major Unit'!$C$18/COUNT('Major Unit'!$E$2:$E$32)*$AC13,NA()) -> 0 | AY13: =IF(ISNUMBER('Major Unit'!$E12)=TRUE,'Major Unit'!$C$17/COUNT('Major Unit'!$E$2:$E$32)*$AC13,NA()) -> 24750
A14: =IF(ISNUMBER('MU New'!E13)=TRUE,'MU New'!$C$10/COUNT('MU New'!$E$2:$E$32)*AC14,NA()) -> 218880 | B14: =IF(ISNUMBER('MU New'!E13)=TRUE,'MU New'!$C$12/COUNT('MU New'!$E$2:$E$32)*'Plot Data'!AC14,NA()) -> 210000 | C14: =IF(ISNUMBER('MU New'!E13)=TRUE,'MU New'!$C$18/COUNT('MU Used'!$E$2:$E$32)*$AC14,NA()) -> 43776 | D14: =IF(ISNUMBER('MU New'!E13)=TRUE,'MU New'!$C$21/COUNT('MU New'!$E$2:$E$32)*$AC14,NA()) -> 84000 | E14: =IF(ISNUMBER('MU New'!E13)=TRUE,'MU New'!$C$27/COUNT('MU New'!$E$2:$E$32)*$AC14,NA()) -> 10.4 | F14: =IF(ISNUMBER('MU New'!E13)=TRUE,'MU New'!$C$29/COUNT('MU New'!$E$2:$E$32)*$AC14,NA()) -> 12 | G14: =IF(ISNUMBER('MU Used'!E13)=TRUE,'MU Used'!$C$10/COUNT('MU Used'!$E$2:$E$32)*AC14,NA()) -> 150480 | H14: =IF(ISNUMBER('MU Used'!E13)=TRUE,'MU Used'!$C$12/COUNT('MU Used'!$E$2:$E$32)*'Plot Data'!AC14,NA()) -> 72000 | I14: =IF(ISNUMBER('MU Used'!E13)=TRUE,'MU Used'!$C$18/COUNT('MU Used'!$E$2:$E$32)*$AC14,NA()) -> 26334 | J14: =IF(ISNUMBER('MU Used'!E13)=TRUE,'MU Used'!$C$21/COUNT('MU Used'!$E$2:$E$32)*$AC14,NA()) -> 24000 | K14: =IF(ISNUMBER('MU Used'!E13)=TRUE,'MU Used'!$C$27/COUNT('MU Used'!$E$2:$E$32)*$AC14,NA()) -> 14.4 | L14: =IF(ISNUMBER('MU Used'!E13)=TRUE,'MU Used'!$C$29/COUNT('MU Used'!$E$2:$E$32)*$AC14,NA()) -> 6 | M14: =IF(ISNUMBER(MC!$E13)=TRUE,MC!$C$10/COUNT(MC!$E$2:$E$32)*$AC14,NA()) -> 31284.8 | N14: =IF(ISNUMBER(MC!$E13)=TRUE,MC!$C$12/COUNT(MC!$E$2:$E$32)*'Plot Data'!$AC14,NA()) -> 90000 | O14: =IF(ISNUMBER(MC!$E13)=TRUE,MC!$C$18/COUNT(MC!$E$2:$E$32)*$AC14,NA()) -> 12514 | P14: =IF(ISNUMBER(MC!$E13)=TRUE,MC!$C$21/COUNT(MC!$E$2:$E$32)*$AC14,NA()) -> 31500 | Q14: =IF(ISNUMBER(Parts!$E13)=TRUE,Parts!$C$10/COUNT(Parts!$E$2:$E$32)*$AC14,NA()) -> 58815.2 | R14: =IF(ISNUMBER(Parts!$E13)=TRUE,Parts!$C$12/COUNT(Parts!$E$2:$E$32)*'Plot Data'!$AC14,NA()) -> 111000 | S14: =IF(ISNUMBER(Parts!$E13)=TRUE,Parts!$C$18/COUNT(Parts!$E$2:$E$32)*$AC14,NA()) -> 20585.2 | T14: =IF(ISNUMBER(Parts!$E13)=TRUE,Parts!$C$21/COUNT(Parts!$E$2:$E$32)*$AC14,NA()) -> 51300 | U14: =IF(ISNUMBER(Service!$E13)=TRUE,Service!$C$10/COUNT(Service!$E$2:$E$32)*$AC14,NA()) -> 25227.6 | V14: =IF(ISNUMBER(Service!$E13)=TRUE,Service!$C$12/COUNT(Service!$E$2:$E$32)*'Plot Data'!$AC14,NA()) -> 17400 | W14: =IF(ISNUMBER(Service!$E13)=TRUE,Service!$C$18/COUNT(Service!$E$2:$E$32)*$AC14,NA()) -> 0 | X14: =IF(ISNUMBER(Service!$E13)=TRUE,Service!$C$21/COUNT(Service!$E$2:$E$32)*$AC14,NA()) -> 0 | Y14: =IF(ISNUMBER('F&I'!$E13)=TRUE,'F&I'!$C$10/COUNT('F&I'!$E$2:$E$32)*$AC14,NA()) -> 17024 | Z14: =IF(ISNUMBER('F&I'!$E13)=TRUE,'F&I'!$C$12/COUNT('F&I'!$E$2:$E$32)*'Plot Data'!$AC14,NA()) -> 2400 | AA14: =IF(ISNUMBER('F&I'!$E13)=TRUE,'F&I'!$C$18/COUNT('F&I'!$E$2:$E$32)*$AC14,NA()) -> 11916.8 | AB14: =IF(ISNUMBER('F&I'!$E13)=TRUE,'F&I'!$C$21/COUNT('F&I'!$E$2:$E$32)*$AC14,NA()) -> 2400 | AC14: =IF(ISNUMBER('MU Used'!E13)=TRUE,'Plot Data'!AD14,"") -> 12 | AD14: 12 | AF14: =IF(ISNUMBER(Eastside!$E13)=TRUE,Eastside!$C$10/COUNT(Eastside!$E$2:$E$32)*$AC14,NA()) -> 20000 | AG14: =IF(ISNUMBER(Eastside!$E13)=TRUE,Eastside!$C$12/COUNT(Eastside!$E$2:$E$32)*'Plot Data'!$AC14,NA()) -> 42000 | AH14: =IF(ISNUMBER(Eastside!$E13)=TRUE,Eastside!$C$18/COUNT(Eastside!$E$2:$E$32)*$AC14,NA()) -> 0 | AI14: =IF(ISNUMBER(Eastside!$E13)=TRUE,Eastside!$C$21/COUNT(Eastside!$E$2:$E$32)*$AC14,NA()) -> 13500 | AJ14: =IF(ISNUMBER('Emerald City'!$E13)=TRUE,'Emerald City'!$C$10/COUNT('Emerald City'!$E$2:$E$32)*$AC14,NA()) -> 8400 | AK14: =IF(ISNUMBER('Emerald City'!$E13)=TRUE,'Emerald City'!$C$12/COUNT('Emerald City'!$E$2:$E$32)*'Plot Data'!$AC14,NA()) -> 48000 | AL14: =IF(ISNUMBER('Emerald City'!$E13)=TRUE,'Emerald City'!$C$18/COUNT('Emerald City'!$E$2:$E$32)*$AC14,NA()) -> 0 | AM14: =IF(ISNUMBER('Emerald City'!$E13)=TRUE,'Emerald City'!$C$21/COUNT('Emerald City'!$E$2:$E$32)*$AC14,NA()) -> 18000 | AN14: =IF(ISNUMBER(Retail!$E13)=TRUE,Retail!$C$10/COUNT(Retail!$E$2:$E$32)*$AC14,NA()) -> 0 | AO14: =IF(ISNUMBER(Retail!$E13)=TRUE,Retail!$C$12/COUNT(Retail!$E$2:$E$32)*'Plot Data'!$AC14,NA()) -> 36000 | AP14: =IF(ISNUMBER(Retail!$E13)=TRUE,Retail!$C$18/COUNT(Retail!$E$2:$E$32)*$AC14,NA()) -> 0 | AQ14: =IF(ISNUMBER(Retail!$E13)=TRUE,Retail!$C$17/COUNT(Retail!$E$2:$E$32)*$AC14,NA()) -> 15000 | AR14: =IF(ISNUMBER(RO!$E13)=TRUE,RO!$C$10/COUNT(RO!$E$2:$E$32)*$AC14,NA()) -> 0 | AS14: =IF(ISNUMBER(RO!$E13)=TRUE,RO!$C$12/COUNT(RO!$E$2:$E$32)*'Plot Data'!$AC14,NA()) -> 21000 | AT14: =IF(ISNUMBER(RO!$E13)=TRUE,RO!$C$18/COUNT(RO!$E$2:$E$32)*$AC14,NA()) -> 0 | AU14: =IF(ISNUMBER(RO!$E13)=TRUE,RO!$C$17/COUNT(RO!$E$2:$E$32)*$AC14,NA()) -> 9300 | AV14: =IF(ISNUMBER('Major Unit'!$E13)=TRUE,'Major Unit'!$C$10/COUNT('Major Unit'!$E$2:$E$32)*$AC14,NA()) -> 0 | AW14: =IF(ISNUMBER('Major Unit'!$E13)=TRUE,'Major Unit'!$C$12/COUNT('Major Unit'!$E$2:$E$32)*'Plot Data'!$AC14,NA()) -> 54000 | AX14: =IF(ISNUMBER('Major Unit'!$E13)=TRUE,'Major Unit'!$C$18/COUNT('Major Unit'!$E$2:$E$32)*$AC14,NA()) -> 0 | AY14: =IF(ISNUMBER('Major Unit'!$E13)=TRUE,'Major Unit'!$C$17/COUNT('Major Unit'!$E$2:$E$32)*$AC14,NA()) -> 27000
A15: =IF(ISNUMBER('MU New'!E14)=TRUE,'MU New'!$C$10/COUNT('MU New'!$E$2:$E$32)*AC15,NA()) -> 237120 | B15: =IF(ISNUMBER('MU New'!E14)=TRUE,'MU New'!$C$12/COUNT('MU New'!$E$2:$E$32)*'Plot Data'!AC15,NA()) -> 227500 | C15: =IF(ISNUMBER('MU New'!E14)=TRUE,'MU New'!$C$18/COUNT('MU Used'!$E$2:$E$32)*$AC15,NA()) -> 47424 | D15: =IF(ISNUMBER('MU New'!E14)=TRUE,'MU New'!$C$21/COUNT('MU New'!$E$2:$E$32)*$AC15,NA()) -> 91000 | E15: =IF(ISNUMBER('MU New'!E14)=TRUE,'MU New'!$C$27/COUNT('MU New'!$E$2:$E$32)*$AC15,NA()) -> 11.26666667 | F15: =IF(ISNUMBER('MU New'!E14)=TRUE,'MU New'!$C$29/COUNT('MU New'!$E$2:$E$32)*$AC15,NA()) -> 13 | G15: =IF(ISNUMBER('MU Used'!E14)=TRUE,'MU Used'!$C$10/COUNT('MU Used'!$E$2:$E$32)*AC15,NA()) -> 163020 | H15: =IF(ISNUMBER('MU Used'!E14)=TRUE,'MU Used'!$C$12/COUNT('MU Used'!$E$2:$E$32)*'Plot Data'!AC15,NA()) -> 78000 | I15: =IF(ISNUMBER('MU Used'!E14)=TRUE,'MU Used'!$C$18/COUNT('MU Used'!$E$2:$E$32)*$AC15,NA()) -> 28528.5 | J15: =IF(ISNUMBER('MU Used'!E14)=TRUE,'MU Used'!$C$21/COUNT('MU Used'!$E$2:$E$32)*$AC15,NA()) -> 26000 | K15: =IF(ISNUMBER('MU Used'!E14)=TRUE,'MU Used'!$C$27/COUNT('MU Used'!$E$2:$E$32)*$AC15,NA()) -> 15.6 | L15: =IF(ISNUMBER('MU Used'!E14)=TRUE,'MU Used'!$C$29/COUNT('MU Used'!$E$2:$E$32)*$AC15,NA()) -> 6.5 | M15: =IF(ISNUMBER(MC!$E14)=TRUE,MC!$C$10/COUNT(MC!$E$2:$E$32)*$AC15,NA()) -> 33891.86667 | N15: =IF(ISNUMBER(MC!$E14)=TRUE,MC!$C$12/COUNT(MC!$E$2:$E$32)*'Plot Data'!$AC15,NA()) -> 97500 | O15: =IF(ISNUMBER(MC!$E14)=TRUE,MC!$C$18/COUNT(MC!$E$2:$E$32)*$AC15,NA()) -> 13556.83333 | P15: =IF(ISNUMBER(MC!$E14)=TRUE,MC!$C$21/COUNT(MC!$E$2:$E$32)*$AC15,NA()) -> 34125 | Q15: =IF(ISNUMBER(Parts!$E14)=TRUE,Parts!$C$10/COUNT(Parts!$E$2:$E$32)*$AC15,NA()) -> 63716.46667 | R15: =IF(ISNUMBER(Parts!$E14)=TRUE,Parts!$C$12/COUNT(Parts!$E$2:$E$32)*'Plot Data'!$AC15,NA()) -> 120250 | S15: =IF(ISNUMBER(Parts!$E14)=TRUE,Parts!$C$18/COUNT(Parts!$E$2:$E$32)*$AC15,NA()) -> 22300.63333 | T15: =IF(ISNUMBER(Parts!$E14)=TRUE,Parts!$C$21/COUNT(Parts!$E$2:$E$32)*$AC15,NA()) -> 55575 | U15: =IF(ISNUMBER(Service!$E14)=TRUE,Service!$C$10/COUNT(Service!$E$2:$E$32)*$AC15,NA()) -> 27329.9 | V15: =IF(ISNUMBER(Service!$E14)=TRUE,Service!$C$12/COUNT(Service!$E$2:$E$32)*'Plot Data'!$AC15,NA()) -> 18850 | W15: =IF(ISNUMBER(Service!$E14)=TRUE,Service!$C$18/COUNT(Service!$E$2:$E$32)*$AC15,NA()) -> 0 | X15: =IF(ISNUMBER(Service!$E14)=TRUE,Service!$C$21/COUNT(Service!$E$2:$E$32)*$AC15,NA()) -> 0 | Y15: =IF(ISNUMBER('F&I'!$E14)=TRUE,'F&I'!$C$10/COUNT('F&I'!$E$2:$E$32)*$AC15,NA()) -> 18442.66667 | Z15: =IF(ISNUMBER('F&I'!$E14)=TRUE,'F&I'!$C$12/COUNT('F&I'!$E$2:$E$32)*'Plot Data'!$AC15,NA()) -> 2600 | AA15: =IF(ISNUMBER('F&I'!$E14)=TRUE,'F&I'!$C$18/COUNT('F&I'!$E$2:$E$32)*$AC15,NA()) -> 12909.86667 | AB15: =IF(ISNUMBER('F&I'!$E14)=TRUE,'F&I'!$C$21/COUNT('F&I'!$E$2:$E$32)*$AC15,NA()) -> 2600 | AC15: =IF(ISNUMBER('MU Used'!E14)=TRUE,'Plot Data'!AD15,"") -> 13 | AD15: 13 | AF15: =IF(ISNUMBER(Eastside!$E14)=TRUE,Eastside!$C$10/COUNT(Eastside!$E$2:$E$32)*$AC15,NA()) -> 21666.66667 | AG15: =IF(ISNUMBER(Eastside!$E14)=TRUE,Eastside!$C$12/COUNT(Eastside!$E$2:$E$32)*'Plot Data'!$AC15,NA()) -> 45500 | AH15: =IF(ISNUMBER(Eastside!$E14)=TRUE,Eastside!$C$18/COUNT(Eastside!$E$2:$E$32)*$AC15,NA()) -> 0 | AI15: =IF(ISNUMBER(Eastside!$E14)=TRUE,Eastside!$C$21/COUNT(Eastside!$E$2:$E$32)*$AC15,NA()) -> 14625 | AJ15: =IF(ISNUMBER('Emerald City'!$E14)=TRUE,'Emerald City'!$C$10/COUNT('Emerald City'!$E$2:$E$32)*$AC15,NA()) -> 9100 | AK15: =IF(ISNUMBER('Emerald City'!$E14)=TRUE,'Emerald City'!$C$12/COUNT('Emerald City'!$E$2:$E$32)*'Plot Data'!$AC15,NA()) -> 52000 | AL15: =IF(ISNUMBER('Emerald City'!$E14)=TRUE,'Emerald City'!$C$18/COUNT('Emerald City'!$E$2:$E$32)*$AC15,NA()) -> 0 | AM15: =IF(ISNUMBER('Emerald City'!$E14)=TRUE,'Emerald City'!$C$21/COUNT('Emerald City'!$E$2:$E$32)*$AC15,NA()) -> 19500 | AN15: =IF(ISNUMBER(Retail!$E14)=TRUE,Retail!$C$10/COUNT(Retail!$E$2:$E$32)*$AC15,NA()) -> 0 | AO15: =IF(ISNUMBER(Retail!$E14)=TRUE,Retail!$C$12/COUNT(Retail!$E$2:$E$32)*'Plot Data'!$AC15,NA()) -> 39000 | AP15: =IF(ISNUMBER(Retail!$E14)=TRUE,Retail!$C$18/COUNT(Retail!$E$2:$E$32)*$AC15,NA()) -> 0 | AQ15: =IF(ISNUMBER(Retail!$E14)=TRUE,Retail!$C$17/COUNT(Retail!$E$2:$E$32)*$AC15,NA()) -> 16250 | AR15: =IF(ISNUMBER(RO!$E14)=TRUE,RO!$C$10/COUNT(RO!$E$2:$E$32)*$AC15,NA()) -> 0 | AS15: =IF(ISNUMBER(RO!$E14)=TRUE,RO!$C$12/COUNT(RO!$E$2:$E$32)*'Plot Data'!$AC15,NA()) -> 22750 | AT15: =IF(ISNUMBER(RO!$E14)=TRUE,RO!$C$18/COUNT(RO!$E$2:$E$32)*$AC15,NA()) -> 0 | AU15: =IF(ISNUMBER(RO!$E14)=TRUE,RO!$C$17/COUNT(RO!$E$2:$E$32)*$AC15,NA()) -> 10075 | AV15: =IF(ISNUMBER('Major Unit'!$E14)=TRUE,'Major Unit'!$C$10/COUNT('Major Unit'!$E$2:$E$32)*$AC15,NA()) -> 0 | AW15: =IF(ISNUMBER('Major Unit'!$E14)=TRUE,'Major Unit'!$C$12/COUNT('Major Unit'!$E$2:$E$32)*'Plot Data'!$AC15,NA()) -> 58500 | AX15: =IF(ISNUMBER('Major Unit'!$E14)=TRUE,'Major Unit'!$C$18/COUNT('Major Unit'!$E$2:$E$32)*$AC15,NA()) -> 0 | AY15: =IF(ISNUMBER('Major Unit'!$E14)=TRUE,'Major Unit'!$C$17/COUNT('Major Unit'!$E$2:$E$32)*$AC15,NA()) -> 29250
A16: =IF(ISNUMBER('MU New'!E15)=TRUE,'MU New'!$C$10/COUNT('MU New'!$E$2:$E$32)*AC16,NA()) -> 255360 | B16: =IF(ISNUMBER('MU New'!E15)=TRUE,'MU New'!$C$12/COUNT('MU New'!$E$2:$E$32)*'Plot Data'!AC16,NA()) -> 245000 | C16: =IF(ISNUMBER('MU New'!E15)=TRUE,'MU New'!$C$18/COUNT('MU Used'!$E$2:$E$32)*$AC16,NA()) -> 51072 | D16: =IF(ISNUMBER('MU New'!E15)=TRUE,'MU New'!$C$21/COUNT('MU New'!$E$2:$E$32)*$AC16,NA()) -> 98000 | E16: =IF(ISNUMBER('MU New'!E15)=TRUE,'MU New'!$C$27/COUNT('MU New'!$E$2:$E$32)*$AC16,NA()) -> 12.13333333 | F16: =IF(ISNUMBER('MU New'!E15)=TRUE,'MU New'!$C$29/COUNT('MU New'!$E$2:$E$32)*$AC16,NA()) -> 14 | G16: =IF(ISNUMBER('MU Used'!E15)=TRUE,'MU Used'!$C$10/COUNT('MU Used'!$E$2:$E$32)*AC16,NA()) -> 175560 | H16: =IF(ISNUMBER('MU Used'!E15)=TRUE,'MU Used'!$C$12/COUNT('MU Used'!$E$2:$E$32)*'Plot Data'!AC16,NA()) -> 84000 | I16: =IF(ISNUMBER('MU Used'!E15)=TRUE,'MU Used'!$C$18/COUNT('MU Used'!$E$2:$E$32)*$AC16,NA()) -> 30723 | J16: =IF(ISNUMBER('MU Used'!E15)=TRUE,'MU Used'!$C$21/COUNT('MU Used'!$E$2:$E$32)*$AC16,NA()) -> 28000 | K16: =IF(ISNUMBER('MU Used'!E15)=TRUE,'MU Used'!$C$27/COUNT('MU Used'!$E$2:$E$32)*$AC16,NA()) -> 16.8 | L16: =IF(ISNUMBER('MU Used'!E15)=TRUE,'MU Used'!$C$29/COUNT('MU Used'!$E$2:$E$32)*$AC16,NA()) -> 7 | M16: =IF(ISNUMBER(MC!$E15)=TRUE,MC!$C$10/COUNT(MC!$E$2:$E$32)*$AC16,NA()) -> 36498.93333 | N16: =IF(ISNUMBER(MC!$E15)=TRUE,MC!$C$12/COUNT(MC!$E$2:$E$32)*'Plot Data'!$AC16,NA()) -> 105000 | O16: =IF(ISNUMBER(MC!$E15)=TRUE,MC!$C$18/COUNT(MC!$E$2:$E$32)*$AC16,NA()) -> 14599.66667 | P16: =IF(ISNUMBER(MC!$E15)=TRUE,MC!$C$21/COUNT(MC!$E$2:$E$32)*$AC16,NA()) -> 36750 | Q16: =IF(ISNUMBER(Parts!$E15)=TRUE,Parts!$C$10/COUNT(Parts!$E$2:$E$32)*$AC16,NA()) -> 68617.73333 | R16: =IF(ISNUMBER(Parts!$E15)=TRUE,Parts!$C$12/COUNT(Parts!$E$2:$E$32)*'Plot Data'!$AC16,NA()) -> 129500 | S16: =IF(ISNUMBER(Parts!$E15)=TRUE,Parts!$C$18/COUNT(Parts!$E$2:$E$32)*$AC16,NA()) -> 24016.06667 | T16: =IF(ISNUMBER(Parts!$E15)=TRUE,Parts!$C$21/COUNT(Parts!$E$2:$E$32)*$AC16,NA()) -> 59850 | U16: =IF(ISNUMBER(Service!$E15)=TRUE,Service!$C$10/COUNT(Service!$E$2:$E$32)*$AC16,NA()) -> 29432.2 | V16: =IF(ISNUMBER(Service!$E15)=TRUE,Service!$C$12/COUNT(Service!$E$2:$E$32)*'Plot Data'!$AC16,NA()) -> 20300 | W16: =IF(ISNUMBER(Service!$E15)=TRUE,Service!$C$18/COUNT(Service!$E$2:$E$32)*$AC16,NA()) -> 0 | X16: =IF(ISNUMBER(Service!$E15)=TRUE,Service!$C$21/COUNT(Service!$E$2:$E$32)*$AC16,NA()) -> 0 | Y16: =IF(ISNUMBER('F&I'!$E15)=TRUE,'F&I'!$C$10/COUNT('F&I'!$E$2:$E$32)*$AC16,NA()) -> 19861.33333 | Z16: =IF(ISNUMBER('F&I'!$E15)=TRUE,'F&I'!$C$12/COUNT('F&I'!$E$2:$E$32)*'Plot Data'!$AC16,NA()) -> 2800 | AA16: =IF(ISNUMBER('F&I'!$E15)=TRUE,'F&I'!$C$18/COUNT('F&I'!$E$2:$E$32)*$AC16,NA()) -> 13902.93333 | AB16: =IF(ISNUMBER('F&I'!$E15)=TRUE,'F&I'!$C$21/COUNT('F&I'!$E$2:$E$32)*$AC16,NA()) -> 2800 | AC16: =IF(ISNUMBER('MU Used'!E15)=TRUE,'Plot Data'!AD16,"") -> 14 | AD16: 14 | AF16: =IF(ISNUMBER(Eastside!$E15)=TRUE,Eastside!$C$10/COUNT(Eastside!$E$2:$E$32)*$AC16,NA()) -> 23333.33333 | AG16: =IF(ISNUMBER(Eastside!$E15)=TRUE,Eastside!$C$12/COUNT(Eastside!$E$2:$E$32)*'Plot Data'!$AC16,NA()) -> 49000 | AH16: =IF(ISNUMBER(Eastside!$E15)=TRUE,Eastside!$C$18/COUNT(Eastside!$E$2:$E$32)*$AC16,NA()) -> 0 | AI16: =IF(ISNUMBER(Eastside!$E15)=TRUE,Eastside!$C$21/COUNT(Eastside!$E$2:$E$32)*$AC16,NA()) -> 15750 | AJ16: =IF(ISNUMBER('Emerald City'!$E15)=TRUE,'Emerald City'!$C$10/COUNT('Emerald City'!$E$2:$E$32)*$AC16,NA()) -> 9800 | AK16: =IF(ISNUMBER('Emerald City'!$E15)=TRUE,'Emerald City'!$C$12/COUNT('Emerald City'!$E$2:$E$32)*'Plot Data'!$AC16,NA()) -> 56000 | AL16: =IF(ISNUMBER('Emerald City'!$E15)=TRUE,'Emerald City'!$C$18/COUNT('Emerald City'!$E$2:$E$32)*$AC16,NA()) -> 0 | AM16: =IF(ISNUMBER('Emerald City'!$E15)=TRUE,'Emerald City'!$C$21/COUNT('Emerald City'!$E$2:$E$32)*$AC16,NA()) -> 21000 | AN16: =IF(ISNUMBER(Retail!$E15)=TRUE,Retail!$C$10/COUNT(Retail!$E$2:$E$32)*$AC16,NA()) -> 0 | AO16: =IF(ISNUMBER(Retail!$E15)=TRUE,Retail!$C$12/COUNT(Retail!$E$2:$E$32)*'Plot Data'!$AC16,NA()) -> 42000 | AP16: =IF(ISNUMBER(Retail!$E15)=TRUE,Retail!$C$18/COUNT(Retail!$E$2:$E$32)*$AC16,NA()) -> 0 | AQ16: =IF(ISNUMBER(Retail!$E15)=TRUE,Retail!$C$17/COUNT(Retail!$E$2:$E$32)*$AC16,NA()) -> 17500 | AR16: =IF(ISNUMBER(RO!$E15)=TRUE,RO!$C$10/COUNT(RO!$E$2:$E$32)*$AC16,NA()) -> 0 | AS16: =IF(ISNUMBER(RO!$E15)=TRUE,RO!$C$12/COUNT(RO!$E$2:$E$32)*'Plot Data'!$AC16,NA()) -> 24500 | AT16: =IF(ISNUMBER(RO!$E15)=TRUE,RO!$C$18/COUNT(RO!$E$2:$E$32)*$AC16,NA()) -> 0 | AU16: =IF(ISNUMBER(RO!$E15)=TRUE,RO!$C$17/COUNT(RO!$E$2:$E$32)*$AC16,NA()) -> 10850 | AV16: =IF(ISNUMBER('Major Unit'!$E15)=TRUE,'Major Unit'!$C$10/COUNT('Major Unit'!$E$2:$E$32)*$AC16,NA()) -> 0 | AW16: =IF(ISNUMBER('Major Unit'!$E15)=TRUE,'Major Unit'!$C$12/COUNT('Major Unit'!$E$2:$E$32)*'Plot Data'!$AC16,NA()) -> 63000 | AX16: =IF(ISNUMBER('Major Unit'!$E15)=TRUE,'Major Unit'!$C$18/COUNT('Major Unit'!$E$2:$E$32)*$AC16,NA()) -> 0 | AY16: =IF(ISNUMBER('Major Unit'!$E15)=TRUE,'Major Unit'!$C$17/COUNT('Major Unit'!$E$2:$E$32)*$AC16,NA()) -> 31500
A17: =IF(ISNUMBER('MU New'!E16)=TRUE,'MU New'!$C$10/COUNT('MU New'!$E$2:$E$32)*AC17,NA()) -> 273600 | B17: =IF(ISNUMBER('MU New'!E16)=TRUE,'MU New'!$C$12/COUNT('MU New'!$E$2:$E$32)*'Plot Data'!AC17,NA()) -> 262500 | C17: =IF(ISNUMBER('MU New'!E16)=TRUE,'MU New'!$C$18/COUNT('MU Used'!$E$2:$E$32)*$AC17,NA()) -> 54720 | D17: =IF(ISNUMBER('MU New'!E16)=TRUE,'MU New'!$C$21/COUNT('MU New'!$E$2:$E$32)*$AC17,NA()) -> 105000 | E17: =IF(ISNUMBER('MU New'!E16)=TRUE,'MU New'!$C$27/COUNT('MU New'!$E$2:$E$32)*$AC17,NA()) -> 13 | F17: =IF(ISNUMBER('MU New'!E16)=TRUE,'MU New'!$C$29/COUNT('MU New'!$E$2:$E$32)*$AC17,NA()) -> 15 | G17: =IF(ISNUMBER('MU Used'!E16)=TRUE,'MU Used'!$C$10/COUNT('MU Used'!$E$2:$E$32)*AC17,NA()) -> 188100 | H17: =IF(ISNUMBER('MU Used'!E16)=TRUE,'MU Used'!$C$12/COUNT('MU Used'!$E$2:$E$32)*'Plot Data'!AC17,NA()) -> 90000 | I17: =IF(ISNUMBER('MU Used'!E16)=TRUE,'MU Used'!$C$18/COUNT('MU Used'!$E$2:$E$32)*$AC17,NA()) -> 32917.5 | J17: =IF(ISNUMBER('MU Used'!E16)=TRUE,'MU Used'!$C$21/COUNT('MU Used'!$E$2:$E$32)*$AC17,NA()) -> 30000 | K17: =IF(ISNUMBER('MU Used'!E16)=TRUE,'MU Used'!$C$27/COUNT('MU Used'!$E$2:$E$32)*$AC17,NA()) -> 18 | L17: =IF(ISNUMBER('MU Used'!E16)=TRUE,'MU Used'!$C$29/COUNT('MU Used'!$E$2:$E$32)*$AC17,NA()) -> 7.5 | M17: =IF(ISNUMBER(MC!$E16)=TRUE,MC!$C$10/COUNT(MC!$E$2:$E$32)*$AC17,NA()) -> 39106 | N17: =IF(ISNUMBER(MC!$E16)=TRUE,MC!$C$12/COUNT(MC!$E$2:$E$32)*'Plot Data'!$AC17,NA()) -> 112500 | O17: =IF(ISNUMBER(MC!$E16)=TRUE,MC!$C$18/COUNT(MC!$E$2:$E$32)*$AC17,NA()) -> 15642.5 | P17: =IF(ISNUMBER(MC!$E16)=TRUE,MC!$C$21/COUNT(MC!$E$2:$E$32)*$AC17,NA()) -> 39375 | Q17: =IF(ISNUMBER(Parts!$E16)=TRUE,Parts!$C$10/COUNT(Parts!$E$2:$E$32)*$AC17,NA()) -> 73519 | R17: =IF(ISNUMBER(Parts!$E16)=TRUE,Parts!$C$12/COUNT(Parts!$E$2:$E$32)*'Plot Data'!$AC17,NA()) -> 138750 | S17: =IF(ISNUMBER(Parts!$E16)=TRUE,Parts!$C$18/COUNT(Parts!$E$2:$E$32)*$AC17,NA()) -> 25731.5 | T17: =IF(ISNUMBER(Parts!$E16)=TRUE,Parts!$C$21/COUNT(Parts!$E$2:$E$32)*$AC17,NA()) -> 64125 | U17: =IF(ISNUMBER(Service!$E16)=TRUE,Service!$C$10/COUNT(Service!$E$2:$E$32)*$AC17,NA()) -> 31534.5 | V17: =IF(ISNUMBER(Service!$E16)=TRUE,Service!$C$12/COUNT(Service!$E$2:$E$32)*'Plot Data'!$AC17,NA()) -> 21750 | W17: =IF(ISNUMBER(Service!$E16)=TRUE,Service!$C$18/COUNT(Service!$E$2:$E$32)*$AC17,NA()) -> 0 | X17: =IF(ISNUMBER(Service!$E16)=TRUE,Service!$C$21/COUNT(Service!$E$2:$E$32)*$AC17,NA()) -> 0 | Y17: =IF(ISNUMBER('F&I'!$E16)=TRUE,'F&I'!$C$10/COUNT('F&I'!$E$2:$E$32)*$AC17,NA()) -> 21280 | Z17: =IF(ISNUMBER('F&I'!$E16)=TRUE,'F&I'!$C$12/COUNT('F&I'!$E$2:$E$32)*'Plot Data'!$AC17,NA()) -> 3000 | AA17: =IF(ISNUMBER('F&I'!$E16)=TRUE,'F&I'!$C$18/COUNT('F&I'!$E$2:$E$32)*$AC17,NA()) -> 14896 | AB17: =IF(ISNUMBER('F&I'!$E16)=TRUE,'F&I'!$C$21/COUNT('F&I'!$E$2:$E$32)*$AC17,NA()) -> 3000 | AC17: =IF(ISNUMBER('MU Used'!E16)=TRUE,'Plot Data'!AD17,"") -> 15 | AD17: 15 | AF17: =IF(ISNUMBER(Eastside!$E16)=TRUE,Eastside!$C$10/COUNT(Eastside!$E$2:$E$32)*$AC17,NA()) -> 25000 | AG17: =IF(ISNUMBER(Eastside!$E16)=TRUE,Eastside!$C$12/COUNT(Eastside!$E$2:$E$32)*'Plot Data'!$AC17,NA()) -> 52500 | AH17: =IF(ISNUMBER(Eastside!$E16)=TRUE,Eastside!$C$18/COUNT(Eastside!$E$2:$E$32)*$AC17,NA()) -> 0 | AI17: =IF(ISNUMBER(Eastside!$E16)=TRUE,Eastside!$C$21/COUNT(Eastside!$E$2:$E$32)*$AC17,NA()) -> 16875 | AJ17: =IF(ISNUMBER('Emerald City'!$E16)=TRUE,'Emerald City'!$C$10/COUNT('Emerald City'!$E$2:$E$32)*$AC17,NA()) -> 10500 | AK17: =IF(ISNUMBER('Emerald City'!$E16)=TRUE,'Emerald City'!$C$12/COUNT('Emerald City'!$E$2:$E$32)*'Plot Data'!$AC17,NA()) -> 60000 | AL17: =IF(ISNUMBER('Emerald City'!$E16)=TRUE,'Emerald City'!$C$18/COUNT('Emerald City'!$E$2:$E$32)*$AC17,NA()) -> 0 | AM17: =IF(ISNUMBER('Emerald City'!$E16)=TRUE,'Emerald City'!$C$21/COUNT('Emerald City'!$E$2:$E$32)*$AC17,NA()) -> 22500 | AN17: =IF(ISNUMBER(Retail!$E16)=TRUE,Retail!$C$10/COUNT(Retail!$E$2:$E$32)*$AC17,NA()) -> 0 | AO17: =IF(ISNUMBER(Retail!$E16)=TRUE,Retail!$C$12/COUNT(Retail!$E$2:$E$32)*'Plot Data'!$AC17,NA()) -> 45000 | AP17: =IF(ISNUMBER(Retail!$E16)=TRUE,Retail!$C$18/COUNT(Retail!$E$2:$E$32)*$AC17,NA()) -> 0 | AQ17: =IF(ISNUMBER(Retail!$E16)=TRUE,Retail!$C$17/COUNT(Retail!$E$2:$E$32)*$AC17,NA()) -> 18750 | AR17: =IF(ISNUMBER(RO!$E16)=TRUE,RO!$C$10/COUNT(RO!$E$2:$E$32)*$AC17,NA()) -> 0 | AS17: =IF(ISNUMBER(RO!$E16)=TRUE,RO!$C$12/COUNT(RO!$E$2:$E$32)*'Plot Data'!$AC17,NA()) -> 26250 | AT17: =IF(ISNUMBER(RO!$E16)=TRUE,RO!$C$18/COUNT(RO!$E$2:$E$32)*$AC17,NA()) -> 0 | AU17: =IF(ISNUMBER(RO!$E16)=TRUE,RO!$C$17/COUNT(RO!$E$2:$E$32)*$AC17,NA()) -> 11625 | AV17: =IF(ISNUMBER('Major Unit'!$E16)=TRUE,'Major Unit'!$C$10/COUNT('Major Unit'!$E$2:$E$32)*$AC17,NA()) -> 0 | AW17: =IF(ISNUMBER('Major Unit'!$E16)=TRUE,'Major Unit'!$C$12/COUNT('Major Unit'!$E$2:$E$32)*'Plot Data'!$AC17,NA()) -> 67500 | AX17: =IF(ISNUMBER('Major Unit'!$E16)=TRUE,'Major Unit'!$C$18/COUNT('Major Unit'!$E$2:$E$32)*$AC17,NA()) -> 0 | AY17: =IF(ISNUMBER('Major Unit'!$E16)=TRUE,'Major Unit'!$C$17/COUNT('Major Unit'!$E$2:$E$32)*$AC17,NA()) -> 33750
A18: =IF(ISNUMBER('MU New'!E17)=TRUE,'MU New'!$C$10/COUNT('MU New'!$E$2:$E$32)*AC18,NA()) -> 291840 | B18: =IF(ISNUMBER('MU New'!E17)=TRUE,'MU New'!$C$12/COUNT('MU New'!$E$2:$E$32)*'Plot Data'!AC18,NA()) -> 280000 | C18: =IF(ISNUMBER('MU New'!E17)=TRUE,'MU New'!$C$18/COUNT('MU Used'!$E$2:$E$32)*$AC18,NA()) -> 58368 | D18: =IF(ISNUMBER('MU New'!E17)=TRUE,'MU New'!$C$21/COUNT('MU New'!$E$2:$E$32)*$AC18,NA()) -> 112000 | E18: =IF(ISNUMBER('MU New'!E17)=TRUE,'MU New'!$C$27/COUNT('MU New'!$E$2:$E$32)*$AC18,NA()) -> 13.86666667 | F18: =IF(ISNUMBER('MU New'!E17)=TRUE,'MU New'!$C$29/COUNT('MU New'!$E$2:$E$32)*$AC18,NA()) -> 16 | G18: =IF(ISNUMBER('MU Used'!E17)=TRUE,'MU Used'!$C$10/COUNT('MU Used'!$E$2:$E$32)*AC18,NA()) -> 200640 | H18: =IF(ISNUMBER('MU Used'!E17)=TRUE,'MU Used'!$C$12/COUNT('MU Used'!$E$2:$E$32)*'Plot Data'!AC18,NA()) -> 96000 | I18: =IF(ISNUMBER('MU Used'!E17)=TRUE,'MU Used'!$C$18/COUNT('MU Used'!$E$2:$E$32)*$AC18,NA()) -> 35112 | J18: =IF(ISNUMBER('MU Used'!E17)=TRUE,'MU Used'!$C$21/COUNT('MU Used'!$E$2:$E$32)*$AC18,NA()) -> 32000 | K18: =IF(ISNUMBER('MU Used'!E17)=TRUE,'MU Used'!$C$27/COUNT('MU Used'!$E$2:$E$32)*$AC18,NA()) -> 19.2 | L18: =IF(ISNUMBER('MU Used'!E17)=TRUE,'MU Used'!$C$29/COUNT('MU Used'!$E$2:$E$32)*$AC18,NA()) -> 8 | M18: =IF(ISNUMBER(MC!$E17)=TRUE,MC!$C$10/COUNT(MC!$E$2:$E$32)*$AC18,NA()) -> 41713.06667 | N18: =IF(ISNUMBER(MC!$E17)=TRUE,MC!$C$12/COUNT(MC!$E$2:$E$32)*'Plot Data'!$AC18,NA()) -> 120000 | O18: =IF(ISNUMBER(MC!$E17)=TRUE,MC!$C$18/COUNT(MC!$E$2:$E$32)*$AC18,NA()) -> 16685.33333 | P18: =IF(ISNUMBER(MC!$E17)=TRUE,MC!$C$21/COUNT(MC!$E$2:$E$32)*$AC18,NA()) -> 42000 | Q18: =IF(ISNUMBER(Parts!$E17)=TRUE,Parts!$C$10/COUNT(Parts!$E$2:$E$32)*$AC18,NA()) -> 78420.26667 | R18: =IF(ISNUMBER(Parts!$E17)=TRUE,Parts!$C$12/COUNT(Parts!$E$2:$E$32)*'Plot Data'!$AC18,NA()) -> 148000 | S18: =IF(ISNUMBER(Parts!$E17)=TRUE,Parts!$C$18/COUNT(Parts!$E$2:$E$32)*$AC18,NA()) -> 27446.93333 | T18: =IF(ISNUMBER(Parts!$E17)=TRUE,Parts!$C$21/COUNT(Parts!$E$2:$E$32)*$AC18,NA()) -> 68400 | U18: =IF(ISNUMBER(Service!$E17)=TRUE,Service!$C$10/COUNT(Service!$E$2:$E$32)*$AC18,NA()) -> 33636.8 | V18: =IF(ISNUMBER(Service!$E17)=TRUE,Service!$C$12/COUNT(Service!$E$2:$E$32)*'Plot Data'!$AC18,NA()) -> 23200 | W18: =IF(ISNUMBER(Service!$E17)=TRUE,Service!$C$18/COUNT(Service!$E$2:$E$32)*$AC18,NA()) -> 0 | X18: =IF(ISNUMBER(Service!$E17)=TRUE,Service!$C$21/COUNT(Service!$E$2:$E$32)*$AC18,NA()) -> 0 | Y18: =IF(ISNUMBER('F&I'!$E17)=TRUE,'F&I'!$C$10/COUNT('F&I'!$E$2:$E$32)*$AC18,NA()) -> 22698.66667 | Z18: =IF(ISNUMBER('F&I'!$E17)=TRUE,'F&I'!$C$12/COUNT('F&I'!$E$2:$E$32)*'Plot Data'!$AC18,NA()) -> 3200 | AA18: =IF(ISNUMBER('F&I'!$E17)=TRUE,'F&I'!$C$18/COUNT('F&I'!$E$2:$E$32)*$AC18,NA()) -> 15889.06667 | AB18: =IF(ISNUMBER('F&I'!$E17)=TRUE,'F&I'!$C$21/COUNT('F&I'!$E$2:$E$32)*$AC18,NA()) -> 3200 | AC18: =IF(ISNUMBER('MU Used'!E17)=TRUE,'Plot Data'!AD18,"") -> 16 | AD18: 16 | AF18: =IF(ISNUMBER(Eastside!$E17)=TRUE,Eastside!$C$10/COUNT(Eastside!$E$2:$E$32)*$AC18,NA()) -> 26666.66667 | AG18: =IF(ISNUMBER(Eastside!$E17)=TRUE,Eastside!$C$12/COUNT(Eastside!$E$2:$E$32)*'Plot Data'!$AC18,NA()) -> 56000 | AH18: =IF(ISNUMBER(Eastside!$E17)=TRUE,Eastside!$C$18/COUNT(Eastside!$E$2:$E$32)*$AC18,NA()) -> 0 | AI18: =IF(ISNUMBER(Eastside!$E17)=TRUE,Eastside!$C$21/COUNT(Eastside!$E$2:$E$32)*$AC18,NA()) -> 18000 | AJ18: =IF(ISNUMBER('Emerald City'!$E17)=TRUE,'Emerald City'!$C$10/COUNT('Emerald City'!$E$2:$E$32)*$AC18,NA()) -> 11200 | AK18: =IF(ISNUMBER('Emerald City'!$E17)=TRUE,'Emerald City'!$C$12/COUNT('Emerald City'!$E$2:$E$32)*'Plot Data'!$AC18,NA()) -> 64000 | AL18: =IF(ISNUMBER('Emerald City'!$E17)=TRUE,'Emerald City'!$C$18/COUNT('Emerald City'!$E$2:$E$32)*$AC18,NA()) -> 0 | AM18: =IF(ISNUMBER('Emerald City'!$E17)=TRUE,'Emerald City'!$C$21/COUNT('Emerald City'!$E$2:$E$32)*$AC18,NA()) -> 24000 | AN18: =IF(ISNUMBER(Retail!$E17)=TRUE,Retail!$C$10/COUNT(Retail!$E$2:$E$32)*$AC18,NA()) -> 0 | AO18: =IF(ISNUMBER(Retail!$E17)=TRUE,Retail!$C$12/COUNT(Retail!$E$2:$E$32)*'Plot Data'!$AC18,NA()) -> 48000 | AP18: =IF(ISNUMBER(Retail!$E17)=TRUE,Retail!$C$18/COUNT(Retail!$E$2:$E$32)*$AC18,NA()) -> 0 | AQ18: =IF(ISNUMBER(Retail!$E17)=TRUE,Retail!$C$17/COUNT(Retail!$E$2:$E$32)*$AC18,NA()) -> 20000 | AR18: =IF(ISNUMBER(RO!$E17)=TRUE,RO!$C$10/COUNT(RO!$E$2:$E$32)*$AC18,NA()) -> 0 | AS18: =IF(ISNUMBER(RO!$E17)=TRUE,RO!$C$12/COUNT(RO!$E$2:$E$32)*'Plot Data'!$AC18,NA()) -> 28000 | AT18: =IF(ISNUMBER(RO!$E17)=TRUE,RO!$C$18/COUNT(RO!$E$2:$E$32)*$AC18,NA()) -> 0 | AU18: =IF(ISNUMBER(RO!$E17)=TRUE,RO!$C$17/COUNT(RO!$E$2:$E$32)*$AC18,NA()) -> 12400 | AV18: =IF(ISNUMBER('Major Unit'!$E17)=TRUE,'Major Unit'!$C$10/COUNT('Major Unit'!$E$2:$E$32)*$AC18,NA()) -> 0 | AW18: =IF(ISNUMBER('Major Unit'!$E17)=TRUE,'Major Unit'!$C$12/COUNT('Major Unit'!$E$2:$E$32)*'Plot Data'!$AC18,NA()) -> 72000 | AX18: =IF(ISNUMBER('Major Unit'!$E17)=TRUE,'Major Unit'!$C$18/COUNT('Major Unit'!$E$2:$E$32)*$AC18,NA()) -> 0 | AY18: =IF(ISNUMBER('Major Unit'!$E17)=TRUE,'Major Unit'!$C$17/COUNT('Major Unit'!$E$2:$E$32)*$AC18,NA()) -> 36000
A19: =IF(ISNUMBER('MU New'!E18)=TRUE,'MU New'!$C$10/COUNT('MU New'!$E$2:$E$32)*AC19,NA()) -> 310080 | B19: =IF(ISNUMBER('MU New'!E18)=TRUE,'MU New'!$C$12/COUNT('MU New'!$E$2:$E$32)*'Plot Data'!AC19,NA()) -> 297500 | C19: =IF(ISNUMBER('MU New'!E18)=TRUE,'MU New'!$C$18/COUNT('MU Used'!$E$2:$E$32)*$AC19,NA()) -> 62016 | D19: =IF(ISNUMBER('MU New'!E18)=TRUE,'MU New'!$C$21/COUNT('MU New'!$E$2:$E$32)*$AC19,NA()) -> 119000 | E19: =IF(ISNUMBER('MU New'!E18)=TRUE,'MU New'!$C$27/COUNT('MU New'!$E$2:$E$32)*$AC19,NA()) -> 14.73333333 | F19: =IF(ISNUMBER('MU New'!E18)=TRUE,'MU New'!$C$29/COUNT('MU New'!$E$2:$E$32)*$AC19,NA()) -> 17 | G19: =IF(ISNUMBER('MU Used'!E18)=TRUE,'MU Used'!$C$10/COUNT('MU Used'!$E$2:$E$32)*AC19,NA()) -> 213180 | H19: =IF(ISNUMBER('MU Used'!E18)=TRUE,'MU Used'!$C$12/COUNT('MU Used'!$E$2:$E$32)*'Plot Data'!AC19,NA()) -> 102000 | I19: =IF(ISNUMBER('MU Used'!E18)=TRUE,'MU Used'!$C$18/COUNT('MU Used'!$E$2:$E$32)*$AC19,NA()) -> 37306.5 | J19: =IF(ISNUMBER('MU Used'!E18)=TRUE,'MU Used'!$C$21/COUNT('MU Used'!$E$2:$E$32)*$AC19,NA()) -> 34000 | K19: =IF(ISNUMBER('MU Used'!E18)=TRUE,'MU Used'!$C$27/COUNT('MU Used'!$E$2:$E$32)*$AC19,NA()) -> 20.4 | L19: =IF(ISNUMBER('MU Used'!E18)=TRUE,'MU Used'!$C$29/COUNT('MU Used'!$E$2:$E$32)*$AC19,NA()) -> 8.5 | M19: =IF(ISNUMBER(MC!$E18)=TRUE,MC!$C$10/COUNT(MC!$E$2:$E$32)*$AC19,NA()) -> 44320.13333 | N19: =IF(ISNUMBER(MC!$E18)=TRUE,MC!$C$12/COUNT(MC!$E$2:$E$32)*'Plot Data'!$AC19,NA()) -> 127500 | O19: =IF(ISNUMBER(MC!$E18)=TRUE,MC!$C$18/COUNT(MC!$E$2:$E$32)*$AC19,NA()) -> 17728.16667 | P19: =IF(ISNUMBER(MC!$E18)=TRUE,MC!$C$21/COUNT(MC!$E$2:$E$32)*$AC19,NA()) -> 44625 | Q19: =IF(ISNUMBER(Parts!$E18)=TRUE,Parts!$C$10/COUNT(Parts!$E$2:$E$32)*$AC19,NA()) -> 83321.53333 | R19: =IF(ISNUMBER(Parts!$E18)=TRUE,Parts!$C$12/COUNT(Parts!$E$2:$E$32)*'Plot Data'!$AC19,NA()) -> 157250 | S19: =IF(ISNUMBER(Parts!$E18)=TRUE,Parts!$C$18/COUNT(Parts!$E$2:$E$32)*$AC19,NA()) -> 29162.36667 | T19: =IF(ISNUMBER(Parts!$E18)=TRUE,Parts!$C$21/COUNT(Parts!$E$2:$E$32)*$AC19,NA()) -> 72675 | U19: =IF(ISNUMBER(Service!$E18)=TRUE,Service!$C$10/COUNT(Service!$E$2:$E$32)*$AC19,NA()) -> 35739.1 | V19: =IF(ISNUMBER(Service!$E18)=TRUE,Service!$C$12/COUNT(Service!$E$2:$E$32)*'Plot Data'!$AC19,NA()) -> 24650 | W19: =IF(ISNUMBER(Service!$E18)=TRUE,Service!$C$18/COUNT(Service!$E$2:$E$32)*$AC19,NA()) -> 0 | X19: =IF(ISNUMBER(Service!$E18)=TRUE,Service!$C$21/COUNT(Service!$E$2:$E$32)*$AC19,NA()) -> 0 | Y19: =IF(ISNUMBER('F&I'!$E18)=TRUE,'F&I'!$C$10/COUNT('F&I'!$E$2:$E$32)*$AC19,NA()) -> 24117.33333 | Z19: =IF(ISNUMBER('F&I'!$E18)=TRUE,'F&I'!$C$12/COUNT('F&I'!$E$2:$E$32)*'Plot Data'!$AC19,NA()) -> 3400 | AA19: =IF(ISNUMBER('F&I'!$E18)=TRUE,'F&I'!$C$18/COUNT('F&I'!$E$2:$E$32)*$AC19,NA()) -> 16882.13333 | AB19: =IF(ISNUMBER('F&I'!$E18)=TRUE,'F&I'!$C$21/COUNT('F&I'!$E$2:$E$32)*$AC19,NA()) -> 3400 | AC19: =IF(ISNUMBER('MU Used'!E18)=TRUE,'Plot Data'!AD19,"") -> 17 | AD19: 17 | AF19: =IF(ISNUMBER(Eastside!$E18)=TRUE,Eastside!$C$10/COUNT(Eastside!$E$2:$E$32)*$AC19,NA()) -> 28333.33333 | AG19: =IF(ISNUMBER(Eastside!$E18)=TRUE,Eastside!$C$12/COUNT(Eastside!$E$2:$E$32)*'Plot Data'!$AC19,NA()) -> 59500 | AH19: =IF(ISNUMBER(Eastside!$E18)=TRUE,Eastside!$C$18/COUNT(Eastside!$E$2:$E$32)*$AC19,NA()) -> 0 | AI19: =IF(ISNUMBER(Eastside!$E18)=TRUE,Eastside!$C$21/COUNT(Eastside!$E$2:$E$32)*$AC19,NA()) -> 19125 | AJ19: =IF(ISNUMBER('Emerald City'!$E18)=TRUE,'Emerald City'!$C$10/COUNT('Emerald City'!$E$2:$E$32)*$AC19,NA()) -> 11900 | AK19: =IF(ISNUMBER('Emerald City'!$E18)=TRUE,'Emerald City'!$C$12/COUNT('Emerald City'!$E$2:$E$32)*'Plot Data'!$AC19,NA()) -> 68000 | AL19: =IF(ISNUMBER('Emerald City'!$E18)=TRUE,'Emerald City'!$C$18/COUNT('Emerald City'!$E$2:$E$32)*$AC19,NA()) -> 0 | AM19: =IF(ISNUMBER('Emerald City'!$E18)=TRUE,'Emerald City'!$C$21/COUNT('Emerald City'!$E$2:$E$32)*$AC19,NA()) -> 25500 | AN19: =IF(ISNUMBER(Retail!$E18)=TRUE,Retail!$C$10/COUNT(Retail!$E$2:$E$32)*$AC19,NA()) -> 0 | AO19: =IF(ISNUMBER(Retail!$E18)=TRUE,Retail!$C$12/COUNT(Retail!$E$2:$E$32)*'Plot Data'!$AC19,NA()) -> 51000 | AP19: =IF(ISNUMBER(Retail!$E18)=TRUE,Retail!$C$18/COUNT(Retail!$E$2:$E$32)*$AC19,NA()) -> 0 | AQ19: =IF(ISNUMBER(Retail!$E18)=TRUE,Retail!$C$17/COUNT(Retail!$E$2:$E$32)*$AC19,NA()) -> 21250 | AR19: =IF(ISNUMBER(RO!$E18)=TRUE,RO!$C$10/COUNT(RO!$E$2:$E$32)*$AC19,NA()) -> 0 | AS19: =IF(ISNUMBER(RO!$E18)=TRUE,RO!$C$12/COUNT(RO!$E$2:$E$32)*'Plot Data'!$AC19,NA()) -> 29750 | AT19: =IF(ISNUMBER(RO!$E18)=TRUE,RO!$C$18/COUNT(RO!$E$2:$E$32)*$AC19,NA()) -> 0 | AU19: =IF(ISNUMBER(RO!$E18)=TRUE,RO!$C$17/COUNT(RO!$E$2:$E$32)*$AC19,NA()) -> 13175 | AV19: =IF(ISNUMBER('Major Unit'!$E18)=TRUE,'Major Unit'!$C$10/COUNT('Major Unit'!$E$2:$E$32)*$AC19,NA()) -> 0 | AW19: =IF(ISNUMBER('Major Unit'!$E18)=TRUE,'Major Unit'!$C$12/COUNT('Major Unit'!$E$2:$E$32)*'Plot Data'!$AC19,NA()) -> 76500 | AX19: =IF(ISNUMBER('Major Unit'!$E18)=TRUE,'Major Unit'!$C$18/COUNT('Major Unit'!$E$2:$E$32)*$AC19,NA()) -> 0 | AY19: =IF(ISNUMBER('Major Unit'!$E18)=TRUE,'Major Unit'!$C$17/COUNT('Major Unit'!$E$2:$E$32)*$AC19,NA()) -> 38250
A20: =IF(ISNUMBER('MU New'!E19)=TRUE,'MU New'!$C$10/COUNT('MU New'!$E$2:$E$32)*AC20,NA()) -> 328320 | B20: =IF(ISNUMBER('MU New'!E19)=TRUE,'MU New'!$C$12/COUNT('MU New'!$E$2:$E$32)*'Plot Data'!AC20,NA()) -> 315000 | C20: =IF(ISNUMBER('MU New'!E19)=TRUE,'MU New'!$C$18/COUNT('MU Used'!$E$2:$E$32)*$AC20,NA()) -> 65664 | D20: =IF(ISNUMBER('MU New'!E19)=TRUE,'MU New'!$C$21/COUNT('MU New'!$E$2:$E$32)*$AC20,NA()) -> 126000 | E20: =IF(ISNUMBER('MU New'!E19)=TRUE,'MU New'!$C$27/COUNT('MU New'!$E$2:$E$32)*$AC20,NA()) -> 15.6 | F20: =IF(ISNUMBER('MU New'!E19)=TRUE,'MU New'!$C$29/COUNT('MU New'!$E$2:$E$32)*$AC20,NA()) -> 18 | G20: =IF(ISNUMBER('MU Used'!E19)=TRUE,'MU Used'!$C$10/COUNT('MU Used'!$E$2:$E$32)*AC20,NA()) -> 225720 | H20: =IF(ISNUMBER('MU Used'!E19)=TRUE,'MU Used'!$C$12/COUNT('MU Used'!$E$2:$E$32)*'Plot Data'!AC20,NA()) -> 108000 | I20: =IF(ISNUMBER('MU Used'!E19)=TRUE,'MU Used'!$C$18/COUNT('MU Used'!$E$2:$E$32)*$AC20,NA()) -> 39501 | J20: =IF(ISNUMBER('MU Used'!E19)=TRUE,'MU Used'!$C$21/COUNT('MU Used'!$E$2:$E$32)*$AC20,NA()) -> 36000 | K20: =IF(ISNUMBER('MU Used'!E19)=TRUE,'MU Used'!$C$27/COUNT('MU Used'!$E$2:$E$32)*$AC20,NA()) -> 21.6 | L20: =IF(ISNUMBER('MU Used'!E19)=TRUE,'MU Used'!$C$29/COUNT('MU Used'!$E$2:$E$32)*$AC20,NA()) -> 9 | M20: =IF(ISNUMBER(MC!$E19)=TRUE,MC!$C$10/COUNT(MC!$E$2:$E$32)*$AC20,NA()) -> 46927.2 | N20: =IF(ISNUMBER(MC!$E19)=TRUE,MC!$C$12/COUNT(MC!$E$2:$E$32)*'Plot Data'!$AC20,NA()) -> 135000 | O20: =IF(ISNUMBER(MC!$E19)=TRUE,MC!$C$18/COUNT(MC!$E$2:$E$32)*$AC20,NA()) -> 18771 | P20: =IF(ISNUMBER(MC!$E19)=TRUE,MC!$C$21/COUNT(MC!$E$2:$E$32)*$AC20,NA()) -> 47250 | Q20: =IF(ISNUMBER(Parts!$E19)=TRUE,Parts!$C$10/COUNT(Parts!$E$2:$E$32)*$AC20,NA()) -> 88222.8 | R20: =IF(ISNUMBER(Parts!$E19)=TRUE,Parts!$C$12/COUNT(Parts!$E$2:$E$32)*'Plot Data'!$AC20,NA()) -> 166500 | S20: =IF(ISNUMBER(Parts!$E19)=TRUE,Parts!$C$18/COUNT(Parts!$E$2:$E$32)*$AC20,NA()) -> 30877.8 | T20: =IF(ISNUMBER(Parts!$E19)=TRUE,Parts!$C$21/COUNT(Parts!$E$2:$E$32)*$AC20,NA()) -> 76950 | U20: =IF(ISNUMBER(Service!$E19)=TRUE,Service!$C$10/COUNT(Service!$E$2:$E$32)*$AC20,NA()) -> 37841.4 | V20: =IF(ISNUMBER(Service!$E19)=TRUE,Service!$C$12/COUNT(Service!$E$2:$E$32)*'Plot Data'!$AC20,NA()) -> 26100 | W20: =IF(ISNUMBER(Service!$E19)=TRUE,Service!$C$18/COUNT(Service!$E$2:$E$32)*$AC20,NA()) -> 0 | X20: =IF(ISNUMBER(Service!$E19)=TRUE,Service!$C$21/COUNT(Service!$E$2:$E$32)*$AC20,NA()) -> 0 | Y20: =IF(ISNUMBER('F&I'!$E19)=TRUE,'F&I'!$C$10/COUNT('F&I'!$E$2:$E$32)*$AC20,NA()) -> 25536 | Z20: =IF(ISNUMBER('F&I'!$E19)=TRUE,'F&I'!$C$12/COUNT('F&I'!$E$2:$E$32)*'Plot Data'!$AC20,NA()) -> 3600 | AA20: =IF(ISNUMBER('F&I'!$E19)=TRUE,'F&I'!$C$18/COUNT('F&I'!$E$2:$E$32)*$AC20,NA()) -> 17875.2 | AB20: =IF(ISNUMBER('F&I'!$E19)=TRUE,'F&I'!$C$21/COUNT('F&I'!$E$2:$E$32)*$AC20,NA()) -> 3600 | AC20: =IF(ISNUMBER('MU Used'!E19)=TRUE,'Plot Data'!AD20,"") -> 18 | AD20: 18 | AF20: =IF(ISNUMBER(Eastside!$E19)=TRUE,Eastside!$C$10/COUNT(Eastside!$E$2:$E$32)*$AC20,NA()) -> 30000 | AG20: =IF(ISNUMBER(Eastside!$E19)=TRUE,Eastside!$C$12/COUNT(Eastside!$E$2:$E$32)*'Plot Data'!$AC20,NA()) -> 63000 | AH20: =IF(ISNUMBER(Eastside!$E19)=TRUE,Eastside!$C$18/COUNT(Eastside!$E$2:$E$32)*$AC20,NA()) -> 0 | AI20: =IF(ISNUMBER(Eastside!$E19)=TRUE,Eastside!$C$21/COUNT(Eastside!$E$2:$E$32)*$AC20,NA()) -> 20250 | AJ20: =IF(ISNUMBER('Emerald City'!$E19)=TRUE,'Emerald City'!$C$10/COUNT('Emerald City'!$E$2:$E$32)*$AC20,NA()) -> 12600 | AK20: =IF(ISNUMBER('Emerald City'!$E19)=TRUE,'Emerald City'!$C$12/COUNT('Emerald City'!$E$2:$E$32)*'Plot Data'!$AC20,NA()) -> 72000 | AL20: =IF(ISNUMBER('Emerald City'!$E19)=TRUE,'Emerald City'!$C$18/COUNT('Emerald City'!$E$2:$E$32)*$AC20,NA()) -> 0 | AM20: =IF(ISNUMBER('Emerald City'!$E19)=TRUE,'Emerald City'!$C$21/COUNT('Emerald City'!$E$2:$E$32)*$AC20,NA()) -> 27000 | AN20: =IF(ISNUMBER(Retail!$E19)=TRUE,Retail!$C$10/COUNT(Retail!$E$2:$E$32)*$AC20,NA()) -> 0 | AO20: =IF(ISNUMBER(Retail!$E19)=TRUE,Retail!$C$12/COUNT(Retail!$E$2:$E$32)*'Plot Data'!$AC20,NA()) -> 54000 | AP20: =IF(ISNUMBER(Retail!$E19)=TRUE,Retail!$C$18/COUNT(Retail!$E$2:$E$32)*$AC20,NA()) -> 0 | AQ20: =IF(ISNUMBER(Retail!$E19)=TRUE,Retail!$C$17/COUNT(Retail!$E$2:$E$32)*$AC20,NA()) -> 22500 | AR20: =IF(ISNUMBER(RO!$E19)=TRUE,RO!$C$10/COUNT(RO!$E$2:$E$32)*$AC20,NA()) -> 0 | AS20: =IF(ISNUMBER(RO!$E19)=TRUE,RO!$C$12/COUNT(RO!$E$2:$E$32)*'Plot Data'!$AC20,NA()) -> 31500 | AT20: =IF(ISNUMBER(RO!$E19)=TRUE,RO!$C$18/COUNT(RO!$E$2:$E$32)*$AC20,NA()) -> 0 | AU20: =IF(ISNUMBER(RO!$E19)=TRUE,RO!$C$17/COUNT(RO!$E$2:$E$32)*$AC20,NA()) -> 13950 | AV20: =IF(ISNUMBER('Major Unit'!$E19)=TRUE,'Major Unit'!$C$10/COUNT('Major Unit'!$E$2:$E$32)*$AC20,NA()) -> 0 | AW20: =IF(ISNUMBER('Major Unit'!$E19)=TRUE,'Major Unit'!$C$12/COUNT('Major Unit'!$E$2:$E$32)*'Plot Data'!$AC20,NA()) -> 81000 | AX20: =IF(ISNUMBER('Major Unit'!$E19)=TRUE,'Major Unit'!$C$18/COUNT('Major Unit'!$E$2:$E$32)*$AC20,NA()) -> 0 | AY20: =IF(ISNUMBER('Major Unit'!$E19)=TRUE,'Major Unit'!$C$17/COUNT('Major Unit'!$E$2:$E$32)*$AC20,NA()) -> 40500
A21: =IF(ISNUMBER('MU New'!E20)=TRUE,'MU New'!$C$10/COUNT('MU New'!$E$2:$E$32)*AC21,NA()) -> 346560 | B21: =IF(ISNUMBER('MU New'!E20)=TRUE,'MU New'!$C$12/COUNT('MU New'!$E$2:$E$32)*'Plot Data'!AC21,NA()) -> 332500 | C21: =IF(ISNUMBER('MU New'!E20)=TRUE,'MU New'!$C$18/COUNT('MU Used'!$E$2:$E$32)*$AC21,NA()) -> 69312 | D21: =IF(ISNUMBER('MU New'!E20)=TRUE,'MU New'!$C$21/COUNT('MU New'!$E$2:$E$32)*$AC21,NA()) -> 133000 | E21: =IF(ISNUMBER('MU New'!E20)=TRUE,'MU New'!$C$27/COUNT('MU New'!$E$2:$E$32)*$AC21,NA()) -> 16.46666667 | F21: =IF(ISNUMBER('MU New'!E20)=TRUE,'MU New'!$C$29/COUNT('MU New'!$E$2:$E$32)*$AC21,NA()) -> 19 | G21: =IF(ISNUMBER('MU Used'!E20)=TRUE,'MU Used'!$C$10/COUNT('MU Used'!$E$2:$E$32)*AC21,NA()) -> 238260 | H21: =IF(ISNUMBER('MU Used'!E20)=TRUE,'MU Used'!$C$12/COUNT('MU Used'!$E$2:$E$32)*'Plot Data'!AC21,NA()) -> 114000 | I21: =IF(ISNUMBER('MU Used'!E20)=TRUE,'MU Used'!$C$18/COUNT('MU Used'!$E$2:$E$32)*$AC21,NA()) -> 41695.5 | J21: =IF(ISNUMBER('MU Used'!E20)=TRUE,'MU Used'!$C$21/COUNT('MU Used'!$E$2:$E$32)*$AC21,NA()) -> 38000 | K21: =IF(ISNUMBER('MU Used'!E20)=TRUE,'MU Used'!$C$27/COUNT('MU Used'!$E$2:$E$32)*$AC21,NA()) -> 22.8 | L21: =IF(ISNUMBER('MU Used'!E20)=TRUE,'MU Used'!$C$29/COUNT('MU Used'!$E$2:$E$32)*$AC21,NA()) -> 9.5 | M21: =IF(ISNUMBER(MC!$E20)=TRUE,MC!$C$10/COUNT(MC!$E$2:$E$32)*$AC21,NA()) -> 49534.26667 | N21: =IF(ISNUMBER(MC!$E20)=TRUE,MC!$C$12/COUNT(MC!$E$2:$E$32)*'Plot Data'!$AC21,NA()) -> 142500 | O21: =IF(ISNUMBER(MC!$E20)=TRUE,MC!$C$18/COUNT(MC!$E$2:$E$32)*$AC21,NA()) -> 19813.83333 | P21: =IF(ISNUMBER(MC!$E20)=TRUE,MC!$C$21/COUNT(MC!$E$2:$E$32)*$AC21,NA()) -> 49875 | Q21: =IF(ISNUMBER(Parts!$E20)=TRUE,Parts!$C$10/COUNT(Parts!$E$2:$E$32)*$AC21,NA()) -> 93124.06667 | R21: =IF(ISNUMBER(Parts!$E20)=TRUE,Parts!$C$12/COUNT(Parts!$E$2:$E$32)*'Plot Data'!$AC21,NA()) -> 175750 | S21: =IF(ISNUMBER(Parts!$E20)=TRUE,Parts!$C$18/COUNT(Parts!$E$2:$E$32)*$AC21,NA()) -> 32593.23333 | T21: =IF(ISNUMBER(Parts!$E20)=TRUE,Parts!$C$21/COUNT(Parts!$E$2:$E$32)*$AC21,NA()) -> 81225 | U21: =IF(ISNUMBER(Service!$E20)=TRUE,Service!$C$10/COUNT(Service!$E$2:$E$32)*$AC21,NA()) -> 39943.7 | V21: =IF(ISNUMBER(Service!$E20)=TRUE,Service!$C$12/COUNT(Service!$E$2:$E$32)*'Plot Data'!$AC21,NA()) -> 27550 | W21: =IF(ISNUMBER(Service!$E20)=TRUE,Service!$C$18/COUNT(Service!$E$2:$E$32)*$AC21,NA()) -> 0 | X21: =IF(ISNUMBER(Service!$E20)=TRUE,Service!$C$21/COUNT(Service!$E$2:$E$32)*$AC21,NA()) -> 0 | Y21: =IF(ISNUMBER('F&I'!$E20)=TRUE,'F&I'!$C$10/COUNT('F&I'!$E$2:$E$32)*$AC21,NA()) -> 26954.66667 | Z21: =IF(ISNUMBER('F&I'!$E20)=TRUE,'F&I'!$C$12/COUNT('F&I'!$E$2:$E$32)*'Plot Data'!$AC21,NA()) -> 3800 | AA21: =IF(ISNUMBER('F&I'!$E20)=TRUE,'F&I'!$C$18/COUNT('F&I'!$E$2:$E$32)*$AC21,NA()) -> 18868.26667 | AB21: =IF(ISNUMBER('F&I'!$E20)=TRUE,'F&I'!$C$21/COUNT('F&I'!$E$2:$E$32)*$AC21,NA()) -> 3800 | AC21: =IF(ISNUMBER('MU Used'!E20)=TRUE,'Plot Data'!AD21,"") -> 19 | AD21: 19 | AF21: =IF(ISNUMBER(Eastside!$E20)=TRUE,Eastside!$C$10/COUNT(Eastside!$E$2:$E$32)*$AC21,NA()) -> 31666.66667 | AG21: =IF(ISNUMBER(Eastside!$E20)=TRUE,Eastside!$C$12/COUNT(Eastside!$E$2:$E$32)*'Plot Data'!$AC21,NA()) -> 66500 | AH21: =IF(ISNUMBER(Eastside!$E20)=TRUE,Eastside!$C$18/COUNT(Eastside!$E$2:$E$32)*$AC21,NA()) -> 0 | AI21: =IF(ISNUMBER(Eastside!$E20)=TRUE,Eastside!$C$21/COUNT(Eastside!$E$2:$E$32)*$AC21,NA()) -> 21375 | AJ21: =IF(ISNUMBER('Emerald City'!$E20)=TRUE,'Emerald City'!$C$10/COUNT('Emerald City'!$E$2:$E$32)*$AC21,NA()) -> 13300 | AK21: =IF(ISNUMBER('Emerald City'!$E20)=TRUE,'Emerald City'!$C$12/COUNT('Emerald City'!$E$2:$E$32)*'Plot Data'!$AC21,NA()) -> 76000 | AL21: =IF(ISNUMBER('Emerald City'!$E20)=TRUE,'Emerald City'!$C$18/COUNT('Emerald City'!$E$2:$E$32)*$AC21,NA()) -> 0 | AM21: =IF(ISNUMBER('Emerald City'!$E20)=TRUE,'Emerald City'!$C$21/COUNT('Emerald City'!$E$2:$E$32)*$AC21,NA()) -> 28500 | AN21: =IF(ISNUMBER(Retail!$E20)=TRUE,Retail!$C$10/COUNT(Retail!$E$2:$E$32)*$AC21,NA()) -> 0 | AO21: =IF(ISNUMBER(Retail!$E20)=TRUE,Retail!$C$12/COUNT(Retail!$E$2:$E$32)*'Plot Data'!$AC21,NA()) -> 57000 | AP21: =IF(ISNUMBER(Retail!$E20)=TRUE,Retail!$C$18/COUNT(Retail!$E$2:$E$32)*$AC21,NA()) -> 0 | AQ21: =IF(ISNUMBER(Retail!$E20)=TRUE,Retail!$C$17/COUNT(Retail!$E$2:$E$32)*$AC21,NA()) -> 23750 | AR21: =IF(ISNUMBER(RO!$E20)=TRUE,RO!$C$10/COUNT(RO!$E$2:$E$32)*$AC21,NA()) -> 0 | AS21: =IF(ISNUMBER(RO!$E20)=TRUE,RO!$C$12/COUNT(RO!$E$2:$E$32)*'Plot Data'!$AC21,NA()) -> 33250 | AT21: =IF(ISNUMBER(RO!$E20)=TRUE,RO!$C$18/COUNT(RO!$E$2:$E$32)*$AC21,NA()) -> 0 | AU21: =IF(ISNUMBER(RO!$E20)=TRUE,RO!$C$17/COUNT(RO!$E$2:$E$32)*$AC21,NA()) -> 14725 | AV21: =IF(ISNUMBER('Major Unit'!$E20)=TRUE,'Major Unit'!$C$10/COUNT('Major Unit'!$E$2:$E$32)*$AC21,NA()) -> 0 | AW21: =IF(ISNUMBER('Major Unit'!$E20)=TRUE,'Major Unit'!$C$12/COUNT('Major Unit'!$E$2:$E$32)*'Plot Data'!$AC21,NA()) -> 85500 | AX21: =IF(ISNUMBER('Major Unit'!$E20)=TRUE,'Major Unit'!$C$18/COUNT('Major Unit'!$E$2:$E$32)*$AC21,NA()) -> 0 | AY21: =IF(ISNUMBER('Major Unit'!$E20)=TRUE,'Major Unit'!$C$17/COUNT('Major Unit'!$E$2:$E$32)*$AC21,NA()) -> 42750
A22: =IF(ISNUMBER('MU New'!E21)=TRUE,'MU New'!$C$10/COUNT('MU New'!$E$2:$E$32)*AC22,NA()) -> 364800 | B22: =IF(ISNUMBER('MU New'!E21)=TRUE,'MU New'!$C$12/COUNT('MU New'!$E$2:$E$32)*'Plot Data'!AC22,NA()) -> 350000 | C22: =IF(ISNUMBER('MU New'!E21)=TRUE,'MU New'!$C$18/COUNT('MU Used'!$E$2:$E$32)*$AC22,NA()) -> 72960 | D22: =IF(ISNUMBER('MU New'!E21)=TRUE,'MU New'!$C$21/COUNT('MU New'!$E$2:$E$32)*$AC22,NA()) -> 140000 | E22: =IF(ISNUMBER('MU New'!E21)=TRUE,'MU New'!$C$27/COUNT('MU New'!$E$2:$E$32)*$AC22,NA()) -> 17.33333333 | F22: =IF(ISNUMBER('MU New'!E21)=TRUE,'MU New'!$C$29/COUNT('MU New'!$E$2:$E$32)*$AC22,NA()) -> 20 | G22: =IF(ISNUMBER('MU Used'!E21)=TRUE,'MU Used'!$C$10/COUNT('MU Used'!$E$2:$E$32)*AC22,NA()) -> 250800 | H22: =IF(ISNUMBER('MU Used'!E21)=TRUE,'MU Used'!$C$12/COUNT('MU Used'!$E$2:$E$32)*'Plot Data'!AC22,NA()) -> 120000 | I22: =IF(ISNUMBER('MU Used'!E21)=TRUE,'MU Used'!$C$18/COUNT('MU Used'!$E$2:$E$32)*$AC22,NA()) -> 43890 | J22: =IF(ISNUMBER('MU Used'!E21)=TRUE,'MU Used'!$C$21/COUNT('MU Used'!$E$2:$E$32)*$AC22,NA()) -> 40000 | K22: =IF(ISNUMBER('MU Used'!E21)=TRUE,'MU Used'!$C$27/COUNT('MU Used'!$E$2:$E$32)*$AC22,NA()) -> 24 | L22: =IF(ISNUMBER('MU Used'!E21)=TRUE,'MU Used'!$C$29/COUNT('MU Used'!$E$2:$E$32)*$AC22,NA()) -> 10 | M22: =IF(ISNUMBER(MC!$E21)=TRUE,MC!$C$10/COUNT(MC!$E$2:$E$32)*$AC22,NA()) -> 52141.33333 | N22: =IF(ISNUMBER(MC!$E21)=TRUE,MC!$C$12/COUNT(MC!$E$2:$E$32)*'Plot Data'!$AC22,NA()) -> 150000 | O22: =IF(ISNUMBER(MC!$E21)=TRUE,MC!$C$18/COUNT(MC!$E$2:$E$32)*$AC22,NA()) -> 20856.66667 | P22: =IF(ISNUMBER(MC!$E21)=TRUE,MC!$C$21/COUNT(MC!$E$2:$E$32)*$AC22,NA()) -> 52500 | Q22: =IF(ISNUMBER(Parts!$E21)=TRUE,Parts!$C$10/COUNT(Parts!$E$2:$E$32)*$AC22,NA()) -> 98025.33333 | R22: =IF(ISNUMBER(Parts!$E21)=TRUE,Parts!$C$12/COUNT(Parts!$E$2:$E$32)*'Plot Data'!$AC22,NA()) -> 185000 | S22: =IF(ISNUMBER(Parts!$E21)=TRUE,Parts!$C$18/COUNT(Parts!$E$2:$E$32)*$AC22,NA()) -> 34308.66667 | T22: =IF(ISNUMBER(Parts!$E21)=TRUE,Parts!$C$21/COUNT(Parts!$E$2:$E$32)*$AC22,NA()) -> 85500 | U22: =IF(ISNUMBER(Service!$E21)=TRUE,Service!$C$10/COUNT(Service!$E$2:$E$32)*$AC22,NA()) -> 42046 | V22: =IF(ISNUMBER(Service!$E21)=TRUE,Service!$C$12/COUNT(Service!$E$2:$E$32)*'Plot Data'!$AC22,NA()) -> 29000 | W22: =IF(ISNUMBER(Service!$E21)=TRUE,Service!$C$18/COUNT(Service!$E$2:$E$32)*$AC22,NA()) -> 0 | X22: =IF(ISNUMBER(Service!$E21)=TRUE,Service!$C$21/COUNT(Service!$E$2:$E$32)*$AC22,NA()) -> 0 | Y22: =IF(ISNUMBER('F&I'!$E21)=TRUE,'F&I'!$C$10/COUNT('F&I'!$E$2:$E$32)*$AC22,NA()) -> 28373.33333 | Z22: =IF(ISNUMBER('F&I'!$E21)=TRUE,'F&I'!$C$12/COUNT('F&I'!$E$2:$E$32)*'Plot Data'!$AC22,NA()) -> 4000 | AA22: =IF(ISNUMBER('F&I'!$E21)=TRUE,'F&I'!$C$18/COUNT('F&I'!$E$2:$E$32)*$AC22,NA()) -> 19861.33333 | AB22: =IF(ISNUMBER('F&I'!$E21)=TRUE,'F&I'!$C$21/COUNT('F&I'!$E$2:$E$32)*$AC22,NA()) -> 4000 | AC22: =IF(ISNUMBER('MU Used'!E21)=TRUE,'Plot Data'!AD22,"") -> 20 | AD22: 20 | AF22: =IF(ISNUMBER(Eastside!$E21)=TRUE,Eastside!$C$10/COUNT(Eastside!$E$2:$E$32)*$AC22,NA()) -> 33333.33333 | AG22: =IF(ISNUMBER(Eastside!$E21)=TRUE,Eastside!$C$12/COUNT(Eastside!$E$2:$E$32)*'Plot Data'!$AC22,NA()) -> 70000 | AH22: =IF(ISNUMBER(Eastside!$E21)=TRUE,Eastside!$C$18/COUNT(Eastside!$E$2:$E$32)*$AC22,NA()) -> 0 | AI22: =IF(ISNUMBER(Eastside!$E21)=TRUE,Eastside!$C$21/COUNT(Eastside!$E$2:$E$32)*$AC22,NA()) -> 22500 | AJ22: =IF(ISNUMBER('Emerald City'!$E21)=TRUE,'Emerald City'!$C$10/COUNT('Emerald City'!$E$2:$E$32)*$AC22,NA()) -> 14000 | AK22: =IF(ISNUMBER('Emerald City'!$E21)=TRUE,'Emerald City'!$C$12/COUNT('Emerald City'!$E$2:$E$32)*'Plot Data'!$AC22,NA()) -> 80000 | AL22: =IF(ISNUMBER('Emerald City'!$E21)=TRUE,'Emerald City'!$C$18/COUNT('Emerald City'!$E$2:$E$32)*$AC22,NA()) -> 0 | AM22: =IF(ISNUMBER('Emerald City'!$E21)=TRUE,'Emerald City'!$C$21/COUNT('Emerald City'!$E$2:$E$32)*$AC22,NA()) -> 30000 | AN22: =IF(ISNUMBER(Retail!$E21)=TRUE,Retail!$C$10/COUNT(Retail!$E$2:$E$32)*$AC22,NA()) -> 0 | AO22: =IF(ISNUMBER(Retail!$E21)=TRUE,Retail!$C$12/COUNT(Retail!$E$2:$E$32)*'Plot Data'!$AC22,NA()) -> 60000 | AP22: =IF(ISNUMBER(Retail!$E21)=TRUE,Retail!$C$18/COUNT(Retail!$E$2:$E$32)*$AC22,NA()) -> 0 | AQ22: =IF(ISNUMBER(Retail!$E21)=TRUE,Retail!$C$17/COUNT(Retail!$E$2:$E$32)*$AC22,NA()) -> 25000 | AR22: =IF(ISNUMBER(RO!$E21)=TRUE,RO!$C$10/COUNT(RO!$E$2:$E$32)*$AC22,NA()) -> 0 | AS22: =IF(ISNUMBER(RO!$E21)=TRUE,RO!$C$12/COUNT(RO!$E$2:$E$32)*'Plot Data'!$AC22,NA()) -> 35000 | AT22: =IF(ISNUMBER(RO!$E21)=TRUE,RO!$C$18/COUNT(RO!$E$2:$E$32)*$AC22,NA()) -> 0 | AU22: =IF(ISNUMBER(RO!$E21)=TRUE,RO!$C$17/COUNT(RO!$E$2:$E$32)*$AC22,NA()) -> 15500 | AV22: =IF(ISNUMBER('Major Unit'!$E21)=TRUE,'Major Unit'!$C$10/COUNT('Major Unit'!$E$2:$E$32)*$AC22,NA()) -> 0 | AW22: =IF(ISNUMBER('Major Unit'!$E21)=TRUE,'Major Unit'!$C$12/COUNT('Major Unit'!$E$2:$E$32)*'Plot Data'!$AC22,NA()) -> 90000 | AX22: =IF(ISNUMBER('Major Unit'!$E21)=TRUE,'Major Unit'!$C$18/COUNT('Major Unit'!$E$2:$E$32)*$AC22,NA()) -> 0 | AY22: =IF(ISNUMBER('Major Unit'!$E21)=TRUE,'Major Unit'!$C$17/COUNT('Major Unit'!$E$2:$E$32)*$AC22,NA()) -> 45000
A23: =IF(ISNUMBER('MU New'!E22)=TRUE,'MU New'!$C$10/COUNT('MU New'!$E$2:$E$32)*AC23,NA()) -> 383040 | B23: =IF(ISNUMBER('MU New'!E22)=TRUE,'MU New'!$C$12/COUNT('MU New'!$E$2:$E$32)*'Plot Data'!AC23,NA()) -> 367500 | C23: =IF(ISNUMBER('MU New'!E22)=TRUE,'MU New'!$C$18/COUNT('MU Used'!$E$2:$E$32)*$AC23,NA()) -> 76608 | D23: =IF(ISNUMBER('MU New'!E22)=TRUE,'MU New'!$C$21/COUNT('MU New'!$E$2:$E$32)*$AC23,NA()) -> 147000 | E23: =IF(ISNUMBER('MU New'!E22)=TRUE,'MU New'!$C$27/COUNT('MU New'!$E$2:$E$32)*$AC23,NA()) -> 18.2 | F23: =IF(ISNUMBER('MU New'!E22)=TRUE,'MU New'!$C$29/COUNT('MU New'!$E$2:$E$32)*$AC23,NA()) -> 21 | G23: =IF(ISNUMBER('MU Used'!E22)=TRUE,'MU Used'!$C$10/COUNT('MU Used'!$E$2:$E$32)*AC23,NA()) -> 263340 | H23: =IF(ISNUMBER('MU Used'!E22)=TRUE,'MU Used'!$C$12/COUNT('MU Used'!$E$2:$E$32)*'Plot Data'!AC23,NA()) -> 126000 | I23: =IF(ISNUMBER('MU Used'!E22)=TRUE,'MU Used'!$C$18/COUNT('MU Used'!$E$2:$E$32)*$AC23,NA()) -> 46084.5 | J23: =IF(ISNUMBER('MU Used'!E22)=TRUE,'MU Used'!$C$21/COUNT('MU Used'!$E$2:$E$32)*$AC23,NA()) -> 42000 | K23: =IF(ISNUMBER('MU Used'!E22)=TRUE,'MU Used'!$C$27/COUNT('MU Used'!$E$2:$E$32)*$AC23,NA()) -> 25.2 | L23: =IF(ISNUMBER('MU Used'!E22)=TRUE,'MU Used'!$C$29/COUNT('MU Used'!$E$2:$E$32)*$AC23,NA()) -> 10.5 | M23: =IF(ISNUMBER(MC!$E22)=TRUE,MC!$C$10/COUNT(MC!$E$2:$E$32)*$AC23,NA()) -> 54748.4 | N23: =IF(ISNUMBER(MC!$E22)=TRUE,MC!$C$12/COUNT(MC!$E$2:$E$32)*'Plot Data'!$AC23,NA()) -> 157500 | O23: =IF(ISNUMBER(MC!$E22)=TRUE,MC!$C$18/COUNT(MC!$E$2:$E$32)*$AC23,NA()) -> 21899.5 | P23: =IF(ISNUMBER(MC!$E22)=TRUE,MC!$C$21/COUNT(MC!$E$2:$E$32)*$AC23,NA()) -> 55125 | Q23: =IF(ISNUMBER(Parts!$E22)=TRUE,Parts!$C$10/COUNT(Parts!$E$2:$E$32)*$AC23,NA()) -> 102926.6 | R23: =IF(ISNUMBER(Parts!$E22)=TRUE,Parts!$C$12/COUNT(Parts!$E$2:$E$32)*'Plot Data'!$AC23,NA()) -> 194250 | S23: =IF(ISNUMBER(Parts!$E22)=TRUE,Parts!$C$18/COUNT(Parts!$E$2:$E$32)*$AC23,NA()) -> 36024.1 | T23: =IF(ISNUMBER(Parts!$E22)=TRUE,Parts!$C$21/COUNT(Parts!$E$2:$E$32)*$AC23,NA()) -> 89775 | U23: =IF(ISNUMBER(Service!$E22)=TRUE,Service!$C$10/COUNT(Service!$E$2:$E$32)*$AC23,NA()) -> 44148.3 | V23: =IF(ISNUMBER(Service!$E22)=TRUE,Service!$C$12/COUNT(Service!$E$2:$E$32)*'Plot Data'!$AC23,NA()) -> 30450 | W23: =IF(ISNUMBER(Service!$E22)=TRUE,Service!$C$18/COUNT(Service!$E$2:$E$32)*$AC23,NA()) -> 0 | X23: =IF(ISNUMBER(Service!$E22)=TRUE,Service!$C$21/COUNT(Service!$E$2:$E$32)*$AC23,NA()) -> 0 | Y23: =IF(ISNUMBER('F&I'!$E22)=TRUE,'F&I'!$C$10/COUNT('F&I'!$E$2:$E$32)*$AC23,NA()) -> 29792 | Z23: =IF(ISNUMBER('F&I'!$E22)=TRUE,'F&I'!$C$12/COUNT('F&I'!$E$2:$E$32)*'Plot Data'!$AC23,NA()) -> 4200 | AA23: =IF(ISNUMBER('F&I'!$E22)=TRUE,'F&I'!$C$18/COUNT('F&I'!$E$2:$E$32)*$AC23,NA()) -> 20854.4 | AB23: =IF(ISNUMBER('F&I'!$E22)=TRUE,'F&I'!$C$21/COUNT('F&I'!$E$2:$E$32)*$AC23,NA()) -> 4200 | AC23: =IF(ISNUMBER('MU Used'!E22)=TRUE,'Plot Data'!AD23,"") -> 21 | AD23: 21 | AF23: =IF(ISNUMBER(Eastside!$E22)=TRUE,Eastside!$C$10/COUNT(Eastside!$E$2:$E$32)*$AC23,NA()) -> 35000 | AG23: =IF(ISNUMBER(Eastside!$E22)=TRUE,Eastside!$C$12/COUNT(Eastside!$E$2:$E$32)*'Plot Data'!$AC23,NA()) -> 73500 | AH23: =IF(ISNUMBER(Eastside!$E22)=TRUE,Eastside!$C$18/COUNT(Eastside!$E$2:$E$32)*$AC23,NA()) -> 0 | AI23: =IF(ISNUMBER(Eastside!$E22)=TRUE,Eastside!$C$21/COUNT(Eastside!$E$2:$E$32)*$AC23,NA()) -> 23625 | AJ23: =IF(ISNUMBER('Emerald City'!$E22)=TRUE,'Emerald City'!$C$10/COUNT('Emerald City'!$E$2:$E$32)*$AC23,NA()) -> 14700 | AK23: =IF(ISNUMBER('Emerald City'!$E22)=TRUE,'Emerald City'!$C$12/COUNT('Emerald City'!$E$2:$E$32)*'Plot Data'!$AC23,NA()) -> 84000 | AL23: =IF(ISNUMBER('Emerald City'!$E22)=TRUE,'Emerald City'!$C$18/COUNT('Emerald City'!$E$2:$E$32)*$AC23,NA()) -> 0 | AM23: =IF(ISNUMBER('Emerald City'!$E22)=TRUE,'Emerald City'!$C$21/COUNT('Emerald City'!$E$2:$E$32)*$AC23,NA()) -> 31500 | AN23: =IF(ISNUMBER(Retail!$E22)=TRUE,Retail!$C$10/COUNT(Retail!$E$2:$E$32)*$AC23,NA()) -> 0 | AO23: =IF(ISNUMBER(Retail!$E22)=TRUE,Retail!$C$12/COUNT(Retail!$E$2:$E$32)*'Plot Data'!$AC23,NA()) -> 63000 | AP23: =IF(ISNUMBER(Retail!$E22)=TRUE,Retail!$C$18/COUNT(Retail!$E$2:$E$32)*$AC23,NA()) -> 0 | AQ23: =IF(ISNUMBER(Retail!$E22)=TRUE,Retail!$C$17/COUNT(Retail!$E$2:$E$32)*$AC23,NA()) -> 26250 | AR23: =IF(ISNUMBER(RO!$E22)=TRUE,RO!$C$10/COUNT(RO!$E$2:$E$32)*$AC23,NA()) -> 0 | AS23: =IF(ISNUMBER(RO!$E22)=TRUE,RO!$C$12/COUNT(RO!$E$2:$E$32)*'Plot Data'!$AC23,NA()) -> 36750 | AT23: =IF(ISNUMBER(RO!$E22)=TRUE,RO!$C$18/COUNT(RO!$E$2:$E$32)*$AC23,NA()) -> 0 | AU23: =IF(ISNUMBER(RO!$E22)=TRUE,RO!$C$17/COUNT(RO!$E$2:$E$32)*$AC23,NA()) -> 16275 | AV23: =IF(ISNUMBER('Major Unit'!$E22)=TRUE,'Major Unit'!$C$10/COUNT('Major Unit'!$E$2:$E$32)*$AC23,NA()) -> 0 | AW23: =IF(ISNUMBER('Major Unit'!$E22)=TRUE,'Major Unit'!$C$12/COUNT('Major Unit'!$E$2:$E$32)*'Plot Data'!$AC23,NA()) -> 94500 | AX23: =IF(ISNUMBER('Major Unit'!$E22)=TRUE,'Major Unit'!$C$18/COUNT('Major Unit'!$E$2:$E$32)*$AC23,NA()) -> 0 | AY23: =IF(ISNUMBER('Major Unit'!$E22)=TRUE,'Major Unit'!$C$17/COUNT('Major Unit'!$E$2:$E$32)*$AC23,NA()) -> 47250
A24: =IF(ISNUMBER('MU New'!E23)=TRUE,'MU New'!$C$10/COUNT('MU New'!$E$2:$E$32)*AC24,NA()) -> 401280 | B24: =IF(ISNUMBER('MU New'!E23)=TRUE,'MU New'!$C$12/COUNT('MU New'!$E$2:$E$32)*'Plot Data'!AC24,NA()) -> 385000 | C24: =IF(ISNUMBER('MU New'!E23)=TRUE,'MU New'!$C$18/COUNT('MU Used'!$E$2:$E$32)*$AC24,NA()) -> 80256 | D24: =IF(ISNUMBER('MU New'!E23)=TRUE,'MU New'!$C$21/COUNT('MU New'!$E$2:$E$32)*$AC24,NA()) -> 154000 | E24: =IF(ISNUMBER('MU New'!E23)=TRUE,'MU New'!$C$27/COUNT('MU New'!$E$2:$E$32)*$AC24,NA()) -> 19.06666667 | F24: =IF(ISNUMBER('MU New'!E23)=TRUE,'MU New'!$C$29/COUNT('MU New'!$E$2:$E$32)*$AC24,NA()) -> 22 | G24: =IF(ISNUMBER('MU Used'!E23)=TRUE,'MU Used'!$C$10/COUNT('MU Used'!$E$2:$E$32)*AC24,NA()) -> 275880 | H24: =IF(ISNUMBER('MU Used'!E23)=TRUE,'MU Used'!$C$12/COUNT('MU Used'!$E$2:$E$32)*'Plot Data'!AC24,NA()) -> 132000 | I24: =IF(ISNUMBER('MU Used'!E23)=TRUE,'MU Used'!$C$18/COUNT('MU Used'!$E$2:$E$32)*$AC24,NA()) -> 48279 | J24: =IF(ISNUMBER('MU Used'!E23)=TRUE,'MU Used'!$C$21/COUNT('MU Used'!$E$2:$E$32)*$AC24,NA()) -> 44000 | K24: =IF(ISNUMBER('MU Used'!E23)=TRUE,'MU Used'!$C$27/COUNT('MU Used'!$E$2:$E$32)*$AC24,NA()) -> 26.4 | L24: =IF(ISNUMBER('MU Used'!E23)=TRUE,'MU Used'!$C$29/COUNT('MU Used'!$E$2:$E$32)*$AC24,NA()) -> 11 | M24: =IF(ISNUMBER(MC!$E23)=TRUE,MC!$C$10/COUNT(MC!$E$2:$E$32)*$AC24,NA()) -> 57355.46667 | N24: =IF(ISNUMBER(MC!$E23)=TRUE,MC!$C$12/COUNT(MC!$E$2:$E$32)*'Plot Data'!$AC24,NA()) -> 165000 | O24: =IF(ISNUMBER(MC!$E23)=TRUE,MC!$C$18/COUNT(MC!$E$2:$E$32)*$AC24,NA()) -> 22942.33333 | P24: =IF(ISNUMBER(MC!$E23)=TRUE,MC!$C$21/COUNT(MC!$E$2:$E$32)*$AC24,NA()) -> 57750 | Q24: =IF(ISNUMBER(Parts!$E23)=TRUE,Parts!$C$10/COUNT(Parts!$E$2:$E$32)*$AC24,NA()) -> 107827.8667 | R24: =IF(ISNUMBER(Parts!$E23)=TRUE,Parts!$C$12/COUNT(Parts!$E$2:$E$32)*'Plot Data'!$AC24,NA()) -> 203500 | S24: =IF(ISNUMBER(Parts!$E23)=TRUE,Parts!$C$18/COUNT(Parts!$E$2:$E$32)*$AC24,NA()) -> 37739.53333 | T24: =IF(ISNUMBER(Parts!$E23)=TRUE,Parts!$C$21/COUNT(Parts!$E$2:$E$32)*$AC24,NA()) -> 94050 | U24: =IF(ISNUMBER(Service!$E23)=TRUE,Service!$C$10/COUNT(Service!$E$2:$E$32)*$AC24,NA()) -> 46250.6 | V24: =IF(ISNUMBER(Service!$E23)=TRUE,Service!$C$12/COUNT(Service!$E$2:$E$32)*'Plot Data'!$AC24,NA()) -> 31900 | W24: =IF(ISNUMBER(Service!$E23)=TRUE,Service!$C$18/COUNT(Service!$E$2:$E$32)*$AC24,NA()) -> 0 | X24: =IF(ISNUMBER(Service!$E23)=TRUE,Service!$C$21/COUNT(Service!$E$2:$E$32)*$AC24,NA()) -> 0 | Y24: =IF(ISNUMBER('F&I'!$E23)=TRUE,'F&I'!$C$10/COUNT('F&I'!$E$2:$E$32)*$AC24,NA()) -> 31210.66667 | Z24: =IF(ISNUMBER('F&I'!$E23)=TRUE,'F&I'!$C$12/COUNT('F&I'!$E$2:$E$32)*'Plot Data'!$AC24,NA()) -> 4400 | AA24: =IF(ISNUMBER('F&I'!$E23)=TRUE,'F&I'!$C$18/COUNT('F&I'!$E$2:$E$32)*$AC24,NA()) -> 21847.46667 | AB24: =IF(ISNUMBER('F&I'!$E23)=TRUE,'F&I'!$C$21/COUNT('F&I'!$E$2:$E$32)*$AC24,NA()) -> 4400 | AC24: =IF(ISNUMBER('MU Used'!E23)=TRUE,'Plot Data'!AD24,"") -> 22 | AD24: 22 | AF24: =IF(ISNUMBER(Eastside!$E23)=TRUE,Eastside!$C$10/COUNT(Eastside!$E$2:$E$32)*$AC24,NA()) -> 36666.66667 | AG24: =IF(ISNUMBER(Eastside!$E23)=TRUE,Eastside!$C$12/COUNT(Eastside!$E$2:$E$32)*'Plot Data'!$AC24,NA()) -> 77000 | AH24: =IF(ISNUMBER(Eastside!$E23)=TRUE,Eastside!$C$18/COUNT(Eastside!$E$2:$E$32)*$AC24,NA()) -> 0 | AI24: =IF(ISNUMBER(Eastside!$E23)=TRUE,Eastside!$C$21/COUNT(Eastside!$E$2:$E$32)*$AC24,NA()) -> 24750 | AJ24: =IF(ISNUMBER('Emerald City'!$E23)=TRUE,'Emerald City'!$C$10/COUNT('Emerald City'!$E$2:$E$32)*$AC24,NA()) -> 15400 | AK24: =IF(ISNUMBER('Emerald City'!$E23)=TRUE,'Emerald City'!$C$12/COUNT('Emerald City'!$E$2:$E$32)*'Plot Data'!$AC24,NA()) -> 88000 | AL24: =IF(ISNUMBER('Emerald City'!$E23)=TRUE,'Emerald City'!$C$18/COUNT('Emerald City'!$E$2:$E$32)*$AC24,NA()) -> 0 | AM24: =IF(ISNUMBER('Emerald City'!$E23)=TRUE,'Emerald City'!$C$21/COUNT('Emerald City'!$E$2:$E$32)*$AC24,NA()) -> 33000 | AN24: =IF(ISNUMBER(Retail!$E23)=TRUE,Retail!$C$10/COUNT(Retail!$E$2:$E$32)*$AC24,NA()) -> 0 | AO24: =IF(ISNUMBER(Retail!$E23)=TRUE,Retail!$C$12/COUNT(Retail!$E$2:$E$32)*'Plot Data'!$AC24,NA()) -> 66000 | AP24: =IF(ISNUMBER(Retail!$E23)=TRUE,Retail!$C$18/COUNT(Retail!$E$2:$E$32)*$AC24,NA()) -> 0 | AQ24: =IF(ISNUMBER(Retail!$E23)=TRUE,Retail!$C$17/COUNT(Retail!$E$2:$E$32)*$AC24,NA()) -> 27500 | AR24: =IF(ISNUMBER(RO!$E23)=TRUE,RO!$C$10/COUNT(RO!$E$2:$E$32)*$AC24,NA()) -> 0 | AS24: =IF(ISNUMBER(RO!$E23)=TRUE,RO!$C$12/COUNT(RO!$E$2:$E$32)*'Plot Data'!$AC24,NA()) -> 38500 | AT24: =IF(ISNUMBER(RO!$E23)=TRUE,RO!$C$18/COUNT(RO!$E$2:$E$32)*$AC24,NA()) -> 0 | AU24: =IF(ISNUMBER(RO!$E23)=TRUE,RO!$C$17/COUNT(RO!$E$2:$E$32)*$AC24,NA()) -> 17050 | AV24: =IF(ISNUMBER('Major Unit'!$E23)=TRUE,'Major Unit'!$C$10/COUNT('Major Unit'!$E$2:$E$32)*$AC24,NA()) -> 0 | AW24: =IF(ISNUMBER('Major Unit'!$E23)=TRUE,'Major Unit'!$C$12/COUNT('Major Unit'!$E$2:$E$32)*'Plot Data'!$AC24,NA()) -> 99000 | AX24: =IF(ISNUMBER('Major Unit'!$E23)=TRUE,'Major Unit'!$C$18/COUNT('Major Unit'!$E$2:$E$32)*$AC24,NA()) -> 0 | AY24: =IF(ISNUMBER('Major Unit'!$E23)=TRUE,'Major Unit'!$C$17/COUNT('Major Unit'!$E$2:$E$32)*$AC24,NA()) -> 49500
A25: =IF(ISNUMBER('MU New'!E24)=TRUE,'MU New'!$C$10/COUNT('MU New'!$E$2:$E$32)*AC25,NA()) -> 419520 | B25: =IF(ISNUMBER('MU New'!E24)=TRUE,'MU New'!$C$12/COUNT('MU New'!$E$2:$E$32)*'Plot Data'!AC25,NA()) -> 402500 | C25: =IF(ISNUMBER('MU New'!E24)=TRUE,'MU New'!$C$18/COUNT('MU Used'!$E$2:$E$32)*$AC25,NA()) -> 83904 | D25: =IF(ISNUMBER('MU New'!E24)=TRUE,'MU New'!$C$21/COUNT('MU New'!$E$2:$E$32)*$AC25,NA()) -> 161000 | E25: =IF(ISNUMBER('MU New'!E24)=TRUE,'MU New'!$C$27/COUNT('MU New'!$E$2:$E$32)*$AC25,NA()) -> 19.93333333 | F25: =IF(ISNUMBER('MU New'!E24)=TRUE,'MU New'!$C$29/COUNT('MU New'!$E$2:$E$32)*$AC25,NA()) -> 23 | G25: =IF(ISNUMBER('MU Used'!E24)=TRUE,'MU Used'!$C$10/COUNT('MU Used'!$E$2:$E$32)*AC25,NA()) -> 288420 | H25: =IF(ISNUMBER('MU Used'!E24)=TRUE,'MU Used'!$C$12/COUNT('MU Used'!$E$2:$E$32)*'Plot Data'!AC25,NA()) -> 138000 | I25: =IF(ISNUMBER('MU Used'!E24)=TRUE,'MU Used'!$C$18/COUNT('MU Used'!$E$2:$E$32)*$AC25,NA()) -> 50473.5 | J25: =IF(ISNUMBER('MU Used'!E24)=TRUE,'MU Used'!$C$21/COUNT('MU Used'!$E$2:$E$32)*$AC25,NA()) -> 46000 | K25: =IF(ISNUMBER('MU Used'!E24)=TRUE,'MU Used'!$C$27/COUNT('MU Used'!$E$2:$E$32)*$AC25,NA()) -> 27.6 | L25: =IF(ISNUMBER('MU Used'!E24)=TRUE,'MU Used'!$C$29/COUNT('MU Used'!$E$2:$E$32)*$AC25,NA()) -> 11.5 | M25: =IF(ISNUMBER(MC!$E24)=TRUE,MC!$C$10/COUNT(MC!$E$2:$E$32)*$AC25,NA()) -> 59962.53333 | N25: =IF(ISNUMBER(MC!$E24)=TRUE,MC!$C$12/COUNT(MC!$E$2:$E$32)*'Plot Data'!$AC25,NA()) -> 172500 | O25: =IF(ISNUMBER(MC!$E24)=TRUE,MC!$C$18/COUNT(MC!$E$2:$E$32)*$AC25,NA()) -> 23985.16667 | P25: =IF(ISNUMBER(MC!$E24)=TRUE,MC!$C$21/COUNT(MC!$E$2:$E$32)*$AC25,NA()) -> 60375 | Q25: =IF(ISNUMBER(Parts!$E24)=TRUE,Parts!$C$10/COUNT(Parts!$E$2:$E$32)*$AC25,NA()) -> 112729.1333 | R25: =IF(ISNUMBER(Parts!$E24)=TRUE,Parts!$C$12/COUNT(Parts!$E$2:$E$32)*'Plot Data'!$AC25,NA()) -> 212750 | S25: =IF(ISNUMBER(Parts!$E24)=TRUE,Parts!$C$18/COUNT(Parts!$E$2:$E$32)*$AC25,NA()) -> 39454.96667 | T25: =IF(ISNUMBER(Parts!$E24)=TRUE,Parts!$C$21/COUNT(Parts!$E$2:$E$32)*$AC25,NA()) -> 98325 | U25: =IF(ISNUMBER(Service!$E24)=TRUE,Service!$C$10/COUNT(Service!$E$2:$E$32)*$AC25,NA()) -> 48352.9 | V25: =IF(ISNUMBER(Service!$E24)=TRUE,Service!$C$12/COUNT(Service!$E$2:$E$32)*'Plot Data'!$AC25,NA()) -> 33350 | W25: =IF(ISNUMBER(Service!$E24)=TRUE,Service!$C$18/COUNT(Service!$E$2:$E$32)*$AC25,NA()) -> 0 | X25: =IF(ISNUMBER(Service!$E24)=TRUE,Service!$C$21/COUNT(Service!$E$2:$E$32)*$AC25,NA()) -> 0 | Y25: =IF(ISNUMBER('F&I'!$E24)=TRUE,'F&I'!$C$10/COUNT('F&I'!$E$2:$E$32)*$AC25,NA()) -> 32629.33333 | Z25: =IF(ISNUMBER('F&I'!$E24)=TRUE,'F&I'!$C$12/COUNT('F&I'!$E$2:$E$32)*'Plot Data'!$AC25,NA()) -> 4600 | AA25: =IF(ISNUMBER('F&I'!$E24)=TRUE,'F&I'!$C$18/COUNT('F&I'!$E$2:$E$32)*$AC25,NA()) -> 22840.53333 | AB25: =IF(ISNUMBER('F&I'!$E24)=TRUE,'F&I'!$C$21/COUNT('F&I'!$E$2:$E$32)*$AC25,NA()) -> 4600 | AC25: =IF(ISNUMBER('MU Used'!E24)=TRUE,'Plot Data'!AD25,"") -> 23 | AD25: 23 | AF25: =IF(ISNUMBER(Eastside!$E24)=TRUE,Eastside!$C$10/COUNT(Eastside!$E$2:$E$32)*$AC25,NA()) -> 38333.33333 | AG25: =IF(ISNUMBER(Eastside!$E24)=TRUE,Eastside!$C$12/COUNT(Eastside!$E$2:$E$32)*'Plot Data'!$AC25,NA()) -> 80500 | AH25: =IF(ISNUMBER(Eastside!$E24)=TRUE,Eastside!$C$18/COUNT(Eastside!$E$2:$E$32)*$AC25,NA()) -> 0 | AI25: =IF(ISNUMBER(Eastside!$E24)=TRUE,Eastside!$C$21/COUNT(Eastside!$E$2:$E$32)*$AC25,NA()) -> 25875 | AJ25: =IF(ISNUMBER('Emerald City'!$E24)=TRUE,'Emerald City'!$C$10/COUNT('Emerald City'!$E$2:$E$32)*$AC25,NA()) -> 16100 | AK25: =IF(ISNUMBER('Emerald City'!$E24)=TRUE,'Emerald City'!$C$12/COUNT('Emerald City'!$E$2:$E$32)*'Plot Data'!$AC25,NA()) -> 92000 | AL25: =IF(ISNUMBER('Emerald City'!$E24)=TRUE,'Emerald City'!$C$18/COUNT('Emerald City'!$E$2:$E$32)*$AC25,NA()) -> 0 | AM25: =IF(ISNUMBER('Emerald City'!$E24)=TRUE,'Emerald City'!$C$21/COUNT('Emerald City'!$E$2:$E$32)*$AC25,NA()) -> 34500 | AN25: =IF(ISNUMBER(Retail!$E24)=TRUE,Retail!$C$10/COUNT(Retail!$E$2:$E$32)*$AC25,NA()) -> 0 | AO25: =IF(ISNUMBER(Retail!$E24)=TRUE,Retail!$C$12/COUNT(Retail!$E$2:$E$32)*'Plot Data'!$AC25,NA()) -> 69000 | AP25: =IF(ISNUMBER(Retail!$E24)=TRUE,Retail!$C$18/COUNT(Retail!$E$2:$E$32)*$AC25,NA()) -> 0 | AQ25: =IF(ISNUMBER(Retail!$E24)=TRUE,Retail!$C$17/COUNT(Retail!$E$2:$E$32)*$AC25,NA()) -> 28750 | AR25: =IF(ISNUMBER(RO!$E24)=TRUE,RO!$C$10/COUNT(RO!$E$2:$E$32)*$AC25,NA()) -> 0 | AS25: =IF(ISNUMBER(RO!$E24)=TRUE,RO!$C$12/COUNT(RO!$E$2:$E$32)*'Plot Data'!$AC25,NA()) -> 40250 | AT25: =IF(ISNUMBER(RO!$E24)=TRUE,RO!$C$18/COUNT(RO!$E$2:$E$32)*$AC25,NA()) -> 0 | AU25: =IF(ISNUMBER(RO!$E24)=TRUE,RO!$C$17/COUNT(RO!$E$2:$E$32)*$AC25,NA()) -> 17825 | AV25: =IF(ISNUMBER('Major Unit'!$E24)=TRUE,'Major Unit'!$C$10/COUNT('Major Unit'!$E$2:$E$32)*$AC25,NA()) -> 0 | AW25: =IF(ISNUMBER('Major Unit'!$E24)=TRUE,'Major Unit'!$C$12/COUNT('Major Unit'!$E$2:$E$32)*'Plot Data'!$AC25,NA()) -> 103500 | AX25: =IF(ISNUMBER('Major Unit'!$E24)=TRUE,'Major Unit'!$C$18/COUNT('Major Unit'!$E$2:$E$32)*$AC25,NA()) -> 0 | AY25: =IF(ISNUMBER('Major Unit'!$E24)=TRUE,'Major Unit'!$C$17/COUNT('Major Unit'!$E$2:$E$32)*$AC25,NA()) -> 51750
A26: =IF(ISNUMBER('MU New'!E25)=TRUE,'MU New'!$C$10/COUNT('MU New'!$E$2:$E$32)*AC26,NA()) -> 437760 | B26: =IF(ISNUMBER('MU New'!E25)=TRUE,'MU New'!$C$12/COUNT('MU New'!$E$2:$E$32)*'Plot Data'!AC26,NA()) -> 420000 | C26: =IF(ISNUMBER('MU New'!E25)=TRUE,'MU New'!$C$18/COUNT('MU Used'!$E$2:$E$32)*$AC26,NA()) -> 87552 | D26: =IF(ISNUMBER('MU New'!E25)=TRUE,'MU New'!$C$21/COUNT('MU New'!$E$2:$E$32)*$AC26,NA()) -> 168000 | E26: =IF(ISNUMBER('MU New'!E25)=TRUE,'MU New'!$C$27/COUNT('MU New'!$E$2:$E$32)*$AC26,NA()) -> 20.8 | F26: =IF(ISNUMBER('MU New'!E25)=TRUE,'MU New'!$C$29/COUNT('MU New'!$E$2:$E$32)*$AC26,NA()) -> 24 | G26: =IF(ISNUMBER('MU Used'!E25)=TRUE,'MU Used'!$C$10/COUNT('MU Used'!$E$2:$E$32)*AC26,NA()) -> 300960 | H26: =IF(ISNUMBER('MU Used'!E25)=TRUE,'MU Used'!$C$12/COUNT('MU Used'!$E$2:$E$32)*'Plot Data'!AC26,NA()) -> 144000 | I26: =IF(ISNUMBER('MU Used'!E25)=TRUE,'MU Used'!$C$18/COUNT('MU Used'!$E$2:$E$32)*$AC26,NA()) -> 52668 | J26: =IF(ISNUMBER('MU Used'!E25)=TRUE,'MU Used'!$C$21/COUNT('MU Used'!$E$2:$E$32)*$AC26,NA()) -> 48000 | K26: =IF(ISNUMBER('MU Used'!E25)=TRUE,'MU Used'!$C$27/COUNT('MU Used'!$E$2:$E$32)*$AC26,NA()) -> 28.8 | L26: =IF(ISNUMBER('MU Used'!E25)=TRUE,'MU Used'!$C$29/COUNT('MU Used'!$E$2:$E$32)*$AC26,NA()) -> 12 | M26: =IF(ISNUMBER(MC!$E25)=TRUE,MC!$C$10/COUNT(MC!$E$2:$E$32)*$AC26,NA()) -> 62569.6 | N26: =IF(ISNUMBER(MC!$E25)=TRUE,MC!$C$12/COUNT(MC!$E$2:$E$32)*'Plot Data'!$AC26,NA()) -> 180000 | O26: =IF(ISNUMBER(MC!$E25)=TRUE,MC!$C$18/COUNT(MC!$E$2:$E$32)*$AC26,NA()) -> 25028 | P26: =IF(ISNUMBER(MC!$E25)=TRUE,MC!$C$21/COUNT(MC!$E$2:$E$32)*$AC26,NA()) -> 63000 | Q26: =IF(ISNUMBER(Parts!$E25)=TRUE,Parts!$C$10/COUNT(Parts!$E$2:$E$32)*$AC26,NA()) -> 117630.4 | R26: =IF(ISNUMBER(Parts!$E25)=TRUE,Parts!$C$12/COUNT(Parts!$E$2:$E$32)*'Plot Data'!$AC26,NA()) -> 222000 | S26: =IF(ISNUMBER(Parts!$E25)=TRUE,Parts!$C$18/COUNT(Parts!$E$2:$E$32)*$AC26,NA()) -> 41170.4 | T26: =IF(ISNUMBER(Parts!$E25)=TRUE,Parts!$C$21/COUNT(Parts!$E$2:$E$32)*$AC26,NA()) -> 102600 | U26: =IF(ISNUMBER(Service!$E25)=TRUE,Service!$C$10/COUNT(Service!$E$2:$E$32)*$AC26,NA()) -> 50455.2 | V26: =IF(ISNUMBER(Service!$E25)=TRUE,Service!$C$12/COUNT(Service!$E$2:$E$32)*'Plot Data'!$AC26,NA()) -> 34800 | W26: =IF(ISNUMBER(Service!$E25)=TRUE,Service!$C$18/COUNT(Service!$E$2:$E$32)*$AC26,NA()) -> 0 | X26: =IF(ISNUMBER(Service!$E25)=TRUE,Service!$C$21/COUNT(Service!$E$2:$E$32)*$AC26,NA()) -> 0 | Y26: =IF(ISNUMBER('F&I'!$E25)=TRUE,'F&I'!$C$10/COUNT('F&I'!$E$2:$E$32)*$AC26,NA()) -> 34048 | Z26: =IF(ISNUMBER('F&I'!$E25)=TRUE,'F&I'!$C$12/COUNT('F&I'!$E$2:$E$32)*'Plot Data'!$AC26,NA()) -> 4800 | AA26: =IF(ISNUMBER('F&I'!$E25)=TRUE,'F&I'!$C$18/COUNT('F&I'!$E$2:$E$32)*$AC26,NA()) -> 23833.6 | AB26: =IF(ISNUMBER('F&I'!$E25)=TRUE,'F&I'!$C$21/COUNT('F&I'!$E$2:$E$32)*$AC26,NA()) -> 4800 | AC26: =IF(ISNUMBER('MU Used'!E25)=TRUE,'Plot Data'!AD26,"") -> 24 | AD26: 24 | AF26: =IF(ISNUMBER(Eastside!$E25)=TRUE,Eastside!$C$10/COUNT(Eastside!$E$2:$E$32)*$AC26,NA()) -> 40000 | AG26: =IF(ISNUMBER(Eastside!$E25)=TRUE,Eastside!$C$12/COUNT(Eastside!$E$2:$E$32)*'Plot Data'!$AC26,NA()) -> 84000 | AH26: =IF(ISNUMBER(Eastside!$E25)=TRUE,Eastside!$C$18/COUNT(Eastside!$E$2:$E$32)*$AC26,NA()) -> 0 | AI26: =IF(ISNUMBER(Eastside!$E25)=TRUE,Eastside!$C$21/COUNT(Eastside!$E$2:$E$32)*$AC26,NA()) -> 27000 | AJ26: =IF(ISNUMBER('Emerald City'!$E25)=TRUE,'Emerald City'!$C$10/COUNT('Emerald City'!$E$2:$E$32)*$AC26,NA()) -> 16800 | AK26: =IF(ISNUMBER('Emerald City'!$E25)=TRUE,'Emerald City'!$C$12/COUNT('Emerald City'!$E$2:$E$32)*'Plot Data'!$AC26,NA()) -> 96000 | AL26: =IF(ISNUMBER('Emerald City'!$E25)=TRUE,'Emerald City'!$C$18/COUNT('Emerald City'!$E$2:$E$32)*$AC26,NA()) -> 0 | AM26: =IF(ISNUMBER('Emerald City'!$E25)=TRUE,'Emerald City'!$C$21/COUNT('Emerald City'!$E$2:$E$32)*$AC26,NA()) -> 36000 | AN26: =IF(ISNUMBER(Retail!$E25)=TRUE,Retail!$C$10/COUNT(Retail!$E$2:$E$32)*$AC26,NA()) -> 0 | AO26: =IF(ISNUMBER(Retail!$E25)=TRUE,Retail!$C$12/COUNT(Retail!$E$2:$E$32)*'Plot Data'!$AC26,NA()) -> 72000 | AP26: =IF(ISNUMBER(Retail!$E25)=TRUE,Retail!$C$18/COUNT(Retail!$E$2:$E$32)*$AC26,NA()) -> 0 | AQ26: =IF(ISNUMBER(Retail!$E25)=TRUE,Retail!$C$17/COUNT(Retail!$E$2:$E$32)*$AC26,NA()) -> 30000 | AR26: =IF(ISNUMBER(RO!$E25)=TRUE,RO!$C$10/COUNT(RO!$E$2:$E$32)*$AC26,NA()) -> 0 | AS26: =IF(ISNUMBER(RO!$E25)=TRUE,RO!$C$12/COUNT(RO!$E$2:$E$32)*'Plot Data'!$AC26,NA()) -> 42000 | AT26: =IF(ISNUMBER(RO!$E25)=TRUE,RO!$C$18/COUNT(RO!$E$2:$E$32)*$AC26,NA()) -> 0 | AU26: =IF(ISNUMBER(RO!$E25)=TRUE,RO!$C$17/COUNT(RO!$E$2:$E$32)*$AC26,NA()) -> 18600 | AV26: =IF(ISNUMBER('Major Unit'!$E25)=TRUE,'Major Unit'!$C$10/COUNT('Major Unit'!$E$2:$E$32)*$AC26,NA()) -> 0 | AW26: =IF(ISNUMBER('Major Unit'!$E25)=TRUE,'Major Unit'!$C$12/COUNT('Major Unit'!$E$2:$E$32)*'Plot Data'!$AC26,NA()) -> 108000 | AX26: =IF(ISNUMBER('Major Unit'!$E25)=TRUE,'Major Unit'!$C$18/COUNT('Major Unit'!$E$2:$E$32)*$AC26,NA()) -> 0 | AY26: =IF(ISNUMBER('Major Unit'!$E25)=TRUE,'Major Unit'!$C$17/COUNT('Major Unit'!$E$2:$E$32)*$AC26,NA()) -> 54000
A27: =IF(ISNUMBER('MU New'!E26)=TRUE,'MU New'!$C$10/COUNT('MU New'!$E$2:$E$32)*AC27,NA()) -> 456000 | B27: =IF(ISNUMBER('MU New'!E26)=TRUE,'MU New'!$C$12/COUNT('MU New'!$E$2:$E$32)*'Plot Data'!AC27,NA()) -> 437500 | C27: =IF(ISNUMBER('MU New'!E26)=TRUE,'MU New'!$C$18/COUNT('MU Used'!$E$2:$E$32)*$AC27,NA()) -> 91200 | D27: =IF(ISNUMBER('MU New'!E26)=TRUE,'MU New'!$C$21/COUNT('MU New'!$E$2:$E$32)*$AC27,NA()) -> 175000 | E27: =IF(ISNUMBER('MU New'!E26)=TRUE,'MU New'!$C$27/COUNT('MU New'!$E$2:$E$32)*$AC27,NA()) -> 21.66666667 | F27: =IF(ISNUMBER('MU New'!E26)=TRUE,'MU New'!$C$29/COUNT('MU New'!$E$2:$E$32)*$AC27,NA()) -> 25 | G27: =IF(ISNUMBER('MU Used'!E26)=TRUE,'MU Used'!$C$10/COUNT('MU Used'!$E$2:$E$32)*AC27,NA()) -> 313500 | H27: =IF(ISNUMBER('MU Used'!E26)=TRUE,'MU Used'!$C$12/COUNT('MU Used'!$E$2:$E$32)*'Plot Data'!AC27,NA()) -> 150000 | I27: =IF(ISNUMBER('MU Used'!E26)=TRUE,'MU Used'!$C$18/COUNT('MU Used'!$E$2:$E$32)*$AC27,NA()) -> 54862.5 | J27: =IF(ISNUMBER('MU Used'!E26)=TRUE,'MU Used'!$C$21/COUNT('MU Used'!$E$2:$E$32)*$AC27,NA()) -> 50000 | K27: =IF(ISNUMBER('MU Used'!E26)=TRUE,'MU Used'!$C$27/COUNT('MU Used'!$E$2:$E$32)*$AC27,NA()) -> 30 | L27: =IF(ISNUMBER('MU Used'!E26)=TRUE,'MU Used'!$C$29/COUNT('MU Used'!$E$2:$E$32)*$AC27,NA()) -> 12.5 | M27: =IF(ISNUMBER(MC!$E26)=TRUE,MC!$C$10/COUNT(MC!$E$2:$E$32)*$AC27,NA()) -> 65176.66667 | N27: =IF(ISNUMBER(MC!$E26)=TRUE,MC!$C$12/COUNT(MC!$E$2:$E$32)*'Plot Data'!$AC27,NA()) -> 187500 | O27: =IF(ISNUMBER(MC!$E26)=TRUE,MC!$C$18/COUNT(MC!$E$2:$E$32)*$AC27,NA()) -> 26070.83333 | P27: =IF(ISNUMBER(MC!$E26)=TRUE,MC!$C$21/COUNT(MC!$E$2:$E$32)*$AC27,NA()) -> 65625 | Q27: =IF(ISNUMBER(Parts!$E26)=TRUE,Parts!$C$10/COUNT(Parts!$E$2:$E$32)*$AC27,NA()) -> 122531.6667 | R27: =IF(ISNUMBER(Parts!$E26)=TRUE,Parts!$C$12/COUNT(Parts!$E$2:$E$32)*'Plot Data'!$AC27,NA()) -> 231250 | S27: =IF(ISNUMBER(Parts!$E26)=TRUE,Parts!$C$18/COUNT(Parts!$E$2:$E$32)*$AC27,NA()) -> 42885.83333 | T27: =IF(ISNUMBER(Parts!$E26)=TRUE,Parts!$C$21/COUNT(Parts!$E$2:$E$32)*$AC27,NA()) -> 106875 | U27: =IF(ISNUMBER(Service!$E26)=TRUE,Service!$C$10/COUNT(Service!$E$2:$E$32)*$AC27,NA()) -> 52557.5 | V27: =IF(ISNUMBER(Service!$E26)=TRUE,Service!$C$12/COUNT(Service!$E$2:$E$32)*'Plot Data'!$AC27,NA()) -> 36250 | W27: =IF(ISNUMBER(Service!$E26)=TRUE,Service!$C$18/COUNT(Service!$E$2:$E$32)*$AC27,NA()) -> 0 | X27: =IF(ISNUMBER(Service!$E26)=TRUE,Service!$C$21/COUNT(Service!$E$2:$E$32)*$AC27,NA()) -> 0 | Y27: =IF(ISNUMBER('F&I'!$E26)=TRUE,'F&I'!$C$10/COUNT('F&I'!$E$2:$E$32)*$AC27,NA()) -> 35466.66667 | Z27: =IF(ISNUMBER('F&I'!$E26)=TRUE,'F&I'!$C$12/COUNT('F&I'!$E$2:$E$32)*'Plot Data'!$AC27,NA()) -> 5000 | AA27: =IF(ISNUMBER('F&I'!$E26)=TRUE,'F&I'!$C$18/COUNT('F&I'!$E$2:$E$32)*$AC27,NA()) -> 24826.66667 | AB27: =IF(ISNUMBER('F&I'!$E26)=TRUE,'F&I'!$C$21/COUNT('F&I'!$E$2:$E$32)*$AC27,NA()) -> 5000 | AC27: =IF(ISNUMBER('MU Used'!E26)=TRUE,'Plot Data'!AD27,"") -> 25 | AD27: 25 | AF27: =IF(ISNUMBER(Eastside!$E26)=TRUE,Eastside!$C$10/COUNT(Eastside!$E$2:$E$32)*$AC27,NA()) -> 41666.66667 | AG27: =IF(ISNUMBER(Eastside!$E26)=TRUE,Eastside!$C$12/COUNT(Eastside!$E$2:$E$32)*'Plot Data'!$AC27,NA()) -> 87500 | AH27: =IF(ISNUMBER(Eastside!$E26)=TRUE,Eastside!$C$18/COUNT(Eastside!$E$2:$E$32)*$AC27,NA()) -> 0 | AI27: =IF(ISNUMBER(Eastside!$E26)=TRUE,Eastside!$C$21/COUNT(Eastside!$E$2:$E$32)*$AC27,NA()) -> 28125 | AJ27: =IF(ISNUMBER('Emerald City'!$E26)=TRUE,'Emerald City'!$C$10/COUNT('Emerald City'!$E$2:$E$32)*$AC27,NA()) -> 17500 | AK27: =IF(ISNUMBER('Emerald City'!$E26)=TRUE,'Emerald City'!$C$12/COUNT('Emerald City'!$E$2:$E$32)*'Plot Data'!$AC27,NA()) -> 100000 | AL27: =IF(ISNUMBER('Emerald City'!$E26)=TRUE,'Emerald City'!$C$18/COUNT('Emerald City'!$E$2:$E$32)*$AC27,NA()) -> 0 | AM27: =IF(ISNUMBER('Emerald City'!$E26)=TRUE,'Emerald City'!$C$21/COUNT('Emerald City'!$E$2:$E$32)*$AC27,NA()) -> 37500 | AN27: =IF(ISNUMBER(Retail!$E26)=TRUE,Retail!$C$10/COUNT(Retail!$E$2:$E$32)*$AC27,NA()) -> 0 | AO27: =IF(ISNUMBER(Retail!$E26)=TRUE,Retail!$C$12/COUNT(Retail!$E$2:$E$32)*'Plot Data'!$AC27,NA()) -> 75000 | AP27: =IF(ISNUMBER(Retail!$E26)=TRUE,Retail!$C$18/COUNT(Retail!$E$2:$E$32)*$AC27,NA()) -> 0 | AQ27: =IF(ISNUMBER(Retail!$E26)=TRUE,Retail!$C$17/COUNT(Retail!$E$2:$E$32)*$AC27,NA()) -> 31250 | AR27: =IF(ISNUMBER(RO!$E26)=TRUE,RO!$C$10/COUNT(RO!$E$2:$E$32)*$AC27,NA()) -> 0 | AS27: =IF(ISNUMBER(RO!$E26)=TRUE,RO!$C$12/COUNT(RO!$E$2:$E$32)*'Plot Data'!$AC27,NA()) -> 43750 | AT27: =IF(ISNUMBER(RO!$E26)=TRUE,RO!$C$18/COUNT(RO!$E$2:$E$32)*$AC27,NA()) -> 0 | AU27: =IF(ISNUMBER(RO!$E26)=TRUE,RO!$C$17/COUNT(RO!$E$2:$E$32)*$AC27,NA()) -> 19375 | AV27: =IF(ISNUMBER('Major Unit'!$E26)=TRUE,'Major Unit'!$C$10/COUNT('Major Unit'!$E$2:$E$32)*$AC27,NA()) -> 0 | AW27: =IF(ISNUMBER('Major Unit'!$E26)=TRUE,'Major Unit'!$C$12/COUNT('Major Unit'!$E$2:$E$32)*'Plot Data'!$AC27,NA()) -> 112500 | AX27: =IF(ISNUMBER('Major Unit'!$E26)=TRUE,'Major Unit'!$C$18/COUNT('Major Unit'!$E$2:$E$32)*$AC27,NA()) -> 0 | AY27: =IF(ISNUMBER('Major Unit'!$E26)=TRUE,'Major Unit'!$C$17/COUNT('Major Unit'!$E$2:$E$32)*$AC27,NA()) -> 56250
A28: =IF(ISNUMBER('MU New'!E27)=TRUE,'MU New'!$C$10/COUNT('MU New'!$E$2:$E$32)*AC28,NA()) -> 474240 | B28: =IF(ISNUMBER('MU New'!E27)=TRUE,'MU New'!$C$12/COUNT('MU New'!$E$2:$E$32)*'Plot Data'!AC28,NA()) -> 455000 | C28: =IF(ISNUMBER('MU New'!E27)=TRUE,'MU New'!$C$18/COUNT('MU Used'!$E$2:$E$32)*$AC28,NA()) -> 94848 | D28: =IF(ISNUMBER('MU New'!E27)=TRUE,'MU New'!$C$21/COUNT('MU New'!$E$2:$E$32)*$AC28,NA()) -> 182000 | E28: =IF(ISNUMBER('MU New'!E27)=TRUE,'MU New'!$C$27/COUNT('MU New'!$E$2:$E$32)*$AC28,NA()) -> 22.53333333 | F28: =IF(ISNUMBER('MU New'!E27)=TRUE,'MU New'!$C$29/COUNT('MU New'!$E$2:$E$32)*$AC28,NA()) -> 26 | G28: =IF(ISNUMBER('MU Used'!E27)=TRUE,'MU Used'!$C$10/COUNT('MU Used'!$E$2:$E$32)*AC28,NA()) -> 326040 | H28: =IF(ISNUMBER('MU Used'!E27)=TRUE,'MU Used'!$C$12/COUNT('MU Used'!$E$2:$E$32)*'Plot Data'!AC28,NA()) -> 156000 | I28: =IF(ISNUMBER('MU Used'!E27)=TRUE,'MU Used'!$C$18/COUNT('MU Used'!$E$2:$E$32)*$AC28,NA()) -> 57057 | J28: =IF(ISNUMBER('MU Used'!E27)=TRUE,'MU Used'!$C$21/COUNT('MU Used'!$E$2:$E$32)*$AC28,NA()) -> 52000 | K28: =IF(ISNUMBER('MU Used'!E27)=TRUE,'MU Used'!$C$27/COUNT('MU Used'!$E$2:$E$32)*$AC28,NA()) -> 31.2 | L28: =IF(ISNUMBER('MU Used'!E27)=TRUE,'MU Used'!$C$29/COUNT('MU Used'!$E$2:$E$32)*$AC28,NA()) -> 13 | M28: =IF(ISNUMBER(MC!$E27)=TRUE,MC!$C$10/COUNT(MC!$E$2:$E$32)*$AC28,NA()) -> 67783.73333 | N28: =IF(ISNUMBER(MC!$E27)=TRUE,MC!$C$12/COUNT(MC!$E$2:$E$32)*'Plot Data'!$AC28,NA()) -> 195000 | O28: =IF(ISNUMBER(MC!$E27)=TRUE,MC!$C$18/COUNT(MC!$E$2:$E$32)*$AC28,NA()) -> 27113.66667 | P28: =IF(ISNUMBER(MC!$E27)=TRUE,MC!$C$21/COUNT(MC!$E$2:$E$32)*$AC28,NA()) -> 68250 | Q28: =IF(ISNUMBER(Parts!$E27)=TRUE,Parts!$C$10/COUNT(Parts!$E$2:$E$32)*$AC28,NA()) -> 127432.9333 | R28: =IF(ISNUMBER(Parts!$E27)=TRUE,Parts!$C$12/COUNT(Parts!$E$2:$E$32)*'Plot Data'!$AC28,NA()) -> 240500 | S28: =IF(ISNUMBER(Parts!$E27)=TRUE,Parts!$C$18/COUNT(Parts!$E$2:$E$32)*$AC28,NA()) -> 44601.26667 | T28: =IF(ISNUMBER(Parts!$E27)=TRUE,Parts!$C$21/COUNT(Parts!$E$2:$E$32)*$AC28,NA()) -> 111150 | U28: =IF(ISNUMBER(Service!$E27)=TRUE,Service!$C$10/COUNT(Service!$E$2:$E$32)*$AC28,NA()) -> 54659.8 | V28: =IF(ISNUMBER(Service!$E27)=TRUE,Service!$C$12/COUNT(Service!$E$2:$E$32)*'Plot Data'!$AC28,NA()) -> 37700 | W28: =IF(ISNUMBER(Service!$E27)=TRUE,Service!$C$18/COUNT(Service!$E$2:$E$32)*$AC28,NA()) -> 0 | X28: =IF(ISNUMBER(Service!$E27)=TRUE,Service!$C$21/COUNT(Service!$E$2:$E$32)*$AC28,NA()) -> 0 | Y28: =IF(ISNUMBER('F&I'!$E27)=TRUE,'F&I'!$C$10/COUNT('F&I'!$E$2:$E$32)*$AC28,NA()) -> 36885.33333 | Z28: =IF(ISNUMBER('F&I'!$E27)=TRUE,'F&I'!$C$12/COUNT('F&I'!$E$2:$E$32)*'Plot Data'!$AC28,NA()) -> 5200 | AA28: =IF(ISNUMBER('F&I'!$E27)=TRUE,'F&I'!$C$18/COUNT('F&I'!$E$2:$E$32)*$AC28,NA()) -> 25819.73333 | AB28: =IF(ISNUMBER('F&I'!$E27)=TRUE,'F&I'!$C$21/COUNT('F&I'!$E$2:$E$32)*$AC28,NA()) -> 5200 | AC28: =IF(ISNUMBER('MU Used'!E27)=TRUE,'Plot Data'!AD28,"") -> 26 | AD28: 26 | AF28: =IF(ISNUMBER(Eastside!$E27)=TRUE,Eastside!$C$10/COUNT(Eastside!$E$2:$E$32)*$AC28,NA()) -> 43333.33333 | AG28: =IF(ISNUMBER(Eastside!$E27)=TRUE,Eastside!$C$12/COUNT(Eastside!$E$2:$E$32)*'Plot Data'!$AC28,NA()) -> 91000 | AH28: =IF(ISNUMBER(Eastside!$E27)=TRUE,Eastside!$C$18/COUNT(Eastside!$E$2:$E$32)*$AC28,NA()) -> 0 | AI28: =IF(ISNUMBER(Eastside!$E27)=TRUE,Eastside!$C$21/COUNT(Eastside!$E$2:$E$32)*$AC28,NA()) -> 29250 | AJ28: =IF(ISNUMBER('Emerald City'!$E27)=TRUE,'Emerald City'!$C$10/COUNT('Emerald City'!$E$2:$E$32)*$AC28,NA()) -> 18200 | AK28: =IF(ISNUMBER('Emerald City'!$E27)=TRUE,'Emerald City'!$C$12/COUNT('Emerald City'!$E$2:$E$32)*'Plot Data'!$AC28,NA()) -> 104000 | AL28: =IF(ISNUMBER('Emerald City'!$E27)=TRUE,'Emerald City'!$C$18/COUNT('Emerald City'!$E$2:$E$32)*$AC28,NA()) -> 0 | AM28: =IF(ISNUMBER('Emerald City'!$E27)=TRUE,'Emerald City'!$C$21/COUNT('Emerald City'!$E$2:$E$32)*$AC28,NA()) -> 39000 | AN28: =IF(ISNUMBER(Retail!$E27)=TRUE,Retail!$C$10/COUNT(Retail!$E$2:$E$32)*$AC28,NA()) -> 0 | AO28: =IF(ISNUMBER(Retail!$E27)=TRUE,Retail!$C$12/COUNT(Retail!$E$2:$E$32)*'Plot Data'!$AC28,NA()) -> 78000 | AP28: =IF(ISNUMBER(Retail!$E27)=TRUE,Retail!$C$18/COUNT(Retail!$E$2:$E$32)*$AC28,NA()) -> 0 | AQ28: =IF(ISNUMBER(Retail!$E27)=TRUE,Retail!$C$17/COUNT(Retail!$E$2:$E$32)*$AC28,NA()) -> 32500 | AR28: =IF(ISNUMBER(RO!$E27)=TRUE,RO!$C$10/COUNT(RO!$E$2:$E$32)*$AC28,NA()) -> 0 | AS28: =IF(ISNUMBER(RO!$E27)=TRUE,RO!$C$12/COUNT(RO!$E$2:$E$32)*'Plot Data'!$AC28,NA()) -> 45500 | AT28: =IF(ISNUMBER(RO!$E27)=TRUE,RO!$C$18/COUNT(RO!$E$2:$E$32)*$AC28,NA()) -> 0 | AU28: =IF(ISNUMBER(RO!$E27)=TRUE,RO!$C$17/COUNT(RO!$E$2:$E$32)*$AC28,NA()) -> 20150 | AV28: =IF(ISNUMBER('Major Unit'!$E27)=TRUE,'Major Unit'!$C$10/COUNT('Major Unit'!$E$2:$E$32)*$AC28,NA()) -> 0 | AW28: =IF(ISNUMBER('Major Unit'!$E27)=TRUE,'Major Unit'!$C$12/COUNT('Major Unit'!$E$2:$E$32)*'Plot Data'!$AC28,NA()) -> 117000 | AX28: =IF(ISNUMBER('Major Unit'!$E27)=TRUE,'Major Unit'!$C$18/COUNT('Major Unit'!$E$2:$E$32)*$AC28,NA()) -> 0 | AY28: =IF(ISNUMBER('Major Unit'!$E27)=TRUE,'Major Unit'!$C$17/COUNT('Major Unit'!$E$2:$E$32)*$AC28,NA()) -> 58500
A29: =IF(ISNUMBER('MU New'!E28)=TRUE,'MU New'!$C$10/COUNT('MU New'!$E$2:$E$32)*AC29,NA()) -> 492480 | B29: =IF(ISNUMBER('MU New'!E28)=TRUE,'MU New'!$C$12/COUNT('MU New'!$E$2:$E$32)*'Plot Data'!AC29,NA()) -> 472500 | C29: =IF(ISNUMBER('MU New'!E28)=TRUE,'MU New'!$C$18/COUNT('MU Used'!$E$2:$E$32)*$AC29,NA()) -> 98496 | D29: =IF(ISNUMBER('MU New'!E28)=TRUE,'MU New'!$C$21/COUNT('MU New'!$E$2:$E$32)*$AC29,NA()) -> 189000 | E29: =IF(ISNUMBER('MU New'!E28)=TRUE,'MU New'!$C$27/COUNT('MU New'!$E$2:$E$32)*$AC29,NA()) -> 23.4 | F29: =IF(ISNUMBER('MU New'!E28)=TRUE,'MU New'!$C$29/COUNT('MU New'!$E$2:$E$32)*$AC29,NA()) -> 27 | G29: =IF(ISNUMBER('MU Used'!E28)=TRUE,'MU Used'!$C$10/COUNT('MU Used'!$E$2:$E$32)*AC29,NA()) -> 338580 | H29: =IF(ISNUMBER('MU Used'!E28)=TRUE,'MU Used'!$C$12/COUNT('MU Used'!$E$2:$E$32)*'Plot Data'!AC29,NA()) -> 162000 | I29: =IF(ISNUMBER('MU Used'!E28)=TRUE,'MU Used'!$C$18/COUNT('MU Used'!$E$2:$E$32)*$AC29,NA()) -> 59251.5 | J29: =IF(ISNUMBER('MU Used'!E28)=TRUE,'MU Used'!$C$21/COUNT('MU Used'!$E$2:$E$32)*$AC29,NA()) -> 54000 | K29: =IF(ISNUMBER('MU Used'!E28)=TRUE,'MU Used'!$C$27/COUNT('MU Used'!$E$2:$E$32)*$AC29,NA()) -> 32.4 | L29: =IF(ISNUMBER('MU Used'!E28)=TRUE,'MU Used'!$C$29/COUNT('MU Used'!$E$2:$E$32)*$AC29,NA()) -> 13.5 | M29: =IF(ISNUMBER(MC!$E28)=TRUE,MC!$C$10/COUNT(MC!$E$2:$E$32)*$AC29,NA()) -> 70390.8 | N29: =IF(ISNUMBER(MC!$E28)=TRUE,MC!$C$12/COUNT(MC!$E$2:$E$32)*'Plot Data'!$AC29,NA()) -> 202500 | O29: =IF(ISNUMBER(MC!$E28)=TRUE,MC!$C$18/COUNT(MC!$E$2:$E$32)*$AC29,NA()) -> 28156.5 | P29: =IF(ISNUMBER(MC!$E28)=TRUE,MC!$C$21/COUNT(MC!$E$2:$E$32)*$AC29,NA()) -> 70875 | Q29: =IF(ISNUMBER(Parts!$E28)=TRUE,Parts!$C$10/COUNT(Parts!$E$2:$E$32)*$AC29,NA()) -> 132334.2 | R29: =IF(ISNUMBER(Parts!$E28)=TRUE,Parts!$C$12/COUNT(Parts!$E$2:$E$32)*'Plot Data'!$AC29,NA()) -> 249750 | S29: =IF(ISNUMBER(Parts!$E28)=TRUE,Parts!$C$18/COUNT(Parts!$E$2:$E$32)*$AC29,NA()) -> 46316.7 | T29: =IF(ISNUMBER(Parts!$E28)=TRUE,Parts!$C$21/COUNT(Parts!$E$2:$E$32)*$AC29,NA()) -> 115425 | U29: =IF(ISNUMBER(Service!$E28)=TRUE,Service!$C$10/COUNT(Service!$E$2:$E$32)*$AC29,NA()) -> 56762.1 | V29: =IF(ISNUMBER(Service!$E28)=TRUE,Service!$C$12/COUNT(Service!$E$2:$E$32)*'Plot Data'!$AC29,NA()) -> 39150 | W29: =IF(ISNUMBER(Service!$E28)=TRUE,Service!$C$18/COUNT(Service!$E$2:$E$32)*$AC29,NA()) -> 0 | X29: =IF(ISNUMBER(Service!$E28)=TRUE,Service!$C$21/COUNT(Service!$E$2:$E$32)*$AC29,NA()) -> 0 | Y29: =IF(ISNUMBER('F&I'!$E28)=TRUE,'F&I'!$C$10/COUNT('F&I'!$E$2:$E$32)*$AC29,NA()) -> 38304 | Z29: =IF(ISNUMBER('F&I'!$E28)=TRUE,'F&I'!$C$12/COUNT('F&I'!$E$2:$E$32)*'Plot Data'!$AC29,NA()) -> 5400 | AA29: =IF(ISNUMBER('F&I'!$E28)=TRUE,'F&I'!$C$18/COUNT('F&I'!$E$2:$E$32)*$AC29,NA()) -> 26812.8 | AB29: =IF(ISNUMBER('F&I'!$E28)=TRUE,'F&I'!$C$21/COUNT('F&I'!$E$2:$E$32)*$AC29,NA()) -> 5400 | AC29: =IF(ISNUMBER('MU Used'!E28)=TRUE,'Plot Data'!AD29,"") -> 27 | AD29: 27 | AF29: =IF(ISNUMBER(Eastside!$E28)=TRUE,Eastside!$C$10/COUNT(Eastside!$E$2:$E$32)*$AC29,NA()) -> 45000 | AG29: =IF(ISNUMBER(Eastside!$E28)=TRUE,Eastside!$C$12/COUNT(Eastside!$E$2:$E$32)*'Plot Data'!$AC29,NA()) -> 94500 | AH29: =IF(ISNUMBER(Eastside!$E28)=TRUE,Eastside!$C$18/COUNT(Eastside!$E$2:$E$32)*$AC29,NA()) -> 0 | AI29: =IF(ISNUMBER(Eastside!$E28)=TRUE,Eastside!$C$21/COUNT(Eastside!$E$2:$E$32)*$AC29,NA()) -> 30375 | AJ29: =IF(ISNUMBER('Emerald City'!$E28)=TRUE,'Emerald City'!$C$10/COUNT('Emerald City'!$E$2:$E$32)*$AC29,NA()) -> 18900 | AK29: =IF(ISNUMBER('Emerald City'!$E28)=TRUE,'Emerald City'!$C$12/COUNT('Emerald City'!$E$2:$E$32)*'Plot Data'!$AC29,NA()) -> 108000 | AL29: =IF(ISNUMBER('Emerald City'!$E28)=TRUE,'Emerald City'!$C$18/COUNT('Emerald City'!$E$2:$E$32)*$AC29,NA()) -> 0 | AM29: =IF(ISNUMBER('Emerald City'!$E28)=TRUE,'Emerald City'!$C$21/COUNT('Emerald City'!$E$2:$E$32)*$AC29,NA()) -> 40500 | AN29: =IF(ISNUMBER(Retail!$E28)=TRUE,Retail!$C$10/COUNT(Retail!$E$2:$E$32)*$AC29,NA()) -> 0 | AO29: =IF(ISNUMBER(Retail!$E28)=TRUE,Retail!$C$12/COUNT(Retail!$E$2:$E$32)*'Plot Data'!$AC29,NA()) -> 81000 | AP29: =IF(ISNUMBER(Retail!$E28)=TRUE,Retail!$C$18/COUNT(Retail!$E$2:$E$32)*$AC29,NA()) -> 0 | AQ29: =IF(ISNUMBER(Retail!$E28)=TRUE,Retail!$C$17/COUNT(Retail!$E$2:$E$32)*$AC29,NA()) -> 33750 | AR29: =IF(ISNUMBER(RO!$E28)=TRUE,RO!$C$10/COUNT(RO!$E$2:$E$32)*$AC29,NA()) -> 0 | AS29: =IF(ISNUMBER(RO!$E28)=TRUE,RO!$C$12/COUNT(RO!$E$2:$E$32)*'Plot Data'!$AC29,NA()) -> 47250 | AT29: =IF(ISNUMBER(RO!$E28)=TRUE,RO!$C$18/COUNT(RO!$E$2:$E$32)*$AC29,NA()) -> 0 | AU29: =IF(ISNUMBER(RO!$E28)=TRUE,RO!$C$17/COUNT(RO!$E$2:$E$32)*$AC29,NA()) -> 20925 | AV29: =IF(ISNUMBER('Major Unit'!$E28)=TRUE,'Major Unit'!$C$10/COUNT('Major Unit'!$E$2:$E$32)*$AC29,NA()) -> 0 | AW29: =IF(ISNUMBER('Major Unit'!$E28)=TRUE,'Major Unit'!$C$12/COUNT('Major Unit'!$E$2:$E$32)*'Plot Data'!$AC29,NA()) -> 121500 | AX29: =IF(ISNUMBER('Major Unit'!$E28)=TRUE,'Major Unit'!$C$18/COUNT('Major Unit'!$E$2:$E$32)*$AC29,NA()) -> 0 | AY29: =IF(ISNUMBER('Major Unit'!$E28)=TRUE,'Major Unit'!$C$17/COUNT('Major Unit'!$E$2:$E$32)*$AC29,NA()) -> 60750
A30: =IF(ISNUMBER('MU New'!E29)=TRUE,'MU New'!$C$10/COUNT('MU New'!$E$2:$E$32)*AC30,NA()) -> 510720 | B30: =IF(ISNUMBER('MU New'!E29)=TRUE,'MU New'!$C$12/COUNT('MU New'!$E$2:$E$32)*'Plot Data'!AC30,NA()) -> 490000 | C30: =IF(ISNUMBER('MU New'!E29)=TRUE,'MU New'!$C$18/COUNT('MU Used'!$E$2:$E$32)*$AC30,NA()) -> 102144 | D30: =IF(ISNUMBER('MU New'!E29)=TRUE,'MU New'!$C$21/COUNT('MU New'!$E$2:$E$32)*$AC30,NA()) -> 196000 | E30: =IF(ISNUMBER('MU New'!E29)=TRUE,'MU New'!$C$27/COUNT('MU New'!$E$2:$E$32)*$AC30,NA()) -> 24.26666667 | F30: =IF(ISNUMBER('MU New'!E29)=TRUE,'MU New'!$C$29/COUNT('MU New'!$E$2:$E$32)*$AC30,NA()) -> 28 | G30: =IF(ISNUMBER('MU Used'!E29)=TRUE,'MU Used'!$C$10/COUNT('MU Used'!$E$2:$E$32)*AC30,NA()) -> 351120 | H30: =IF(ISNUMBER('MU Used'!E29)=TRUE,'MU Used'!$C$12/COUNT('MU Used'!$E$2:$E$32)*'Plot Data'!AC30,NA()) -> 168000 | I30: =IF(ISNUMBER('MU Used'!E29)=TRUE,'MU Used'!$C$18/COUNT('MU Used'!$E$2:$E$32)*$AC30,NA()) -> 61446 | J30: =IF(ISNUMBER('MU Used'!E29)=TRUE,'MU Used'!$C$21/COUNT('MU Used'!$E$2:$E$32)*$AC30,NA()) -> 56000 | K30: =IF(ISNUMBER('MU Used'!E29)=TRUE,'MU Used'!$C$27/COUNT('MU Used'!$E$2:$E$32)*$AC30,NA()) -> 33.6 | L30: =IF(ISNUMBER('MU Used'!E29)=TRUE,'MU Used'!$C$29/COUNT('MU Used'!$E$2:$E$32)*$AC30,NA()) -> 14 | M30: =IF(ISNUMBER(MC!$E29)=TRUE,MC!$C$10/COUNT(MC!$E$2:$E$32)*$AC30,NA()) -> 72997.86667 | N30: =IF(ISNUMBER(MC!$E29)=TRUE,MC!$C$12/COUNT(MC!$E$2:$E$32)*'Plot Data'!$AC30,NA()) -> 210000 | O30: =IF(ISNUMBER(MC!$E29)=TRUE,MC!$C$18/COUNT(MC!$E$2:$E$32)*$AC30,NA()) -> 29199.33333 | P30: =IF(ISNUMBER(MC!$E29)=TRUE,MC!$C$21/COUNT(MC!$E$2:$E$32)*$AC30,NA()) -> 73500 | Q30: =IF(ISNUMBER(Parts!$E29)=TRUE,Parts!$C$10/COUNT(Parts!$E$2:$E$32)*$AC30,NA()) -> 137235.4667 | R30: =IF(ISNUMBER(Parts!$E29)=TRUE,Parts!$C$12/COUNT(Parts!$E$2:$E$32)*'Plot Data'!$AC30,NA()) -> 259000 | S30: =IF(ISNUMBER(Parts!$E29)=TRUE,Parts!$C$18/COUNT(Parts!$E$2:$E$32)*$AC30,NA()) -> 48032.13333 | T30: =IF(ISNUMBER(Parts!$E29)=TRUE,Parts!$C$21/COUNT(Parts!$E$2:$E$32)*$AC30,NA()) -> 119700 | U30: =IF(ISNUMBER(Service!$E29)=TRUE,Service!$C$10/COUNT(Service!$E$2:$E$32)*$AC30,NA()) -> 58864.4 | V30: =IF(ISNUMBER(Service!$E29)=TRUE,Service!$C$12/COUNT(Service!$E$2:$E$32)*'Plot Data'!$AC30,NA()) -> 40600 | W30: =IF(ISNUMBER(Service!$E29)=TRUE,Service!$C$18/COUNT(Service!$E$2:$E$32)*$AC30,NA()) -> 0 | X30: =IF(ISNUMBER(Service!$E29)=TRUE,Service!$C$21/COUNT(Service!$E$2:$E$32)*$AC30,NA()) -> 0 | Y30: =IF(ISNUMBER('F&I'!$E29)=TRUE,'F&I'!$C$10/COUNT('F&I'!$E$2:$E$32)*$AC30,NA()) -> 39722.66667 | Z30: =IF(ISNUMBER('F&I'!$E29)=TRUE,'F&I'!$C$12/COUNT('F&I'!$E$2:$E$32)*'Plot Data'!$AC30,NA()) -> 5600 | AA30: =IF(ISNUMBER('F&I'!$E29)=TRUE,'F&I'!$C$18/COUNT('F&I'!$E$2:$E$32)*$AC30,NA()) -> 27805.86667 | AB30: =IF(ISNUMBER('F&I'!$E29)=TRUE,'F&I'!$C$21/COUNT('F&I'!$E$2:$E$32)*$AC30,NA()) -> 5600 | AC30: =IF(ISNUMBER('MU Used'!E29)=TRUE,'Plot Data'!AD30,"") -> 28 | AD30: 28 | AF30: =IF(ISNUMBER(Eastside!$E29)=TRUE,Eastside!$C$10/COUNT(Eastside!$E$2:$E$32)*$AC30,NA()) -> 46666.66667 | AG30: =IF(ISNUMBER(Eastside!$E29)=TRUE,Eastside!$C$12/COUNT(Eastside!$E$2:$E$32)*'Plot Data'!$AC30,NA()) -> 98000 | AH30: =IF(ISNUMBER(Eastside!$E29)=TRUE,Eastside!$C$18/COUNT(Eastside!$E$2:$E$32)*$AC30,NA()) -> 0 | AI30: =IF(ISNUMBER(Eastside!$E29)=TRUE,Eastside!$C$21/COUNT(Eastside!$E$2:$E$32)*$AC30,NA()) -> 31500 | AJ30: =IF(ISNUMBER('Emerald City'!$E29)=TRUE,'Emerald City'!$C$10/COUNT('Emerald City'!$E$2:$E$32)*$AC30,NA()) -> 19600 | AK30: =IF(ISNUMBER('Emerald City'!$E29)=TRUE,'Emerald City'!$C$12/COUNT('Emerald City'!$E$2:$E$32)*'Plot Data'!$AC30,NA()) -> 112000 | AL30: =IF(ISNUMBER('Emerald City'!$E29)=TRUE,'Emerald City'!$C$18/COUNT('Emerald City'!$E$2:$E$32)*$AC30,NA()) -> 0 | AM30: =IF(ISNUMBER('Emerald City'!$E29)=TRUE,'Emerald City'!$C$21/COUNT('Emerald City'!$E$2:$E$32)*$AC30,NA()) -> 42000 | AN30: =IF(ISNUMBER(Retail!$E29)=TRUE,Retail!$C$10/COUNT(Retail!$E$2:$E$32)*$AC30,NA()) -> 0 | AO30: =IF(ISNUMBER(Retail!$E29)=TRUE,Retail!$C$12/COUNT(Retail!$E$2:$E$32)*'Plot Data'!$AC30,NA()) -> 84000 | AP30: =IF(ISNUMBER(Retail!$E29)=TRUE,Retail!$C$18/COUNT(Retail!$E$2:$E$32)*$AC30,NA()) -> 0 | AQ30: =IF(ISNUMBER(Retail!$E29)=TRUE,Retail!$C$17/COUNT(Retail!$E$2:$E$32)*$AC30,NA()) -> 35000 | AR30: =IF(ISNUMBER(RO!$E29)=TRUE,RO!$C$10/COUNT(RO!$E$2:$E$32)*$AC30,NA()) -> 0 | AS30: =IF(ISNUMBER(RO!$E29)=TRUE,RO!$C$12/COUNT(RO!$E$2:$E$32)*'Plot Data'!$AC30,NA()) -> 49000 | AT30: =IF(ISNUMBER(RO!$E29)=TRUE,RO!$C$18/COUNT(RO!$E$2:$E$32)*$AC30,NA()) -> 0 | AU30: =IF(ISNUMBER(RO!$E29)=TRUE,RO!$C$17/COUNT(RO!$E$2:$E$32)*$AC30,NA()) -> 21700 | AV30: =IF(ISNUMBER('Major Unit'!$E29)=TRUE,'Major Unit'!$C$10/COUNT('Major Unit'!$E$2:$E$32)*$AC30,NA()) -> 0 | AW30: =IF(ISNUMBER('Major Unit'!$E29)=TRUE,'Major Unit'!$C$12/COUNT('Major Unit'!$E$2:$E$32)*'Plot Data'!$AC30,NA()) -> 126000 | AX30: =IF(ISNUMBER('Major Unit'!$E29)=TRUE,'Major Unit'!$C$18/COUNT('Major Unit'!$E$2:$E$32)*$AC30,NA()) -> 0 | AY30: =IF(ISNUMBER('Major Unit'!$E29)=TRUE,'Major Unit'!$C$17/COUNT('Major Unit'!$E$2:$E$32)*$AC30,NA()) -> 63000
A31: =IF(ISNUMBER('MU New'!E30)=TRUE,'MU New'!$C$10/COUNT('MU New'!$E$2:$E$32)*AC31,NA()) -> 528960 | B31: =IF(ISNUMBER('MU New'!E30)=TRUE,'MU New'!$C$12/COUNT('MU New'!$E$2:$E$32)*'Plot Data'!AC31,NA()) -> 507500 | C31: =IF(ISNUMBER('MU New'!E30)=TRUE,'MU New'!$C$18/COUNT('MU Used'!$E$2:$E$32)*$AC31,NA()) -> 105792 | D31: =IF(ISNUMBER('MU New'!E30)=TRUE,'MU New'!$C$21/COUNT('MU New'!$E$2:$E$32)*$AC31,NA()) -> 203000 | E31: =IF(ISNUMBER('MU New'!E30)=TRUE,'MU New'!$C$27/COUNT('MU New'!$E$2:$E$32)*$AC31,NA()) -> 25.13333333 | F31: =IF(ISNUMBER('MU New'!E30)=TRUE,'MU New'!$C$29/COUNT('MU New'!$E$2:$E$32)*$AC31,NA()) -> 29 | G31: =IF(ISNUMBER('MU Used'!E30)=TRUE,'MU Used'!$C$10/COUNT('MU Used'!$E$2:$E$32)*AC31,NA()) -> 363660 | H31: =IF(ISNUMBER('MU Used'!E30)=TRUE,'MU Used'!$C$12/COUNT('MU Used'!$E$2:$E$32)*'Plot Data'!AC31,NA()) -> 174000 | I31: =IF(ISNUMBER('MU Used'!E30)=TRUE,'MU Used'!$C$18/COUNT('MU Used'!$E$2:$E$32)*$AC31,NA()) -> 63640.5 | J31: =IF(ISNUMBER('MU Used'!E30)=TRUE,'MU Used'!$C$21/COUNT('MU Used'!$E$2:$E$32)*$AC31,NA()) -> 58000 | K31: =IF(ISNUMBER('MU Used'!E30)=TRUE,'MU Used'!$C$27/COUNT('MU Used'!$E$2:$E$32)*$AC31,NA()) -> 34.8 | L31: =IF(ISNUMBER('MU Used'!E30)=TRUE,'MU Used'!$C$29/COUNT('MU Used'!$E$2:$E$32)*$AC31,NA()) -> 14.5 | M31: =IF(ISNUMBER(MC!$E30)=TRUE,MC!$C$10/COUNT(MC!$E$2:$E$32)*$AC31,NA()) -> 75604.93333 | N31: =IF(ISNUMBER(MC!$E30)=TRUE,MC!$C$12/COUNT(MC!$E$2:$E$32)*'Plot Data'!$AC31,NA()) -> 217500 | O31: =IF(ISNUMBER(MC!$E30)=TRUE,MC!$C$18/COUNT(MC!$E$2:$E$32)*$AC31,NA()) -> 30242.16667 | P31: =IF(ISNUMBER(MC!$E30)=TRUE,MC!$C$21/COUNT(MC!$E$2:$E$32)*$AC31,NA()) -> 76125 | Q31: =IF(ISNUMBER(Parts!$E30)=TRUE,Parts!$C$10/COUNT(Parts!$E$2:$E$32)*$AC31,NA()) -> 142136.7333 | R31: =IF(ISNUMBER(Parts!$E30)=TRUE,Parts!$C$12/COUNT(Parts!$E$2:$E$32)*'Plot Data'!$AC31,NA()) -> 268250 | S31: =IF(ISNUMBER(Parts!$E30)=TRUE,Parts!$C$18/COUNT(Parts!$E$2:$E$32)*$AC31,NA()) -> 49747.56667 | T31: =IF(ISNUMBER(Parts!$E30)=TRUE,Parts!$C$21/COUNT(Parts!$E$2:$E$32)*$AC31,NA()) -> 123975 | U31: =IF(ISNUMBER(Service!$E30)=TRUE,Service!$C$10/COUNT(Service!$E$2:$E$32)*$AC31,NA()) -> 60966.7 | V31: =IF(ISNUMBER(Service!$E30)=TRUE,Service!$C$12/COUNT(Service!$E$2:$E$32)*'Plot Data'!$AC31,NA()) -> 42050 | W31: =IF(ISNUMBER(Service!$E30)=TRUE,Service!$C$18/COUNT(Service!$E$2:$E$32)*$AC31,NA()) -> 0 | X31: =IF(ISNUMBER(Service!$E30)=TRUE,Service!$C$21/COUNT(Service!$E$2:$E$32)*$AC31,NA()) -> 0 | Y31: =IF(ISNUMBER('F&I'!$E30)=TRUE,'F&I'!$C$10/COUNT('F&I'!$E$2:$E$32)*$AC31,NA()) -> 41141.33333 | Z31: =IF(ISNUMBER('F&I'!$E30)=TRUE,'F&I'!$C$12/COUNT('F&I'!$E$2:$E$32)*'Plot Data'!$AC31,NA()) -> 5800 | AA31: =IF(ISNUMBER('F&I'!$E30)=TRUE,'F&I'!$C$18/COUNT('F&I'!$E$2:$E$32)*$AC31,NA()) -> 28798.93333 | AB31: =IF(ISNUMBER('F&I'!$E30)=TRUE,'F&I'!$C$21/COUNT('F&I'!$E$2:$E$32)*$AC31,NA()) -> 5800 | AC31: =IF(ISNUMBER('MU Used'!E30)=TRUE,'Plot Data'!AD31,NA()) -> 29 | AD31: 29 | AF31: =IF(ISNUMBER(Eastside!$E30)=TRUE,Eastside!$C$10/COUNT(Eastside!$E$2:$E$32)*$AC31,NA()) -> 48333.33333 | AG31: =IF(ISNUMBER(Eastside!$E30)=TRUE,Eastside!$C$12/COUNT(Eastside!$E$2:$E$32)*'Plot Data'!$AC31,NA()) -> 101500 | AH31: =IF(ISNUMBER(Eastside!$E30)=TRUE,Eastside!$C$18/COUNT(Eastside!$E$2:$E$32)*$AC31,NA()) -> 0 | AI31: =IF(ISNUMBER(Eastside!$E30)=TRUE,Eastside!$C$21/COUNT(Eastside!$E$2:$E$32)*$AC31,NA()) -> 32625 | AJ31: =IF(ISNUMBER('Emerald City'!$E30)=TRUE,'Emerald City'!$C$10/COUNT('Emerald City'!$E$2:$E$32)*$AC31,NA()) -> 20300 | AK31: =IF(ISNUMBER('Emerald City'!$E30)=TRUE,'Emerald City'!$C$12/COUNT('Emerald City'!$E$2:$E$32)*'Plot Data'!$AC31,NA()) -> 116000 | AL31: =IF(ISNUMBER('Emerald City'!$E30)=TRUE,'Emerald City'!$C$18/COUNT('Emerald City'!$E$2:$E$32)*$AC31,NA()) -> 0 | AM31: =IF(ISNUMBER('Emerald City'!$E30)=TRUE,'Emerald City'!$C$21/COUNT('Emerald City'!$E$2:$E$32)*$AC31,NA()) -> 43500 | AN31: =IF(ISNUMBER(Retail!$E30)=TRUE,Retail!$C$10/COUNT(Retail!$E$2:$E$32)*$AC31,NA()) -> 0 | AO31: =IF(ISNUMBER(Retail!$E30)=TRUE,Retail!$C$12/COUNT(Retail!$E$2:$E$32)*'Plot Data'!$AC31,NA()) -> 87000 | AP31: =IF(ISNUMBER(Retail!$E30)=TRUE,Retail!$C$18/COUNT(Retail!$E$2:$E$32)*$AC31,NA()) -> 0 | AQ31: =IF(ISNUMBER(Retail!$E30)=TRUE,Retail!$C$17/COUNT(Retail!$E$2:$E$32)*$AC31,NA()) -> 36250 | AR31: =IF(ISNUMBER(RO!$E30)=TRUE,RO!$C$10/COUNT(RO!$E$2:$E$32)*$AC31,NA()) -> 0 | AS31: =IF(ISNUMBER(RO!$E30)=TRUE,RO!$C$12/COUNT(RO!$E$2:$E$32)*'Plot Data'!$AC31,NA()) -> 50750 | AT31: =IF(ISNUMBER(RO!$E30)=TRUE,RO!$C$18/COUNT(RO!$E$2:$E$32)*$AC31,NA()) -> 0 | AU31: =IF(ISNUMBER(RO!$E30)=TRUE,RO!$C$17/COUNT(RO!$E$2:$E$32)*$AC31,NA()) -> 22475 | AV31: =IF(ISNUMBER('Major Unit'!$E30)=TRUE,'Major Unit'!$C$10/COUNT('Major Unit'!$E$2:$E$32)*$AC31,NA()) -> 0 | AW31: =IF(ISNUMBER('Major Unit'!$E30)=TRUE,'Major Unit'!$C$12/COUNT('Major Unit'!$E$2:$E$32)*'Plot Data'!$AC31,NA()) -> 130500 | AX31: =IF(ISNUMBER('Major Unit'!$E30)=TRUE,'Major Unit'!$C$18/COUNT('Major Unit'!$E$2:$E$32)*$AC31,NA()) -> 0 | AY31: =IF(ISNUMBER('Major Unit'!$E30)=TRUE,'Major Unit'!$C$17/COUNT('Major Unit'!$E$2:$E$32)*$AC31,NA()) -> 65250
A32: =IF(ISNUMBER('MU New'!E31)=TRUE,'MU New'!$C$10/COUNT('MU New'!$E$2:$E$32)*AC32,NA()) -> 547200 | B32: =IF(ISNUMBER('MU New'!E31)=TRUE,'MU New'!$C$12/COUNT('MU New'!$E$2:$E$32)*'Plot Data'!AC32,NA()) -> 525000 | C32: =IF(ISNUMBER('MU New'!E31)=TRUE,'MU New'!$C$18/COUNT('MU Used'!$E$2:$E$32)*$AC32,NA()) -> 109440 | D32: =IF(ISNUMBER('MU New'!E31)=TRUE,'MU New'!$C$21/COUNT('MU New'!$E$2:$E$32)*$AC32,NA()) -> 210000 | E32: =IF(ISNUMBER('MU New'!E31)=TRUE,'MU New'!$C$27/COUNT('MU New'!$E$2:$E$32)*$AC32,NA()) -> 26 | F32: =IF(ISNUMBER('MU New'!E31)=TRUE,'MU New'!$C$29/COUNT('MU New'!$E$2:$E$32)*$AC32,NA()) -> 30 | G32: =IF(ISNUMBER('MU Used'!E31)=TRUE,'MU Used'!$C$10/COUNT('MU Used'!$E$2:$E$32)*AC32,NA()) -> 376200 | H32: =IF(ISNUMBER('MU Used'!E31)=TRUE,'MU Used'!$C$12/COUNT('MU Used'!$E$2:$E$32)*'Plot Data'!AC32,NA()) -> 180000 | I32: =IF(ISNUMBER('MU Used'!E31)=TRUE,'MU Used'!$C$18/COUNT('MU Used'!$E$2:$E$32)*$AC32,NA()) -> 65835 | J32: =IF(ISNUMBER('MU Used'!E31)=TRUE,'MU Used'!$C$21/COUNT('MU Used'!$E$2:$E$32)*$AC32,NA()) -> 60000 | K32: =IF(ISNUMBER('MU Used'!E31)=TRUE,'MU Used'!$C$27/COUNT('MU Used'!$E$2:$E$32)*$AC32,NA()) -> 36 | L32: =IF(ISNUMBER('MU Used'!E31)=TRUE,'MU Used'!$C$29/COUNT('MU Used'!$E$2:$E$32)*$AC32,NA()) -> 15 | M32: =IF(ISNUMBER(MC!$E31)=TRUE,MC!$C$10/COUNT(MC!$E$2:$E$32)*$AC32,NA()) -> 78212 | N32: =IF(ISNUMBER(MC!$E31)=TRUE,MC!$C$12/COUNT(MC!$E$2:$E$32)*'Plot Data'!$AC32,NA()) -> 225000 | O32: =IF(ISNUMBER(MC!$E31)=TRUE,MC!$C$18/COUNT(MC!$E$2:$E$32)*$AC32,NA()) -> 31285 | P32: =IF(ISNUMBER(MC!$E31)=TRUE,MC!$C$21/COUNT(MC!$E$2:$E$32)*$AC32,NA()) -> 78750 | Q32: =IF(ISNUMBER(Parts!$E31)=TRUE,Parts!$C$10/COUNT(Parts!$E$2:$E$32)*$AC32,NA()) -> 147038 | R32: =IF(ISNUMBER(Parts!$E31)=TRUE,Parts!$C$12/COUNT(Parts!$E$2:$E$32)*'Plot Data'!$AC32,NA()) -> 277500 | S32: =IF(ISNUMBER(Parts!$E31)=TRUE,Parts!$C$18/COUNT(Parts!$E$2:$E$32)*$AC32,NA()) -> 51463 | T32: =IF(ISNUMBER(Parts!$E31)=TRUE,Parts!$C$21/COUNT(Parts!$E$2:$E$32)*$AC32,NA()) -> 128250 | U32: =IF(ISNUMBER(Service!$E31)=TRUE,Service!$C$10/COUNT(Service!$E$2:$E$32)*$AC32,NA()) -> 63069 | V32: =IF(ISNUMBER(Service!$E31)=TRUE,Service!$C$12/COUNT(Service!$E$2:$E$32)*'Plot Data'!$AC32,NA()) -> 43500 | W32: =IF(ISNUMBER(Service!$E31)=TRUE,Service!$C$18/COUNT(Service!$E$2:$E$32)*$AC32,NA()) -> 0 | X32: =IF(ISNUMBER(Service!$E31)=TRUE,Service!$C$21/COUNT(Service!$E$2:$E$32)*$AC32,NA()) -> 0 | Y32: =IF(ISNUMBER('F&I'!$E31)=TRUE,'F&I'!$C$10/COUNT('F&I'!$E$2:$E$32)*$AC32,NA()) -> 42560 | Z32: =IF(ISNUMBER('F&I'!$E31)=TRUE,'F&I'!$C$12/COUNT('F&I'!$E$2:$E$32)*'Plot Data'!$AC32,NA()) -> 6000 | AA32: =IF(ISNUMBER('F&I'!$E31)=TRUE,'F&I'!$C$18/COUNT('F&I'!$E$2:$E$32)*$AC32,NA()) -> 29792 | AB32: =IF(ISNUMBER('F&I'!$E31)=TRUE,'F&I'!$C$21/COUNT('F&I'!$E$2:$E$32)*$AC32,NA()) -> 6000 | AC32: =IF(ISNUMBER('MU Used'!E31)=TRUE,'Plot Data'!AD32,NA()) -> 30 | AD32: 30 | AF32: =IF(ISNUMBER(Eastside!$E31)=TRUE,Eastside!$C$10/COUNT(Eastside!$E$2:$E$32)*$AC32,NA()) -> 50000 | AG32: =IF(ISNUMBER(Eastside!$E31)=TRUE,Eastside!$C$12/COUNT(Eastside!$E$2:$E$32)*'Plot Data'!$AC32,NA()) -> 105000 | AH32: =IF(ISNUMBER(Eastside!$E31)=TRUE,Eastside!$C$18/COUNT(Eastside!$E$2:$E$32)*$AC32,NA()) -> 0 | AI32: =IF(ISNUMBER(Eastside!$E31)=TRUE,Eastside!$C$21/COUNT(Eastside!$E$2:$E$32)*$AC32,NA()) -> 33750 | AJ32: =IF(ISNUMBER('Emerald City'!$E31)=TRUE,'Emerald City'!$C$10/COUNT('Emerald City'!$E$2:$E$32)*$AC32,NA()) -> 21000 | AK32: =IF(ISNUMBER('Emerald City'!$E31)=TRUE,'Emerald City'!$C$12/COUNT('Emerald City'!$E$2:$E$32)*'Plot Data'!$AC32,NA()) -> 120000 | AL32: =IF(ISNUMBER('Emerald City'!$E31)=TRUE,'Emerald City'!$C$18/COUNT('Emerald City'!$E$2:$E$32)*$AC32,NA()) -> 0 | AM32: =IF(ISNUMBER('Emerald City'!$E31)=TRUE,'Emerald City'!$C$21/COUNT('Emerald City'!$E$2:$E$32)*$AC32,NA()) -> 45000 | AN32: =IF(ISNUMBER(Retail!$E31)=TRUE,Retail!$C$10/COUNT(Retail!$E$2:$E$32)*$AC32,NA()) -> 0 | AO32: =IF(ISNUMBER(Retail!$E31)=TRUE,Retail!$C$12/COUNT(Retail!$E$2:$E$32)*'Plot Data'!$AC32,NA()) -> 90000 | AP32: =IF(ISNUMBER(Retail!$E31)=TRUE,Retail!$C$18/COUNT(Retail!$E$2:$E$32)*$AC32,NA()) -> 0 | AQ32: =IF(ISNUMBER(Retail!$E31)=TRUE,Retail!$C$17/COUNT(Retail!$E$2:$E$32)*$AC32,NA()) -> 37500 | AR32: =IF(ISNUMBER(RO!$E31)=TRUE,RO!$C$10/COUNT(RO!$E$2:$E$32)*$AC32,NA()) -> 0 | AS32: =IF(ISNUMBER(RO!$E31)=TRUE,RO!$C$12/COUNT(RO!$E$2:$E$32)*'Plot Data'!$AC32,NA()) -> 52500 | AT32: =IF(ISNUMBER(RO!$E31)=TRUE,RO!$C$18/COUNT(RO!$E$2:$E$32)*$AC32,NA()) -> 0 | AU32: =IF(ISNUMBER(RO!$E31)=TRUE,RO!$C$17/COUNT(RO!$E$2:$E$32)*$AC32,NA()) -> 23250 | AV32: =IF(ISNUMBER('Major Unit'!$E31)=TRUE,'Major Unit'!$C$10/COUNT('Major Unit'!$E$2:$E$32)*$AC32,NA()) -> 0 | AW32: =IF(ISNUMBER('Major Unit'!$E31)=TRUE,'Major Unit'!$C$12/COUNT('Major Unit'!$E$2:$E$32)*'Plot Data'!$AC32,NA()) -> 135000 | AX32: =IF(ISNUMBER('Major Unit'!$E31)=TRUE,'Major Unit'!$C$18/COUNT('Major Unit'!$E$2:$E$32)*$AC32,NA()) -> 0 | AY32: =IF(ISNUMBER('Major Unit'!$E31)=TRUE,'Major Unit'!$C$17/COUNT('Major Unit'!$E$2:$E$32)*$AC32,NA()) -> 67500
A33: =IF(ISNUMBER('MU New'!E32)=TRUE,'MU New'!$C$10/COUNT('MU New'!$E$2:$E$32)*AC33,NA()) ->  | B33: =IF(ISNUMBER('MU New'!E32)=TRUE,'MU New'!$C$12/COUNT('MU New'!$E$2:$E$32)*'Plot Data'!AC33,NA()) ->  | C33: =IF(ISNUMBER('MU New'!E32)=TRUE,'MU New'!$C$18/COUNT('MU Used'!$E$2:$E$32)*$AC33,NA()) ->  | D33: =IF(ISNUMBER('MU New'!E32)=TRUE,'MU New'!$C$21/COUNT('MU New'!$E$2:$E$32)*$AC33,NA()) ->  | E33: =IF(ISNUMBER('MU New'!E32)=TRUE,'MU New'!$C$27/COUNT('MU New'!$E$2:$E$32)*$AC33,NA()) ->  | F33: =IF(ISNUMBER('MU New'!E32)=TRUE,'MU New'!$C$29/COUNT('MU New'!$E$2:$E$32)*$AC33,NA()) ->  | G33: =IF(ISNUMBER('MU Used'!E32)=TRUE,'MU Used'!$C$10/COUNT('MU Used'!$E$2:$E$32)*AC33,NA()) ->  | H33: =IF(ISNUMBER('MU Used'!E32)=TRUE,'MU Used'!$C$12/COUNT('MU Used'!$E$2:$E$32)*'Plot Data'!AC33,NA()) ->  | I33: =IF(ISNUMBER('MU Used'!E32)=TRUE,'MU Used'!$C$18/COUNT('MU Used'!$E$2:$E$32)*$AC33,NA()) ->  | J33: =IF(ISNUMBER('MU Used'!E32)=TRUE,'MU Used'!$C$21/COUNT('MU Used'!$E$2:$E$32)*$AC33,NA()) ->  | K33: =IF(ISNUMBER('MU Used'!E32)=TRUE,'MU Used'!$C$27/COUNT('MU Used'!$E$2:$E$32)*$AC33,NA()) ->  | L33: =IF(ISNUMBER('MU Used'!E32)=TRUE,'MU Used'!$C$29/COUNT('MU Used'!$E$2:$E$32)*$AC33,NA()) ->  | M33: =IF(ISNUMBER(MC!$E32)=TRUE,MC!$C$10/COUNT(MC!$E$2:$E$32)*$AC33,NA()) ->  | N33: =IF(ISNUMBER(MC!$E32)=TRUE,MC!$C$12/COUNT(MC!$E$2:$E$32)*'Plot Data'!$AC33,NA()) ->  | O33: =IF(ISNUMBER(MC!$E32)=TRUE,MC!$C$18/COUNT(MC!$E$2:$E$32)*$AC33,NA()) ->  | P33: =IF(ISNUMBER(MC!$E32)=TRUE,MC!$C$21/COUNT(MC!$E$2:$E$32)*$AC33,NA()) ->  | Q33: =IF(ISNUMBER(Parts!$E32)=TRUE,Parts!$C$10/COUNT(Parts!$E$2:$E$32)*$AC33,NA()) ->  | R33: =IF(ISNUMBER(Parts!$E32)=TRUE,Parts!$C$12/COUNT(Parts!$E$2:$E$32)*'Plot Data'!$AC33,NA()) ->  | S33: =IF(ISNUMBER(Parts!$E32)=TRUE,Parts!$C$18/COUNT(Parts!$E$2:$E$32)*$AC33,NA()) ->  | T33: =IF(ISNUMBER(Parts!$E32)=TRUE,Parts!$C$21/COUNT(Parts!$E$2:$E$32)*$AC33,NA()) ->  | U33: =IF(ISNUMBER(Service!$E32)=TRUE,Service!$C$10/COUNT(Service!$E$2:$E$32)*$AC33,NA()) ->  | V33: =IF(ISNUMBER(Service!$E32)=TRUE,Service!$C$12/COUNT(Service!$E$2:$E$32)*'Plot Data'!$AC33,NA()) ->  | W33: =IF(ISNUMBER(Service!$E32)=TRUE,Service!$C$18/COUNT(Service!$E$2:$E$32)*$AC33,NA()) ->  | X33: =IF(ISNUMBER(Service!$E32)=TRUE,Service!$C$21/COUNT(Service!$E$2:$E$32)*$AC33,NA()) ->  | Y33: =IF(ISNUMBER('F&I'!$E32)=TRUE,'F&I'!$C$10/COUNT('F&I'!$E$2:$E$32)*$AC33,NA()) ->  | Z33: =IF(ISNUMBER('F&I'!$E32)=TRUE,'F&I'!$C$12/COUNT('F&I'!$E$2:$E$32)*'Plot Data'!$AC33,NA()) ->  | AA33: =IF(ISNUMBER('F&I'!$E32)=TRUE,'F&I'!$C$18/COUNT('F&I'!$E$2:$E$32)*$AC33,NA()) ->  | AB33: =IF(ISNUMBER('F&I'!$E32)=TRUE,'F&I'!$C$21/COUNT('F&I'!$E$2:$E$32)*$AC33,NA()) ->  | AC33: =IF(ISNUMBER('MU Used'!E32)=TRUE,'Plot Data'!AD33,NA()) ->  | AD33: 31 | AF33: =IF(ISNUMBER(Eastside!$E32)=TRUE,Eastside!$C$10/COUNT(Eastside!$E$2:$E$32)*$AC33,NA()) ->  | AG33: =IF(ISNUMBER(Eastside!$E32)=TRUE,Eastside!$C$12/COUNT(Eastside!$E$2:$E$32)*'Plot Data'!$AC33,NA()) ->  | AH33: =IF(ISNUMBER(Eastside!$E32)=TRUE,Eastside!$C$18/COUNT(Eastside!$E$2:$E$32)*$AC33,NA()) ->  | AI33: =IF(ISNUMBER(Eastside!$E32)=TRUE,Eastside!$C$21/COUNT(Eastside!$E$2:$E$32)*$AC33,NA()) ->  | AJ33: =IF(ISNUMBER('Emerald City'!$E32)=TRUE,'Emerald City'!$C$10/COUNT('Emerald City'!$E$2:$E$32)*$AC33,NA()) ->  | AK33: =IF(ISNUMBER('Emerald City'!$E32)=TRUE,'Emerald City'!$C$12/COUNT('Emerald City'!$E$2:$E$32)*'Plot Data'!$AC33,NA()) ->  | AL33: =IF(ISNUMBER('Emerald City'!$E32)=TRUE,'Emerald City'!$C$18/COUNT('Emerald City'!$E$2:$E$32)*$AC33,NA()) ->  | AM33: =IF(ISNUMBER('Emerald City'!$E32)=TRUE,'Emerald City'!$C$21/COUNT('Emerald City'!$E$2:$E$32)*$AC33,NA()) ->  | AN33: =IF(ISNUMBER(Retail!$E32)=TRUE,Retail!$C$10/COUNT(Retail!$E$2:$E$32)*$AC33,NA()) ->  | AO33: =IF(ISNUMBER(Retail!$E32)=TRUE,Retail!$C$12/COUNT(Retail!$E$2:$E$32)*'Plot Data'!$AC33,NA()) ->  | AP33: =IF(ISNUMBER(Retail!$E32)=TRUE,Retail!$C$18/COUNT(Retail!$E$2:$E$32)*$AC33,NA()) ->  | AQ33: =IF(ISNUMBER(Retail!$E32)=TRUE,Retail!$C$17/COUNT(Retail!$E$2:$E$32)*$AC33,NA()) ->  | AR33: =IF(ISNUMBER(RO!$E32)=TRUE,RO!$C$10/COUNT(RO!$E$2:$E$32)*$AC33,NA()) ->  | AS33: =IF(ISNUMBER(RO!$E32)=TRUE,RO!$C$12/COUNT(RO!$E$2:$E$32)*'Plot Data'!$AC33,NA()) ->  | AT33: =IF(ISNUMBER(RO!$E32)=TRUE,RO!$C$18/COUNT(RO!$E$2:$E$32)*$AC33,NA()) ->  | AU33: =IF(ISNUMBER(RO!$E32)=TRUE,RO!$C$17/COUNT(RO!$E$2:$E$32)*$AC33,NA()) ->  | AV33: =IF(ISNUMBER('Major Unit'!$E32)=TRUE,'Major Unit'!$C$10/COUNT('Major Unit'!$E$2:$E$32)*$AC33,NA()) ->  | AW33: =IF(ISNUMBER('Major Unit'!$E32)=TRUE,'Major Unit'!$C$12/COUNT('Major Unit'!$E$2:$E$32)*'Plot Data'!$AC33,NA()) ->  | AX33: =IF(ISNUMBER('Major Unit'!$E32)=TRUE,'Major Unit'!$C$18/COUNT('Major Unit'!$E$2:$E$32)*$AC33,NA()) ->  | AY33: =IF(ISNUMBER('Major Unit'!$E32)=TRUE,'Major Unit'!$C$17/COUNT('Major Unit'!$E$2:$E$32)*$AC33,NA()) -> 
B35: Cumulative Margin | H35: Cumulative Margin | M35: Cumulative Margin | Q35: Cumulative Margin | U35: Cumulative Margin | Y35: Cumulative Margin | AI35: Cumulative Margin | AM35: Cumulative Margin | AQ35: Cumulative Margin | AU35: Cumulative Margin | AY35: Cumulative Margin
B36: =IF(ISNUMBER('MU New'!G2)=TRUE,SUM('MU New'!$K$2:'MU New'!K2),NA()) -> 8000 | H36: =IF(ISNUMBER('MU Used'!G2)=TRUE,SUM('MU Used'!$K$2:'MU Used'!K2),NA()) -> 0 | M36: =IF(ISNUMBER(MC!G2)=TRUE,SUM(MC!$J$2:'MC'!J2),NA()) -> 3000 | Q36: =IF(ISNUMBER(Parts!G2)=TRUE,SUM(Parts!$J$2:'Parts'!J2),NA()) -> 4250 | U36: =IF(ISNUMBER(Service!G2)=TRUE,SUM(Service!#REF!:Service!#REF!),NA()) ->  | Y36: =IF(ISNUMBER('F&I'!G2)=TRUE,SUM('F&I'!$J$2:'F&I'!J2),NA()) -> 250 | AI36: =IF(ISNUMBER(Eastside!G2)=TRUE,SUM(Eastside!$J$2:'Eastside'!J2),NA()) -> 1000 | AM36: =IF(ISNUMBER('Emerald City'!G2)=TRUE,SUM('Emerald City'!$J$2:'Emerald City'!J2),NA()) -> 2000 | AQ36: =IF(ISNUMBER(Retail!G2)=TRUE,SUM(Retail!$J$2:'Retail'!R2),NA()) -> 1000 | AU36: =IF(ISNUMBER(RO!G2)=TRUE,SUM(RO!$J$2:'RO'!J2),NA()) -> 750 | AY36: =IF(ISNUMBER('Major Unit'!G2)=TRUE,SUM('Major Unit'!$J$2:'Major Unit'!J2),NA()) -> 2500
B37: =IF(ISNUMBER('MU New'!G3)=TRUE,SUM('MU New'!$K$2:'MU New'!K3),NA()) -> 14000 | H37: =IF(ISNUMBER('MU Used'!G3)=TRUE,SUM('MU Used'!$K$2:'MU Used'!K3),NA()) -> 4000 | M37: =IF(ISNUMBER(MC!G3)=TRUE,SUM(MC!$J$2:'MC'!J3),NA()) -> 5250 | Q37: =IF(ISNUMBER(Parts!G3)=TRUE,SUM(Parts!$J$2:'Parts'!J3),NA()) -> 8550 | U37: =IF(ISNUMBER(Service!G3)=TRUE,SUM(Service!#REF!:Service!#REF!),NA()) ->  | Y37: =IF(ISNUMBER('F&I'!G3)=TRUE,SUM('F&I'!$J$2:'F&I'!J3),NA()) -> 400 | AI37: =IF(ISNUMBER(Eastside!G3)=TRUE,SUM(Eastside!$J$2:'Eastside'!J3),NA()) -> 2250 | AM37: =IF(ISNUMBER('Emerald City'!G3)=TRUE,SUM('Emerald City'!$J$2:'Emerald City'!J3),NA()) -> 3000 | AQ37: =IF(ISNUMBER(Retail!G3)=TRUE,SUM(Retail!$J$2:'Retail'!R3),NA()) -> 2500 | AU37: =IF(ISNUMBER(RO!G3)=TRUE,SUM(RO!$J$2:'RO'!J3),NA()) -> 1550 | AY37: =IF(ISNUMBER('Major Unit'!G3)=TRUE,SUM('Major Unit'!$J$2:'Major Unit'!J3),NA()) -> 4500
B38: =IF(ISNUMBER('MU New'!G4)=TRUE,SUM('MU New'!$K$2:'MU New'!K4),NA()) ->  | H38: =IF(ISNUMBER('MU Used'!G4)=TRUE,SUM('MU Used'!$K$2:'MU Used'!K4),NA()) ->  | M38: =IF(ISNUMBER(MC!G4)=TRUE,SUM(MC!$J$2:'MC'!J4),NA()) ->  | Q38: =IF(ISNUMBER(Parts!G4)=TRUE,SUM(Parts!$J$2:'Parts'!J4),NA()) ->  | U38: =IF(ISNUMBER(Service!G4)=TRUE,SUM(Service!#REF!:Service!#REF!),NA()) ->  | Y38: =IF(ISNUMBER('F&I'!G4)=TRUE,SUM('F&I'!$J$2:'F&I'!J4),NA()) ->  | AI38: =IF(ISNUMBER(Eastside!G4)=TRUE,SUM(Eastside!$J$2:'Eastside'!J4),NA()) ->  | AM38: =IF(ISNUMBER('Emerald City'!G4)=TRUE,SUM('Emerald City'!$J$2:'Emerald City'!J4),NA()) ->  | AQ38: =IF(ISNUMBER(Retail!G4)=TRUE,SUM(Retail!$J$2:'Retail'!R4),NA()) ->  | AU38: =IF(ISNUMBER(RO!G4)=TRUE,SUM(RO!$J$2:'RO'!J4),NA()) ->  | AY38: =IF(ISNUMBER('Major Unit'!G4)=TRUE,SUM('Major Unit'!$J$2:'Major Unit'!J4),NA()) -> 
B39: =IF(ISNUMBER('MU New'!G5)=TRUE,SUM('MU New'!$K$2:'MU New'!K5),NA()) ->  | H39: =IF(ISNUMBER('MU Used'!G5)=TRUE,SUM('MU Used'!$K$2:'MU Used'!K5),NA()) ->  | M39: =IF(ISNUMBER(MC!G5)=TRUE,SUM(MC!$J$2:'MC'!J5),NA()) ->  | Q39: =IF(ISNUMBER(Parts!G5)=TRUE,SUM(Parts!$J$2:'Parts'!J5),NA()) ->  | U39: =IF(ISNUMBER(Service!G5)=TRUE,SUM(Service!#REF!:Service!#REF!),NA()) ->  | Y39: =IF(ISNUMBER('F&I'!G5)=TRUE,SUM('F&I'!$J$2:'F&I'!J5),NA()) ->  | AI39: =IF(ISNUMBER(Eastside!G5)=TRUE,SUM(Eastside!$J$2:'Eastside'!J5),NA()) ->  | AM39: =IF(ISNUMBER('Emerald City'!G5)=TRUE,SUM('Emerald City'!$J$2:'Emerald City'!J5),NA()) ->  | AQ39: =IF(ISNUMBER(Retail!G5)=TRUE,SUM(Retail!$J$2:'Retail'!R5),NA()) ->  | AU39: =IF(ISNUMBER(RO!G5)=TRUE,SUM(RO!$J$2:'RO'!J5),NA()) ->  | AY39: =IF(ISNUMBER('Major Unit'!G5)=TRUE,SUM('Major Unit'!$J$2:'Major Unit'!J5),NA()) -> 
B40: =IF(ISNUMBER('MU New'!G6)=TRUE,SUM('MU New'!$K$2:'MU New'!K6),NA()) ->  | H40: =IF(ISNUMBER('MU Used'!G6)=TRUE,SUM('MU Used'!$K$2:'MU Used'!K6),NA()) ->  | M40: =IF(ISNUMBER(MC!G6)=TRUE,SUM(MC!$J$2:'MC'!J6),NA()) ->  | Q40: =IF(ISNUMBER(Parts!G6)=TRUE,SUM(Parts!$J$2:'Parts'!J6),NA()) ->  | U40: =IF(ISNUMBER(Service!G6)=TRUE,SUM(Service!#REF!:Service!#REF!),NA()) ->  | Y40: =IF(ISNUMBER('F&I'!G6)=TRUE,SUM('F&I'!$J$2:'F&I'!J6),NA()) ->  | AI40: =IF(ISNUMBER(Eastside!G6)=TRUE,SUM(Eastside!$J$2:'Eastside'!J6),NA()) ->  | AM40: =IF(ISNUMBER('Emerald City'!G6)=TRUE,SUM('Emerald City'!$J$2:'Emerald City'!J6),NA()) ->  | AQ40: =IF(ISNUMBER(Retail!G6)=TRUE,SUM(Retail!$J$2:'Retail'!R6),NA()) ->  | AU40: =IF(ISNUMBER(RO!G6)=TRUE,SUM(RO!$J$2:'RO'!J6),NA()) ->  | AY40: =IF(ISNUMBER('Major Unit'!G6)=TRUE,SUM('Major Unit'!$J$2:'Major Unit'!J6),NA()) -> 
B41: =IF(ISNUMBER('MU New'!G7)=TRUE,SUM('MU New'!$K$2:'MU New'!K7),NA()) ->  | H41: =IF(ISNUMBER('MU Used'!G7)=TRUE,SUM('MU Used'!$K$2:'MU Used'!K7),NA()) ->  | M41: =IF(ISNUMBER(MC!G7)=TRUE,SUM(MC!$J$2:'MC'!J7),NA()) ->  | Q41: =IF(ISNUMBER(Parts!G7)=TRUE,SUM(Parts!$J$2:'Parts'!J7),NA()) ->  | U41: =IF(ISNUMBER(Service!G7)=TRUE,SUM(Service!#REF!:Service!#REF!),NA()) ->  | Y41: =IF(ISNUMBER('F&I'!G7)=TRUE,SUM('F&I'!$J$2:'F&I'!J7),NA()) ->  | AI41: =IF(ISNUMBER(Eastside!G7)=TRUE,SUM(Eastside!$J$2:'Eastside'!J7),NA()) ->  | AM41: =IF(ISNUMBER('Emerald City'!G7)=TRUE,SUM('Emerald City'!$J$2:'Emerald City'!J7),NA()) ->  | AQ41: =IF(ISNUMBER(Retail!G7)=TRUE,SUM(Retail!$J$2:'Retail'!R7),NA()) ->  | AU41: =IF(ISNUMBER(RO!G7)=TRUE,SUM(RO!$J$2:'RO'!J7),NA()) ->  | AY41: =IF(ISNUMBER('Major Unit'!G7)=TRUE,SUM('Major Unit'!$J$2:'Major Unit'!J7),NA()) -> 
B42: =IF(ISNUMBER('MU New'!G8)=TRUE,SUM('MU New'!$K$2:'MU New'!K8),NA()) ->  | H42: =IF(ISNUMBER('MU Used'!G8)=TRUE,SUM('MU Used'!$K$2:'MU Used'!K8),NA()) ->  | M42: =IF(ISNUMBER(MC!G8)=TRUE,SUM(MC!$J$2:'MC'!J8),NA()) ->  | Q42: =IF(ISNUMBER(Parts!G8)=TRUE,SUM(Parts!$J$2:'Parts'!J8),NA()) ->  | U42: =IF(ISNUMBER(Service!G8)=TRUE,SUM(Service!#REF!:Service!#REF!),NA()) ->  | Y42: =IF(ISNUMBER('F&I'!G8)=TRUE,SUM('F&I'!$J$2:'F&I'!J8),NA()) ->  | AI42: =IF(ISNUMBER(Eastside!G8)=TRUE,SUM(Eastside!$J$2:'Eastside'!J8),NA()) ->  | AM42: =IF(ISNUMBER('Emerald City'!G8)=TRUE,SUM('Emerald City'!$J$2:'Emerald City'!J8),NA()) ->  | AQ42: =IF(ISNUMBER(Retail!G8)=TRUE,SUM(Retail!$J$2:'Retail'!R8),NA()) ->  | AU42: =IF(ISNUMBER(RO!G8)=TRUE,SUM(RO!$J$2:'RO'!J8),NA()) ->  | AY42: =IF(ISNUMBER('Major Unit'!G8)=TRUE,SUM('Major Unit'!$J$2:'Major Unit'!J8),NA()) -> 
B43: =IF(ISNUMBER('MU New'!G9)=TRUE,SUM('MU New'!$K$2:'MU New'!K9),NA()) ->  | H43: =IF(ISNUMBER('MU Used'!G9)=TRUE,SUM('MU Used'!$K$2:'MU Used'!K9),NA()) ->  | M43: =IF(ISNUMBER(MC!G9)=TRUE,SUM(MC!$J$2:'MC'!J9),NA()) ->  | Q43: =IF(ISNUMBER(Parts!G9)=TRUE,SUM(Parts!$J$2:'Parts'!J9),NA()) ->  | U43: =IF(ISNUMBER(Service!G9)=TRUE,SUM(Service!#REF!:Service!#REF!),NA()) ->  | Y43: =IF(ISNUMBER('F&I'!G9)=TRUE,SUM('F&I'!$J$2:'F&I'!J9),NA()) ->  | AI43: =IF(ISNUMBER(Eastside!G9)=TRUE,SUM(Eastside!$J$2:'Eastside'!J9),NA()) ->  | AM43: =IF(ISNUMBER('Emerald City'!G9)=TRUE,SUM('Emerald City'!$J$2:'Emerald City'!J9),NA()) ->  | AQ43: =IF(ISNUMBER(Retail!G9)=TRUE,SUM(Retail!$J$2:'Retail'!R9),NA()) ->  | AU43: =IF(ISNUMBER(RO!G9)=TRUE,SUM(RO!$J$2:'RO'!J9),NA()) ->  | AY43: =IF(ISNUMBER('Major Unit'!G9)=TRUE,SUM('Major Unit'!$J$2:'Major Unit'!J9),NA()) -> 
B44: =IF(ISNUMBER('MU New'!G10)=TRUE,SUM('MU New'!$K$2:'MU New'!K10),NA()) ->  | H44: =IF(ISNUMBER('MU Used'!G10)=TRUE,SUM('MU Used'!$K$2:'MU Used'!K10),NA()) ->  | M44: =IF(ISNUMBER(MC!G10)=TRUE,SUM(MC!$J$2:'MC'!J10),NA()) ->  | Q44: =IF(ISNUMBER(Parts!G10)=TRUE,SUM(Parts!$J$2:'Parts'!J10),NA()) ->  | U44: =IF(ISNUMBER(Service!G10)=TRUE,SUM(Service!#REF!:Service!#REF!),NA()) ->  | Y44: =IF(ISNUMBER('F&I'!G10)=TRUE,SUM('F&I'!$J$2:'F&I'!J10),NA()) ->  | AI44: =IF(ISNUMBER(Eastside!G10)=TRUE,SUM(Eastside!$J$2:'Eastside'!J10),NA()) ->  | AM44: =IF(ISNUMBER('Emerald City'!G10)=TRUE,SUM('Emerald City'!$J$2:'Emerald City'!J10),NA()) ->  | AQ44: =IF(ISNUMBER(Retail!G10)=TRUE,SUM(Retail!$J$2:'Retail'!R10),NA()) ->  | AU44: =IF(ISNUMBER(RO!G10)=TRUE,SUM(RO!$J$2:'RO'!J10),NA()) ->  | AY44: =IF(ISNUMBER('Major Unit'!G10)=TRUE,SUM('Major Unit'!$J$2:'Major Unit'!J10),NA()) -> 
B45: =IF(ISNUMBER('MU New'!G11)=TRUE,SUM('MU New'!$K$2:'MU New'!K11),NA()) ->  | H45: =IF(ISNUMBER('MU Used'!G11)=TRUE,SUM('MU Used'!$K$2:'MU Used'!K11),NA()) ->  | M45: =IF(ISNUMBER(MC!G11)=TRUE,SUM(MC!$J$2:'MC'!J11),NA()) ->  | Q45: =IF(ISNUMBER(Parts!G11)=TRUE,SUM(Parts!$J$2:'Parts'!J11),NA()) ->  | U45: =IF(ISNUMBER(Service!G11)=TRUE,SUM(Service!#REF!:Service!#REF!),NA()) ->  | Y45: =IF(ISNUMBER('F&I'!G11)=TRUE,SUM('F&I'!$J$2:'F&I'!J11),NA()) ->  | AI45: =IF(ISNUMBER(Eastside!G11)=TRUE,SUM(Eastside!$J$2:'Eastside'!J11),NA()) ->  | AM45: =IF(ISNUMBER('Emerald City'!G11)=TRUE,SUM('Emerald City'!$J$2:'Emerald City'!J11),NA()) ->  | AQ45: =IF(ISNUMBER(Retail!G11)=TRUE,SUM(Retail!$J$2:'Retail'!R11),NA()) ->  | AU45: =IF(ISNUMBER(RO!G11)=TRUE,SUM(RO!$J$2:'RO'!J11),NA()) ->  | AY45: =IF(ISNUMBER('Major Unit'!G11)=TRUE,SUM('Major Unit'!$J$2:'Major Unit'!J11),NA()) -> 
B46: =IF(ISNUMBER('MU New'!G12)=TRUE,SUM('MU New'!$K$2:'MU New'!K12),NA()) ->  | H46: =IF(ISNUMBER('MU Used'!G12)=TRUE,SUM('MU Used'!$K$2:'MU Used'!K12),NA()) ->  | M46: =IF(ISNUMBER(MC!G12)=TRUE,SUM(MC!$J$2:'MC'!J12),NA()) ->  | Q46: =IF(ISNUMBER(Parts!G12)=TRUE,SUM(Parts!$J$2:'Parts'!J12),NA()) ->  | U46: =IF(ISNUMBER(Service!G12)=TRUE,SUM(Service!#REF!:Service!#REF!),NA()) ->  | Y46: =IF(ISNUMBER('F&I'!G12)=TRUE,SUM('F&I'!$J$2:'F&I'!J12),NA()) ->  | AI46: =IF(ISNUMBER(Eastside!G12)=TRUE,SUM(Eastside!$J$2:'Eastside'!J12),NA()) ->  | AM46: =IF(ISNUMBER('Emerald City'!G12)=TRUE,SUM('Emerald City'!$J$2:'Emerald City'!J12),NA()) ->  | AQ46: =IF(ISNUMBER(Retail!G12)=TRUE,SUM(Retail!$J$2:'Retail'!R12),NA()) ->  | AU46: =IF(ISNUMBER(RO!G12)=TRUE,SUM(RO!$J$2:'RO'!J12),NA()) ->  | AY46: =IF(ISNUMBER('Major Unit'!G12)=TRUE,SUM('Major Unit'!$J$2:'Major Unit'!J12),NA()) -> 
B47: =IF(ISNUMBER('MU New'!G13)=TRUE,SUM('MU New'!$K$2:'MU New'!K13),NA()) ->  | H47: =IF(ISNUMBER('MU Used'!G13)=TRUE,SUM('MU Used'!$K$2:'MU Used'!K13),NA()) ->  | M47: =IF(ISNUMBER(MC!G13)=TRUE,SUM(MC!$J$2:'MC'!J13),NA()) ->  | Q47: =IF(ISNUMBER(Parts!G13)=TRUE,SUM(Parts!$J$2:'Parts'!J13),NA()) ->  | U47: =IF(ISNUMBER(Service!G13)=TRUE,SUM(Service!#REF!:Service!#REF!),NA()) ->  | Y47: =IF(ISNUMBER('F&I'!G13)=TRUE,SUM('F&I'!$J$2:'F&I'!J13),NA()) ->  | AI47: =IF(ISNUMBER(Eastside!G13)=TRUE,SUM(Eastside!$J$2:'Eastside'!J13),NA()) ->  | AM47: =IF(ISNUMBER('Emerald City'!G13)=TRUE,SUM('Emerald City'!$J$2:'Emerald City'!J13),NA()) ->  | AQ47: =IF(ISNUMBER(Retail!G13)=TRUE,SUM(Retail!$J$2:'Retail'!R13),NA()) ->  | AU47: =IF(ISNUMBER(RO!G13)=TRUE,SUM(RO!$J$2:'RO'!J13),NA()) ->  | AY47: =IF(ISNUMBER('Major Unit'!G13)=TRUE,SUM('Major Unit'!$J$2:'Major Unit'!J13),NA()) -> 
B48: =IF(ISNUMBER('MU New'!G14)=TRUE,SUM('MU New'!$K$2:'MU New'!K14),NA()) ->  | H48: =IF(ISNUMBER('MU Used'!G14)=TRUE,SUM('MU Used'!$K$2:'MU Used'!K14),NA()) ->  | M48: =IF(ISNUMBER(MC!G14)=TRUE,SUM(MC!$J$2:'MC'!J14),NA()) ->  | Q48: =IF(ISNUMBER(Parts!G14)=TRUE,SUM(Parts!$J$2:'Parts'!J14),NA()) ->  | U48: =IF(ISNUMBER(Service!G14)=TRUE,SUM(Service!#REF!:Service!#REF!),NA()) ->  | Y48: =IF(ISNUMBER('F&I'!G14)=TRUE,SUM('F&I'!$J$2:'F&I'!J14),NA()) ->  | AI48: =IF(ISNUMBER(Eastside!G14)=TRUE,SUM(Eastside!$J$2:'Eastside'!J14),NA()) ->  | AM48: =IF(ISNUMBER('Emerald City'!G14)=TRUE,SUM('Emerald City'!$J$2:'Emerald City'!J14),NA()) ->  | AQ48: =IF(ISNUMBER(Retail!G14)=TRUE,SUM(Retail!$J$2:'Retail'!R14),NA()) ->  | AU48: =IF(ISNUMBER(RO!G14)=TRUE,SUM(RO!$J$2:'RO'!J14),NA()) ->  | AY48: =IF(ISNUMBER('Major Unit'!G14)=TRUE,SUM('Major Unit'!$J$2:'Major Unit'!J14),NA()) -> 
B49: =IF(ISNUMBER('MU New'!G15)=TRUE,SUM('MU New'!$K$2:'MU New'!K15),NA()) ->  | H49: =IF(ISNUMBER('MU Used'!G15)=TRUE,SUM('MU Used'!$K$2:'MU Used'!K15),NA()) ->  | M49: =IF(ISNUMBER(MC!G15)=TRUE,SUM(MC!$J$2:'MC'!J15),NA()) ->  | Q49: =IF(ISNUMBER(Parts!G15)=TRUE,SUM(Parts!$J$2:'Parts'!J15),NA()) ->  | U49: =IF(ISNUMBER(Service!G15)=TRUE,SUM(Service!#REF!:Service!#REF!),NA()) ->  | Y49: =IF(ISNUMBER('F&I'!G15)=TRUE,SUM('F&I'!$J$2:'F&I'!J15),NA()) ->  | AI49: =IF(ISNUMBER(Eastside!G15)=TRUE,SUM(Eastside!$J$2:'Eastside'!J15),NA()) ->  | AM49: =IF(ISNUMBER('Emerald City'!G15)=TRUE,SUM('Emerald City'!$J$2:'Emerald City'!J15),NA()) ->  | AQ49: =IF(ISNUMBER(Retail!G15)=TRUE,SUM(Retail!$J$2:'Retail'!R15),NA()) ->  | AU49: =IF(ISNUMBER(RO!G15)=TRUE,SUM(RO!$J$2:'RO'!J15),NA()) ->  | AY49: =IF(ISNUMBER('Major Unit'!G15)=TRUE,SUM('Major Unit'!$J$2:'Major Unit'!J15),NA()) -> 
B50: =IF(ISNUMBER('MU New'!G16)=TRUE,SUM('MU New'!$K$2:'MU New'!K16),NA()) ->  | H50: =IF(ISNUMBER('MU Used'!G16)=TRUE,SUM('MU Used'!$K$2:'MU Used'!K16),NA()) ->  | M50: =IF(ISNUMBER(MC!G16)=TRUE,SUM(MC!$J$2:'MC'!J16),NA()) ->  | Q50: =IF(ISNUMBER(Parts!G16)=TRUE,SUM(Parts!$J$2:'Parts'!J16),NA()) ->  | U50: =IF(ISNUMBER(Service!G16)=TRUE,SUM(Service!#REF!:Service!#REF!),NA()) ->  | Y50: =IF(ISNUMBER('F&I'!G16)=TRUE,SUM('F&I'!$J$2:'F&I'!J16),NA()) ->  | AI50: =IF(ISNUMBER(Eastside!G16)=TRUE,SUM(Eastside!$J$2:'Eastside'!J16),NA()) ->  | AM50: =IF(ISNUMBER('Emerald City'!G16)=TRUE,SUM('Emerald City'!$J$2:'Emerald City'!J16),NA()) ->  | AQ50: =IF(ISNUMBER(Retail!G16)=TRUE,SUM(Retail!$J$2:'Retail'!R16),NA()) ->  | AU50: =IF(ISNUMBER(RO!G16)=TRUE,SUM(RO!$J$2:'RO'!J16),NA()) ->  | AY50: =IF(ISNUMBER('Major Unit'!G16)=TRUE,SUM('Major Unit'!$J$2:'Major Unit'!J16),NA()) -> 
B51: =IF(ISNUMBER('MU New'!G17)=TRUE,SUM('MU New'!$K$2:'MU New'!K17),NA()) ->  | H51: =IF(ISNUMBER('MU Used'!G17)=TRUE,SUM('MU Used'!$K$2:'MU Used'!K17),NA()) ->  | M51: =IF(ISNUMBER(MC!G17)=TRUE,SUM(MC!$J$2:'MC'!J17),NA()) ->  | Q51: =IF(ISNUMBER(Parts!G17)=TRUE,SUM(Parts!$J$2:'Parts'!J17),NA()) ->  | U51: =IF(ISNUMBER(Service!G17)=TRUE,SUM(Service!#REF!:Service!#REF!),NA()) ->  | Y51: =IF(ISNUMBER('F&I'!G17)=TRUE,SUM('F&I'!$J$2:'F&I'!J17),NA()) ->  | AI51: =IF(ISNUMBER(Eastside!G17)=TRUE,SUM(Eastside!$J$2:'Eastside'!J17),NA()) ->  | AM51: =IF(ISNUMBER('Emerald City'!G17)=TRUE,SUM('Emerald City'!$J$2:'Emerald City'!J17),NA()) ->  | AQ51: =IF(ISNUMBER(Retail!G17)=TRUE,SUM(Retail!$J$2:'Retail'!R17),NA()) ->  | AU51: =IF(ISNUMBER(RO!G17)=TRUE,SUM(RO!$J$2:'RO'!J17),NA()) ->  | AY51: =IF(ISNUMBER('Major Unit'!G17)=TRUE,SUM('Major Unit'!$J$2:'Major Unit'!J17),NA()) -> 
B52: =IF(ISNUMBER('MU New'!G18)=TRUE,SUM('MU New'!$K$2:'MU New'!K18),NA()) ->  | H52: =IF(ISNUMBER('MU Used'!G18)=TRUE,SUM('MU Used'!$K$2:'MU Used'!K18),NA()) ->  | M52: =IF(ISNUMBER(MC!G18)=TRUE,SUM(MC!$J$2:'MC'!J18),NA()) ->  | Q52: =IF(ISNUMBER(Parts!G18)=TRUE,SUM(Parts!$J$2:'Parts'!J18),NA()) ->  | U52: =IF(ISNUMBER(Service!G18)=TRUE,SUM(Service!#REF!:Service!#REF!),NA()) ->  | Y52: =IF(ISNUMBER('F&I'!G18)=TRUE,SUM('F&I'!$J$2:'F&I'!J18),NA()) ->  | AI52: =IF(ISNUMBER(Eastside!G18)=TRUE,SUM(Eastside!$J$2:'Eastside'!J18),NA()) ->  | AM52: =IF(ISNUMBER('Emerald City'!G18)=TRUE,SUM('Emerald City'!$J$2:'Emerald City'!J18),NA()) ->  | AQ52: =IF(ISNUMBER(Retail!G18)=TRUE,SUM(Retail!$J$2:'Retail'!R18),NA()) ->  | AU52: =IF(ISNUMBER(RO!G18)=TRUE,SUM(RO!$J$2:'RO'!J18),NA()) ->  | AY52: =IF(ISNUMBER('Major Unit'!G18)=TRUE,SUM('Major Unit'!$J$2:'Major Unit'!J18),NA()) -> 
B53: =IF(ISNUMBER('MU New'!G19)=TRUE,SUM('MU New'!$K$2:'MU New'!K19),NA()) ->  | H53: =IF(ISNUMBER('MU Used'!G19)=TRUE,SUM('MU Used'!$K$2:'MU Used'!K19),NA()) ->  | M53: =IF(ISNUMBER(MC!G19)=TRUE,SUM(MC!$J$2:'MC'!J19),NA()) ->  | Q53: =IF(ISNUMBER(Parts!G19)=TRUE,SUM(Parts!$J$2:'Parts'!J19),NA()) ->  | U53: =IF(ISNUMBER(Service!G19)=TRUE,SUM(Service!#REF!:Service!#REF!),NA()) ->  | Y53: =IF(ISNUMBER('F&I'!G19)=TRUE,SUM('F&I'!$J$2:'F&I'!J19),NA()) ->  | AI53: =IF(ISNUMBER(Eastside!G19)=TRUE,SUM(Eastside!$J$2:'Eastside'!J19),NA()) ->  | AM53: =IF(ISNUMBER('Emerald City'!G19)=TRUE,SUM('Emerald City'!$J$2:'Emerald City'!J19),NA()) ->  | AQ53: =IF(ISNUMBER(Retail!G19)=TRUE,SUM(Retail!$J$2:'Retail'!R19),NA()) ->  | AU53: =IF(ISNUMBER(RO!G19)=TRUE,SUM(RO!$J$2:'RO'!J19),NA()) ->  | AY53: =IF(ISNUMBER('Major Unit'!G19)=TRUE,SUM('Major Unit'!$J$2:'Major Unit'!J19),NA()) -> 
B54: =IF(ISNUMBER('MU New'!G20)=TRUE,SUM('MU New'!$K$2:'MU New'!K20),NA()) ->  | H54: =IF(ISNUMBER('MU Used'!G20)=TRUE,SUM('MU Used'!$K$2:'MU Used'!K20),NA()) ->  | M54: =IF(ISNUMBER(MC!G20)=TRUE,SUM(MC!$J$2:'MC'!J20),NA()) ->  | Q54: =IF(ISNUMBER(Parts!G20)=TRUE,SUM(Parts!$J$2:'Parts'!J20),NA()) ->  | U54: =IF(ISNUMBER(Service!G20)=TRUE,SUM(Service!#REF!:Service!#REF!),NA()) ->  | Y54: =IF(ISNUMBER('F&I'!G20)=TRUE,SUM('F&I'!$J$2:'F&I'!J20),NA()) ->  | AI54: =IF(ISNUMBER(Eastside!G20)=TRUE,SUM(Eastside!$J$2:'Eastside'!J20),NA()) ->  | AM54: =IF(ISNUMBER('Emerald City'!G20)=TRUE,SUM('Emerald City'!$J$2:'Emerald City'!J20),NA()) ->  | AQ54: =IF(ISNUMBER(Retail!G20)=TRUE,SUM(Retail!$J$2:'Retail'!R20),NA()) ->  | AU54: =IF(ISNUMBER(RO!G20)=TRUE,SUM(RO!$J$2:'RO'!J20),NA()) ->  | AY54: =IF(ISNUMBER('Major Unit'!G20)=TRUE,SUM('Major Unit'!$J$2:'Major Unit'!J20),NA()) -> 
B55: =IF(ISNUMBER('MU New'!G21)=TRUE,SUM('MU New'!$K$2:'MU New'!K21),NA()) ->  | H55: =IF(ISNUMBER('MU Used'!G21)=TRUE,SUM('MU Used'!$K$2:'MU Used'!K21),NA()) ->  | M55: =IF(ISNUMBER(MC!G21)=TRUE,SUM(MC!$J$2:'MC'!J21),NA()) ->  | Q55: =IF(ISNUMBER(Parts!G21)=TRUE,SUM(Parts!$J$2:'Parts'!J21),NA()) ->  | U55: =IF(ISNUMBER(Service!G21)=TRUE,SUM(Service!#REF!:Service!#REF!),NA()) ->  | Y55: =IF(ISNUMBER('F&I'!G21)=TRUE,SUM('F&I'!$J$2:'F&I'!J21),NA()) ->  | AI55: =IF(ISNUMBER(Eastside!G21)=TRUE,SUM(Eastside!$J$2:'Eastside'!J21),NA()) ->  | AM55: =IF(ISNUMBER('Emerald City'!G21)=TRUE,SUM('Emerald City'!$J$2:'Emerald City'!J21),NA()) ->  | AQ55: =IF(ISNUMBER(Retail!G21)=TRUE,SUM(Retail!$J$2:'Retail'!R21),NA()) ->  | AU55: =IF(ISNUMBER(RO!G21)=TRUE,SUM(RO!$J$2:'RO'!J21),NA()) ->  | AY55: =IF(ISNUMBER('Major Unit'!G21)=TRUE,SUM('Major Unit'!$J$2:'Major Unit'!J21),NA()) -> 
B56: =IF(ISNUMBER('MU New'!G22)=TRUE,SUM('MU New'!$K$2:'MU New'!K22),NA()) ->  | H56: =IF(ISNUMBER('MU Used'!G22)=TRUE,SUM('MU Used'!$K$2:'MU Used'!K22),NA()) ->  | M56: =IF(ISNUMBER(MC!G22)=TRUE,SUM(MC!$J$2:'MC'!J22),NA()) ->  | Q56: =IF(ISNUMBER(Parts!G22)=TRUE,SUM(Parts!$J$2:'Parts'!J22),NA()) ->  | U56: =IF(ISNUMBER(Service!G22)=TRUE,SUM(Service!#REF!:Service!#REF!),NA()) ->  | Y56: =IF(ISNUMBER('F&I'!G22)=TRUE,SUM('F&I'!$J$2:'F&I'!J22),NA()) ->  | AI56: =IF(ISNUMBER(Eastside!G22)=TRUE,SUM(Eastside!$J$2:'Eastside'!J22),NA()) ->  | AM56: =IF(ISNUMBER('Emerald City'!G22)=TRUE,SUM('Emerald City'!$J$2:'Emerald City'!J22),NA()) ->  | AQ56: =IF(ISNUMBER(Retail!G22)=TRUE,SUM(Retail!$J$2:'Retail'!R22),NA()) ->  | AU56: =IF(ISNUMBER(RO!G22)=TRUE,SUM(RO!$J$2:'RO'!J22),NA()) ->  | AY56: =IF(ISNUMBER('Major Unit'!G22)=TRUE,SUM('Major Unit'!$J$2:'Major Unit'!J22),NA()) -> 
B57: =IF(ISNUMBER('MU New'!G23)=TRUE,SUM('MU New'!$K$2:'MU New'!K23),NA()) ->  | H57: =IF(ISNUMBER('MU Used'!G23)=TRUE,SUM('MU Used'!$K$2:'MU Used'!K23),NA()) ->  | M57: =IF(ISNUMBER(MC!G23)=TRUE,SUM(MC!$J$2:'MC'!J23),NA()) ->  | Q57: =IF(ISNUMBER(Parts!G23)=TRUE,SUM(Parts!$J$2:'Parts'!J23),NA()) ->  | U57: =IF(ISNUMBER(Service!G23)=TRUE,SUM(Service!#REF!:Service!#REF!),NA()) ->  | Y57: =IF(ISNUMBER('F&I'!G23)=TRUE,SUM('F&I'!$J$2:'F&I'!J23),NA()) ->  | AI57: =IF(ISNUMBER(Eastside!G23)=TRUE,SUM(Eastside!$J$2:'Eastside'!J23),NA()) ->  | AM57: =IF(ISNUMBER('Emerald City'!G23)=TRUE,SUM('Emerald City'!$J$2:'Emerald City'!J23),NA()) ->  | AQ57: =IF(ISNUMBER(Retail!G23)=TRUE,SUM(Retail!$J$2:'Retail'!R23),NA()) ->  | AU57: =IF(ISNUMBER(RO!G23)=TRUE,SUM(RO!$J$2:'RO'!J23),NA()) ->  | AY57: =IF(ISNUMBER('Major Unit'!G23)=TRUE,SUM('Major Unit'!$J$2:'Major Unit'!J23),NA()) -> 
B58: =IF(ISNUMBER('MU New'!G24)=TRUE,SUM('MU New'!$K$2:'MU New'!K24),NA()) ->  | H58: =IF(ISNUMBER('MU Used'!G24)=TRUE,SUM('MU Used'!$K$2:'MU Used'!K24),NA()) ->  | M58: =IF(ISNUMBER(MC!G24)=TRUE,SUM(MC!$J$2:'MC'!J24),NA()) ->  | Q58: =IF(ISNUMBER(Parts!G24)=TRUE,SUM(Parts!$J$2:'Parts'!J24),NA()) ->  | U58: =IF(ISNUMBER(Service!G24)=TRUE,SUM(Service!#REF!:Service!#REF!),NA()) ->  | Y58: =IF(ISNUMBER('F&I'!G24)=TRUE,SUM('F&I'!$J$2:'F&I'!J24),NA()) ->  | AI58: =IF(ISNUMBER(Eastside!G24)=TRUE,SUM(Eastside!$J$2:'Eastside'!J24),NA()) ->  | AM58: =IF(ISNUMBER('Emerald City'!G24)=TRUE,SUM('Emerald City'!$J$2:'Emerald City'!J24),NA()) ->  | AQ58: =IF(ISNUMBER(Retail!G24)=TRUE,SUM(Retail!$J$2:'Retail'!R24),NA()) ->  | AU58: =IF(ISNUMBER(RO!G24)=TRUE,SUM(RO!$J$2:'RO'!J24),NA()) ->  | AY58: =IF(ISNUMBER('Major Unit'!G24)=TRUE,SUM('Major Unit'!$J$2:'Major Unit'!J24),NA()) -> 
B59: =IF(ISNUMBER('MU New'!G25)=TRUE,SUM('MU New'!$K$2:'MU New'!K25),NA()) ->  | H59: =IF(ISNUMBER('MU Used'!G25)=TRUE,SUM('MU Used'!$K$2:'MU Used'!K25),NA()) ->  | M59: =IF(ISNUMBER(MC!G25)=TRUE,SUM(MC!$J$2:'MC'!J25),NA()) ->  | Q59: =IF(ISNUMBER(Parts!G25)=TRUE,SUM(Parts!$J$2:'Parts'!J25),NA()) ->  | U59: =IF(ISNUMBER(Service!G25)=TRUE,SUM(Service!#REF!:Service!#REF!),NA()) ->  | Y59: =IF(ISNUMBER('F&I'!G25)=TRUE,SUM('F&I'!$J$2:'F&I'!J25),NA()) ->  | AI59: =IF(ISNUMBER(Eastside!G25)=TRUE,SUM(Eastside!$J$2:'Eastside'!J25),NA()) ->  | AM59: =IF(ISNUMBER('Emerald City'!G25)=TRUE,SUM('Emerald City'!$J$2:'Emerald City'!J25),NA()) ->  | AQ59: =IF(ISNUMBER(Retail!G25)=TRUE,SUM(Retail!$J$2:'Retail'!R25),NA()) ->  | AU59: =IF(ISNUMBER(RO!G25)=TRUE,SUM(RO!$J$2:'RO'!J25),NA()) ->  | AY59: =IF(ISNUMBER('Major Unit'!G25)=TRUE,SUM('Major Unit'!$J$2:'Major Unit'!J25),NA()) -> 
B60: =IF(ISNUMBER('MU New'!G26)=TRUE,SUM('MU New'!$K$2:'MU New'!K26),NA()) ->  | H60: =IF(ISNUMBER('MU Used'!G26)=TRUE,SUM('MU Used'!$K$2:'MU Used'!K26),NA()) ->  | M60: =IF(ISNUMBER(MC!G26)=TRUE,SUM(MC!$J$2:'MC'!J26),NA()) ->  | Q60: =IF(ISNUMBER(Parts!G26)=TRUE,SUM(Parts!$J$2:'Parts'!J26),NA()) ->  | U60: =IF(ISNUMBER(Service!G26)=TRUE,SUM(Service!#REF!:Service!#REF!),NA()) ->  | Y60: =IF(ISNUMBER('F&I'!G26)=TRUE,SUM('F&I'!$J$2:'F&I'!J26),NA()) ->  | AI60: =IF(ISNUMBER(Eastside!G26)=TRUE,SUM(Eastside!$J$2:'Eastside'!J26),NA()) ->  | AM60: =IF(ISNUMBER('Emerald City'!G26)=TRUE,SUM('Emerald City'!$J$2:'Emerald City'!J26),NA()) ->  | AQ60: =IF(ISNUMBER(Retail!G26)=TRUE,SUM(Retail!$J$2:'Retail'!R26),NA()) ->  | AU60: =IF(ISNUMBER(RO!G26)=TRUE,SUM(RO!$J$2:'RO'!J26),NA()) ->  | AY60: =IF(ISNUMBER('Major Unit'!G26)=TRUE,SUM('Major Unit'!$J$2:'Major Unit'!J26),NA()) -> 
B61: =IF(ISNUMBER('MU New'!G27)=TRUE,SUM('MU New'!$K$2:'MU New'!K27),NA()) ->  | H61: =IF(ISNUMBER('MU Used'!G27)=TRUE,SUM('MU Used'!$K$2:'MU Used'!K27),NA()) ->  | M61: =IF(ISNUMBER(MC!G27)=TRUE,SUM(MC!$J$2:'MC'!J27),NA()) ->  | Q61: =IF(ISNUMBER(Parts!G27)=TRUE,SUM(Parts!$J$2:'Parts'!J27),NA()) ->  | U61: =IF(ISNUMBER(Service!G27)=TRUE,SUM(Service!#REF!:Service!#REF!),NA()) ->  | Y61: =IF(ISNUMBER('F&I'!G27)=TRUE,SUM('F&I'!$J$2:'F&I'!J27),NA()) ->  | AI61: =IF(ISNUMBER(Eastside!G27)=TRUE,SUM(Eastside!$J$2:'Eastside'!J27),NA()) ->  | AM61: =IF(ISNUMBER('Emerald City'!G27)=TRUE,SUM('Emerald City'!$J$2:'Emerald City'!J27),NA()) ->  | AQ61: =IF(ISNUMBER(Retail!G27)=TRUE,SUM(Retail!$J$2:'Retail'!R27),NA()) ->  | AU61: =IF(ISNUMBER(RO!G27)=TRUE,SUM(RO!$J$2:'RO'!J27),NA()) ->  | AY61: =IF(ISNUMBER('Major Unit'!G27)=TRUE,SUM('Major Unit'!$J$2:'Major Unit'!J27),NA()) -> 
B62: =IF(ISNUMBER('MU New'!G28)=TRUE,SUM('MU New'!$K$2:'MU New'!K28),NA()) ->  | H62: =IF(ISNUMBER('MU Used'!G28)=TRUE,SUM('MU Used'!$K$2:'MU Used'!K28),NA()) ->  | M62: =IF(ISNUMBER(MC!G28)=TRUE,SUM(MC!$J$2:'MC'!J28),NA()) ->  | Q62: =IF(ISNUMBER(Parts!G28)=TRUE,SUM(Parts!$J$2:'Parts'!J28),NA()) ->  | U62: =IF(ISNUMBER(Service!G28)=TRUE,SUM(Service!#REF!:Service!#REF!),NA()) ->  | Y62: =IF(ISNUMBER('F&I'!G28)=TRUE,SUM('F&I'!$J$2:'F&I'!J28),NA()) ->  | AI62: =IF(ISNUMBER(Eastside!G28)=TRUE,SUM(Eastside!$J$2:'Eastside'!J28),NA()) ->  | AM62: =IF(ISNUMBER('Emerald City'!G28)=TRUE,SUM('Emerald City'!$J$2:'Emerald City'!J28),NA()) ->  | AQ62: =IF(ISNUMBER(Retail!G28)=TRUE,SUM(Retail!$J$2:'Retail'!R28),NA()) ->  | AU62: =IF(ISNUMBER(RO!G28)=TRUE,SUM(RO!$J$2:'RO'!J28),NA()) ->  | AY62: =IF(ISNUMBER('Major Unit'!G28)=TRUE,SUM('Major Unit'!$J$2:'Major Unit'!J28),NA()) -> 
B63: =IF(ISNUMBER('MU New'!G29)=TRUE,SUM('MU New'!$K$2:'MU New'!K29),NA()) ->  | H63: =IF(ISNUMBER('MU Used'!G29)=TRUE,SUM('MU Used'!$K$2:'MU Used'!K29),NA()) ->  | M63: =IF(ISNUMBER(MC!G29)=TRUE,SUM(MC!$J$2:'MC'!J29),NA()) ->  | Q63: =IF(ISNUMBER(Parts!G29)=TRUE,SUM(Parts!$J$2:'Parts'!J29),NA()) ->  | U63: =IF(ISNUMBER(Service!G29)=TRUE,SUM(Service!#REF!:Service!#REF!),NA()) ->  | Y63: =IF(ISNUMBER('F&I'!G29)=TRUE,SUM('F&I'!$J$2:'F&I'!J29),NA()) ->  | AI63: =IF(ISNUMBER(Eastside!G29)=TRUE,SUM(Eastside!$J$2:'Eastside'!J29),NA()) ->  | AM63: =IF(ISNUMBER('Emerald City'!G29)=TRUE,SUM('Emerald City'!$J$2:'Emerald City'!J29),NA()) ->  | AQ63: =IF(ISNUMBER(Retail!G29)=TRUE,SUM(Retail!$J$2:'Retail'!R29),NA()) ->  | AU63: =IF(ISNUMBER(RO!G29)=TRUE,SUM(RO!$J$2:'RO'!J29),NA()) ->  | AY63: =IF(ISNUMBER('Major Unit'!G29)=TRUE,SUM('Major Unit'!$J$2:'Major Unit'!J29),NA()) -> 
B64: =IF(ISNUMBER('MU New'!G30)=TRUE,SUM('MU New'!$K$2:'MU New'!K30),NA()) ->  | H64: =IF(ISNUMBER('MU Used'!G30)=TRUE,SUM('MU Used'!$K$2:'MU Used'!K30),NA()) ->  | M64: =IF(ISNUMBER(MC!G30)=TRUE,SUM(MC!$J$2:'MC'!J30),NA()) ->  | Q64: =IF(ISNUMBER(Parts!G30)=TRUE,SUM(Parts!$J$2:'Parts'!J30),NA()) ->  | U64: =IF(ISNUMBER(Service!G30)=TRUE,SUM(Service!#REF!:Service!#REF!),NA()) ->  | Y64: =IF(ISNUMBER('F&I'!G30)=TRUE,SUM('F&I'!$J$2:'F&I'!J30),NA()) ->  | AI64: =IF(ISNUMBER(Eastside!G30)=TRUE,SUM(Eastside!$J$2:'Eastside'!J30),NA()) ->  | AM64: =IF(ISNUMBER('Emerald City'!G30)=TRUE,SUM('Emerald City'!$J$2:'Emerald City'!J30),NA()) ->  | AQ64: =IF(ISNUMBER(Retail!G30)=TRUE,SUM(Retail!$J$2:'Retail'!R30),NA()) ->  | AU64: =IF(ISNUMBER(RO!G30)=TRUE,SUM(RO!$J$2:'RO'!J30),NA()) ->  | AY64: =IF(ISNUMBER('Major Unit'!G30)=TRUE,SUM('Major Unit'!$J$2:'Major Unit'!J30),NA()) -> 
B65: =IF(ISNUMBER('MU New'!G31)=TRUE,SUM('MU New'!$K$2:'MU New'!K31),NA()) ->  | H65: =IF(ISNUMBER('MU Used'!G31)=TRUE,SUM('MU Used'!$K$2:'MU Used'!K31),NA()) ->  | M65: =IF(ISNUMBER(MC!G31)=TRUE,SUM(MC!$J$2:'MC'!J31),NA()) ->  | Q65: =IF(ISNUMBER(Parts!G31)=TRUE,SUM(Parts!$J$2:'Parts'!J31),NA()) ->  | U65: =IF(ISNUMBER(Service!G31)=TRUE,SUM(Service!#REF!:Service!#REF!),NA()) ->  | Y65: =IF(ISNUMBER('F&I'!G31)=TRUE,SUM('F&I'!$J$2:'F&I'!J31),NA()) ->  | AI65: =IF(ISNUMBER(Eastside!G31)=TRUE,SUM(Eastside!$J$2:'Eastside'!J31),NA()) ->  | AM65: =IF(ISNUMBER('Emerald City'!G31)=TRUE,SUM('Emerald City'!$J$2:'Emerald City'!J31),NA()) ->  | AQ65: =IF(ISNUMBER(Retail!G31)=TRUE,SUM(Retail!$J$2:'Retail'!R31),NA()) ->  | AU65: =IF(ISNUMBER(RO!G31)=TRUE,SUM(RO!$J$2:'RO'!J31),NA()) ->  | AY65: =IF(ISNUMBER('Major Unit'!G31)=TRUE,SUM('Major Unit'!$J$2:'Major Unit'!J31),NA()) -> 
B66: =IF(ISNUMBER('MU New'!G32)=TRUE,SUM('MU New'!$K$2:'MU New'!K32),NA()) ->  | H66: =IF(ISNUMBER('MU Used'!G32)=TRUE,SUM('MU Used'!$K$2:'MU Used'!K32),NA()) ->  | M66: =IF(ISNUMBER(MC!G32)=TRUE,SUM(MC!$J$2:'MC'!J32),NA()) ->  | Q66: =IF(ISNUMBER(Parts!G32)=TRUE,SUM(Parts!$J$2:'Parts'!J32),NA()) ->  | U66: =IF(ISNUMBER(Service!G32)=TRUE,SUM(Service!#REF!:Service!#REF!),NA()) ->  | Y66: =IF(ISNUMBER('F&I'!G32)=TRUE,SUM('F&I'!$J$2:'F&I'!J32),NA()) ->  | AI66: =IF(ISNUMBER(Eastside!G32)=TRUE,SUM(Eastside!$J$2:'Eastside'!J32),NA()) ->  | AM66: =IF(ISNUMBER('Emerald City'!G32)=TRUE,SUM('Emerald City'!$J$2:'Emerald City'!J32),NA()) ->  | AQ66: =IF(ISNUMBER(Retail!G32)=TRUE,SUM(Retail!$J$2:'Retail'!R32),NA()) ->  | AU66: =IF(ISNUMBER(RO!G32)=TRUE,SUM(RO!$J$2:'RO'!J32),NA()) ->  | AY66: =IF(ISNUMBER('Major Unit'!G32)=TRUE,SUM('Major Unit'!$J$2:'Major Unit'!J32),NA()) -> 

Sheet Admin
A1: Admin
